Workbook

Sheet CONFIG.
C1: OUTIL DE PRESCRIPTION SYSTEMES PEINTURES
B3: Présentation : Ce fichier interractif a été conçu pour analyser vos exigences, contraintes ou cahier des charges.
B4: Choisir les catégories que vous souhaitez renseigner en choisissant votre critère dans liste située en bas à droite de chaque cellule vert anis.
B5: Après étude de vos besoins, l'outils vous propose des solutions personnalisées et leur niveau de performances en fonction des performances des systèmes peintures.
B22: Non sélectionné
B24: 2 | C24: =B24+1 -> 3 | D24: =C24+1 -> 4 | E24: 5 | F24: 6 | G24: 7 | H24: 8 | I24: 9 | J24: 10 | K24: 11
B25: NATURE DU SUPPORT | C25: EXPOSITION | D25: COMPOSITION | E25: RESISTANCES | F25: TYPE D'APPLICATION | G25: BRILLANCE | H25: TEINTES, VERNIS, PRIMAIRE … | I25: SPECIFICITES TECHNIQUES | J25: SECTEURS D'ACTIVITES | K25: ASPECTS
A26: ZONE DE CHOIX : | B26: Non sélectionné | C26: Non sélectionné | D26: Non sélectionné | E26: Non sélectionné | F26: Non sélectionné | G26: Non sélectionné | H26: Non sélectionné | I26: Non sélectionné | J26: Non sélectionné | K26: Non sélectionné
A27: 1 | B27: Non sélectionné | C27: Non sélectionné | D27: Non sélectionné | E27: Non sélectionné | F27: Non sélectionné | G27: Non sélectionné | H27: Non sélectionné | I27: Non sélectionné | J27: Non sélectionné | K27: Non sélectionné
A28: 2 | B28: Acier brut et trempé / phosphaté | C28: EXTERIEUR | D28: 100 % Extrait sec (sans solvant / sans eau) | E28: ABRASION | F28: Brosse, rouleau | G28: Brillant | H28: Couleurs / Teintes | I28: CDC DGA | J28: Agricole. | K28: Antidérapant
A29: 3 | B29: Acier électro zingué. | C29: IMMERGEE | D29: A BASE DE MATIERES NATURELLES | E29: CHIMIQUE | F29: Pulvérisation | G29: Mat | H29: Fluo / Photoluminescent | I29: anticryptogamique | J29: Alimentaire. | K29: Magnétique
A30: 4 | B30: Acier galvanisé à chaud. | C30: INTERIEUR | D30: FAIBLE COV | E30: Température 200 °C | F30: Pulvérisation électrostatique | G30: Satiné | H30: Monocouche teinté | I30: BS > 100 H | J30: Anticorrosion. | K30: Martelé
A31: 5 | B31: Acier laminé à froid, tôlerie fine / phosphaté | C31: PRIMAIRE avant FINITION | D31: HYDRO | E31: Température 250/300 °C | F31: Trempé | H31: Primaire uniquement | I31: BS > 200 H | J31: Anti-graffiti. | K31: Pelable
A32: 6 | B32: Acier métallisé au zinc / aluminium. | D32: SOLVANTE | E32: Température 550/600 °C | H32: Système plusieurs couches | I32: BS > 400 H | J32: Bardages | K32: Soft
A33: 7 | B33: Aluminium. | E33: ULTRA VIOLET | H33: Semi Opacifiant | I33: BS > 600 H | J33: Bâtiment Extérieur | K33: Structuré
A34: 8 | B34: Anciens fonds de peintures insensibles aux solvants | H34: Teintes bois | I34: Certifié Ecocert | J34: Bâtiment Intérieur | K34: Tableau Véléda
A35: 9 | B35: Anciens fonds de peintures sensibles aux solvants | H35: Vernis incolore | I35: Décontaminable | J35: Charpentes. | K35: Temporaire
A36: 10 | B36: Bétons non poreux. | I36: hydrophobe | J36: Chaudronneries. | K36: Texturé
A37: 11 | B37: Bétons poreux. | I37: Norme Jouet | J37: Constructions modulaires.
A38: 12 | B38: Bois à tanin | I38: PV alimentaire | J38: Conteneurs / Bennes.
A39: 13 | B39: Bois absorbant | I39: PV feu | J39: Décoration
A40: 14 | B40: Bois contreplaqué | I40: Tenue agents chimiques | J40: Enseignes publicitaires.
A41: 15 | B41: Bois Médium | J41: Equipements industriels.
A42: 16 | B42: Bois non absorbant type imputrescible | J42: Marine / navale
A43: 17 | B43: Bois OSB | J43: Matériel Médical
A44: 18 | B44: Briques / pierres naturelles | J44: Matériels roulants
A45: 19 | B45: Cartons | J45: Mobilier de bureaux.
A46: 20 | B46: Chaux | J46: Monuments historiques
A47: 21 | B47: Ciment / ragréage | J47: Ouvrages d'art
A48: 22 | B48: Enduits minéraux | J48: Ouvrages en bois
A49: 23 | B49: Fermacell | J49: Scolaire
A50: 24 | B50: Fonte d'aluminium. | J50: Sols
A51: 25 | B51: Fonte. | J51: Toitures
A52: 26 | B52: Inox. | J52: Tôleries industrielles.
A53: 27 | B53: Laiton et plomb.
A54: 28 | B54: Les Elastomères, bâches
A55: 29 | B55: Plastiques Polypropylène
A56: 30 | B56: Plastiques Thermodurcissables (nature : aminoplaste / polyester / polyuréthanne / polyurée / phénolique / époxydique)
A57: 31 | B57: Plastiques Thermoplastiques (PS / ABS / SAN / PE / PVC / PA / PMMA)
A58: 32 | B58: Plâtre et Placoplâtre.
A59: 35 | B59: Support végétal / animal : (herbe, arbre, mouton …)
A60: 33 | B60: Supports taggés / graffités
A61: 34 | B61: Zamak.
A62: 36
D69: Niveaux de performances | I69: LIENS
A70: ORDRE SYSTÈME | B70: REFERENCES PRODUITS | D70: =CONCATENATE("Adhérences : ",IF(B26="Non sélectionné","Générales",B26)) -> Adhérences : Générales | E70: =CONCATENATE("Expositions : ",IF(C26="Non sélectionné","Générales",C26)) -> Expositions : Générales | F70: =CONCATENATE("Résistances : ",IF(E26="Non sélectionné","Générales",E26)) -> Résistances : Générales | G70: SIMPLICITE Mise en Œuvre | H70: Niveau de prix | I70: Fiche Technique | J70: Fiche de données de sécurité
A71: 1 | B71: =IF(ISERROR(VLOOKUP(A71,BASE1!B:D,3,FALSE)=TRUE),"",VLOOKUP(A71,BASE1!B:D,3,FALSE)) -> 131 | D71: =IF(ISERROR(IF(B$26="Non sélectionné",VLOOKUP($B71,BASE1!$D:$S,2,FALSE),VLOOKUP($B71,BASE1!$D:$S,5,FALSE))=TRUE),"",IF(B$26="Non sélectionné",VLOOKUP($B71,BASE1!$D:$S,2,FALSE),VLOOKUP($B71,BASE1!$D:$S,5,FALSE))) -> 2,5/5 | E71: =IF(ISERROR(IF(C$26="Non sélectionné",VLOOKUP($B71,BASE1!$D:$S,3,FALSE),VLOOKUP($B71,BASE1!$D:$S,6,FALSE))=TRUE),"",IF(C$26="Non sélectionné",VLOOKUP($B71,BASE1!$D:$S,3,FALSE),VLOOKUP($B71,BASE1!$D:$S,6,FALSE))) -> 2,5/5 | F71: =IF(ISERROR(IF(E$26="Non sélectionné",VLOOKUP($B71,BASE1!$D:$S,4,FALSE),VLOOKUP($B71,BASE1!$D:$S,8,FALSE))=TRUE),"",IF(E$26="Non sélectionné",VLOOKUP($B71,BASE1!$D:$S,4,FALSE),VLOOKUP($B71,BASE1!$D:$S,8,FALSE))) -> 2,5/5 | G71: =IF(ISERROR(VLOOKUP($B71,BASE1!$D:$S,15,FALSE)=TRUE),"",VLOOKUP($B71,BASE1!$D:$S,15,FALSE)) -> 5/5 | H71: =IF(ISERROR(VLOOKUP($B71,BASE1!$D:$S,16,FALSE)=TRUE),"",VLOOKUP($B71,BASE1!$D:$S,16,FALSE)) -> 5/5
A72: 2 | B72: =IF(ISERROR(VLOOKUP(A72,BASE1!B:D,3,FALSE)=TRUE),"",VLOOKUP(A72,BASE1!B:D,3,FALSE)) -> 132 | D72: =IF(ISERROR(IF(B$26="Non sélectionné",VLOOKUP($B72,BASE1!$D:$S,2,FALSE),VLOOKUP($B72,BASE1!$D:$S,5,FALSE))=TRUE),"",IF(B$26="Non sélectionné",VLOOKUP($B72,BASE1!$D:$S,2,FALSE),VLOOKUP($B72,BASE1!$D:$S,5,FALSE))) -> 2,5/5 | E72: =IF(ISERROR(IF(C$26="Non sélectionné",VLOOKUP($B72,BASE1!$D:$S,3,FALSE),VLOOKUP($B72,BASE1!$D:$S,6,FALSE))=TRUE),"",IF(C$26="Non sélectionné",VLOOKUP($B72,BASE1!$D:$S,3,FALSE),VLOOKUP($B72,BASE1!$D:$S,6,FALSE))) -> 2,5/5 | F72: =IF(ISERROR(IF(E$26="Non sélectionné",VLOOKUP($B72,BASE1!$D:$S,4,FALSE),VLOOKUP($B72,BASE1!$D:$S,8,FALSE))=TRUE),"",IF(E$26="Non sélectionné",VLOOKUP($B72,BASE1!$D:$S,4,FALSE),VLOOKUP($B72,BASE1!$D:$S,8,FALSE))) -> 2,5/5 | G72: =IF(ISERROR(VLOOKUP($B72,BASE1!$D:$S,15,FALSE)=TRUE),"",VLOOKUP($B72,BASE1!$D:$S,15,FALSE)) -> 5/5 | H72: =IF(ISERROR(VLOOKUP($B72,BASE1!$D:$S,16,FALSE)=TRUE),"",VLOOKUP($B72,BASE1!$D:$S,16,FALSE)) -> 5/5
A73: 3 | B73: =IF(ISERROR(VLOOKUP(A73,BASE1!B:D,3,FALSE)=TRUE),"",VLOOKUP(A73,BASE1!B:D,3,FALSE)) -> 135 | D73: =IF(ISERROR(IF(B$26="Non sélectionné",VLOOKUP($B73,BASE1!$D:$S,2,FALSE),VLOOKUP($B73,BASE1!$D:$S,5,FALSE))=TRUE),"",IF(B$26="Non sélectionné",VLOOKUP($B73,BASE1!$D:$S,2,FALSE),VLOOKUP($B73,BASE1!$D:$S,5,FALSE))) -> 4/5 | E73: =IF(ISERROR(IF(C$26="Non sélectionné",VLOOKUP($B73,BASE1!$D:$S,3,FALSE),VLOOKUP($B73,BASE1!$D:$S,6,FALSE))=TRUE),"",IF(C$26="Non sélectionné",VLOOKUP($B73,BASE1!$D:$S,3,FALSE),VLOOKUP($B73,BASE1!$D:$S,6,FALSE))) -> 3/5 | F73: =IF(ISERROR(IF(E$26="Non sélectionné",VLOOKUP($B73,BASE1!$D:$S,4,FALSE),VLOOKUP($B73,BASE1!$D:$S,8,FALSE))=TRUE),"",IF(E$26="Non sélectionné",VLOOKUP($B73,BASE1!$D:$S,4,FALSE),VLOOKUP($B73,BASE1!$D:$S,8,FALSE))) -> 3/5 | G73: =IF(ISERROR(VLOOKUP($B73,BASE1!$D:$S,15,FALSE)=TRUE),"",VLOOKUP($B73,BASE1!$D:$S,15,FALSE)) -> 5/5 | H73: =IF(ISERROR(VLOOKUP($B73,BASE1!$D:$S,16,FALSE)=TRUE),"",VLOOKUP($B73,BASE1!$D:$S,16,FALSE)) -> 4,5/5
A74: 4 | B74: =IF(ISERROR(VLOOKUP(A74,BASE1!B:D,3,FALSE)=TRUE),"",VLOOKUP(A74,BASE1!B:D,3,FALSE)) -> 137 | D74: =IF(ISERROR(IF(B$26="Non sélectionné",VLOOKUP($B74,BASE1!$D:$S,2,FALSE),VLOOKUP($B74,BASE1!$D:$S,5,FALSE))=TRUE),"",IF(B$26="Non sélectionné",VLOOKUP($B74,BASE1!$D:$S,2,FALSE),VLOOKUP($B74,BASE1!$D:$S,5,FALSE))) -> 4/5 | E74: =IF(ISERROR(IF(C$26="Non sélectionné",VLOOKUP($B74,BASE1!$D:$S,3,FALSE),VLOOKUP($B74,BASE1!$D:$S,6,FALSE))=TRUE),"",IF(C$26="Non sélectionné",VLOOKUP($B74,BASE1!$D:$S,3,FALSE),VLOOKUP($B74,BASE1!$D:$S,6,FALSE))) -> 2/5 | F74: =IF(ISERROR(IF(E$26="Non sélectionné",VLOOKUP($B74,BASE1!$D:$S,4,FALSE),VLOOKUP($B74,BASE1!$D:$S,8,FALSE))=TRUE),"",IF(E$26="Non sélectionné",VLOOKUP($B74,BASE1!$D:$S,4,FALSE),VLOOKUP($B74,BASE1!$D:$S,8,FALSE))) -> 3/5 | G74: =IF(ISERROR(VLOOKUP($B74,BASE1!$D:$S,15,FALSE)=TRUE),"",VLOOKUP($B74,BASE1!$D:$S,15,FALSE)) -> 4/5 | H74: =IF(ISERROR(VLOOKUP($B74,BASE1!$D:$S,16,FALSE)=TRUE),"",VLOOKUP($B74,BASE1!$D:$S,16,FALSE)) -> 4/5
A75: 5 | B75: =IF(ISERROR(VLOOKUP(A75,BASE1!B:D,3,FALSE)=TRUE),"",VLOOKUP(A75,BASE1!B:D,3,FALSE)) -> 146 | D75: =IF(ISERROR(IF(B$26="Non sélectionné",VLOOKUP($B75,BASE1!$D:$S,2,FALSE),VLOOKUP($B75,BASE1!$D:$S,5,FALSE))=TRUE),"",IF(B$26="Non sélectionné",VLOOKUP($B75,BASE1!$D:$S,2,FALSE),VLOOKUP($B75,BASE1!$D:$S,5,FALSE))) -> 2,5/5 | E75: =IF(ISERROR(IF(C$26="Non sélectionné",VLOOKUP($B75,BASE1!$D:$S,3,FALSE),VLOOKUP($B75,BASE1!$D:$S,6,FALSE))=TRUE),"",IF(C$26="Non sélectionné",VLOOKUP($B75,BASE1!$D:$S,3,FALSE),VLOOKUP($B75,BASE1!$D:$S,6,FALSE))) -> 2,5/5 | F75: =IF(ISERROR(IF(E$26="Non sélectionné",VLOOKUP($B75,BASE1!$D:$S,4,FALSE),VLOOKUP($B75,BASE1!$D:$S,8,FALSE))=TRUE),"",IF(E$26="Non sélectionné",VLOOKUP($B75,BASE1!$D:$S,4,FALSE),VLOOKUP($B75,BASE1!$D:$S,8,FALSE))) -> 2,5/5 | G75: =IF(ISERROR(VLOOKUP($B75,BASE1!$D:$S,15,FALSE)=TRUE),"",VLOOKUP($B75,BASE1!$D:$S,15,FALSE)) -> 5/5 | H75: =IF(ISERROR(VLOOKUP($B75,BASE1!$D:$S,16,FALSE)=TRUE),"",VLOOKUP($B75,BASE1!$D:$S,16,FALSE)) -> 5/5
A76: 6 | B76: =IF(ISERROR(VLOOKUP(A76,BASE1!B:D,3,FALSE)=TRUE),"",VLOOKUP(A76,BASE1!B:D,3,FALSE)) -> 158 | D76: =IF(ISERROR(IF(B$26="Non sélectionné",VLOOKUP($B76,BASE1!$D:$S,2,FALSE),VLOOKUP($B76,BASE1!$D:$S,5,FALSE))=TRUE),"",IF(B$26="Non sélectionné",VLOOKUP($B76,BASE1!$D:$S,2,FALSE),VLOOKUP($B76,BASE1!$D:$S,5,FALSE))) -> 3/5 | E76: =IF(ISERROR(IF(C$26="Non sélectionné",VLOOKUP($B76,BASE1!$D:$S,3,FALSE),VLOOKUP($B76,BASE1!$D:$S,6,FALSE))=TRUE),"",IF(C$26="Non sélectionné",VLOOKUP($B76,BASE1!$D:$S,3,FALSE),VLOOKUP($B76,BASE1!$D:$S,6,FALSE))) -> 2,5/5 | F76: =IF(ISERROR(IF(E$26="Non sélectionné",VLOOKUP($B76,BASE1!$D:$S,4,FALSE),VLOOKUP($B76,BASE1!$D:$S,8,FALSE))=TRUE),"",IF(E$26="Non sélectionné",VLOOKUP($B76,BASE1!$D:$S,4,FALSE),VLOOKUP($B76,BASE1!$D:$S,8,FALSE))) -> 2,5/5 | G76: =IF(ISERROR(VLOOKUP($B76,BASE1!$D:$S,15,FALSE)=TRUE),"",VLOOKUP($B76,BASE1!$D:$S,15,FALSE)) -> 5/5 | H76: =IF(ISERROR(VLOOKUP($B76,BASE1!$D:$S,16,FALSE)=TRUE),"",VLOOKUP($B76,BASE1!$D:$S,16,FALSE)) -> 5/5
A77: 7 | B77: =IF(ISERROR(VLOOKUP(A77,BASE1!B:D,3,FALSE)=TRUE),"",VLOOKUP(A77,BASE1!B:D,3,FALSE)) -> 260 | D77: =IF(ISERROR(IF(B$26="Non sélectionné",VLOOKUP($B77,BASE1!$D:$S,2,FALSE),VLOOKUP($B77,BASE1!$D:$S,5,FALSE))=TRUE),"",IF(B$26="Non sélectionné",VLOOKUP($B77,BASE1!$D:$S,2,FALSE),VLOOKUP($B77,BASE1!$D:$S,5,FALSE))) -> 3/5 | E77: =IF(ISERROR(IF(C$26="Non sélectionné",VLOOKUP($B77,BASE1!$D:$S,3,FALSE),VLOOKUP($B77,BASE1!$D:$S,6,FALSE))=TRUE),"",IF(C$26="Non sélectionné",VLOOKUP($B77,BASE1!$D:$S,3,FALSE),VLOOKUP($B77,BASE1!$D:$S,6,FALSE))) -> 2,5/5 | F77: =IF(ISERROR(IF(E$26="Non sélectionné",VLOOKUP($B77,BASE1!$D:$S,4,FALSE),VLOOKUP($B77,BASE1!$D:$S,8,FALSE))=TRUE),"",IF(E$26="Non sélectionné",VLOOKUP($B77,BASE1!$D:$S,4,FALSE),VLOOKUP($B77,BASE1!$D:$S,8,FALSE))) -> 2,5/5 | G77: =IF(ISERROR(VLOOKUP($B77,BASE1!$D:$S,15,FALSE)=TRUE),"",VLOOKUP($B77,BASE1!$D:$S,15,FALSE)) -> 5/5 | H77: =IF(ISERROR(VLOOKUP($B77,BASE1!$D:$S,16,FALSE)=TRUE),"",VLOOKUP($B77,BASE1!$D:$S,16,FALSE)) -> 5/5
A78: 8 | B78: =IF(ISERROR(VLOOKUP(A78,BASE1!B:D,3,FALSE)=TRUE),"",VLOOKUP(A78,BASE1!B:D,3,FALSE)) -> 306 | D78: =IF(ISERROR(IF(B$26="Non sélectionné",VLOOKUP($B78,BASE1!$D:$S,2,FALSE),VLOOKUP($B78,BASE1!$D:$S,5,FALSE))=TRUE),"",IF(B$26="Non sélectionné",VLOOKUP($B78,BASE1!$D:$S,2,FALSE),VLOOKUP($B78,BASE1!$D:$S,5,FALSE))) -> 3/5 | E78: =IF(ISERROR(IF(C$26="Non sélectionné",VLOOKUP($B78,BASE1!$D:$S,3,FALSE),VLOOKUP($B78,BASE1!$D:$S,6,FALSE))=TRUE),"",IF(C$26="Non sélectionné",VLOOKUP($B78,BASE1!$D:$S,3,FALSE),VLOOKUP($B78,BASE1!$D:$S,6,FALSE))) -> 2,5/5 | F78: =IF(ISERROR(IF(E$26="Non sélectionné",VLOOKUP($B78,BASE1!$D:$S,4,FALSE),VLOOKUP($B78,BASE1!$D:$S,8,FALSE))=TRUE),"",IF(E$26="Non sélectionné",VLOOKUP($B78,BASE1!$D:$S,4,FALSE),VLOOKUP($B78,BASE1!$D:$S,8,FALSE))) -> 2,5/5 | G78: =IF(ISERROR(VLOOKUP($B78,BASE1!$D:$S,15,FALSE)=TRUE),"",VLOOKUP($B78,BASE1!$D:$S,15,FALSE)) -> 5/5 | H78: =IF(ISERROR(VLOOKUP($B78,BASE1!$D:$S,16,FALSE)=TRUE),"",VLOOKUP($B78,BASE1!$D:$S,16,FALSE)) -> 4/5
A79: 9 | B79: =IF(ISERROR(VLOOKUP(A79,BASE1!B:D,3,FALSE)=TRUE),"",VLOOKUP(A79,BASE1!B:D,3,FALSE)) -> 318 | D79: =IF(ISERROR(IF(B$26="Non sélectionné",VLOOKUP($B79,BASE1!$D:$S,2,FALSE),VLOOKUP($B79,BASE1!$D:$S,5,FALSE))=TRUE),"",IF(B$26="Non sélectionné",VLOOKUP($B79,BASE1!$D:$S,2,FALSE),VLOOKUP($B79,BASE1!$D:$S,5,FALSE))) -> PELABLE | E79: =IF(ISERROR(IF(C$26="Non sélectionné",VLOOKUP($B79,BASE1!$D:$S,3,FALSE),VLOOKUP($B79,BASE1!$D:$S,6,FALSE))=TRUE),"",IF(C$26="Non sélectionné",VLOOKUP($B79,BASE1!$D:$S,3,FALSE),VLOOKUP($B79,BASE1!$D:$S,6,FALSE))) -> PELABLE | F79: =IF(ISERROR(IF(E$26="Non sélectionné",VLOOKUP($B79,BASE1!$D:$S,4,FALSE),VLOOKUP($B79,BASE1!$D:$S,8,FALSE))=TRUE),"",IF(E$26="Non sélectionné",VLOOKUP($B79,BASE1!$D:$S,4,FALSE),VLOOKUP($B79,BASE1!$D:$S,8,FALSE))) -> PELABLE | G79: =IF(ISERROR(VLOOKUP($B79,BASE1!$D:$S,15,FALSE)=TRUE),"",VLOOKUP($B79,BASE1!$D:$S,15,FALSE)) -> 5/5 | H79: =IF(ISERROR(VLOOKUP($B79,BASE1!$D:$S,16,FALSE)=TRUE),"",VLOOKUP($B79,BASE1!$D:$S,16,FALSE)) -> PELABLE
A80: 10 | B80: =IF(ISERROR(VLOOKUP(A80,BASE1!B:D,3,FALSE)=TRUE),"",VLOOKUP(A80,BASE1!B:D,3,FALSE)) -> 332 | D80: =IF(ISERROR(IF(B$26="Non sélectionné",VLOOKUP($B80,BASE1!$D:$S,2,FALSE),VLOOKUP($B80,BASE1!$D:$S,5,FALSE))=TRUE),"",IF(B$26="Non sélectionné",VLOOKUP($B80,BASE1!$D:$S,2,FALSE),VLOOKUP($B80,BASE1!$D:$S,5,FALSE))) -> 3,5/5 | E80: =IF(ISERROR(IF(C$26="Non sélectionné",VLOOKUP($B80,BASE1!$D:$S,3,FALSE),VLOOKUP($B80,BASE1!$D:$S,6,FALSE))=TRUE),"",IF(C$26="Non sélectionné",VLOOKUP($B80,BASE1!$D:$S,3,FALSE),VLOOKUP($B80,BASE1!$D:$S,6,FALSE))) -> 3,5/5 | F80: =IF(ISERROR(IF(E$26="Non sélectionné",VLOOKUP($B80,BASE1!$D:$S,4,FALSE),VLOOKUP($B80,BASE1!$D:$S,8,FALSE))=TRUE),"",IF(E$26="Non sélectionné",VLOOKUP($B80,BASE1!$D:$S,4,FALSE),VLOOKUP($B80,BASE1!$D:$S,8,FALSE))) -> 3/5 | G80: =IF(ISERROR(VLOOKUP($B80,BASE1!$D:$S,15,FALSE)=TRUE),"",VLOOKUP($B80,BASE1!$D:$S,15,FALSE)) -> 5/5 | H80: =IF(ISERROR(VLOOKUP($B80,BASE1!$D:$S,16,FALSE)=TRUE),"",VLOOKUP($B80,BASE1!$D:$S,16,FALSE)) -> 4,5/5
A81: 11 | B81: =IF(ISERROR(VLOOKUP(A81,BASE1!B:D,3,FALSE)=TRUE),"",VLOOKUP(A81,BASE1!B:D,3,FALSE)) -> 345 | D81: =IF(ISERROR(IF(B$26="Non sélectionné",VLOOKUP($B81,BASE1!$D:$S,2,FALSE),VLOOKUP($B81,BASE1!$D:$S,5,FALSE))=TRUE),"",IF(B$26="Non sélectionné",VLOOKUP($B81,BASE1!$D:$S,2,FALSE),VLOOKUP($B81,BASE1!$D:$S,5,FALSE))) -> 3,5/5 | E81: =IF(ISERROR(IF(C$26="Non sélectionné",VLOOKUP($B81,BASE1!$D:$S,3,FALSE),VLOOKUP($B81,BASE1!$D:$S,6,FALSE))=TRUE),"",IF(C$26="Non sélectionné",VLOOKUP($B81,BASE1!$D:$S,3,FALSE),VLOOKUP($B81,BASE1!$D:$S,6,FALSE))) -> 3,5/5 | F81: =IF(ISERROR(IF(E$26="Non sélectionné",VLOOKUP($B81,BASE1!$D:$S,4,FALSE),VLOOKUP($B81,BASE1!$D:$S,8,FALSE))=TRUE),"",IF(E$26="Non sélectionné",VLOOKUP($B81,BASE1!$D:$S,4,FALSE),VLOOKUP($B81,BASE1!$D:$S,8,FALSE))) -> 3,5/5 | G81: =IF(ISERROR(VLOOKUP($B81,BASE1!$D:$S,15,FALSE)=TRUE),"",VLOOKUP($B81,BASE1!$D:$S,15,FALSE)) -> 4/5 | H81: =IF(ISERROR(VLOOKUP($B81,BASE1!$D:$S,16,FALSE)=TRUE),"",VLOOKUP($B81,BASE1!$D:$S,16,FALSE)) -> 4/5
A82: 12 | B82: =IF(ISERROR(VLOOKUP(A82,BASE1!B:D,3,FALSE)=TRUE),"",VLOOKUP(A82,BASE1!B:D,3,FALSE)) -> 351 | D82: =IF(ISERROR(IF(B$26="Non sélectionné",VLOOKUP($B82,BASE1!$D:$S,2,FALSE),VLOOKUP($B82,BASE1!$D:$S,5,FALSE))=TRUE),"",IF(B$26="Non sélectionné",VLOOKUP($B82,BASE1!$D:$S,2,FALSE),VLOOKUP($B82,BASE1!$D:$S,5,FALSE))) -> 4,5/5 | E82: =IF(ISERROR(IF(C$26="Non sélectionné",VLOOKUP($B82,BASE1!$D:$S,3,FALSE),VLOOKUP($B82,BASE1!$D:$S,6,FALSE))=TRUE),"",IF(C$26="Non sélectionné",VLOOKUP($B82,BASE1!$D:$S,3,FALSE),VLOOKUP($B82,BASE1!$D:$S,6,FALSE))) -> 2/5 | F82: =IF(ISERROR(IF(E$26="Non sélectionné",VLOOKUP($B82,BASE1!$D:$S,4,FALSE),VLOOKUP($B82,BASE1!$D:$S,8,FALSE))=TRUE),"",IF(E$26="Non sélectionné",VLOOKUP($B82,BASE1!$D:$S,4,FALSE),VLOOKUP($B82,BASE1!$D:$S,8,FALSE))) -> 2/5 | G82: =IF(ISERROR(VLOOKUP($B82,BASE1!$D:$S,15,FALSE)=TRUE),"",VLOOKUP($B82,BASE1!$D:$S,15,FALSE)) -> 4/5 | H82: =IF(ISERROR(VLOOKUP($B82,BASE1!$D:$S,16,FALSE)=TRUE),"",VLOOKUP($B82,BASE1!$D:$S,16,FALSE)) -> 4/5
A83: 13 | B83: =IF(ISERROR(VLOOKUP(A83,BASE1!B:D,3,FALSE)=TRUE),"",VLOOKUP(A83,BASE1!B:D,3,FALSE)) -> 352 | D83: =IF(ISERROR(IF(B$26="Non sélectionné",VLOOKUP($B83,BASE1!$D:$S,2,FALSE),VLOOKUP($B83,BASE1!$D:$S,5,FALSE))=TRUE),"",IF(B$26="Non sélectionné",VLOOKUP($B83,BASE1!$D:$S,2,FALSE),VLOOKUP($B83,BASE1!$D:$S,5,FALSE))) -> 5/5 | E83: =IF(ISERROR(IF(C$26="Non sélectionné",VLOOKUP($B83,BASE1!$D:$S,3,FALSE),VLOOKUP($B83,BASE1!$D:$S,6,FALSE))=TRUE),"",IF(C$26="Non sélectionné",VLOOKUP($B83,BASE1!$D:$S,3,FALSE),VLOOKUP($B83,BASE1!$D:$S,6,FALSE))) -> 2/5 | F83: =IF(ISERROR(IF(E$26="Non sélectionné",VLOOKUP($B83,BASE1!$D:$S,4,FALSE),VLOOKUP($B83,BASE1!$D:$S,8,FALSE))=TRUE),"",IF(E$26="Non sélectionné",VLOOKUP($B83,BASE1!$D:$S,4,FALSE),VLOOKUP($B83,BASE1!$D:$S,8,FALSE))) -> 2/5 | G83: =IF(ISERROR(VLOOKUP($B83,BASE1!$D:$S,15,FALSE)=TRUE),"",VLOOKUP($B83,BASE1!$D:$S,15,FALSE)) -> 4/5 | H83: =IF(ISERROR(VLOOKUP($B83,BASE1!$D:$S,16,FALSE)=TRUE),"",VLOOKUP($B83,BASE1!$D:$S,16,FALSE)) -> 4/5
A84: 14 | B84: =IF(ISERROR(VLOOKUP(A84,BASE1!B:D,3,FALSE)=TRUE),"",VLOOKUP(A84,BASE1!B:D,3,FALSE)) -> 353 | D84: =IF(ISERROR(IF(B$26="Non sélectionné",VLOOKUP($B84,BASE1!$D:$S,2,FALSE),VLOOKUP($B84,BASE1!$D:$S,5,FALSE))=TRUE),"",IF(B$26="Non sélectionné",VLOOKUP($B84,BASE1!$D:$S,2,FALSE),VLOOKUP($B84,BASE1!$D:$S,5,FALSE))) -> 4/5 | E84: =IF(ISERROR(IF(C$26="Non sélectionné",VLOOKUP($B84,BASE1!$D:$S,3,FALSE),VLOOKUP($B84,BASE1!$D:$S,6,FALSE))=TRUE),"",IF(C$26="Non sélectionné",VLOOKUP($B84,BASE1!$D:$S,3,FALSE),VLOOKUP($B84,BASE1!$D:$S,6,FALSE))) -> 2/5 | F84: =IF(ISERROR(IF(E$26="Non sélectionné",VLOOKUP($B84,BASE1!$D:$S,4,FALSE),VLOOKUP($B84,BASE1!$D:$S,8,FALSE))=TRUE),"",IF(E$26="Non sélectionné",VLOOKUP($B84,BASE1!$D:$S,4,FALSE),VLOOKUP($B84,BASE1!$D:$S,8,FALSE))) -> 2/5 | G84: =IF(ISERROR(VLOOKUP($B84,BASE1!$D:$S,15,FALSE)=TRUE),"",VLOOKUP($B84,BASE1!$D:$S,15,FALSE)) -> 4/5 | H84: =IF(ISERROR(VLOOKUP($B84,BASE1!$D:$S,16,FALSE)=TRUE),"",VLOOKUP($B84,BASE1!$D:$S,16,FALSE)) -> 4/5
A85: 15 | B85: =IF(ISERROR(VLOOKUP(A85,BASE1!B:D,3,FALSE)=TRUE),"",VLOOKUP(A85,BASE1!B:D,3,FALSE)) -> 363 | D85: =IF(ISERROR(IF(B$26="Non sélectionné",VLOOKUP($B85,BASE1!$D:$S,2,FALSE),VLOOKUP($B85,BASE1!$D:$S,5,FALSE))=TRUE),"",IF(B$26="Non sélectionné",VLOOKUP($B85,BASE1!$D:$S,2,FALSE),VLOOKUP($B85,BASE1!$D:$S,5,FALSE))) -> 3,5/5 | E85: =IF(ISERROR(IF(C$26="Non sélectionné",VLOOKUP($B85,BASE1!$D:$S,3,FALSE),VLOOKUP($B85,BASE1!$D:$S,6,FALSE))=TRUE),"",IF(C$26="Non sélectionné",VLOOKUP($B85,BASE1!$D:$S,3,FALSE),VLOOKUP($B85,BASE1!$D:$S,6,FALSE))) -> 3,5/5 | F85: =IF(ISERROR(IF(E$26="Non sélectionné",VLOOKUP($B85,BASE1!$D:$S,4,FALSE),VLOOKUP($B85,BASE1!$D:$S,8,FALSE))=TRUE),"",IF(E$26="Non sélectionné",VLOOKUP($B85,BASE1!$D:$S,4,FALSE),VLOOKUP($B85,BASE1!$D:$S,8,FALSE))) -> 4/5 | G85: =IF(ISERROR(VLOOKUP($B85,BASE1!$D:$S,15,FALSE)=TRUE),"",VLOOKUP($B85,BASE1!$D:$S,15,FALSE)) -> 4/5 | H85: =IF(ISERROR(VLOOKUP($B85,BASE1!$D:$S,16,FALSE)=TRUE),"",VLOOKUP($B85,BASE1!$D:$S,16,FALSE)) -> 3/5
A86: 16 | B86: =IF(ISERROR(VLOOKUP(A86,BASE1!B:D,3,FALSE)=TRUE),"",VLOOKUP(A86,BASE1!B:D,3,FALSE)) -> 365 | D86: =IF(ISERROR(IF(B$26="Non sélectionné",VLOOKUP($B86,BASE1!$D:$S,2,FALSE),VLOOKUP($B86,BASE1!$D:$S,5,FALSE))=TRUE),"",IF(B$26="Non sélectionné",VLOOKUP($B86,BASE1!$D:$S,2,FALSE),VLOOKUP($B86,BASE1!$D:$S,5,FALSE))) -> 3/5 | E86: =IF(ISERROR(IF(C$26="Non sélectionné",VLOOKUP($B86,BASE1!$D:$S,3,FALSE),VLOOKUP($B86,BASE1!$D:$S,6,FALSE))=TRUE),"",IF(C$26="Non sélectionné",VLOOKUP($B86,BASE1!$D:$S,3,FALSE),VLOOKUP($B86,BASE1!$D:$S,6,FALSE))) -> 2,5/5 | F86: =IF(ISERROR(IF(E$26="Non sélectionné",VLOOKUP($B86,BASE1!$D:$S,4,FALSE),VLOOKUP($B86,BASE1!$D:$S,8,FALSE))=TRUE),"",IF(E$26="Non sélectionné",VLOOKUP($B86,BASE1!$D:$S,4,FALSE),VLOOKUP($B86,BASE1!$D:$S,8,FALSE))) -> 2,5/5 | G86: =IF(ISERROR(VLOOKUP($B86,BASE1!$D:$S,15,FALSE)=TRUE),"",VLOOKUP($B86,BASE1!$D:$S,15,FALSE)) -> 5/5 | H86: =IF(ISERROR(VLOOKUP($B86,BASE1!$D:$S,16,FALSE)=TRUE),"",VLOOKUP($B86,BASE1!$D:$S,16,FALSE)) -> 1/5
A87: 17 | B87: =IF(ISERROR(VLOOKUP(A87,BASE1!B:D,3,FALSE)=TRUE),"",VLOOKUP(A87,BASE1!B:D,3,FALSE)) -> 375 | D87: =IF(ISERROR(IF(B$26="Non sélectionné",VLOOKUP($B87,BASE1!$D:$S,2,FALSE),VLOOKUP($B87,BASE1!$D:$S,5,FALSE))=TRUE),"",IF(B$26="Non sélectionné",VLOOKUP($B87,BASE1!$D:$S,2,FALSE),VLOOKUP($B87,BASE1!$D:$S,5,FALSE))) -> 3/5 | E87: =IF(ISERROR(IF(C$26="Non sélectionné",VLOOKUP($B87,BASE1!$D:$S,3,FALSE),VLOOKUP($B87,BASE1!$D:$S,6,FALSE))=TRUE),"",IF(C$26="Non sélectionné",VLOOKUP($B87,BASE1!$D:$S,3,FALSE),VLOOKUP($B87,BASE1!$D:$S,6,FALSE))) -> 2,5/5 | F87: =IF(ISERROR(IF(E$26="Non sélectionné",VLOOKUP($B87,BASE1!$D:$S,4,FALSE),VLOOKUP($B87,BASE1!$D:$S,8,FALSE))=TRUE),"",IF(E$26="Non sélectionné",VLOOKUP($B87,BASE1!$D:$S,4,FALSE),VLOOKUP($B87,BASE1!$D:$S,8,FALSE))) -> 2,5/5 | G87: =IF(ISERROR(VLOOKUP($B87,BASE1!$D:$S,15,FALSE)=TRUE),"",VLOOKUP($B87,BASE1!$D:$S,15,FALSE)) -> 5/5 | H87: =IF(ISERROR(VLOOKUP($B87,BASE1!$D:$S,16,FALSE)=TRUE),"",VLOOKUP($B87,BASE1!$D:$S,16,FALSE)) -> 4/5
A88: 18 | B88: =IF(ISERROR(VLOOKUP(A88,BASE1!B:D,3,FALSE)=TRUE),"",VLOOKUP(A88,BASE1!B:D,3,FALSE)) -> 382 | D88: =IF(ISERROR(IF(B$26="Non sélectionné",VLOOKUP($B88,BASE1!$D:$S,2,FALSE),VLOOKUP($B88,BASE1!$D:$S,5,FALSE))=TRUE),"",IF(B$26="Non sélectionné",VLOOKUP($B88,BASE1!$D:$S,2,FALSE),VLOOKUP($B88,BASE1!$D:$S,5,FALSE))) -> 3/5 | E88: =IF(ISERROR(IF(C$26="Non sélectionné",VLOOKUP($B88,BASE1!$D:$S,3,FALSE),VLOOKUP($B88,BASE1!$D:$S,6,FALSE))=TRUE),"",IF(C$26="Non sélectionné",VLOOKUP($B88,BASE1!$D:$S,3,FALSE),VLOOKUP($B88,BASE1!$D:$S,6,FALSE))) -> 2,5/5 | F88: =IF(ISERROR(IF(E$26="Non sélectionné",VLOOKUP($B88,BASE1!$D:$S,4,FALSE),VLOOKUP($B88,BASE1!$D:$S,8,FALSE))=TRUE),"",IF(E$26="Non sélectionné",VLOOKUP($B88,BASE1!$D:$S,4,FALSE),VLOOKUP($B88,BASE1!$D:$S,8,FALSE))) -> 2,5/5 | G88: =IF(ISERROR(VLOOKUP($B88,BASE1!$D:$S,15,FALSE)=TRUE),"",VLOOKUP($B88,BASE1!$D:$S,15,FALSE)) -> 5/5 | H88: =IF(ISERROR(VLOOKUP($B88,BASE1!$D:$S,16,FALSE)=TRUE),"",VLOOKUP($B88,BASE1!$D:$S,16,FALSE)) -> 4/5
A89: 19 | B89: =IF(ISERROR(VLOOKUP(A89,BASE1!B:D,3,FALSE)=TRUE),"",VLOOKUP(A89,BASE1!B:D,3,FALSE)) -> 424 | D89: =IF(ISERROR(IF(B$26="Non sélectionné",VLOOKUP($B89,BASE1!$D:$S,2,FALSE),VLOOKUP($B89,BASE1!$D:$S,5,FALSE))=TRUE),"",IF(B$26="Non sélectionné",VLOOKUP($B89,BASE1!$D:$S,2,FALSE),VLOOKUP($B89,BASE1!$D:$S,5,FALSE))) -> NC | E89: =IF(ISERROR(IF(C$26="Non sélectionné",VLOOKUP($B89,BASE1!$D:$S,3,FALSE),VLOOKUP($B89,BASE1!$D:$S,6,FALSE))=TRUE),"",IF(C$26="Non sélectionné",VLOOKUP($B89,BASE1!$D:$S,3,FALSE),VLOOKUP($B89,BASE1!$D:$S,6,FALSE))) -> NC | F89: =IF(ISERROR(IF(E$26="Non sélectionné",VLOOKUP($B89,BASE1!$D:$S,4,FALSE),VLOOKUP($B89,BASE1!$D:$S,8,FALSE))=TRUE),"",IF(E$26="Non sélectionné",VLOOKUP($B89,BASE1!$D:$S,4,FALSE),VLOOKUP($B89,BASE1!$D:$S,8,FALSE))) -> NC | G89: =IF(ISERROR(VLOOKUP($B89,BASE1!$D:$S,15,FALSE)=TRUE),"",VLOOKUP($B89,BASE1!$D:$S,15,FALSE)) -> 4/5 | H89: =IF(ISERROR(VLOOKUP($B89,BASE1!$D:$S,16,FALSE)=TRUE),"",VLOOKUP($B89,BASE1!$D:$S,16,FALSE)) -> 2/5
A90: 20 | B90: =IF(ISERROR(VLOOKUP(A90,BASE1!B:D,3,FALSE)=TRUE),"",VLOOKUP(A90,BASE1!B:D,3,FALSE)) -> 428 | D90: =IF(ISERROR(IF(B$26="Non sélectionné",VLOOKUP($B90,BASE1!$D:$S,2,FALSE),VLOOKUP($B90,BASE1!$D:$S,5,FALSE))=TRUE),"",IF(B$26="Non sélectionné",VLOOKUP($B90,BASE1!$D:$S,2,FALSE),VLOOKUP($B90,BASE1!$D:$S,5,FALSE))) -> 3,5/5 | E90: =IF(ISERROR(IF(C$26="Non sélectionné",VLOOKUP($B90,BASE1!$D:$S,3,FALSE),VLOOKUP($B90,BASE1!$D:$S,6,FALSE))=TRUE),"",IF(C$26="Non sélectionné",VLOOKUP($B90,BASE1!$D:$S,3,FALSE),VLOOKUP($B90,BASE1!$D:$S,6,FALSE))) -> 2,5/5 | F90: =IF(ISERROR(IF(E$26="Non sélectionné",VLOOKUP($B90,BASE1!$D:$S,4,FALSE),VLOOKUP($B90,BASE1!$D:$S,8,FALSE))=TRUE),"",IF(E$26="Non sélectionné",VLOOKUP($B90,BASE1!$D:$S,4,FALSE),VLOOKUP($B90,BASE1!$D:$S,8,FALSE))) -> 2,5/5 | G90: =IF(ISERROR(VLOOKUP($B90,BASE1!$D:$S,15,FALSE)=TRUE),"",VLOOKUP($B90,BASE1!$D:$S,15,FALSE)) -> 5/5 | H90: =IF(ISERROR(VLOOKUP($B90,BASE1!$D:$S,16,FALSE)=TRUE),"",VLOOKUP($B90,BASE1!$D:$S,16,FALSE)) -> 4/5
A91: 21 | B91: =IF(ISERROR(VLOOKUP(A91,BASE1!B:D,3,FALSE)=TRUE),"",VLOOKUP(A91,BASE1!B:D,3,FALSE)) -> 429 | D91: =IF(ISERROR(IF(B$26="Non sélectionné",VLOOKUP($B91,BASE1!$D:$S,2,FALSE),VLOOKUP($B91,BASE1!$D:$S,5,FALSE))=TRUE),"",IF(B$26="Non sélectionné",VLOOKUP($B91,BASE1!$D:$S,2,FALSE),VLOOKUP($B91,BASE1!$D:$S,5,FALSE))) -> 3,5/5 | E91: =IF(ISERROR(IF(C$26="Non sélectionné",VLOOKUP($B91,BASE1!$D:$S,3,FALSE),VLOOKUP($B91,BASE1!$D:$S,6,FALSE))=TRUE),"",IF(C$26="Non sélectionné",VLOOKUP($B91,BASE1!$D:$S,3,FALSE),VLOOKUP($B91,BASE1!$D:$S,6,FALSE))) -> 2,5/5 | F91: =IF(ISERROR(IF(E$26="Non sélectionné",VLOOKUP($B91,BASE1!$D:$S,4,FALSE),VLOOKUP($B91,BASE1!$D:$S,8,FALSE))=TRUE),"",IF(E$26="Non sélectionné",VLOOKUP($B91,BASE1!$D:$S,4,FALSE),VLOOKUP($B91,BASE1!$D:$S,8,FALSE))) -> 2,5/5 | G91: =IF(ISERROR(VLOOKUP($B91,BASE1!$D:$S,15,FALSE)=TRUE),"",VLOOKUP($B91,BASE1!$D:$S,15,FALSE)) -> 5/5 | H91: =IF(ISERROR(VLOOKUP($B91,BASE1!$D:$S,16,FALSE)=TRUE),"",VLOOKUP($B91,BASE1!$D:$S,16,FALSE)) -> 4/5
A92: 22 | B92: =IF(ISERROR(VLOOKUP(A92,BASE1!B:D,3,FALSE)=TRUE),"",VLOOKUP(A92,BASE1!B:D,3,FALSE)) -> 550 | D92: =IF(ISERROR(IF(B$26="Non sélectionné",VLOOKUP($B92,BASE1!$D:$S,2,FALSE),VLOOKUP($B92,BASE1!$D:$S,5,FALSE))=TRUE),"",IF(B$26="Non sélectionné",VLOOKUP($B92,BASE1!$D:$S,2,FALSE),VLOOKUP($B92,BASE1!$D:$S,5,FALSE))) -> 3,5/5 | E92: =IF(ISERROR(IF(C$26="Non sélectionné",VLOOKUP($B92,BASE1!$D:$S,3,FALSE),VLOOKUP($B92,BASE1!$D:$S,6,FALSE))=TRUE),"",IF(C$26="Non sélectionné",VLOOKUP($B92,BASE1!$D:$S,3,FALSE),VLOOKUP($B92,BASE1!$D:$S,6,FALSE))) -> 2,5/5 | F92: =IF(ISERROR(IF(E$26="Non sélectionné",VLOOKUP($B92,BASE1!$D:$S,4,FALSE),VLOOKUP($B92,BASE1!$D:$S,8,FALSE))=TRUE),"",IF(E$26="Non sélectionné",VLOOKUP($B92,BASE1!$D:$S,4,FALSE),VLOOKUP($B92,BASE1!$D:$S,8,FALSE))) -> 2,5/5 | G92: =IF(ISERROR(VLOOKUP($B92,BASE1!$D:$S,15,FALSE)=TRUE),"",VLOOKUP($B92,BASE1!$D:$S,15,FALSE)) -> 5/5 | H92: =IF(ISERROR(VLOOKUP($B92,BASE1!$D:$S,16,FALSE)=TRUE),"",VLOOKUP($B92,BASE1!$D:$S,16,FALSE)) -> 4/5
A93: 23 | B93: =IF(ISERROR(VLOOKUP(A93,BASE1!B:D,3,FALSE)=TRUE),"",VLOOKUP(A93,BASE1!B:D,3,FALSE)) -> 132 + 149 | D93: =IF(ISERROR(IF(B$26="Non sélectionné",VLOOKUP($B93,BASE1!$D:$S,2,FALSE),VLOOKUP($B93,BASE1!$D:$S,5,FALSE))=TRUE),"",IF(B$26="Non sélectionné",VLOOKUP($B93,BASE1!$D:$S,2,FALSE),VLOOKUP($B93,BASE1!$D:$S,5,FALSE))) -> 2,5/5 | E93: =IF(ISERROR(IF(C$26="Non sélectionné",VLOOKUP($B93,BASE1!$D:$S,3,FALSE),VLOOKUP($B93,BASE1!$D:$S,6,FALSE))=TRUE),"",IF(C$26="Non sélectionné",VLOOKUP($B93,BASE1!$D:$S,3,FALSE),VLOOKUP($B93,BASE1!$D:$S,6,FALSE))) -> 3/5 | F93: =IF(ISERROR(IF(E$26="Non sélectionné",VLOOKUP($B93,BASE1!$D:$S,4,FALSE),VLOOKUP($B93,BASE1!$D:$S,8,FALSE))=TRUE),"",IF(E$26="Non sélectionné",VLOOKUP($B93,BASE1!$D:$S,4,FALSE),VLOOKUP($B93,BASE1!$D:$S,8,FALSE))) -> 3/5 | G93: =IF(ISERROR(VLOOKUP($B93,BASE1!$D:$S,15,FALSE)=TRUE),"",VLOOKUP($B93,BASE1!$D:$S,15,FALSE)) -> 5/5 | H93: =IF(ISERROR(VLOOKUP($B93,BASE1!$D:$S,16,FALSE)=TRUE),"",VLOOKUP($B93,BASE1!$D:$S,16,FALSE)) -> 4/5
A94: 24 | B94: =IF(ISERROR(VLOOKUP(A94,BASE1!B:D,3,FALSE)=TRUE),"",VLOOKUP(A94,BASE1!B:D,3,FALSE)) -> 135 + 149 | D94: =IF(ISERROR(IF(B$26="Non sélectionné",VLOOKUP($B94,BASE1!$D:$S,2,FALSE),VLOOKUP($B94,BASE1!$D:$S,5,FALSE))=TRUE),"",IF(B$26="Non sélectionné",VLOOKUP($B94,BASE1!$D:$S,2,FALSE),VLOOKUP($B94,BASE1!$D:$S,5,FALSE))) -> 4/5 | E94: =IF(ISERROR(IF(C$26="Non sélectionné",VLOOKUP($B94,BASE1!$D:$S,3,FALSE),VLOOKUP($B94,BASE1!$D:$S,6,FALSE))=TRUE),"",IF(C$26="Non sélectionné",VLOOKUP($B94,BASE1!$D:$S,3,FALSE),VLOOKUP($B94,BASE1!$D:$S,6,FALSE))) -> 3,5/5 | F94: =IF(ISERROR(IF(E$26="Non sélectionné",VLOOKUP($B94,BASE1!$D:$S,4,FALSE),VLOOKUP($B94,BASE1!$D:$S,8,FALSE))=TRUE),"",IF(E$26="Non sélectionné",VLOOKUP($B94,BASE1!$D:$S,4,FALSE),VLOOKUP($B94,BASE1!$D:$S,8,FALSE))) -> 3,5/5 | G94: =IF(ISERROR(VLOOKUP($B94,BASE1!$D:$S,15,FALSE)=TRUE),"",VLOOKUP($B94,BASE1!$D:$S,15,FALSE)) -> 5/5 | H94: =IF(ISERROR(VLOOKUP($B94,BASE1!$D:$S,16,FALSE)=TRUE),"",VLOOKUP($B94,BASE1!$D:$S,16,FALSE)) -> 3,5/5
A95: 25 | B95: =IF(ISERROR(VLOOKUP(A95,BASE1!B:D,3,FALSE)=TRUE),"",VLOOKUP(A95,BASE1!B:D,3,FALSE)) -> 135 + 340 | D95: =IF(ISERROR(IF(B$26="Non sélectionné",VLOOKUP($B95,BASE1!$D:$S,2,FALSE),VLOOKUP($B95,BASE1!$D:$S,5,FALSE))=TRUE),"",IF(B$26="Non sélectionné",VLOOKUP($B95,BASE1!$D:$S,2,FALSE),VLOOKUP($B95,BASE1!$D:$S,5,FALSE))) -> 4/5 | E95: =IF(ISERROR(IF(C$26="Non sélectionné",VLOOKUP($B95,BASE1!$D:$S,3,FALSE),VLOOKUP($B95,BASE1!$D:$S,6,FALSE))=TRUE),"",IF(C$26="Non sélectionné",VLOOKUP($B95,BASE1!$D:$S,3,FALSE),VLOOKUP($B95,BASE1!$D:$S,6,FALSE))) -> 4/5 | F95: =IF(ISERROR(IF(E$26="Non sélectionné",VLOOKUP($B95,BASE1!$D:$S,4,FALSE),VLOOKUP($B95,BASE1!$D:$S,8,FALSE))=TRUE),"",IF(E$26="Non sélectionné",VLOOKUP($B95,BASE1!$D:$S,4,FALSE),VLOOKUP($B95,BASE1!$D:$S,8,FALSE))) -> 4/5 | G95: =IF(ISERROR(VLOOKUP($B95,BASE1!$D:$S,15,FALSE)=TRUE),"",VLOOKUP($B95,BASE1!$D:$S,15,FALSE)) -> 5/5 | H95: =IF(ISERROR(VLOOKUP($B95,BASE1!$D:$S,16,FALSE)=TRUE),"",VLOOKUP($B95,BASE1!$D:$S,16,FALSE)) -> 3/5
A96: 26 | B96: =IF(ISERROR(VLOOKUP(A96,BASE1!B:D,3,FALSE)=TRUE),"",VLOOKUP(A96,BASE1!B:D,3,FALSE)) -> 302 + 340 | D96: =IF(ISERROR(IF(B$26="Non sélectionné",VLOOKUP($B96,BASE1!$D:$S,2,FALSE),VLOOKUP($B96,BASE1!$D:$S,5,FALSE))=TRUE),"",IF(B$26="Non sélectionné",VLOOKUP($B96,BASE1!$D:$S,2,FALSE),VLOOKUP($B96,BASE1!$D:$S,5,FALSE))) -> NC | E96: =IF(ISERROR(IF(C$26="Non sélectionné",VLOOKUP($B96,BASE1!$D:$S,3,FALSE),VLOOKUP($B96,BASE1!$D:$S,6,FALSE))=TRUE),"",IF(C$26="Non sélectionné",VLOOKUP($B96,BASE1!$D:$S,3,FALSE),VLOOKUP($B96,BASE1!$D:$S,6,FALSE))) -> 4/5 | F96: =IF(ISERROR(IF(E$26="Non sélectionné",VLOOKUP($B96,BASE1!$D:$S,4,FALSE),VLOOKUP($B96,BASE1!$D:$S,8,FALSE))=TRUE),"",IF(E$26="Non sélectionné",VLOOKUP($B96,BASE1!$D:$S,4,FALSE),VLOOKUP($B96,BASE1!$D:$S,8,FALSE))) -> 4/5 | G96: =IF(ISERROR(VLOOKUP($B96,BASE1!$D:$S,15,FALSE)=TRUE),"",VLOOKUP($B96,BASE1!$D:$S,15,FALSE)) -> 3/5 | H96: =IF(ISERROR(VLOOKUP($B96,BASE1!$D:$S,16,FALSE)=TRUE),"",VLOOKUP($B96,BASE1!$D:$S,16,FALSE)) -> 3,5/5
A97: 27 | B97: =IF(ISERROR(VLOOKUP(A97,BASE1!B:D,3,FALSE)=TRUE),"",VLOOKUP(A97,BASE1!B:D,3,FALSE)) -> 302 + 361 | D97: =IF(ISERROR(IF(B$26="Non sélectionné",VLOOKUP($B97,BASE1!$D:$S,2,FALSE),VLOOKUP($B97,BASE1!$D:$S,5,FALSE))=TRUE),"",IF(B$26="Non sélectionné",VLOOKUP($B97,BASE1!$D:$S,2,FALSE),VLOOKUP($B97,BASE1!$D:$S,5,FALSE))) -> NC | E97: =IF(ISERROR(IF(C$26="Non sélectionné",VLOOKUP($B97,BASE1!$D:$S,3,FALSE),VLOOKUP($B97,BASE1!$D:$S,6,FALSE))=TRUE),"",IF(C$26="Non sélectionné",VLOOKUP($B97,BASE1!$D:$S,3,FALSE),VLOOKUP($B97,BASE1!$D:$S,6,FALSE))) -> 4,5/5 | F97: =IF(ISERROR(IF(E$26="Non sélectionné",VLOOKUP($B97,BASE1!$D:$S,4,FALSE),VLOOKUP($B97,BASE1!$D:$S,8,FALSE))=TRUE),"",IF(E$26="Non sélectionné",VLOOKUP($B97,BASE1!$D:$S,4,FALSE),VLOOKUP($B97,BASE1!$D:$S,8,FALSE))) -> 5/5 | G97: =IF(ISERROR(VLOOKUP($B97,BASE1!$D:$S,15,FALSE)=TRUE),"",VLOOKUP($B97,BASE1!$D:$S,15,FALSE)) -> 3/5 | H97: =IF(ISERROR(VLOOKUP($B97,BASE1!$D:$S,16,FALSE)=TRUE),"",VLOOKUP($B97,BASE1!$D:$S,16,FALSE)) -> 3/5
A98: 28 | B98: =IF(ISERROR(VLOOKUP(A98,BASE1!B:D,3,FALSE)=TRUE),"",VLOOKUP(A98,BASE1!B:D,3,FALSE)) -> 332 + 306 | D98: =IF(ISERROR(IF(B$26="Non sélectionné",VLOOKUP($B98,BASE1!$D:$S,2,FALSE),VLOOKUP($B98,BASE1!$D:$S,5,FALSE))=TRUE),"",IF(B$26="Non sélectionné",VLOOKUP($B98,BASE1!$D:$S,2,FALSE),VLOOKUP($B98,BASE1!$D:$S,5,FALSE))) -> 3,5/5 | E98: =IF(ISERROR(IF(C$26="Non sélectionné",VLOOKUP($B98,BASE1!$D:$S,3,FALSE),VLOOKUP($B98,BASE1!$D:$S,6,FALSE))=TRUE),"",IF(C$26="Non sélectionné",VLOOKUP($B98,BASE1!$D:$S,3,FALSE),VLOOKUP($B98,BASE1!$D:$S,6,FALSE))) -> 3,5/5 | F98: =IF(ISERROR(IF(E$26="Non sélectionné",VLOOKUP($B98,BASE1!$D:$S,4,FALSE),VLOOKUP($B98,BASE1!$D:$S,8,FALSE))=TRUE),"",IF(E$26="Non sélectionné",VLOOKUP($B98,BASE1!$D:$S,4,FALSE),VLOOKUP($B98,BASE1!$D:$S,8,FALSE))) -> 3/5 | G98: =IF(ISERROR(VLOOKUP($B98,BASE1!$D:$S,15,FALSE)=TRUE),"",VLOOKUP($B98,BASE1!$D:$S,15,FALSE)) -> 3/5 | H98: =IF(ISERROR(VLOOKUP($B98,BASE1!$D:$S,16,FALSE)=TRUE),"",VLOOKUP($B98,BASE1!$D:$S,16,FALSE)) -> 3,5/5
A99: 29 | B99: =IF(ISERROR(VLOOKUP(A99,BASE1!B:D,3,FALSE)=TRUE),"",VLOOKUP(A99,BASE1!B:D,3,FALSE)) -> 333 + 247 | D99: =IF(ISERROR(IF(B$26="Non sélectionné",VLOOKUP($B99,BASE1!$D:$S,2,FALSE),VLOOKUP($B99,BASE1!$D:$S,5,FALSE))=TRUE),"",IF(B$26="Non sélectionné",VLOOKUP($B99,BASE1!$D:$S,2,FALSE),VLOOKUP($B99,BASE1!$D:$S,5,FALSE))) -> 3,5/5 | E99: =IF(ISERROR(IF(C$26="Non sélectionné",VLOOKUP($B99,BASE1!$D:$S,3,FALSE),VLOOKUP($B99,BASE1!$D:$S,6,FALSE))=TRUE),"",IF(C$26="Non sélectionné",VLOOKUP($B99,BASE1!$D:$S,3,FALSE),VLOOKUP($B99,BASE1!$D:$S,6,FALSE))) -> 4/5 | F99: =IF(ISERROR(IF(E$26="Non sélectionné",VLOOKUP($B99,BASE1!$D:$S,4,FALSE),VLOOKUP($B99,BASE1!$D:$S,8,FALSE))=TRUE),"",IF(E$26="Non sélectionné",VLOOKUP($B99,BASE1!$D:$S,4,FALSE),VLOOKUP($B99,BASE1!$D:$S,8,FALSE))) -> 4/5 | G99: =IF(ISERROR(VLOOKUP($B99,BASE1!$D:$S,15,FALSE)=TRUE),"",VLOOKUP($B99,BASE1!$D:$S,15,FALSE)) -> 3/5 | H99: =IF(ISERROR(VLOOKUP($B99,BASE1!$D:$S,16,FALSE)=TRUE),"",VLOOKUP($B99,BASE1!$D:$S,16,FALSE)) -> 3/5
A100: 30 | B100: =IF(ISERROR(VLOOKUP(A100,BASE1!B:D,3,FALSE)=TRUE),"",VLOOKUP(A100,BASE1!B:D,3,FALSE)) -> 333 + 247 + 348 | D100: =IF(ISERROR(IF(B$26="Non sélectionné",VLOOKUP($B100,BASE1!$D:$S,2,FALSE),VLOOKUP($B100,BASE1!$D:$S,5,FALSE))=TRUE),"",IF(B$26="Non sélectionné",VLOOKUP($B100,BASE1!$D:$S,2,FALSE),VLOOKUP($B100,BASE1!$D:$S,5,FALSE))) -> 3,5/5 | E100: =IF(ISERROR(IF(C$26="Non sélectionné",VLOOKUP($B100,BASE1!$D:$S,3,FALSE),VLOOKUP($B100,BASE1!$D:$S,6,FALSE))=TRUE),"",IF(C$26="Non sélectionné",VLOOKUP($B100,BASE1!$D:$S,3,FALSE),VLOOKUP($B100,BASE1!$D:$S,6,FALSE))) -> 4/5 | F100: =IF(ISERROR(IF(E$26="Non sélectionné",VLOOKUP($B100,BASE1!$D:$S,4,FALSE),VLOOKUP($B100,BASE1!$D:$S,8,FALSE))=TRUE),"",IF(E$26="Non sélectionné",VLOOKUP($B100,BASE1!$D:$S,4,FALSE),VLOOKUP($B100,BASE1!$D:$S,8,FALSE))) -> 5/5 | G100: =IF(ISERROR(VLOOKUP($B100,BASE1!$D:$S,15,FALSE)=TRUE),"",VLOOKUP($B100,BASE1!$D:$S,15,FALSE)) -> 2/5 | H100: =IF(ISERROR(VLOOKUP($B100,BASE1!$D:$S,16,FALSE)=TRUE),"",VLOOKUP($B100,BASE1!$D:$S,16,FALSE)) -> 2/5
A101: 31 | B101: =IF(ISERROR(VLOOKUP(A101,BASE1!B:D,3,FALSE)=TRUE),"",VLOOKUP(A101,BASE1!B:D,3,FALSE)) -> 333 + 260 | D101: =IF(ISERROR(IF(B$26="Non sélectionné",VLOOKUP($B101,BASE1!$D:$S,2,FALSE),VLOOKUP($B101,BASE1!$D:$S,5,FALSE))=TRUE),"",IF(B$26="Non sélectionné",VLOOKUP($B101,BASE1!$D:$S,2,FALSE),VLOOKUP($B101,BASE1!$D:$S,5,FALSE))) -> 3,5/5 | E101: =IF(ISERROR(IF(C$26="Non sélectionné",VLOOKUP($B101,BASE1!$D:$S,3,FALSE),VLOOKUP($B101,BASE1!$D:$S,6,FALSE))=TRUE),"",IF(C$26="Non sélectionné",VLOOKUP($B101,BASE1!$D:$S,3,FALSE),VLOOKUP($B101,BASE1!$D:$S,6,FALSE))) -> 3/5 | F101: =IF(ISERROR(IF(E$26="Non sélectionné",VLOOKUP($B101,BASE1!$D:$S,4,FALSE),VLOOKUP($B101,BASE1!$D:$S,8,FALSE))=TRUE),"",IF(E$26="Non sélectionné",VLOOKUP($B101,BASE1!$D:$S,4,FALSE),VLOOKUP($B101,BASE1!$D:$S,8,FALSE))) -> 3/5 | G101: =IF(ISERROR(VLOOKUP($B101,BASE1!$D:$S,15,FALSE)=TRUE),"",VLOOKUP($B101,BASE1!$D:$S,15,FALSE)) -> 3/5 | H101: =IF(ISERROR(VLOOKUP($B101,BASE1!$D:$S,16,FALSE)=TRUE),"",VLOOKUP($B101,BASE1!$D:$S,16,FALSE)) -> 3,5/5
A102: 32 | B102: =IF(ISERROR(VLOOKUP(A102,BASE1!B:D,3,FALSE)=TRUE),"",VLOOKUP(A102,BASE1!B:D,3,FALSE)) -> 333 + 301 | D102: =IF(ISERROR(IF(B$26="Non sélectionné",VLOOKUP($B102,BASE1!$D:$S,2,FALSE),VLOOKUP($B102,BASE1!$D:$S,5,FALSE))=TRUE),"",IF(B$26="Non sélectionné",VLOOKUP($B102,BASE1!$D:$S,2,FALSE),VLOOKUP($B102,BASE1!$D:$S,5,FALSE))) -> 3,5/5 | E102: =IF(ISERROR(IF(C$26="Non sélectionné",VLOOKUP($B102,BASE1!$D:$S,3,FALSE),VLOOKUP($B102,BASE1!$D:$S,6,FALSE))=TRUE),"",IF(C$26="Non sélectionné",VLOOKUP($B102,BASE1!$D:$S,3,FALSE),VLOOKUP($B102,BASE1!$D:$S,6,FALSE))) -> 4/5 | F102: =IF(ISERROR(IF(E$26="Non sélectionné",VLOOKUP($B102,BASE1!$D:$S,4,FALSE),VLOOKUP($B102,BASE1!$D:$S,8,FALSE))=TRUE),"",IF(E$26="Non sélectionné",VLOOKUP($B102,BASE1!$D:$S,4,FALSE),VLOOKUP($B102,BASE1!$D:$S,8,FALSE))) -> 3/5 | G102: =IF(ISERROR(VLOOKUP($B102,BASE1!$D:$S,15,FALSE)=TRUE),"",VLOOKUP($B102,BASE1!$D:$S,15,FALSE)) -> 3/5 | H102: =IF(ISERROR(VLOOKUP($B102,BASE1!$D:$S,16,FALSE)=TRUE),"",VLOOKUP($B102,BASE1!$D:$S,16,FALSE)) -> 3,5/5
A103: 33 | B103: =IF(ISERROR(VLOOKUP(A103,BASE1!B:D,3,FALSE)=TRUE),"",VLOOKUP(A103,BASE1!B:D,3,FALSE)) -> 333 + 334 | D103: =IF(ISERROR(IF(B$26="Non sélectionné",VLOOKUP($B103,BASE1!$D:$S,2,FALSE),VLOOKUP($B103,BASE1!$D:$S,5,FALSE))=TRUE),"",IF(B$26="Non sélectionné",VLOOKUP($B103,BASE1!$D:$S,2,FALSE),VLOOKUP($B103,BASE1!$D:$S,5,FALSE))) -> 3,5/5 | E103: =IF(ISERROR(IF(C$26="Non sélectionné",VLOOKUP($B103,BASE1!$D:$S,3,FALSE),VLOOKUP($B103,BASE1!$D:$S,6,FALSE))=TRUE),"",IF(C$26="Non sélectionné",VLOOKUP($B103,BASE1!$D:$S,3,FALSE),VLOOKUP($B103,BASE1!$D:$S,6,FALSE))) -> 4/5 | F103: =IF(ISERROR(IF(E$26="Non sélectionné",VLOOKUP($B103,BASE1!$D:$S,4,FALSE),VLOOKUP($B103,BASE1!$D:$S,8,FALSE))=TRUE),"",IF(E$26="Non sélectionné",VLOOKUP($B103,BASE1!$D:$S,4,FALSE),VLOOKUP($B103,BASE1!$D:$S,8,FALSE))) -> 3,5/5 | G103: =IF(ISERROR(VLOOKUP($B103,BASE1!$D:$S,15,FALSE)=TRUE),"",VLOOKUP($B103,BASE1!$D:$S,15,FALSE)) -> 3/5 | H103: =IF(ISERROR(VLOOKUP($B103,BASE1!$D:$S,16,FALSE)=TRUE),"",VLOOKUP($B103,BASE1!$D:$S,16,FALSE)) -> 3,5/5
A104: 34 | B104: =IF(ISERROR(VLOOKUP(A104,BASE1!B:D,3,FALSE)=TRUE),"",VLOOKUP(A104,BASE1!B:D,3,FALSE)) -> 333 + 340 F | D104: =IF(ISERROR(IF(B$26="Non sélectionné",VLOOKUP($B104,BASE1!$D:$S,2,FALSE),VLOOKUP($B104,BASE1!$D:$S,5,FALSE))=TRUE),"",IF(B$26="Non sélectionné",VLOOKUP($B104,BASE1!$D:$S,2,FALSE),VLOOKUP($B104,BASE1!$D:$S,5,FALSE))) -> 3,5/5 | E104: =IF(ISERROR(IF(C$26="Non sélectionné",VLOOKUP($B104,BASE1!$D:$S,3,FALSE),VLOOKUP($B104,BASE1!$D:$S,6,FALSE))=TRUE),"",IF(C$26="Non sélectionné",VLOOKUP($B104,BASE1!$D:$S,3,FALSE),VLOOKUP($B104,BASE1!$D:$S,6,FALSE))) -> 4/5 | F104: =IF(ISERROR(IF(E$26="Non sélectionné",VLOOKUP($B104,BASE1!$D:$S,4,FALSE),VLOOKUP($B104,BASE1!$D:$S,8,FALSE))=TRUE),"",IF(E$26="Non sélectionné",VLOOKUP($B104,BASE1!$D:$S,4,FALSE),VLOOKUP($B104,BASE1!$D:$S,8,FALSE))) -> 4/5 | G104: =IF(ISERROR(VLOOKUP($B104,BASE1!$D:$S,15,FALSE)=TRUE),"",VLOOKUP($B104,BASE1!$D:$S,15,FALSE)) -> 3/5 | H104: =IF(ISERROR(VLOOKUP($B104,BASE1!$D:$S,16,FALSE)=TRUE),"",VLOOKUP($B104,BASE1!$D:$S,16,FALSE)) -> 3,5/5
A105: 35 | B105: =IF(ISERROR(VLOOKUP(A105,BASE1!B:D,3,FALSE)=TRUE),"",VLOOKUP(A105,BASE1!B:D,3,FALSE)) -> 333 + 347 S | D105: =IF(ISERROR(IF(B$26="Non sélectionné",VLOOKUP($B105,BASE1!$D:$S,2,FALSE),VLOOKUP($B105,BASE1!$D:$S,5,FALSE))=TRUE),"",IF(B$26="Non sélectionné",VLOOKUP($B105,BASE1!$D:$S,2,FALSE),VLOOKUP($B105,BASE1!$D:$S,5,FALSE))) -> 3,5/5 | E105: =IF(ISERROR(IF(C$26="Non sélectionné",VLOOKUP($B105,BASE1!$D:$S,3,FALSE),VLOOKUP($B105,BASE1!$D:$S,6,FALSE))=TRUE),"",IF(C$26="Non sélectionné",VLOOKUP($B105,BASE1!$D:$S,3,FALSE),VLOOKUP($B105,BASE1!$D:$S,6,FALSE))) -> 4/5 | F105: =IF(ISERROR(IF(E$26="Non sélectionné",VLOOKUP($B105,BASE1!$D:$S,4,FALSE),VLOOKUP($B105,BASE1!$D:$S,8,FALSE))=TRUE),"",IF(E$26="Non sélectionné",VLOOKUP($B105,BASE1!$D:$S,4,FALSE),VLOOKUP($B105,BASE1!$D:$S,8,FALSE))) -> 4/5 | G105: =IF(ISERROR(VLOOKUP($B105,BASE1!$D:$S,15,FALSE)=TRUE),"",VLOOKUP($B105,BASE1!$D:$S,15,FALSE)) -> 3/5 | H105: =IF(ISERROR(VLOOKUP($B105,BASE1!$D:$S,16,FALSE)=TRUE),"",VLOOKUP($B105,BASE1!$D:$S,16,FALSE)) -> 3,5/5
A106: 36 | B106: =IF(ISERROR(VLOOKUP(A106,BASE1!B:D,3,FALSE)=TRUE),"",VLOOKUP(A106,BASE1!B:D,3,FALSE)) -> 333 + 348 F | D106: =IF(ISERROR(IF(B$26="Non sélectionné",VLOOKUP($B106,BASE1!$D:$S,2,FALSE),VLOOKUP($B106,BASE1!$D:$S,5,FALSE))=TRUE),"",IF(B$26="Non sélectionné",VLOOKUP($B106,BASE1!$D:$S,2,FALSE),VLOOKUP($B106,BASE1!$D:$S,5,FALSE))) -> 3,5/5 | E106: =IF(ISERROR(IF(C$26="Non sélectionné",VLOOKUP($B106,BASE1!$D:$S,3,FALSE),VLOOKUP($B106,BASE1!$D:$S,6,FALSE))=TRUE),"",IF(C$26="Non sélectionné",VLOOKUP($B106,BASE1!$D:$S,3,FALSE),VLOOKUP($B106,BASE1!$D:$S,6,FALSE))) -> 4,5/5 | F106: =IF(ISERROR(IF(E$26="Non sélectionné",VLOOKUP($B106,BASE1!$D:$S,4,FALSE),VLOOKUP($B106,BASE1!$D:$S,8,FALSE))=TRUE),"",IF(E$26="Non sélectionné",VLOOKUP($B106,BASE1!$D:$S,4,FALSE),VLOOKUP($B106,BASE1!$D:$S,8,FALSE))) -> 5/5 | G106: =IF(ISERROR(VLOOKUP($B106,BASE1!$D:$S,15,FALSE)=TRUE),"",VLOOKUP($B106,BASE1!$D:$S,15,FALSE)) -> 3/5 | H106: =IF(ISERROR(VLOOKUP($B106,BASE1!$D:$S,16,FALSE)=TRUE),"",VLOOKUP($B106,BASE1!$D:$S,16,FALSE)) -> 3/5
A107: 37 | B107: =IF(ISERROR(VLOOKUP(A107,BASE1!B:D,3,FALSE)=TRUE),"",VLOOKUP(A107,BASE1!B:D,3,FALSE)) -> 333 + 361 F | D107: =IF(ISERROR(IF(B$26="Non sélectionné",VLOOKUP($B107,BASE1!$D:$S,2,FALSE),VLOOKUP($B107,BASE1!$D:$S,5,FALSE))=TRUE),"",IF(B$26="Non sélectionné",VLOOKUP($B107,BASE1!$D:$S,2,FALSE),VLOOKUP($B107,BASE1!$D:$S,5,FALSE))) -> 3,5/5 | E107: =IF(ISERROR(IF(C$26="Non sélectionné",VLOOKUP($B107,BASE1!$D:$S,3,FALSE),VLOOKUP($B107,BASE1!$D:$S,6,FALSE))=TRUE),"",IF(C$26="Non sélectionné",VLOOKUP($B107,BASE1!$D:$S,3,FALSE),VLOOKUP($B107,BASE1!$D:$S,6,FALSE))) -> 4,5/5 | F107: =IF(ISERROR(IF(E$26="Non sélectionné",VLOOKUP($B107,BASE1!$D:$S,4,FALSE),VLOOKUP($B107,BASE1!$D:$S,8,FALSE))=TRUE),"",IF(E$26="Non sélectionné",VLOOKUP($B107,BASE1!$D:$S,4,FALSE),VLOOKUP($B107,BASE1!$D:$S,8,FALSE))) -> 5/5 | G107: =IF(ISERROR(VLOOKUP($B107,BASE1!$D:$S,15,FALSE)=TRUE),"",VLOOKUP($B107,BASE1!$D:$S,15,FALSE)) -> 3/5 | H107: =IF(ISERROR(VLOOKUP($B107,BASE1!$D:$S,16,FALSE)=TRUE),"",VLOOKUP($B107,BASE1!$D:$S,16,FALSE)) -> 3/5
A108: 38 | B108: =IF(ISERROR(VLOOKUP(A108,BASE1!B:D,3,FALSE)=TRUE),"",VLOOKUP(A108,BASE1!B:D,3,FALSE)) -> 340 P + 260 F | D108: =IF(ISERROR(IF(B$26="Non sélectionné",VLOOKUP($B108,BASE1!$D:$S,2,FALSE),VLOOKUP($B108,BASE1!$D:$S,5,FALSE))=TRUE),"",IF(B$26="Non sélectionné",VLOOKUP($B108,BASE1!$D:$S,2,FALSE),VLOOKUP($B108,BASE1!$D:$S,5,FALSE))) -> 4/5 | E108: =IF(ISERROR(IF(C$26="Non sélectionné",VLOOKUP($B108,BASE1!$D:$S,3,FALSE),VLOOKUP($B108,BASE1!$D:$S,6,FALSE))=TRUE),"",IF(C$26="Non sélectionné",VLOOKUP($B108,BASE1!$D:$S,3,FALSE),VLOOKUP($B108,BASE1!$D:$S,6,FALSE))) -> 3/5 | F108: =IF(ISERROR(IF(E$26="Non sélectionné",VLOOKUP($B108,BASE1!$D:$S,4,FALSE),VLOOKUP($B108,BASE1!$D:$S,8,FALSE))=TRUE),"",IF(E$26="Non sélectionné",VLOOKUP($B108,BASE1!$D:$S,4,FALSE),VLOOKUP($B108,BASE1!$D:$S,8,FALSE))) -> 3/5 | G108: =IF(ISERROR(VLOOKUP($B108,BASE1!$D:$S,15,FALSE)=TRUE),"",VLOOKUP($B108,BASE1!$D:$S,15,FALSE)) -> 3/5 | H108: =IF(ISERROR(VLOOKUP($B108,BASE1!$D:$S,16,FALSE)=TRUE),"",VLOOKUP($B108,BASE1!$D:$S,16,FALSE)) -> 3,5/5
A109: 39 | B109: =IF(ISERROR(VLOOKUP(A109,BASE1!B:D,3,FALSE)=TRUE),"",VLOOKUP(A109,BASE1!B:D,3,FALSE)) -> 340 P + 340 F | D109: =IF(ISERROR(IF(B$26="Non sélectionné",VLOOKUP($B109,BASE1!$D:$S,2,FALSE),VLOOKUP($B109,BASE1!$D:$S,5,FALSE))=TRUE),"",IF(B$26="Non sélectionné",VLOOKUP($B109,BASE1!$D:$S,2,FALSE),VLOOKUP($B109,BASE1!$D:$S,5,FALSE))) -> 4/5 | E109: =IF(ISERROR(IF(C$26="Non sélectionné",VLOOKUP($B109,BASE1!$D:$S,3,FALSE),VLOOKUP($B109,BASE1!$D:$S,6,FALSE))=TRUE),"",IF(C$26="Non sélectionné",VLOOKUP($B109,BASE1!$D:$S,3,FALSE),VLOOKUP($B109,BASE1!$D:$S,6,FALSE))) -> 3,5/5 | F109: =IF(ISERROR(IF(E$26="Non sélectionné",VLOOKUP($B109,BASE1!$D:$S,4,FALSE),VLOOKUP($B109,BASE1!$D:$S,8,FALSE))=TRUE),"",IF(E$26="Non sélectionné",VLOOKUP($B109,BASE1!$D:$S,4,FALSE),VLOOKUP($B109,BASE1!$D:$S,8,FALSE))) -> 4/5 | G109: =IF(ISERROR(VLOOKUP($B109,BASE1!$D:$S,15,FALSE)=TRUE),"",VLOOKUP($B109,BASE1!$D:$S,15,FALSE)) -> 3/5 | H109: =IF(ISERROR(VLOOKUP($B109,BASE1!$D:$S,16,FALSE)=TRUE),"",VLOOKUP($B109,BASE1!$D:$S,16,FALSE)) -> 3/5
A110: 40 | B110: =IF(ISERROR(VLOOKUP(A110,BASE1!B:D,3,FALSE)=TRUE),"",VLOOKUP(A110,BASE1!B:D,3,FALSE)) -> 340 P + 361 | D110: =IF(ISERROR(IF(B$26="Non sélectionné",VLOOKUP($B110,BASE1!$D:$S,2,FALSE),VLOOKUP($B110,BASE1!$D:$S,5,FALSE))=TRUE),"",IF(B$26="Non sélectionné",VLOOKUP($B110,BASE1!$D:$S,2,FALSE),VLOOKUP($B110,BASE1!$D:$S,5,FALSE))) -> 4/5 | E110: =IF(ISERROR(IF(C$26="Non sélectionné",VLOOKUP($B110,BASE1!$D:$S,3,FALSE),VLOOKUP($B110,BASE1!$D:$S,6,FALSE))=TRUE),"",IF(C$26="Non sélectionné",VLOOKUP($B110,BASE1!$D:$S,3,FALSE),VLOOKUP($B110,BASE1!$D:$S,6,FALSE))) -> 4/5 | F110: =IF(ISERROR(IF(E$26="Non sélectionné",VLOOKUP($B110,BASE1!$D:$S,4,FALSE),VLOOKUP($B110,BASE1!$D:$S,8,FALSE))=TRUE),"",IF(E$26="Non sélectionné",VLOOKUP($B110,BASE1!$D:$S,4,FALSE),VLOOKUP($B110,BASE1!$D:$S,8,FALSE))) -> 5/5 | G110: =IF(ISERROR(VLOOKUP($B110,BASE1!$D:$S,15,FALSE)=TRUE),"",VLOOKUP($B110,BASE1!$D:$S,15,FALSE)) -> 3/5 | H110: =IF(ISERROR(VLOOKUP($B110,BASE1!$D:$S,16,FALSE)=TRUE),"",VLOOKUP($B110,BASE1!$D:$S,16,FALSE)) -> 2,5/5
A111: 41 | B111: =IF(ISERROR(VLOOKUP(A111,BASE1!B:D,3,FALSE)=TRUE),"",VLOOKUP(A111,BASE1!B:D,3,FALSE)) -> 341 + 336 + 343 | D111: =IF(ISERROR(IF(B$26="Non sélectionné",VLOOKUP($B111,BASE1!$D:$S,2,FALSE),VLOOKUP($B111,BASE1!$D:$S,5,FALSE))=TRUE),"",IF(B$26="Non sélectionné",VLOOKUP($B111,BASE1!$D:$S,2,FALSE),VLOOKUP($B111,BASE1!$D:$S,5,FALSE))) -> 3,5/5 | E111: =IF(ISERROR(IF(C$26="Non sélectionné",VLOOKUP($B111,BASE1!$D:$S,3,FALSE),VLOOKUP($B111,BASE1!$D:$S,6,FALSE))=TRUE),"",IF(C$26="Non sélectionné",VLOOKUP($B111,BASE1!$D:$S,3,FALSE),VLOOKUP($B111,BASE1!$D:$S,6,FALSE))) -> 5/5 | F111: =IF(ISERROR(IF(E$26="Non sélectionné",VLOOKUP($B111,BASE1!$D:$S,4,FALSE),VLOOKUP($B111,BASE1!$D:$S,8,FALSE))=TRUE),"",IF(E$26="Non sélectionné",VLOOKUP($B111,BASE1!$D:$S,4,FALSE),VLOOKUP($B111,BASE1!$D:$S,8,FALSE))) -> 5/5 | G111: =IF(ISERROR(VLOOKUP($B111,BASE1!$D:$S,15,FALSE)=TRUE),"",VLOOKUP($B111,BASE1!$D:$S,15,FALSE)) -> 2/5 | H111: =IF(ISERROR(VLOOKUP($B111,BASE1!$D:$S,16,FALSE)=TRUE),"",VLOOKUP($B111,BASE1!$D:$S,16,FALSE)) -> 2/5
A112: 42 | B112: =IF(ISERROR(VLOOKUP(A112,BASE1!B:D,3,FALSE)=TRUE),"",VLOOKUP(A112,BASE1!B:D,3,FALSE)) -> 341 + 343 | D112: =IF(ISERROR(IF(B$26="Non sélectionné",VLOOKUP($B112,BASE1!$D:$S,2,FALSE),VLOOKUP($B112,BASE1!$D:$S,5,FALSE))=TRUE),"",IF(B$26="Non sélectionné",VLOOKUP($B112,BASE1!$D:$S,2,FALSE),VLOOKUP($B112,BASE1!$D:$S,5,FALSE))) -> 3,5/5 | E112: =IF(ISERROR(IF(C$26="Non sélectionné",VLOOKUP($B112,BASE1!$D:$S,3,FALSE),VLOOKUP($B112,BASE1!$D:$S,6,FALSE))=TRUE),"",IF(C$26="Non sélectionné",VLOOKUP($B112,BASE1!$D:$S,3,FALSE),VLOOKUP($B112,BASE1!$D:$S,6,FALSE))) -> 4,5/5 | F112: =IF(ISERROR(IF(E$26="Non sélectionné",VLOOKUP($B112,BASE1!$D:$S,4,FALSE),VLOOKUP($B112,BASE1!$D:$S,8,FALSE))=TRUE),"",IF(E$26="Non sélectionné",VLOOKUP($B112,BASE1!$D:$S,4,FALSE),VLOOKUP($B112,BASE1!$D:$S,8,FALSE))) -> 5/5 | G112: =IF(ISERROR(VLOOKUP($B112,BASE1!$D:$S,15,FALSE)=TRUE),"",VLOOKUP($B112,BASE1!$D:$S,15,FALSE)) -> 3/5 | H112: =IF(ISERROR(VLOOKUP($B112,BASE1!$D:$S,16,FALSE)=TRUE),"",VLOOKUP($B112,BASE1!$D:$S,16,FALSE)) -> 3/5
A113: 43 | B113: =IF(ISERROR(VLOOKUP(A113,BASE1!B:D,3,FALSE)=TRUE),"",VLOOKUP(A113,BASE1!B:D,3,FALSE)) -> 352 + 341 + 336 + 343 | D113: =IF(ISERROR(IF(B$26="Non sélectionné",VLOOKUP($B113,BASE1!$D:$S,2,FALSE),VLOOKUP($B113,BASE1!$D:$S,5,FALSE))=TRUE),"",IF(B$26="Non sélectionné",VLOOKUP($B113,BASE1!$D:$S,2,FALSE),VLOOKUP($B113,BASE1!$D:$S,5,FALSE))) -> 5/5 | E113: =IF(ISERROR(IF(C$26="Non sélectionné",VLOOKUP($B113,BASE1!$D:$S,3,FALSE),VLOOKUP($B113,BASE1!$D:$S,6,FALSE))=TRUE),"",IF(C$26="Non sélectionné",VLOOKUP($B113,BASE1!$D:$S,3,FALSE),VLOOKUP($B113,BASE1!$D:$S,6,FALSE))) -> 5/5 | F113: =IF(ISERROR(IF(E$26="Non sélectionné",VLOOKUP($B113,BASE1!$D:$S,4,FALSE),VLOOKUP($B113,BASE1!$D:$S,8,FALSE))=TRUE),"",IF(E$26="Non sélectionné",VLOOKUP($B113,BASE1!$D:$S,4,FALSE),VLOOKUP($B113,BASE1!$D:$S,8,FALSE))) -> 5/5 | G113: =IF(ISERROR(VLOOKUP($B113,BASE1!$D:$S,15,FALSE)=TRUE),"",VLOOKUP($B113,BASE1!$D:$S,15,FALSE)) -> 1/5 | H113: =IF(ISERROR(VLOOKUP($B113,BASE1!$D:$S,16,FALSE)=TRUE),"",VLOOKUP($B113,BASE1!$D:$S,16,FALSE)) -> 1/5
A114: 44 | B114: =IF(ISERROR(VLOOKUP(A114,BASE1!B:D,3,FALSE)=TRUE),"",VLOOKUP(A114,BASE1!B:D,3,FALSE)) -> 352 + 341 + 343 | D114: =IF(ISERROR(IF(B$26="Non sélectionné",VLOOKUP($B114,BASE1!$D:$S,2,FALSE),VLOOKUP($B114,BASE1!$D:$S,5,FALSE))=TRUE),"",IF(B$26="Non sélectionné",VLOOKUP($B114,BASE1!$D:$S,2,FALSE),VLOOKUP($B114,BASE1!$D:$S,5,FALSE))) -> 5/5 | E114: =IF(ISERROR(IF(C$26="Non sélectionné",VLOOKUP($B114,BASE1!$D:$S,3,FALSE),VLOOKUP($B114,BASE1!$D:$S,6,FALSE))=TRUE),"",IF(C$26="Non sélectionné",VLOOKUP($B114,BASE1!$D:$S,3,FALSE),VLOOKUP($B114,BASE1!$D:$S,6,FALSE))) -> 5/5 | F114: =IF(ISERROR(IF(E$26="Non sélectionné",VLOOKUP($B114,BASE1!$D:$S,4,FALSE),VLOOKUP($B114,BASE1!$D:$S,8,FALSE))=TRUE),"",IF(E$26="Non sélectionné",VLOOKUP($B114,BASE1!$D:$S,4,FALSE),VLOOKUP($B114,BASE1!$D:$S,8,FALSE))) -> 5/5 | G114: =IF(ISERROR(VLOOKUP($B114,BASE1!$D:$S,15,FALSE)=TRUE),"",VLOOKUP($B114,BASE1!$D:$S,15,FALSE)) -> 2/5 | H114: =IF(ISERROR(VLOOKUP($B114,BASE1!$D:$S,16,FALSE)=TRUE),"",VLOOKUP($B114,BASE1!$D:$S,16,FALSE)) -> 2/5
A115: 45 | B115: =IF(ISERROR(VLOOKUP(A115,BASE1!B:D,3,FALSE)=TRUE),"",VLOOKUP(A115,BASE1!B:D,3,FALSE)) -> 353 + 306 | D115: =IF(ISERROR(IF(B$26="Non sélectionné",VLOOKUP($B115,BASE1!$D:$S,2,FALSE),VLOOKUP($B115,BASE1!$D:$S,5,FALSE))=TRUE),"",IF(B$26="Non sélectionné",VLOOKUP($B115,BASE1!$D:$S,2,FALSE),VLOOKUP($B115,BASE1!$D:$S,5,FALSE))) -> 4,5/5 | E115: =IF(ISERROR(IF(C$26="Non sélectionné",VLOOKUP($B115,BASE1!$D:$S,3,FALSE),VLOOKUP($B115,BASE1!$D:$S,6,FALSE))=TRUE),"",IF(C$26="Non sélectionné",VLOOKUP($B115,BASE1!$D:$S,3,FALSE),VLOOKUP($B115,BASE1!$D:$S,6,FALSE))) -> 3,5/5 | F115: =IF(ISERROR(IF(E$26="Non sélectionné",VLOOKUP($B115,BASE1!$D:$S,4,FALSE),VLOOKUP($B115,BASE1!$D:$S,8,FALSE))=TRUE),"",IF(E$26="Non sélectionné",VLOOKUP($B115,BASE1!$D:$S,4,FALSE),VLOOKUP($B115,BASE1!$D:$S,8,FALSE))) -> 3/5 | G115: =IF(ISERROR(VLOOKUP($B115,BASE1!$D:$S,15,FALSE)=TRUE),"",VLOOKUP($B115,BASE1!$D:$S,15,FALSE)) -> 3/5 | H115: =IF(ISERROR(VLOOKUP($B115,BASE1!$D:$S,16,FALSE)=TRUE),"",VLOOKUP($B115,BASE1!$D:$S,16,FALSE)) -> 3,5/5
A116: 46 | B116: =IF(ISERROR(VLOOKUP(A116,BASE1!B:D,3,FALSE)=TRUE),"",VLOOKUP(A116,BASE1!B:D,3,FALSE)) -> 353 + 333 + 247 + 348 | D116: =IF(ISERROR(IF(B$26="Non sélectionné",VLOOKUP($B116,BASE1!$D:$S,2,FALSE),VLOOKUP($B116,BASE1!$D:$S,5,FALSE))=TRUE),"",IF(B$26="Non sélectionné",VLOOKUP($B116,BASE1!$D:$S,2,FALSE),VLOOKUP($B116,BASE1!$D:$S,5,FALSE))) -> 4,5/5 | E116: =IF(ISERROR(IF(C$26="Non sélectionné",VLOOKUP($B116,BASE1!$D:$S,3,FALSE),VLOOKUP($B116,BASE1!$D:$S,6,FALSE))=TRUE),"",IF(C$26="Non sélectionné",VLOOKUP($B116,BASE1!$D:$S,3,FALSE),VLOOKUP($B116,BASE1!$D:$S,6,FALSE))) -> 5/5 | F116: =IF(ISERROR(IF(E$26="Non sélectionné",VLOOKUP($B116,BASE1!$D:$S,4,FALSE),VLOOKUP($B116,BASE1!$D:$S,8,FALSE))=TRUE),"",IF(E$26="Non sélectionné",VLOOKUP($B116,BASE1!$D:$S,4,FALSE),VLOOKUP($B116,BASE1!$D:$S,8,FALSE))) -> 5/5 | G116: =IF(ISERROR(VLOOKUP($B116,BASE1!$D:$S,15,FALSE)=TRUE),"",VLOOKUP($B116,BASE1!$D:$S,15,FALSE)) -> 1/5 | H116: =IF(ISERROR(VLOOKUP($B116,BASE1!$D:$S,16,FALSE)=TRUE),"",VLOOKUP($B116,BASE1!$D:$S,16,FALSE)) -> 1/5
A117: 47 | B117: =IF(ISERROR(VLOOKUP(A117,BASE1!B:D,3,FALSE)=TRUE),"",VLOOKUP(A117,BASE1!B:D,3,FALSE)) -> 353 + 333 + 340 F | D117: =IF(ISERROR(IF(B$26="Non sélectionné",VLOOKUP($B117,BASE1!$D:$S,2,FALSE),VLOOKUP($B117,BASE1!$D:$S,5,FALSE))=TRUE),"",IF(B$26="Non sélectionné",VLOOKUP($B117,BASE1!$D:$S,2,FALSE),VLOOKUP($B117,BASE1!$D:$S,5,FALSE))) -> 4,5/5 | E117: =IF(ISERROR(IF(C$26="Non sélectionné",VLOOKUP($B117,BASE1!$D:$S,3,FALSE),VLOOKUP($B117,BASE1!$D:$S,6,FALSE))=TRUE),"",IF(C$26="Non sélectionné",VLOOKUP($B117,BASE1!$D:$S,3,FALSE),VLOOKUP($B117,BASE1!$D:$S,6,FALSE))) -> 5/5 | F117: =IF(ISERROR(IF(E$26="Non sélectionné",VLOOKUP($B117,BASE1!$D:$S,4,FALSE),VLOOKUP($B117,BASE1!$D:$S,8,FALSE))=TRUE),"",IF(E$26="Non sélectionné",VLOOKUP($B117,BASE1!$D:$S,4,FALSE),VLOOKUP($B117,BASE1!$D:$S,8,FALSE))) -> 4/5 | G117: =IF(ISERROR(VLOOKUP($B117,BASE1!$D:$S,15,FALSE)=TRUE),"",VLOOKUP($B117,BASE1!$D:$S,15,FALSE)) -> 2/5 | H117: =IF(ISERROR(VLOOKUP($B117,BASE1!$D:$S,16,FALSE)=TRUE),"",VLOOKUP($B117,BASE1!$D:$S,16,FALSE)) -> 2,5/5
A118: 48 | B118: =IF(ISERROR(VLOOKUP(A118,BASE1!B:D,3,FALSE)=TRUE),"",VLOOKUP(A118,BASE1!B:D,3,FALSE)) -> 353 + 333 + 348 F | D118: =IF(ISERROR(IF(B$26="Non sélectionné",VLOOKUP($B118,BASE1!$D:$S,2,FALSE),VLOOKUP($B118,BASE1!$D:$S,5,FALSE))=TRUE),"",IF(B$26="Non sélectionné",VLOOKUP($B118,BASE1!$D:$S,2,FALSE),VLOOKUP($B118,BASE1!$D:$S,5,FALSE))) -> 4,5/5 | E118: =IF(ISERROR(IF(C$26="Non sélectionné",VLOOKUP($B118,BASE1!$D:$S,3,FALSE),VLOOKUP($B118,BASE1!$D:$S,6,FALSE))=TRUE),"",IF(C$26="Non sélectionné",VLOOKUP($B118,BASE1!$D:$S,3,FALSE),VLOOKUP($B118,BASE1!$D:$S,6,FALSE))) -> 5/5 | F118: =IF(ISERROR(IF(E$26="Non sélectionné",VLOOKUP($B118,BASE1!$D:$S,4,FALSE),VLOOKUP($B118,BASE1!$D:$S,8,FALSE))=TRUE),"",IF(E$26="Non sélectionné",VLOOKUP($B118,BASE1!$D:$S,4,FALSE),VLOOKUP($B118,BASE1!$D:$S,8,FALSE))) -> 5/5 | G118: =IF(ISERROR(VLOOKUP($B118,BASE1!$D:$S,15,FALSE)=TRUE),"",VLOOKUP($B118,BASE1!$D:$S,15,FALSE)) -> 2/5 | H118: =IF(ISERROR(VLOOKUP($B118,BASE1!$D:$S,16,FALSE)=TRUE),"",VLOOKUP($B118,BASE1!$D:$S,16,FALSE)) -> 2/5
A119: 49 | B119: =IF(ISERROR(VLOOKUP(A119,BASE1!B:D,3,FALSE)=TRUE),"",VLOOKUP(A119,BASE1!B:D,3,FALSE)) -> 353 + 333 + 361 F | D119: =IF(ISERROR(IF(B$26="Non sélectionné",VLOOKUP($B119,BASE1!$D:$S,2,FALSE),VLOOKUP($B119,BASE1!$D:$S,5,FALSE))=TRUE),"",IF(B$26="Non sélectionné",VLOOKUP($B119,BASE1!$D:$S,2,FALSE),VLOOKUP($B119,BASE1!$D:$S,5,FALSE))) -> 4,5/5 | E119: =IF(ISERROR(IF(C$26="Non sélectionné",VLOOKUP($B119,BASE1!$D:$S,3,FALSE),VLOOKUP($B119,BASE1!$D:$S,6,FALSE))=TRUE),"",IF(C$26="Non sélectionné",VLOOKUP($B119,BASE1!$D:$S,3,FALSE),VLOOKUP($B119,BASE1!$D:$S,6,FALSE))) -> 5/5 | F119: =IF(ISERROR(IF(E$26="Non sélectionné",VLOOKUP($B119,BASE1!$D:$S,4,FALSE),VLOOKUP($B119,BASE1!$D:$S,8,FALSE))=TRUE),"",IF(E$26="Non sélectionné",VLOOKUP($B119,BASE1!$D:$S,4,FALSE),VLOOKUP($B119,BASE1!$D:$S,8,FALSE))) -> 5/5 | G119: =IF(ISERROR(VLOOKUP($B119,BASE1!$D:$S,15,FALSE)=TRUE),"",VLOOKUP($B119,BASE1!$D:$S,15,FALSE)) -> 2/5 | H119: =IF(ISERROR(VLOOKUP($B119,BASE1!$D:$S,16,FALSE)=TRUE),"",VLOOKUP($B119,BASE1!$D:$S,16,FALSE)) -> 2/5
A120: 50 | B120: =IF(ISERROR(VLOOKUP(A120,BASE1!B:D,3,FALSE)=TRUE),"",VLOOKUP(A120,BASE1!B:D,3,FALSE)) -> 353 + 334 | D120: =IF(ISERROR(IF(B$26="Non sélectionné",VLOOKUP($B120,BASE1!$D:$S,2,FALSE),VLOOKUP($B120,BASE1!$D:$S,5,FALSE))=TRUE),"",IF(B$26="Non sélectionné",VLOOKUP($B120,BASE1!$D:$S,2,FALSE),VLOOKUP($B120,BASE1!$D:$S,5,FALSE))) -> 4,5/5 | E120: =IF(ISERROR(IF(C$26="Non sélectionné",VLOOKUP($B120,BASE1!$D:$S,3,FALSE),VLOOKUP($B120,BASE1!$D:$S,6,FALSE))=TRUE),"",IF(C$26="Non sélectionné",VLOOKUP($B120,BASE1!$D:$S,3,FALSE),VLOOKUP($B120,BASE1!$D:$S,6,FALSE))) -> 3,5/5 | F120: =IF(ISERROR(IF(E$26="Non sélectionné",VLOOKUP($B120,BASE1!$D:$S,4,FALSE),VLOOKUP($B120,BASE1!$D:$S,8,FALSE))=TRUE),"",IF(E$26="Non sélectionné",VLOOKUP($B120,BASE1!$D:$S,4,FALSE),VLOOKUP($B120,BASE1!$D:$S,8,FALSE))) -> 3,5/5 | G120: =IF(ISERROR(VLOOKUP($B120,BASE1!$D:$S,15,FALSE)=TRUE),"",VLOOKUP($B120,BASE1!$D:$S,15,FALSE)) -> 3/5 | H120: =IF(ISERROR(VLOOKUP($B120,BASE1!$D:$S,16,FALSE)=TRUE),"",VLOOKUP($B120,BASE1!$D:$S,16,FALSE)) -> 3,5/5
A121: 51 | B121: =IF(ISERROR(VLOOKUP(A121,BASE1!B:D,3,FALSE)=TRUE),"",VLOOKUP(A121,BASE1!B:D,3,FALSE)) -> 353 + 340 F | D121: =IF(ISERROR(IF(B$26="Non sélectionné",VLOOKUP($B121,BASE1!$D:$S,2,FALSE),VLOOKUP($B121,BASE1!$D:$S,5,FALSE))=TRUE),"",IF(B$26="Non sélectionné",VLOOKUP($B121,BASE1!$D:$S,2,FALSE),VLOOKUP($B121,BASE1!$D:$S,5,FALSE))) -> 4,5/5 | E121: =IF(ISERROR(IF(C$26="Non sélectionné",VLOOKUP($B121,BASE1!$D:$S,3,FALSE),VLOOKUP($B121,BASE1!$D:$S,6,FALSE))=TRUE),"",IF(C$26="Non sélectionné",VLOOKUP($B121,BASE1!$D:$S,3,FALSE),VLOOKUP($B121,BASE1!$D:$S,6,FALSE))) -> 4/5 | F121: =IF(ISERROR(IF(E$26="Non sélectionné",VLOOKUP($B121,BASE1!$D:$S,4,FALSE),VLOOKUP($B121,BASE1!$D:$S,8,FALSE))=TRUE),"",IF(E$26="Non sélectionné",VLOOKUP($B121,BASE1!$D:$S,4,FALSE),VLOOKUP($B121,BASE1!$D:$S,8,FALSE))) -> 4/5 | G121: =IF(ISERROR(VLOOKUP($B121,BASE1!$D:$S,15,FALSE)=TRUE),"",VLOOKUP($B121,BASE1!$D:$S,15,FALSE)) -> 3/5 | H121: =IF(ISERROR(VLOOKUP($B121,BASE1!$D:$S,16,FALSE)=TRUE),"",VLOOKUP($B121,BASE1!$D:$S,16,FALSE)) -> 3,5/5
A122: 52 | B122: =IF(ISERROR(VLOOKUP(A122,BASE1!B:D,3,FALSE)=TRUE),"",VLOOKUP(A122,BASE1!B:D,3,FALSE)) -> 353 + 340 P + 340 F | D122: =IF(ISERROR(IF(B$26="Non sélectionné",VLOOKUP($B122,BASE1!$D:$S,2,FALSE),VLOOKUP($B122,BASE1!$D:$S,5,FALSE))=TRUE),"",IF(B$26="Non sélectionné",VLOOKUP($B122,BASE1!$D:$S,2,FALSE),VLOOKUP($B122,BASE1!$D:$S,5,FALSE))) -> 4,5/5 | E122: =IF(ISERROR(IF(C$26="Non sélectionné",VLOOKUP($B122,BASE1!$D:$S,3,FALSE),VLOOKUP($B122,BASE1!$D:$S,6,FALSE))=TRUE),"",IF(C$26="Non sélectionné",VLOOKUP($B122,BASE1!$D:$S,3,FALSE),VLOOKUP($B122,BASE1!$D:$S,6,FALSE))) -> 5/5 | F122: =IF(ISERROR(IF(E$26="Non sélectionné",VLOOKUP($B122,BASE1!$D:$S,4,FALSE),VLOOKUP($B122,BASE1!$D:$S,8,FALSE))=TRUE),"",IF(E$26="Non sélectionné",VLOOKUP($B122,BASE1!$D:$S,4,FALSE),VLOOKUP($B122,BASE1!$D:$S,8,FALSE))) -> 4/5 | G122: =IF(ISERROR(VLOOKUP($B122,BASE1!$D:$S,15,FALSE)=TRUE),"",VLOOKUP($B122,BASE1!$D:$S,15,FALSE)) -> 2/5 | H122: =IF(ISERROR(VLOOKUP($B122,BASE1!$D:$S,16,FALSE)=TRUE),"",VLOOKUP($B122,BASE1!$D:$S,16,FALSE)) -> 2,5/5
A123: 53 | B123: =IF(ISERROR(VLOOKUP(A123,BASE1!B:D,3,FALSE)=TRUE),"",VLOOKUP(A123,BASE1!B:D,3,FALSE)) -> 353 + 340 P + 361 F | D123: =IF(ISERROR(IF(B$26="Non sélectionné",VLOOKUP($B123,BASE1!$D:$S,2,FALSE),VLOOKUP($B123,BASE1!$D:$S,5,FALSE))=TRUE),"",IF(B$26="Non sélectionné",VLOOKUP($B123,BASE1!$D:$S,2,FALSE),VLOOKUP($B123,BASE1!$D:$S,5,FALSE))) -> 4,5/5 | E123: =IF(ISERROR(IF(C$26="Non sélectionné",VLOOKUP($B123,BASE1!$D:$S,3,FALSE),VLOOKUP($B123,BASE1!$D:$S,6,FALSE))=TRUE),"",IF(C$26="Non sélectionné",VLOOKUP($B123,BASE1!$D:$S,3,FALSE),VLOOKUP($B123,BASE1!$D:$S,6,FALSE))) -> 5/5 | F123: =IF(ISERROR(IF(E$26="Non sélectionné",VLOOKUP($B123,BASE1!$D:$S,4,FALSE),VLOOKUP($B123,BASE1!$D:$S,8,FALSE))=TRUE),"",IF(E$26="Non sélectionné",VLOOKUP($B123,BASE1!$D:$S,4,FALSE),VLOOKUP($B123,BASE1!$D:$S,8,FALSE))) -> 5/5 | G123: =IF(ISERROR(VLOOKUP($B123,BASE1!$D:$S,15,FALSE)=TRUE),"",VLOOKUP($B123,BASE1!$D:$S,15,FALSE)) -> 2/5 | H123: =IF(ISERROR(VLOOKUP($B123,BASE1!$D:$S,16,FALSE)=TRUE),"",VLOOKUP($B123,BASE1!$D:$S,16,FALSE)) -> 2/5
A124: 54 | B124: =IF(ISERROR(VLOOKUP(A124,BASE1!B:D,3,FALSE)=TRUE),"",VLOOKUP(A124,BASE1!B:D,3,FALSE)) -> 353 + 347 S | D124: =IF(ISERROR(IF(B$26="Non sélectionné",VLOOKUP($B124,BASE1!$D:$S,2,FALSE),VLOOKUP($B124,BASE1!$D:$S,5,FALSE))=TRUE),"",IF(B$26="Non sélectionné",VLOOKUP($B124,BASE1!$D:$S,2,FALSE),VLOOKUP($B124,BASE1!$D:$S,5,FALSE))) -> 4,5/5 | E124: =IF(ISERROR(IF(C$26="Non sélectionné",VLOOKUP($B124,BASE1!$D:$S,3,FALSE),VLOOKUP($B124,BASE1!$D:$S,6,FALSE))=TRUE),"",IF(C$26="Non sélectionné",VLOOKUP($B124,BASE1!$D:$S,3,FALSE),VLOOKUP($B124,BASE1!$D:$S,6,FALSE))) -> 4/5 | F124: =IF(ISERROR(IF(E$26="Non sélectionné",VLOOKUP($B124,BASE1!$D:$S,4,FALSE),VLOOKUP($B124,BASE1!$D:$S,8,FALSE))=TRUE),"",IF(E$26="Non sélectionné",VLOOKUP($B124,BASE1!$D:$S,4,FALSE),VLOOKUP($B124,BASE1!$D:$S,8,FALSE))) -> 4/5 | G124: =IF(ISERROR(VLOOKUP($B124,BASE1!$D:$S,15,FALSE)=TRUE),"",VLOOKUP($B124,BASE1!$D:$S,15,FALSE)) -> 3/5 | H124: =IF(ISERROR(VLOOKUP($B124,BASE1!$D:$S,16,FALSE)=TRUE),"",VLOOKUP($B124,BASE1!$D:$S,16,FALSE)) -> 3,5/5
A125: 55 | B125: =IF(ISERROR(VLOOKUP(A125,BASE1!B:D,3,FALSE)=TRUE),"",VLOOKUP(A125,BASE1!B:D,3,FALSE)) -> 353 + 361 F | D125: =IF(ISERROR(IF(B$26="Non sélectionné",VLOOKUP($B125,BASE1!$D:$S,2,FALSE),VLOOKUP($B125,BASE1!$D:$S,5,FALSE))=TRUE),"",IF(B$26="Non sélectionné",VLOOKUP($B125,BASE1!$D:$S,2,FALSE),VLOOKUP($B125,BASE1!$D:$S,5,FALSE))) -> 4,5/5 | E125: =IF(ISERROR(IF(C$26="Non sélectionné",VLOOKUP($B125,BASE1!$D:$S,3,FALSE),VLOOKUP($B125,BASE1!$D:$S,6,FALSE))=TRUE),"",IF(C$26="Non sélectionné",VLOOKUP($B125,BASE1!$D:$S,3,FALSE),VLOOKUP($B125,BASE1!$D:$S,6,FALSE))) -> 4,5/5 | F125: =IF(ISERROR(IF(E$26="Non sélectionné",VLOOKUP($B125,BASE1!$D:$S,4,FALSE),VLOOKUP($B125,BASE1!$D:$S,8,FALSE))=TRUE),"",IF(E$26="Non sélectionné",VLOOKUP($B125,BASE1!$D:$S,4,FALSE),VLOOKUP($B125,BASE1!$D:$S,8,FALSE))) -> 5/5 | G125: =IF(ISERROR(VLOOKUP($B125,BASE1!$D:$S,15,FALSE)=TRUE),"",VLOOKUP($B125,BASE1!$D:$S,15,FALSE)) -> 3/5 | H125: =IF(ISERROR(VLOOKUP($B125,BASE1!$D:$S,16,FALSE)=TRUE),"",VLOOKUP($B125,BASE1!$D:$S,16,FALSE)) -> 3/5
A126: 56 | B126: =IF(ISERROR(VLOOKUP(A126,BASE1!B:D,3,FALSE)=TRUE),"",VLOOKUP(A126,BASE1!B:D,3,FALSE)) -> 415 + 428 | D126: =IF(ISERROR(IF(B$26="Non sélectionné",VLOOKUP($B126,BASE1!$D:$S,2,FALSE),VLOOKUP($B126,BASE1!$D:$S,5,FALSE))=TRUE),"",IF(B$26="Non sélectionné",VLOOKUP($B126,BASE1!$D:$S,2,FALSE),VLOOKUP($B126,BASE1!$D:$S,5,FALSE))) -> 3/5 | E126: =IF(ISERROR(IF(C$26="Non sélectionné",VLOOKUP($B126,BASE1!$D:$S,3,FALSE),VLOOKUP($B126,BASE1!$D:$S,6,FALSE))=TRUE),"",IF(C$26="Non sélectionné",VLOOKUP($B126,BASE1!$D:$S,3,FALSE),VLOOKUP($B126,BASE1!$D:$S,6,FALSE))) -> 3,5/5 | F126: =IF(ISERROR(IF(E$26="Non sélectionné",VLOOKUP($B126,BASE1!$D:$S,4,FALSE),VLOOKUP($B126,BASE1!$D:$S,8,FALSE))=TRUE),"",IF(E$26="Non sélectionné",VLOOKUP($B126,BASE1!$D:$S,4,FALSE),VLOOKUP($B126,BASE1!$D:$S,8,FALSE))) -> 3,5/5 | G126: =IF(ISERROR(VLOOKUP($B126,BASE1!$D:$S,15,FALSE)=TRUE),"",VLOOKUP($B126,BASE1!$D:$S,15,FALSE)) -> 5/5 | H126: =IF(ISERROR(VLOOKUP($B126,BASE1!$D:$S,16,FALSE)=TRUE),"",VLOOKUP($B126,BASE1!$D:$S,16,FALSE)) -> 4/5
A127: 57 | B127: =IF(ISERROR(VLOOKUP(A127,BASE1!B:D,3,FALSE)=TRUE),"",VLOOKUP(A127,BASE1!B:D,3,FALSE)) -> 431 + 449 | D127: =IF(ISERROR(IF(B$26="Non sélectionné",VLOOKUP($B127,BASE1!$D:$S,2,FALSE),VLOOKUP($B127,BASE1!$D:$S,5,FALSE))=TRUE),"",IF(B$26="Non sélectionné",VLOOKUP($B127,BASE1!$D:$S,2,FALSE),VLOOKUP($B127,BASE1!$D:$S,5,FALSE))) -> 3,5/5 | E127: =IF(ISERROR(IF(C$26="Non sélectionné",VLOOKUP($B127,BASE1!$D:$S,3,FALSE),VLOOKUP($B127,BASE1!$D:$S,6,FALSE))=TRUE),"",IF(C$26="Non sélectionné",VLOOKUP($B127,BASE1!$D:$S,3,FALSE),VLOOKUP($B127,BASE1!$D:$S,6,FALSE))) -> 4,5/5 | F127: =IF(ISERROR(IF(E$26="Non sélectionné",VLOOKUP($B127,BASE1!$D:$S,4,FALSE),VLOOKUP($B127,BASE1!$D:$S,8,FALSE))=TRUE),"",IF(E$26="Non sélectionné",VLOOKUP($B127,BASE1!$D:$S,4,FALSE),VLOOKUP($B127,BASE1!$D:$S,8,FALSE))) -> 5/5 | G127: =IF(ISERROR(VLOOKUP($B127,BASE1!$D:$S,15,FALSE)=TRUE),"",VLOOKUP($B127,BASE1!$D:$S,15,FALSE)) -> 3/5 | H127: =IF(ISERROR(VLOOKUP($B127,BASE1!$D:$S,16,FALSE)=TRUE),"",VLOOKUP($B127,BASE1!$D:$S,16,FALSE)) -> 2,5/5
A128: 58 | B128: =IF(ISERROR(VLOOKUP(A128,BASE1!B:D,3,FALSE)=TRUE),"",VLOOKUP(A128,BASE1!B:D,3,FALSE)) -> 416 | D128: =IF(ISERROR(IF(B$26="Non sélectionné",VLOOKUP($B128,BASE1!$D:$S,2,FALSE),VLOOKUP($B128,BASE1!$D:$S,5,FALSE))=TRUE),"",IF(B$26="Non sélectionné",VLOOKUP($B128,BASE1!$D:$S,2,FALSE),VLOOKUP($B128,BASE1!$D:$S,5,FALSE))) -> 4/5 | E128: =IF(ISERROR(IF(C$26="Non sélectionné",VLOOKUP($B128,BASE1!$D:$S,3,FALSE),VLOOKUP($B128,BASE1!$D:$S,6,FALSE))=TRUE),"",IF(C$26="Non sélectionné",VLOOKUP($B128,BASE1!$D:$S,3,FALSE),VLOOKUP($B128,BASE1!$D:$S,6,FALSE))) -> 4/5 | F128: =IF(ISERROR(IF(E$26="Non sélectionné",VLOOKUP($B128,BASE1!$D:$S,4,FALSE),VLOOKUP($B128,BASE1!$D:$S,8,FALSE))=TRUE),"",IF(E$26="Non sélectionné",VLOOKUP($B128,BASE1!$D:$S,4,FALSE),VLOOKUP($B128,BASE1!$D:$S,8,FALSE))) -> 3,5/5 | G128: =IF(ISERROR(VLOOKUP($B128,BASE1!$D:$S,15,FALSE)=TRUE),"",VLOOKUP($B128,BASE1!$D:$S,15,FALSE)) -> 5/5 | H128: =IF(ISERROR(VLOOKUP($B128,BASE1!$D:$S,16,FALSE)=TRUE),"",VLOOKUP($B128,BASE1!$D:$S,16,FALSE)) -> 4/5
A129: 59 | B129: =IF(ISERROR(VLOOKUP(A129,BASE1!B:D,3,FALSE)=TRUE),"",VLOOKUP(A129,BASE1!B:D,3,FALSE)) -> 344 | D129: =IF(ISERROR(IF(B$26="Non sélectionné",VLOOKUP($B129,BASE1!$D:$S,2,FALSE),VLOOKUP($B129,BASE1!$D:$S,5,FALSE))=TRUE),"",IF(B$26="Non sélectionné",VLOOKUP($B129,BASE1!$D:$S,2,FALSE),VLOOKUP($B129,BASE1!$D:$S,5,FALSE))) -> 5/5 | E129: =IF(ISERROR(IF(C$26="Non sélectionné",VLOOKUP($B129,BASE1!$D:$S,3,FALSE),VLOOKUP($B129,BASE1!$D:$S,6,FALSE))=TRUE),"",IF(C$26="Non sélectionné",VLOOKUP($B129,BASE1!$D:$S,3,FALSE),VLOOKUP($B129,BASE1!$D:$S,6,FALSE))) -> 5/5 | F129: =IF(ISERROR(IF(E$26="Non sélectionné",VLOOKUP($B129,BASE1!$D:$S,4,FALSE),VLOOKUP($B129,BASE1!$D:$S,8,FALSE))=TRUE),"",IF(E$26="Non sélectionné",VLOOKUP($B129,BASE1!$D:$S,4,FALSE),VLOOKUP($B129,BASE1!$D:$S,8,FALSE))) -> 4/5 | G129: =IF(ISERROR(VLOOKUP($B129,BASE1!$D:$S,15,FALSE)=TRUE),"",VLOOKUP($B129,BASE1!$D:$S,15,FALSE)) -> 3,5/5 | H129: =IF(ISERROR(VLOOKUP($B129,BASE1!$D:$S,16,FALSE)=TRUE),"",VLOOKUP($B129,BASE1!$D:$S,16,FALSE)) -> 3,5/5
A130: 60 | B130: =IF(ISERROR(VLOOKUP(A130,BASE1!B:D,3,FALSE)=TRUE),"",VLOOKUP(A130,BASE1!B:D,3,FALSE)) -> 135 + 416 | D130: =IF(ISERROR(IF(B$26="Non sélectionné",VLOOKUP($B130,BASE1!$D:$S,2,FALSE),VLOOKUP($B130,BASE1!$D:$S,5,FALSE))=TRUE),"",IF(B$26="Non sélectionné",VLOOKUP($B130,BASE1!$D:$S,2,FALSE),VLOOKUP($B130,BASE1!$D:$S,5,FALSE))) -> 4/5 | E130: =IF(ISERROR(IF(C$26="Non sélectionné",VLOOKUP($B130,BASE1!$D:$S,3,FALSE),VLOOKUP($B130,BASE1!$D:$S,6,FALSE))=TRUE),"",IF(C$26="Non sélectionné",VLOOKUP($B130,BASE1!$D:$S,3,FALSE),VLOOKUP($B130,BASE1!$D:$S,6,FALSE))) -> 4/5 | F130: =IF(ISERROR(IF(E$26="Non sélectionné",VLOOKUP($B130,BASE1!$D:$S,4,FALSE),VLOOKUP($B130,BASE1!$D:$S,8,FALSE))=TRUE),"",IF(E$26="Non sélectionné",VLOOKUP($B130,BASE1!$D:$S,4,FALSE),VLOOKUP($B130,BASE1!$D:$S,8,FALSE))) -> 3,5/5 | G130: =IF(ISERROR(VLOOKUP($B130,BASE1!$D:$S,15,FALSE)=TRUE),"",VLOOKUP($B130,BASE1!$D:$S,15,FALSE)) -> 4/5 | H130: =IF(ISERROR(VLOOKUP($B130,BASE1!$D:$S,16,FALSE)=TRUE),"",VLOOKUP($B130,BASE1!$D:$S,16,FALSE)) -> 3/5
A131: 61 | B131: =IF(ISERROR(VLOOKUP(A131,BASE1!B:D,3,FALSE)=TRUE),"",VLOOKUP(A131,BASE1!B:D,3,FALSE)) -> 402 | D131: =IF(ISERROR(IF(B$26="Non sélectionné",VLOOKUP($B131,BASE1!$D:$S,2,FALSE),VLOOKUP($B131,BASE1!$D:$S,5,FALSE))=TRUE),"",IF(B$26="Non sélectionné",VLOOKUP($B131,BASE1!$D:$S,2,FALSE),VLOOKUP($B131,BASE1!$D:$S,5,FALSE))) -> 3/5 | E131: =IF(ISERROR(IF(C$26="Non sélectionné",VLOOKUP($B131,BASE1!$D:$S,3,FALSE),VLOOKUP($B131,BASE1!$D:$S,6,FALSE))=TRUE),"",IF(C$26="Non sélectionné",VLOOKUP($B131,BASE1!$D:$S,3,FALSE),VLOOKUP($B131,BASE1!$D:$S,6,FALSE))) -> 3/5 | F131: =IF(ISERROR(IF(E$26="Non sélectionné",VLOOKUP($B131,BASE1!$D:$S,4,FALSE),VLOOKUP($B131,BASE1!$D:$S,8,FALSE))=TRUE),"",IF(E$26="Non sélectionné",VLOOKUP($B131,BASE1!$D:$S,4,FALSE),VLOOKUP($B131,BASE1!$D:$S,8,FALSE))) -> 2/5 | G131: =IF(ISERROR(VLOOKUP($B131,BASE1!$D:$S,15,FALSE)=TRUE),"",VLOOKUP($B131,BASE1!$D:$S,15,FALSE)) -> 5/5 | H131: =IF(ISERROR(VLOOKUP($B131,BASE1!$D:$S,16,FALSE)=TRUE),"",VLOOKUP($B131,BASE1!$D:$S,16,FALSE)) -> 5/5
A132: 62 | B132: =IF(ISERROR(VLOOKUP(A132,BASE1!B:D,3,FALSE)=TRUE),"",VLOOKUP(A132,BASE1!B:D,3,FALSE)) -> 418 | D132: =IF(ISERROR(IF(B$26="Non sélectionné",VLOOKUP($B132,BASE1!$D:$S,2,FALSE),VLOOKUP($B132,BASE1!$D:$S,5,FALSE))=TRUE),"",IF(B$26="Non sélectionné",VLOOKUP($B132,BASE1!$D:$S,2,FALSE),VLOOKUP($B132,BASE1!$D:$S,5,FALSE))) -> 3/5 | E132: =IF(ISERROR(IF(C$26="Non sélectionné",VLOOKUP($B132,BASE1!$D:$S,3,FALSE),VLOOKUP($B132,BASE1!$D:$S,6,FALSE))=TRUE),"",IF(C$26="Non sélectionné",VLOOKUP($B132,BASE1!$D:$S,3,FALSE),VLOOKUP($B132,BASE1!$D:$S,6,FALSE))) -> 4/5 | F132: =IF(ISERROR(IF(E$26="Non sélectionné",VLOOKUP($B132,BASE1!$D:$S,4,FALSE),VLOOKUP($B132,BASE1!$D:$S,8,FALSE))=TRUE),"",IF(E$26="Non sélectionné",VLOOKUP($B132,BASE1!$D:$S,4,FALSE),VLOOKUP($B132,BASE1!$D:$S,8,FALSE))) -> 3/5 | G132: =IF(ISERROR(VLOOKUP($B132,BASE1!$D:$S,15,FALSE)=TRUE),"",VLOOKUP($B132,BASE1!$D:$S,15,FALSE)) -> 5/5 | H132: =IF(ISERROR(VLOOKUP($B132,BASE1!$D:$S,16,FALSE)=TRUE),"",VLOOKUP($B132,BASE1!$D:$S,16,FALSE)) -> 4,5/5
A133: 63 | B133: =IF(ISERROR(VLOOKUP(A133,BASE1!B:D,3,FALSE)=TRUE),"",VLOOKUP(A133,BASE1!B:D,3,FALSE)) -> 461 I | D133: =IF(ISERROR(IF(B$26="Non sélectionné",VLOOKUP($B133,BASE1!$D:$S,2,FALSE),VLOOKUP($B133,BASE1!$D:$S,5,FALSE))=TRUE),"",IF(B$26="Non sélectionné",VLOOKUP($B133,BASE1!$D:$S,2,FALSE),VLOOKUP($B133,BASE1!$D:$S,5,FALSE))) -> 4/5 | E133: =IF(ISERROR(IF(C$26="Non sélectionné",VLOOKUP($B133,BASE1!$D:$S,3,FALSE),VLOOKUP($B133,BASE1!$D:$S,6,FALSE))=TRUE),"",IF(C$26="Non sélectionné",VLOOKUP($B133,BASE1!$D:$S,3,FALSE),VLOOKUP($B133,BASE1!$D:$S,6,FALSE))) -> 4/5 INT | F133: =IF(ISERROR(IF(E$26="Non sélectionné",VLOOKUP($B133,BASE1!$D:$S,4,FALSE),VLOOKUP($B133,BASE1!$D:$S,8,FALSE))=TRUE),"",IF(E$26="Non sélectionné",VLOOKUP($B133,BASE1!$D:$S,4,FALSE),VLOOKUP($B133,BASE1!$D:$S,8,FALSE))) -> 1/5 | G133: =IF(ISERROR(VLOOKUP($B133,BASE1!$D:$S,15,FALSE)=TRUE),"",VLOOKUP($B133,BASE1!$D:$S,15,FALSE)) -> 4,5/5 | H133: =IF(ISERROR(VLOOKUP($B133,BASE1!$D:$S,16,FALSE)=TRUE),"",VLOOKUP($B133,BASE1!$D:$S,16,FALSE)) -> 4/5
A134: 64 | B134: =IF(ISERROR(VLOOKUP(A134,BASE1!B:D,3,FALSE)=TRUE),"",VLOOKUP(A134,BASE1!B:D,3,FALSE)) -> 462 I | D134: =IF(ISERROR(IF(B$26="Non sélectionné",VLOOKUP($B134,BASE1!$D:$S,2,FALSE),VLOOKUP($B134,BASE1!$D:$S,5,FALSE))=TRUE),"",IF(B$26="Non sélectionné",VLOOKUP($B134,BASE1!$D:$S,2,FALSE),VLOOKUP($B134,BASE1!$D:$S,5,FALSE))) -> 4/5 | E134: =IF(ISERROR(IF(C$26="Non sélectionné",VLOOKUP($B134,BASE1!$D:$S,3,FALSE),VLOOKUP($B134,BASE1!$D:$S,6,FALSE))=TRUE),"",IF(C$26="Non sélectionné",VLOOKUP($B134,BASE1!$D:$S,3,FALSE),VLOOKUP($B134,BASE1!$D:$S,6,FALSE))) -> 4/5 INT | F134: =IF(ISERROR(IF(E$26="Non sélectionné",VLOOKUP($B134,BASE1!$D:$S,4,FALSE),VLOOKUP($B134,BASE1!$D:$S,8,FALSE))=TRUE),"",IF(E$26="Non sélectionné",VLOOKUP($B134,BASE1!$D:$S,4,FALSE),VLOOKUP($B134,BASE1!$D:$S,8,FALSE))) -> 2/5 | G134: =IF(ISERROR(VLOOKUP($B134,BASE1!$D:$S,15,FALSE)=TRUE),"",VLOOKUP($B134,BASE1!$D:$S,15,FALSE)) -> 4/5 | H134: =IF(ISERROR(VLOOKUP($B134,BASE1!$D:$S,16,FALSE)=TRUE),"",VLOOKUP($B134,BASE1!$D:$S,16,FALSE)) -> 4/5
A135: 65 | B135: =IF(ISERROR(VLOOKUP(A135,BASE1!B:D,3,FALSE)=TRUE),"",VLOOKUP(A135,BASE1!B:D,3,FALSE)) -> 428 | D135: =IF(ISERROR(IF(B$26="Non sélectionné",VLOOKUP($B135,BASE1!$D:$S,2,FALSE),VLOOKUP($B135,BASE1!$D:$S,5,FALSE))=TRUE),"",IF(B$26="Non sélectionné",VLOOKUP($B135,BASE1!$D:$S,2,FALSE),VLOOKUP($B135,BASE1!$D:$S,5,FALSE))) -> 3,5/5 | E135: =IF(ISERROR(IF(C$26="Non sélectionné",VLOOKUP($B135,BASE1!$D:$S,3,FALSE),VLOOKUP($B135,BASE1!$D:$S,6,FALSE))=TRUE),"",IF(C$26="Non sélectionné",VLOOKUP($B135,BASE1!$D:$S,3,FALSE),VLOOKUP($B135,BASE1!$D:$S,6,FALSE))) -> 2,5/5 | F135: =IF(ISERROR(IF(E$26="Non sélectionné",VLOOKUP($B135,BASE1!$D:$S,4,FALSE),VLOOKUP($B135,BASE1!$D:$S,8,FALSE))=TRUE),"",IF(E$26="Non sélectionné",VLOOKUP($B135,BASE1!$D:$S,4,FALSE),VLOOKUP($B135,BASE1!$D:$S,8,FALSE))) -> 2,5/5 | G135: =IF(ISERROR(VLOOKUP($B135,BASE1!$D:$S,15,FALSE)=TRUE),"",VLOOKUP($B135,BASE1!$D:$S,15,FALSE)) -> 5/5 | H135: =IF(ISERROR(VLOOKUP($B135,BASE1!$D:$S,16,FALSE)=TRUE),"",VLOOKUP($B135,BASE1!$D:$S,16,FALSE)) -> 4/5
A136: 66 | B136: =IF(ISERROR(VLOOKUP(A136,BASE1!B:D,3,FALSE)=TRUE),"",VLOOKUP(A136,BASE1!B:D,3,FALSE)) -> 429 | D136: =IF(ISERROR(IF(B$26="Non sélectionné",VLOOKUP($B136,BASE1!$D:$S,2,FALSE),VLOOKUP($B136,BASE1!$D:$S,5,FALSE))=TRUE),"",IF(B$26="Non sélectionné",VLOOKUP($B136,BASE1!$D:$S,2,FALSE),VLOOKUP($B136,BASE1!$D:$S,5,FALSE))) -> 3,5/5 | E136: =IF(ISERROR(IF(C$26="Non sélectionné",VLOOKUP($B136,BASE1!$D:$S,3,FALSE),VLOOKUP($B136,BASE1!$D:$S,6,FALSE))=TRUE),"",IF(C$26="Non sélectionné",VLOOKUP($B136,BASE1!$D:$S,3,FALSE),VLOOKUP($B136,BASE1!$D:$S,6,FALSE))) -> 2,5/5 | F136: =IF(ISERROR(IF(E$26="Non sélectionné",VLOOKUP($B136,BASE1!$D:$S,4,FALSE),VLOOKUP($B136,BASE1!$D:$S,8,FALSE))=TRUE),"",IF(E$26="Non sélectionné",VLOOKUP($B136,BASE1!$D:$S,4,FALSE),VLOOKUP($B136,BASE1!$D:$S,8,FALSE))) -> 2,5/5 | G136: =IF(ISERROR(VLOOKUP($B136,BASE1!$D:$S,15,FALSE)=TRUE),"",VLOOKUP($B136,BASE1!$D:$S,15,FALSE)) -> 5/5 | H136: =IF(ISERROR(VLOOKUP($B136,BASE1!$D:$S,16,FALSE)=TRUE),"",VLOOKUP($B136,BASE1!$D:$S,16,FALSE)) -> 4/5
A137: 67 | B137: =IF(ISERROR(VLOOKUP(A137,BASE1!B:D,3,FALSE)=TRUE),"",VLOOKUP(A137,BASE1!B:D,3,FALSE)) -> 459 + 428 | D137: =IF(ISERROR(IF(B$26="Non sélectionné",VLOOKUP($B137,BASE1!$D:$S,2,FALSE),VLOOKUP($B137,BASE1!$D:$S,5,FALSE))=TRUE),"",IF(B$26="Non sélectionné",VLOOKUP($B137,BASE1!$D:$S,2,FALSE),VLOOKUP($B137,BASE1!$D:$S,5,FALSE))) -> 5/5 | E137: =IF(ISERROR(IF(C$26="Non sélectionné",VLOOKUP($B137,BASE1!$D:$S,3,FALSE),VLOOKUP($B137,BASE1!$D:$S,6,FALSE))=TRUE),"",IF(C$26="Non sélectionné",VLOOKUP($B137,BASE1!$D:$S,3,FALSE),VLOOKUP($B137,BASE1!$D:$S,6,FALSE))) -> 4/5 | F137: =IF(ISERROR(IF(E$26="Non sélectionné",VLOOKUP($B137,BASE1!$D:$S,4,FALSE),VLOOKUP($B137,BASE1!$D:$S,8,FALSE))=TRUE),"",IF(E$26="Non sélectionné",VLOOKUP($B137,BASE1!$D:$S,4,FALSE),VLOOKUP($B137,BASE1!$D:$S,8,FALSE))) -> 3/5 | G137: =IF(ISERROR(VLOOKUP($B137,BASE1!$D:$S,15,FALSE)=TRUE),"",VLOOKUP($B137,BASE1!$D:$S,15,FALSE)) -> 4/5 | H137: =IF(ISERROR(VLOOKUP($B137,BASE1!$D:$S,16,FALSE)=TRUE),"",VLOOKUP($B137,BASE1!$D:$S,16,FALSE)) -> 3/5
A138: 68 | B138: =IF(ISERROR(VLOOKUP(A138,BASE1!B:D,3,FALSE)=TRUE),"",VLOOKUP(A138,BASE1!B:D,3,FALSE)) -> 459 + 429 | D138: =IF(ISERROR(IF(B$26="Non sélectionné",VLOOKUP($B138,BASE1!$D:$S,2,FALSE),VLOOKUP($B138,BASE1!$D:$S,5,FALSE))=TRUE),"",IF(B$26="Non sélectionné",VLOOKUP($B138,BASE1!$D:$S,2,FALSE),VLOOKUP($B138,BASE1!$D:$S,5,FALSE))) -> 5/5 | E138: =IF(ISERROR(IF(C$26="Non sélectionné",VLOOKUP($B138,BASE1!$D:$S,3,FALSE),VLOOKUP($B138,BASE1!$D:$S,6,FALSE))=TRUE),"",IF(C$26="Non sélectionné",VLOOKUP($B138,BASE1!$D:$S,3,FALSE),VLOOKUP($B138,BASE1!$D:$S,6,FALSE))) -> 4/5 | F138: =IF(ISERROR(IF(E$26="Non sélectionné",VLOOKUP($B138,BASE1!$D:$S,4,FALSE),VLOOKUP($B138,BASE1!$D:$S,8,FALSE))=TRUE),"",IF(E$26="Non sélectionné",VLOOKUP($B138,BASE1!$D:$S,4,FALSE),VLOOKUP($B138,BASE1!$D:$S,8,FALSE))) -> 3/5 | G138: =IF(ISERROR(VLOOKUP($B138,BASE1!$D:$S,15,FALSE)=TRUE),"",VLOOKUP($B138,BASE1!$D:$S,15,FALSE)) -> 4/5 | H138: =IF(ISERROR(VLOOKUP($B138,BASE1!$D:$S,16,FALSE)=TRUE),"",VLOOKUP($B138,BASE1!$D:$S,16,FALSE)) -> 3/5
A139: 69 | B139: =IF(ISERROR(VLOOKUP(A139,BASE1!B:D,3,FALSE)=TRUE),"",VLOOKUP(A139,BASE1!B:D,3,FALSE)) -> 401 + 402 | D139: =IF(ISERROR(IF(B$26="Non sélectionné",VLOOKUP($B139,BASE1!$D:$S,2,FALSE),VLOOKUP($B139,BASE1!$D:$S,5,FALSE))=TRUE),"",IF(B$26="Non sélectionné",VLOOKUP($B139,BASE1!$D:$S,2,FALSE),VLOOKUP($B139,BASE1!$D:$S,5,FALSE))) -> 3,5/5 | E139: =IF(ISERROR(IF(C$26="Non sélectionné",VLOOKUP($B139,BASE1!$D:$S,3,FALSE),VLOOKUP($B139,BASE1!$D:$S,6,FALSE))=TRUE),"",IF(C$26="Non sélectionné",VLOOKUP($B139,BASE1!$D:$S,3,FALSE),VLOOKUP($B139,BASE1!$D:$S,6,FALSE))) -> 3/5 | F139: =IF(ISERROR(IF(E$26="Non sélectionné",VLOOKUP($B139,BASE1!$D:$S,4,FALSE),VLOOKUP($B139,BASE1!$D:$S,8,FALSE))=TRUE),"",IF(E$26="Non sélectionné",VLOOKUP($B139,BASE1!$D:$S,4,FALSE),VLOOKUP($B139,BASE1!$D:$S,8,FALSE))) -> 2/5 | G139: =IF(ISERROR(VLOOKUP($B139,BASE1!$D:$S,15,FALSE)=TRUE),"",VLOOKUP($B139,BASE1!$D:$S,15,FALSE)) -> 4/5 | H139: =IF(ISERROR(VLOOKUP($B139,BASE1!$D:$S,16,FALSE)=TRUE),"",VLOOKUP($B139,BASE1!$D:$S,16,FALSE)) -> 4/5
A140: 70 | B140: =IF(ISERROR(VLOOKUP(A140,BASE1!B:D,3,FALSE)=TRUE),"",VLOOKUP(A140,BASE1!B:D,3,FALSE)) -> 401 + 418 | D140: =IF(ISERROR(IF(B$26="Non sélectionné",VLOOKUP($B140,BASE1!$D:$S,2,FALSE),VLOOKUP($B140,BASE1!$D:$S,5,FALSE))=TRUE),"",IF(B$26="Non sélectionné",VLOOKUP($B140,BASE1!$D:$S,2,FALSE),VLOOKUP($B140,BASE1!$D:$S,5,FALSE))) -> 3,5/5 | E140: =IF(ISERROR(IF(C$26="Non sélectionné",VLOOKUP($B140,BASE1!$D:$S,3,FALSE),VLOOKUP($B140,BASE1!$D:$S,6,FALSE))=TRUE),"",IF(C$26="Non sélectionné",VLOOKUP($B140,BASE1!$D:$S,3,FALSE),VLOOKUP($B140,BASE1!$D:$S,6,FALSE))) -> 3/5 | F140: =IF(ISERROR(IF(E$26="Non sélectionné",VLOOKUP($B140,BASE1!$D:$S,4,FALSE),VLOOKUP($B140,BASE1!$D:$S,8,FALSE))=TRUE),"",IF(E$26="Non sélectionné",VLOOKUP($B140,BASE1!$D:$S,4,FALSE),VLOOKUP($B140,BASE1!$D:$S,8,FALSE))) -> 2/5 | G140: =IF(ISERROR(VLOOKUP($B140,BASE1!$D:$S,15,FALSE)=TRUE),"",VLOOKUP($B140,BASE1!$D:$S,15,FALSE)) -> 4/5 | H140: =IF(ISERROR(VLOOKUP($B140,BASE1!$D:$S,16,FALSE)=TRUE),"",VLOOKUP($B140,BASE1!$D:$S,16,FALSE)) -> 4/5
A141: 71 | B141: =IF(ISERROR(VLOOKUP(A141,BASE1!B:D,3,FALSE)=TRUE),"",VLOOKUP(A141,BASE1!B:D,3,FALSE)) -> 459 + 461 I | D141: =IF(ISERROR(IF(B$26="Non sélectionné",VLOOKUP($B141,BASE1!$D:$S,2,FALSE),VLOOKUP($B141,BASE1!$D:$S,5,FALSE))=TRUE),"",IF(B$26="Non sélectionné",VLOOKUP($B141,BASE1!$D:$S,2,FALSE),VLOOKUP($B141,BASE1!$D:$S,5,FALSE))) -> 4,5/5 | E141: =IF(ISERROR(IF(C$26="Non sélectionné",VLOOKUP($B141,BASE1!$D:$S,3,FALSE),VLOOKUP($B141,BASE1!$D:$S,6,FALSE))=TRUE),"",IF(C$26="Non sélectionné",VLOOKUP($B141,BASE1!$D:$S,3,FALSE),VLOOKUP($B141,BASE1!$D:$S,6,FALSE))) -> 4/5 INT | F141: =IF(ISERROR(IF(E$26="Non sélectionné",VLOOKUP($B141,BASE1!$D:$S,4,FALSE),VLOOKUP($B141,BASE1!$D:$S,8,FALSE))=TRUE),"",IF(E$26="Non sélectionné",VLOOKUP($B141,BASE1!$D:$S,4,FALSE),VLOOKUP($B141,BASE1!$D:$S,8,FALSE))) -> 2/5 | G141: =IF(ISERROR(VLOOKUP($B141,BASE1!$D:$S,15,FALSE)=TRUE),"",VLOOKUP($B141,BASE1!$D:$S,15,FALSE)) -> 4/5 | H141: =IF(ISERROR(VLOOKUP($B141,BASE1!$D:$S,16,FALSE)=TRUE),"",VLOOKUP($B141,BASE1!$D:$S,16,FALSE)) -> 3/5
A142: 72 | B142: =IF(ISERROR(VLOOKUP(A142,BASE1!B:D,3,FALSE)=TRUE),"",VLOOKUP(A142,BASE1!B:D,3,FALSE)) -> 459 + 462 I | D142: =IF(ISERROR(IF(B$26="Non sélectionné",VLOOKUP($B142,BASE1!$D:$S,2,FALSE),VLOOKUP($B142,BASE1!$D:$S,5,FALSE))=TRUE),"",IF(B$26="Non sélectionné",VLOOKUP($B142,BASE1!$D:$S,2,FALSE),VLOOKUP($B142,BASE1!$D:$S,5,FALSE))) -> 4,5/5 | E142: =IF(ISERROR(IF(C$26="Non sélectionné",VLOOKUP($B142,BASE1!$D:$S,3,FALSE),VLOOKUP($B142,BASE1!$D:$S,6,FALSE))=TRUE),"",IF(C$26="Non sélectionné",VLOOKUP($B142,BASE1!$D:$S,3,FALSE),VLOOKUP($B142,BASE1!$D:$S,6,FALSE))) -> 4/5 INT | F142: =IF(ISERROR(IF(E$26="Non sélectionné",VLOOKUP($B142,BASE1!$D:$S,4,FALSE),VLOOKUP($B142,BASE1!$D:$S,8,FALSE))=TRUE),"",IF(E$26="Non sélectionné",VLOOKUP($B142,BASE1!$D:$S,4,FALSE),VLOOKUP($B142,BASE1!$D:$S,8,FALSE))) -> 3/5 | G142: =IF(ISERROR(VLOOKUP($B142,BASE1!$D:$S,15,FALSE)=TRUE),"",VLOOKUP($B142,BASE1!$D:$S,15,FALSE)) -> 3,5/5 | H142: =IF(ISERROR(VLOOKUP($B142,BASE1!$D:$S,16,FALSE)=TRUE),"",VLOOKUP($B142,BASE1!$D:$S,16,FALSE)) -> 3/5
A143: 73 | B143: =IF(ISERROR(VLOOKUP(A143,BASE1!B:D,3,FALSE)=TRUE),"",VLOOKUP(A143,BASE1!B:D,3,FALSE)) -> 401 + 403 | D143: =IF(ISERROR(IF(B$26="Non sélectionné",VLOOKUP($B143,BASE1!$D:$S,2,FALSE),VLOOKUP($B143,BASE1!$D:$S,5,FALSE))=TRUE),"",IF(B$26="Non sélectionné",VLOOKUP($B143,BASE1!$D:$S,2,FALSE),VLOOKUP($B143,BASE1!$D:$S,5,FALSE))) -> 4/5 | E143: =IF(ISERROR(IF(C$26="Non sélectionné",VLOOKUP($B143,BASE1!$D:$S,3,FALSE),VLOOKUP($B143,BASE1!$D:$S,6,FALSE))=TRUE),"",IF(C$26="Non sélectionné",VLOOKUP($B143,BASE1!$D:$S,3,FALSE),VLOOKUP($B143,BASE1!$D:$S,6,FALSE))) -> 3/5 | F143: =IF(ISERROR(IF(E$26="Non sélectionné",VLOOKUP($B143,BASE1!$D:$S,4,FALSE),VLOOKUP($B143,BASE1!$D:$S,8,FALSE))=TRUE),"",IF(E$26="Non sélectionné",VLOOKUP($B143,BASE1!$D:$S,4,FALSE),VLOOKUP($B143,BASE1!$D:$S,8,FALSE))) -> 2,5/5 | G143: =IF(ISERROR(VLOOKUP($B143,BASE1!$D:$S,15,FALSE)=TRUE),"",VLOOKUP($B143,BASE1!$D:$S,15,FALSE)) -> 4/5 | H143: =IF(ISERROR(VLOOKUP($B143,BASE1!$D:$S,16,FALSE)=TRUE),"",VLOOKUP($B143,BASE1!$D:$S,16,FALSE)) -> 3,5/5
A144: 74 | B144: =IF(ISERROR(VLOOKUP(A144,BASE1!B:D,3,FALSE)=TRUE),"",VLOOKUP(A144,BASE1!B:D,3,FALSE)) -> 417 | D144: =IF(ISERROR(IF(B$26="Non sélectionné",VLOOKUP($B144,BASE1!$D:$S,2,FALSE),VLOOKUP($B144,BASE1!$D:$S,5,FALSE))=TRUE),"",IF(B$26="Non sélectionné",VLOOKUP($B144,BASE1!$D:$S,2,FALSE),VLOOKUP($B144,BASE1!$D:$S,5,FALSE))) -> 4/5 | E144: =IF(ISERROR(IF(C$26="Non sélectionné",VLOOKUP($B144,BASE1!$D:$S,3,FALSE),VLOOKUP($B144,BASE1!$D:$S,6,FALSE))=TRUE),"",IF(C$26="Non sélectionné",VLOOKUP($B144,BASE1!$D:$S,3,FALSE),VLOOKUP($B144,BASE1!$D:$S,6,FALSE))) -> 4/5 | F144: =IF(ISERROR(IF(E$26="Non sélectionné",VLOOKUP($B144,BASE1!$D:$S,4,FALSE),VLOOKUP($B144,BASE1!$D:$S,8,FALSE))=TRUE),"",IF(E$26="Non sélectionné",VLOOKUP($B144,BASE1!$D:$S,4,FALSE),VLOOKUP($B144,BASE1!$D:$S,8,FALSE))) -> 3/5 | G144: =IF(ISERROR(VLOOKUP($B144,BASE1!$D:$S,15,FALSE)=TRUE),"",VLOOKUP($B144,BASE1!$D:$S,15,FALSE)) -> 5/5 | H144: =IF(ISERROR(VLOOKUP($B144,BASE1!$D:$S,16,FALSE)=TRUE),"",VLOOKUP($B144,BASE1!$D:$S,16,FALSE)) -> 4,5/5
A145: 75 | B145: =IF(ISERROR(VLOOKUP(A145,BASE1!B:D,3,FALSE)=TRUE),"",VLOOKUP(A145,BASE1!B:D,3,FALSE)) -> 461 E | D145: =IF(ISERROR(IF(B$26="Non sélectionné",VLOOKUP($B145,BASE1!$D:$S,2,FALSE),VLOOKUP($B145,BASE1!$D:$S,5,FALSE))=TRUE),"",IF(B$26="Non sélectionné",VLOOKUP($B145,BASE1!$D:$S,2,FALSE),VLOOKUP($B145,BASE1!$D:$S,5,FALSE))) -> 3/5 | E145: =IF(ISERROR(IF(C$26="Non sélectionné",VLOOKUP($B145,BASE1!$D:$S,3,FALSE),VLOOKUP($B145,BASE1!$D:$S,6,FALSE))=TRUE),"",IF(C$26="Non sélectionné",VLOOKUP($B145,BASE1!$D:$S,3,FALSE),VLOOKUP($B145,BASE1!$D:$S,6,FALSE))) -> 4/5 | F145: =IF(ISERROR(IF(E$26="Non sélectionné",VLOOKUP($B145,BASE1!$D:$S,4,FALSE),VLOOKUP($B145,BASE1!$D:$S,8,FALSE))=TRUE),"",IF(E$26="Non sélectionné",VLOOKUP($B145,BASE1!$D:$S,4,FALSE),VLOOKUP($B145,BASE1!$D:$S,8,FALSE))) -> 3/5 | G145: =IF(ISERROR(VLOOKUP($B145,BASE1!$D:$S,15,FALSE)=TRUE),"",VLOOKUP($B145,BASE1!$D:$S,15,FALSE)) -> 4,5/5 | H145: =IF(ISERROR(VLOOKUP($B145,BASE1!$D:$S,16,FALSE)=TRUE),"",VLOOKUP($B145,BASE1!$D:$S,16,FALSE)) -> 3,5/5
A146: 76 | B146: =IF(ISERROR(VLOOKUP(A146,BASE1!B:D,3,FALSE)=TRUE),"",VLOOKUP(A146,BASE1!B:D,3,FALSE)) -> 462 E | D146: =IF(ISERROR(IF(B$26="Non sélectionné",VLOOKUP($B146,BASE1!$D:$S,2,FALSE),VLOOKUP($B146,BASE1!$D:$S,5,FALSE))=TRUE),"",IF(B$26="Non sélectionné",VLOOKUP($B146,BASE1!$D:$S,2,FALSE),VLOOKUP($B146,BASE1!$D:$S,5,FALSE))) -> 3/5 | E146: =IF(ISERROR(IF(C$26="Non sélectionné",VLOOKUP($B146,BASE1!$D:$S,3,FALSE),VLOOKUP($B146,BASE1!$D:$S,6,FALSE))=TRUE),"",IF(C$26="Non sélectionné",VLOOKUP($B146,BASE1!$D:$S,3,FALSE),VLOOKUP($B146,BASE1!$D:$S,6,FALSE))) -> 4/5 | F146: =IF(ISERROR(IF(E$26="Non sélectionné",VLOOKUP($B146,BASE1!$D:$S,4,FALSE),VLOOKUP($B146,BASE1!$D:$S,8,FALSE))=TRUE),"",IF(E$26="Non sélectionné",VLOOKUP($B146,BASE1!$D:$S,4,FALSE),VLOOKUP($B146,BASE1!$D:$S,8,FALSE))) -> 3/5 | G146: =IF(ISERROR(VLOOKUP($B146,BASE1!$D:$S,15,FALSE)=TRUE),"",VLOOKUP($B146,BASE1!$D:$S,15,FALSE)) -> 4,5/5 | H146: =IF(ISERROR(VLOOKUP($B146,BASE1!$D:$S,16,FALSE)=TRUE),"",VLOOKUP($B146,BASE1!$D:$S,16,FALSE)) -> 3,5/5
A147: 77 | B147: =IF(ISERROR(VLOOKUP(A147,BASE1!B:D,3,FALSE)=TRUE),"",VLOOKUP(A147,BASE1!B:D,3,FALSE)) -> 307 | D147: =IF(ISERROR(IF(B$26="Non sélectionné",VLOOKUP($B147,BASE1!$D:$S,2,FALSE),VLOOKUP($B147,BASE1!$D:$S,5,FALSE))=TRUE),"",IF(B$26="Non sélectionné",VLOOKUP($B147,BASE1!$D:$S,2,FALSE),VLOOKUP($B147,BASE1!$D:$S,5,FALSE))) -> 4/5 | E147: =IF(ISERROR(IF(C$26="Non sélectionné",VLOOKUP($B147,BASE1!$D:$S,3,FALSE),VLOOKUP($B147,BASE1!$D:$S,6,FALSE))=TRUE),"",IF(C$26="Non sélectionné",VLOOKUP($B147,BASE1!$D:$S,3,FALSE),VLOOKUP($B147,BASE1!$D:$S,6,FALSE))) -> 5/5 | F147: =IF(ISERROR(IF(E$26="Non sélectionné",VLOOKUP($B147,BASE1!$D:$S,4,FALSE),VLOOKUP($B147,BASE1!$D:$S,8,FALSE))=TRUE),"",IF(E$26="Non sélectionné",VLOOKUP($B147,BASE1!$D:$S,4,FALSE),VLOOKUP($B147,BASE1!$D:$S,8,FALSE))) -> 4/5 | G147: =IF(ISERROR(VLOOKUP($B147,BASE1!$D:$S,15,FALSE)=TRUE),"",VLOOKUP($B147,BASE1!$D:$S,15,FALSE)) -> 5/5 | H147: =IF(ISERROR(VLOOKUP($B147,BASE1!$D:$S,16,FALSE)=TRUE),"",VLOOKUP($B147,BASE1!$D:$S,16,FALSE)) -> 5/5
A148: 78 | B148: =IF(ISERROR(VLOOKUP(A148,BASE1!B:D,3,FALSE)=TRUE),"",VLOOKUP(A148,BASE1!B:D,3,FALSE)) -> 401 + 417 | D148: =IF(ISERROR(IF(B$26="Non sélectionné",VLOOKUP($B148,BASE1!$D:$S,2,FALSE),VLOOKUP($B148,BASE1!$D:$S,5,FALSE))=TRUE),"",IF(B$26="Non sélectionné",VLOOKUP($B148,BASE1!$D:$S,2,FALSE),VLOOKUP($B148,BASE1!$D:$S,5,FALSE))) -> 4/5 | E148: =IF(ISERROR(IF(C$26="Non sélectionné",VLOOKUP($B148,BASE1!$D:$S,3,FALSE),VLOOKUP($B148,BASE1!$D:$S,6,FALSE))=TRUE),"",IF(C$26="Non sélectionné",VLOOKUP($B148,BASE1!$D:$S,3,FALSE),VLOOKUP($B148,BASE1!$D:$S,6,FALSE))) -> 3/5 | F148: =IF(ISERROR(IF(E$26="Non sélectionné",VLOOKUP($B148,BASE1!$D:$S,4,FALSE),VLOOKUP($B148,BASE1!$D:$S,8,FALSE))=TRUE),"",IF(E$26="Non sélectionné",VLOOKUP($B148,BASE1!$D:$S,4,FALSE),VLOOKUP($B148,BASE1!$D:$S,8,FALSE))) -> 3/5 | G148: =IF(ISERROR(VLOOKUP($B148,BASE1!$D:$S,15,FALSE)=TRUE),"",VLOOKUP($B148,BASE1!$D:$S,15,FALSE)) -> 4/5 | H148: =IF(ISERROR(VLOOKUP($B148,BASE1!$D:$S,16,FALSE)=TRUE),"",VLOOKUP($B148,BASE1!$D:$S,16,FALSE)) -> 4/5
A149: 79 | B149: =IF(ISERROR(VLOOKUP(A149,BASE1!B:D,3,FALSE)=TRUE),"",VLOOKUP(A149,BASE1!B:D,3,FALSE)) -> 459 + 461 E | D149: =IF(ISERROR(IF(B$26="Non sélectionné",VLOOKUP($B149,BASE1!$D:$S,2,FALSE),VLOOKUP($B149,BASE1!$D:$S,5,FALSE))=TRUE),"",IF(B$26="Non sélectionné",VLOOKUP($B149,BASE1!$D:$S,2,FALSE),VLOOKUP($B149,BASE1!$D:$S,5,FALSE))) -> 4/5 | E149: =IF(ISERROR(IF(C$26="Non sélectionné",VLOOKUP($B149,BASE1!$D:$S,3,FALSE),VLOOKUP($B149,BASE1!$D:$S,6,FALSE))=TRUE),"",IF(C$26="Non sélectionné",VLOOKUP($B149,BASE1!$D:$S,3,FALSE),VLOOKUP($B149,BASE1!$D:$S,6,FALSE))) -> 3/5 | F149: =IF(ISERROR(IF(E$26="Non sélectionné",VLOOKUP($B149,BASE1!$D:$S,4,FALSE),VLOOKUP($B149,BASE1!$D:$S,8,FALSE))=TRUE),"",IF(E$26="Non sélectionné",VLOOKUP($B149,BASE1!$D:$S,4,FALSE),VLOOKUP($B149,BASE1!$D:$S,8,FALSE))) -> 3/5 | G149: =IF(ISERROR(VLOOKUP($B149,BASE1!$D:$S,15,FALSE)=TRUE),"",VLOOKUP($B149,BASE1!$D:$S,15,FALSE)) -> 4/5 | H149: =IF(ISERROR(VLOOKUP($B149,BASE1!$D:$S,16,FALSE)=TRUE),"",VLOOKUP($B149,BASE1!$D:$S,16,FALSE)) -> 3/5
A150: 80 | B150: =IF(ISERROR(VLOOKUP(A150,BASE1!B:D,3,FALSE)=TRUE),"",VLOOKUP(A150,BASE1!B:D,3,FALSE)) -> 459 + 462 E | D150: =IF(ISERROR(IF(B$26="Non sélectionné",VLOOKUP($B150,BASE1!$D:$S,2,FALSE),VLOOKUP($B150,BASE1!$D:$S,5,FALSE))=TRUE),"",IF(B$26="Non sélectionné",VLOOKUP($B150,BASE1!$D:$S,2,FALSE),VLOOKUP($B150,BASE1!$D:$S,5,FALSE))) -> 4/5 | E150: =IF(ISERROR(IF(C$26="Non sélectionné",VLOOKUP($B150,BASE1!$D:$S,3,FALSE),VLOOKUP($B150,BASE1!$D:$S,6,FALSE))=TRUE),"",IF(C$26="Non sélectionné",VLOOKUP($B150,BASE1!$D:$S,3,FALSE),VLOOKUP($B150,BASE1!$D:$S,6,FALSE))) -> 3/5 | F150: =IF(ISERROR(IF(E$26="Non sélectionné",VLOOKUP($B150,BASE1!$D:$S,4,FALSE),VLOOKUP($B150,BASE1!$D:$S,8,FALSE))=TRUE),"",IF(E$26="Non sélectionné",VLOOKUP($B150,BASE1!$D:$S,4,FALSE),VLOOKUP($B150,BASE1!$D:$S,8,FALSE))) -> 3/5 | G150: =IF(ISERROR(VLOOKUP($B150,BASE1!$D:$S,15,FALSE)=TRUE),"",VLOOKUP($B150,BASE1!$D:$S,15,FALSE)) -> 4/5 | H150: =IF(ISERROR(VLOOKUP($B150,BASE1!$D:$S,16,FALSE)=TRUE),"",VLOOKUP($B150,BASE1!$D:$S,16,FALSE)) -> 3/5
A151: 81 | B151: =IF(ISERROR(VLOOKUP(A151,BASE1!B:D,3,FALSE)=TRUE),"",VLOOKUP(A151,BASE1!B:D,3,FALSE)) -> 308 + 307 | D151: =IF(ISERROR(IF(B$26="Non sélectionné",VLOOKUP($B151,BASE1!$D:$S,2,FALSE),VLOOKUP($B151,BASE1!$D:$S,5,FALSE))=TRUE),"",IF(B$26="Non sélectionné",VLOOKUP($B151,BASE1!$D:$S,2,FALSE),VLOOKUP($B151,BASE1!$D:$S,5,FALSE))) -> 5/5 | E151: =IF(ISERROR(IF(C$26="Non sélectionné",VLOOKUP($B151,BASE1!$D:$S,3,FALSE),VLOOKUP($B151,BASE1!$D:$S,6,FALSE))=TRUE),"",IF(C$26="Non sélectionné",VLOOKUP($B151,BASE1!$D:$S,3,FALSE),VLOOKUP($B151,BASE1!$D:$S,6,FALSE))) -> 4/5 | F151: =IF(ISERROR(IF(E$26="Non sélectionné",VLOOKUP($B151,BASE1!$D:$S,4,FALSE),VLOOKUP($B151,BASE1!$D:$S,8,FALSE))=TRUE),"",IF(E$26="Non sélectionné",VLOOKUP($B151,BASE1!$D:$S,4,FALSE),VLOOKUP($B151,BASE1!$D:$S,8,FALSE))) -> 4/5 | G151: =IF(ISERROR(VLOOKUP($B151,BASE1!$D:$S,15,FALSE)=TRUE),"",VLOOKUP($B151,BASE1!$D:$S,15,FALSE)) -> 4,5/5 | H151: =IF(ISERROR(VLOOKUP($B151,BASE1!$D:$S,16,FALSE)=TRUE),"",VLOOKUP($B151,BASE1!$D:$S,16,FALSE)) -> 4,5/5
A152: 82 | B152: =IF(ISERROR(VLOOKUP(A152,BASE1!B:D,3,FALSE)=TRUE),"",VLOOKUP(A152,BASE1!B:D,3,FALSE)) -> 308 + 417 | D152: =IF(ISERROR(IF(B$26="Non sélectionné",VLOOKUP($B152,BASE1!$D:$S,2,FALSE),VLOOKUP($B152,BASE1!$D:$S,5,FALSE))=TRUE),"",IF(B$26="Non sélectionné",VLOOKUP($B152,BASE1!$D:$S,2,FALSE),VLOOKUP($B152,BASE1!$D:$S,5,FALSE))) -> 5/5 | E152: =IF(ISERROR(IF(C$26="Non sélectionné",VLOOKUP($B152,BASE1!$D:$S,3,FALSE),VLOOKUP($B152,BASE1!$D:$S,6,FALSE))=TRUE),"",IF(C$26="Non sélectionné",VLOOKUP($B152,BASE1!$D:$S,3,FALSE),VLOOKUP($B152,BASE1!$D:$S,6,FALSE))) -> 4/5 | F152: =IF(ISERROR(IF(E$26="Non sélectionné",VLOOKUP($B152,BASE1!$D:$S,4,FALSE),VLOOKUP($B152,BASE1!$D:$S,8,FALSE))=TRUE),"",IF(E$26="Non sélectionné",VLOOKUP($B152,BASE1!$D:$S,4,FALSE),VLOOKUP($B152,BASE1!$D:$S,8,FALSE))) -> 3/5 | G152: =IF(ISERROR(VLOOKUP($B152,BASE1!$D:$S,15,FALSE)=TRUE),"",VLOOKUP($B152,BASE1!$D:$S,15,FALSE)) -> 4,5/5 | H152: =IF(ISERROR(VLOOKUP($B152,BASE1!$D:$S,16,FALSE)=TRUE),"",VLOOKUP($B152,BASE1!$D:$S,16,FALSE)) -> 4/5
A153: 83 | B153: =IF(ISERROR(VLOOKUP(A153,BASE1!B:D,3,FALSE)=TRUE),"",VLOOKUP(A153,BASE1!B:D,3,FALSE)) -> 458 | D153: =IF(ISERROR(IF(B$26="Non sélectionné",VLOOKUP($B153,BASE1!$D:$S,2,FALSE),VLOOKUP($B153,BASE1!$D:$S,5,FALSE))=TRUE),"",IF(B$26="Non sélectionné",VLOOKUP($B153,BASE1!$D:$S,2,FALSE),VLOOKUP($B153,BASE1!$D:$S,5,FALSE))) -> 3,5/5 | E153: =IF(ISERROR(IF(C$26="Non sélectionné",VLOOKUP($B153,BASE1!$D:$S,3,FALSE),VLOOKUP($B153,BASE1!$D:$S,6,FALSE))=TRUE),"",IF(C$26="Non sélectionné",VLOOKUP($B153,BASE1!$D:$S,3,FALSE),VLOOKUP($B153,BASE1!$D:$S,6,FALSE))) -> 3,5/5 | F153: =IF(ISERROR(IF(E$26="Non sélectionné",VLOOKUP($B153,BASE1!$D:$S,4,FALSE),VLOOKUP($B153,BASE1!$D:$S,8,FALSE))=TRUE),"",IF(E$26="Non sélectionné",VLOOKUP($B153,BASE1!$D:$S,4,FALSE),VLOOKUP($B153,BASE1!$D:$S,8,FALSE))) -> 2,5/5 | G153: =IF(ISERROR(VLOOKUP($B153,BASE1!$D:$S,15,FALSE)=TRUE),"",VLOOKUP($B153,BASE1!$D:$S,15,FALSE)) -> 4,5/5 | H153: =IF(ISERROR(VLOOKUP($B153,BASE1!$D:$S,16,FALSE)=TRUE),"",VLOOKUP($B153,BASE1!$D:$S,16,FALSE)) -> 4/5
A154: 84 | B154: =IF(ISERROR(VLOOKUP(A154,BASE1!B:D,3,FALSE)=TRUE),"",VLOOKUP(A154,BASE1!B:D,3,FALSE)) -> 457 | D154: =IF(ISERROR(IF(B$26="Non sélectionné",VLOOKUP($B154,BASE1!$D:$S,2,FALSE),VLOOKUP($B154,BASE1!$D:$S,5,FALSE))=TRUE),"",IF(B$26="Non sélectionné",VLOOKUP($B154,BASE1!$D:$S,2,FALSE),VLOOKUP($B154,BASE1!$D:$S,5,FALSE))) -> 3,5/5 | E154: =IF(ISERROR(IF(C$26="Non sélectionné",VLOOKUP($B154,BASE1!$D:$S,3,FALSE),VLOOKUP($B154,BASE1!$D:$S,6,FALSE))=TRUE),"",IF(C$26="Non sélectionné",VLOOKUP($B154,BASE1!$D:$S,3,FALSE),VLOOKUP($B154,BASE1!$D:$S,6,FALSE))) -> 3,5/5 | F154: =IF(ISERROR(IF(E$26="Non sélectionné",VLOOKUP($B154,BASE1!$D:$S,4,FALSE),VLOOKUP($B154,BASE1!$D:$S,8,FALSE))=TRUE),"",IF(E$26="Non sélectionné",VLOOKUP($B154,BASE1!$D:$S,4,FALSE),VLOOKUP($B154,BASE1!$D:$S,8,FALSE))) -> 2,5/5 | G154: =IF(ISERROR(VLOOKUP($B154,BASE1!$D:$S,15,FALSE)=TRUE),"",VLOOKUP($B154,BASE1!$D:$S,15,FALSE)) -> 4,5/5 | H154: =IF(ISERROR(VLOOKUP($B154,BASE1!$D:$S,16,FALSE)=TRUE),"",VLOOKUP($B154,BASE1!$D:$S,16,FALSE)) -> 4/5
A155: 85 | B155: =IF(ISERROR(VLOOKUP(A155,BASE1!B:D,3,FALSE)=TRUE),"",VLOOKUP(A155,BASE1!B:D,3,FALSE)) -> 459 + 457 | D155: =IF(ISERROR(IF(B$26="Non sélectionné",VLOOKUP($B155,BASE1!$D:$S,2,FALSE),VLOOKUP($B155,BASE1!$D:$S,5,FALSE))=TRUE),"",IF(B$26="Non sélectionné",VLOOKUP($B155,BASE1!$D:$S,2,FALSE),VLOOKUP($B155,BASE1!$D:$S,5,FALSE))) -> 4/5 | E155: =IF(ISERROR(IF(C$26="Non sélectionné",VLOOKUP($B155,BASE1!$D:$S,3,FALSE),VLOOKUP($B155,BASE1!$D:$S,6,FALSE))=TRUE),"",IF(C$26="Non sélectionné",VLOOKUP($B155,BASE1!$D:$S,3,FALSE),VLOOKUP($B155,BASE1!$D:$S,6,FALSE))) -> 4/5 | F155: =IF(ISERROR(IF(E$26="Non sélectionné",VLOOKUP($B155,BASE1!$D:$S,4,FALSE),VLOOKUP($B155,BASE1!$D:$S,8,FALSE))=TRUE),"",IF(E$26="Non sélectionné",VLOOKUP($B155,BASE1!$D:$S,4,FALSE),VLOOKUP($B155,BASE1!$D:$S,8,FALSE))) -> 2,5/5 | G155: =IF(ISERROR(VLOOKUP($B155,BASE1!$D:$S,15,FALSE)=TRUE),"",VLOOKUP($B155,BASE1!$D:$S,15,FALSE)) -> 4/5 | H155: =IF(ISERROR(VLOOKUP($B155,BASE1!$D:$S,16,FALSE)=TRUE),"",VLOOKUP($B155,BASE1!$D:$S,16,FALSE)) -> 3/5
A156: 86 | B156: =IF(ISERROR(VLOOKUP(A156,BASE1!B:D,3,FALSE)=TRUE),"",VLOOKUP(A156,BASE1!B:D,3,FALSE)) -> 459 + 458 | D156: =IF(ISERROR(IF(B$26="Non sélectionné",VLOOKUP($B156,BASE1!$D:$S,2,FALSE),VLOOKUP($B156,BASE1!$D:$S,5,FALSE))=TRUE),"",IF(B$26="Non sélectionné",VLOOKUP($B156,BASE1!$D:$S,2,FALSE),VLOOKUP($B156,BASE1!$D:$S,5,FALSE))) -> 4/5 | E156: =IF(ISERROR(IF(C$26="Non sélectionné",VLOOKUP($B156,BASE1!$D:$S,3,FALSE),VLOOKUP($B156,BASE1!$D:$S,6,FALSE))=TRUE),"",IF(C$26="Non sélectionné",VLOOKUP($B156,BASE1!$D:$S,3,FALSE),VLOOKUP($B156,BASE1!$D:$S,6,FALSE))) -> 4/5 | F156: =IF(ISERROR(IF(E$26="Non sélectionné",VLOOKUP($B156,BASE1!$D:$S,4,FALSE),VLOOKUP($B156,BASE1!$D:$S,8,FALSE))=TRUE),"",IF(E$26="Non sélectionné",VLOOKUP($B156,BASE1!$D:$S,4,FALSE),VLOOKUP($B156,BASE1!$D:$S,8,FALSE))) -> 2,5/5 | G156: =IF(ISERROR(VLOOKUP($B156,BASE1!$D:$S,15,FALSE)=TRUE),"",VLOOKUP($B156,BASE1!$D:$S,15,FALSE)) -> 4/5 | H156: =IF(ISERROR(VLOOKUP($B156,BASE1!$D:$S,16,FALSE)=TRUE),"",VLOOKUP($B156,BASE1!$D:$S,16,FALSE)) -> 3/5
A157: 87 | B157: =IF(ISERROR(VLOOKUP(A157,BASE1!B:D,3,FALSE)=TRUE),"",VLOOKUP(A157,BASE1!B:D,3,FALSE)) -> 423 + 428 | D157: =IF(ISERROR(IF(B$26="Non sélectionné",VLOOKUP($B157,BASE1!$D:$S,2,FALSE),VLOOKUP($B157,BASE1!$D:$S,5,FALSE))=TRUE),"",IF(B$26="Non sélectionné",VLOOKUP($B157,BASE1!$D:$S,2,FALSE),VLOOKUP($B157,BASE1!$D:$S,5,FALSE))) -> 5/5 | E157: =IF(ISERROR(IF(C$26="Non sélectionné",VLOOKUP($B157,BASE1!$D:$S,3,FALSE),VLOOKUP($B157,BASE1!$D:$S,6,FALSE))=TRUE),"",IF(C$26="Non sélectionné",VLOOKUP($B157,BASE1!$D:$S,3,FALSE),VLOOKUP($B157,BASE1!$D:$S,6,FALSE))) -> 4/5 | F157: =IF(ISERROR(IF(E$26="Non sélectionné",VLOOKUP($B157,BASE1!$D:$S,4,FALSE),VLOOKUP($B157,BASE1!$D:$S,8,FALSE))=TRUE),"",IF(E$26="Non sélectionné",VLOOKUP($B157,BASE1!$D:$S,4,FALSE),VLOOKUP($B157,BASE1!$D:$S,8,FALSE))) -> 3/5 | G157: =IF(ISERROR(VLOOKUP($B157,BASE1!$D:$S,15,FALSE)=TRUE),"",VLOOKUP($B157,BASE1!$D:$S,15,FALSE)) -> 4/5 | H157: =IF(ISERROR(VLOOKUP($B157,BASE1!$D:$S,16,FALSE)=TRUE),"",VLOOKUP($B157,BASE1!$D:$S,16,FALSE)) -> 3/5
A158: 88 | B158: =IF(ISERROR(VLOOKUP(A158,BASE1!B:D,3,FALSE)=TRUE),"",VLOOKUP(A158,BASE1!B:D,3,FALSE)) -> 423 + 429 | D158: =IF(ISERROR(IF(B$26="Non sélectionné",VLOOKUP($B158,BASE1!$D:$S,2,FALSE),VLOOKUP($B158,BASE1!$D:$S,5,FALSE))=TRUE),"",IF(B$26="Non sélectionné",VLOOKUP($B158,BASE1!$D:$S,2,FALSE),VLOOKUP($B158,BASE1!$D:$S,5,FALSE))) -> 5/5 | E158: =IF(ISERROR(IF(C$26="Non sélectionné",VLOOKUP($B158,BASE1!$D:$S,3,FALSE),VLOOKUP($B158,BASE1!$D:$S,6,FALSE))=TRUE),"",IF(C$26="Non sélectionné",VLOOKUP($B158,BASE1!$D:$S,3,FALSE),VLOOKUP($B158,BASE1!$D:$S,6,FALSE))) -> 4/5 | F158: =IF(ISERROR(IF(E$26="Non sélectionné",VLOOKUP($B158,BASE1!$D:$S,4,FALSE),VLOOKUP($B158,BASE1!$D:$S,8,FALSE))=TRUE),"",IF(E$26="Non sélectionné",VLOOKUP($B158,BASE1!$D:$S,4,FALSE),VLOOKUP($B158,BASE1!$D:$S,8,FALSE))) -> 3/5 | G158: =IF(ISERROR(VLOOKUP($B158,BASE1!$D:$S,15,FALSE)=TRUE),"",VLOOKUP($B158,BASE1!$D:$S,15,FALSE)) -> 4/5 | H158: =IF(ISERROR(VLOOKUP($B158,BASE1!$D:$S,16,FALSE)=TRUE),"",VLOOKUP($B158,BASE1!$D:$S,16,FALSE)) -> 3/5
A159: 89 | B159: =IF(ISERROR(VLOOKUP(A159,BASE1!B:D,3,FALSE)=TRUE),"",VLOOKUP(A159,BASE1!B:D,3,FALSE)) -> 117 | D159: =IF(ISERROR(IF(B$26="Non sélectionné",VLOOKUP($B159,BASE1!$D:$S,2,FALSE),VLOOKUP($B159,BASE1!$D:$S,5,FALSE))=TRUE),"",IF(B$26="Non sélectionné",VLOOKUP($B159,BASE1!$D:$S,2,FALSE),VLOOKUP($B159,BASE1!$D:$S,5,FALSE))) -> 4/5 | E159: =IF(ISERROR(IF(C$26="Non sélectionné",VLOOKUP($B159,BASE1!$D:$S,3,FALSE),VLOOKUP($B159,BASE1!$D:$S,6,FALSE))=TRUE),"",IF(C$26="Non sélectionné",VLOOKUP($B159,BASE1!$D:$S,3,FALSE),VLOOKUP($B159,BASE1!$D:$S,6,FALSE))) -> 3,5/5 | F159: =IF(ISERROR(IF(E$26="Non sélectionné",VLOOKUP($B159,BASE1!$D:$S,4,FALSE),VLOOKUP($B159,BASE1!$D:$S,8,FALSE))=TRUE),"",IF(E$26="Non sélectionné",VLOOKUP($B159,BASE1!$D:$S,4,FALSE),VLOOKUP($B159,BASE1!$D:$S,8,FALSE))) -> 3/5 | G159: =IF(ISERROR(VLOOKUP($B159,BASE1!$D:$S,15,FALSE)=TRUE),"",VLOOKUP($B159,BASE1!$D:$S,15,FALSE)) -> 5/5 | H159: =IF(ISERROR(VLOOKUP($B159,BASE1!$D:$S,16,FALSE)=TRUE),"",VLOOKUP($B159,BASE1!$D:$S,16,FALSE)) -> 5/5
A160: 90 | B160: =IF(ISERROR(VLOOKUP(A160,BASE1!B:D,3,FALSE)=TRUE),"",VLOOKUP(A160,BASE1!B:D,3,FALSE)) -> 119 | D160: =IF(ISERROR(IF(B$26="Non sélectionné",VLOOKUP($B160,BASE1!$D:$S,2,FALSE),VLOOKUP($B160,BASE1!$D:$S,5,FALSE))=TRUE),"",IF(B$26="Non sélectionné",VLOOKUP($B160,BASE1!$D:$S,2,FALSE),VLOOKUP($B160,BASE1!$D:$S,5,FALSE))) -> 3/5 | E160: =IF(ISERROR(IF(C$26="Non sélectionné",VLOOKUP($B160,BASE1!$D:$S,3,FALSE),VLOOKUP($B160,BASE1!$D:$S,6,FALSE))=TRUE),"",IF(C$26="Non sélectionné",VLOOKUP($B160,BASE1!$D:$S,3,FALSE),VLOOKUP($B160,BASE1!$D:$S,6,FALSE))) -> 3/5 | F160: =IF(ISERROR(IF(E$26="Non sélectionné",VLOOKUP($B160,BASE1!$D:$S,4,FALSE),VLOOKUP($B160,BASE1!$D:$S,8,FALSE))=TRUE),"",IF(E$26="Non sélectionné",VLOOKUP($B160,BASE1!$D:$S,4,FALSE),VLOOKUP($B160,BASE1!$D:$S,8,FALSE))) -> 2/5 | G160: =IF(ISERROR(VLOOKUP($B160,BASE1!$D:$S,15,FALSE)=TRUE),"",VLOOKUP($B160,BASE1!$D:$S,15,FALSE)) -> 5/5 | H160: =IF(ISERROR(VLOOKUP($B160,BASE1!$D:$S,16,FALSE)=TRUE),"",VLOOKUP($B160,BASE1!$D:$S,16,FALSE)) -> 5/5
A161: 91 | B161: =IF(ISERROR(VLOOKUP(A161,BASE1!B:D,3,FALSE)=TRUE),"",VLOOKUP(A161,BASE1!B:D,3,FALSE)) -> 129 | D161: =IF(ISERROR(IF(B$26="Non sélectionné",VLOOKUP($B161,BASE1!$D:$S,2,FALSE),VLOOKUP($B161,BASE1!$D:$S,5,FALSE))=TRUE),"",IF(B$26="Non sélectionné",VLOOKUP($B161,BASE1!$D:$S,2,FALSE),VLOOKUP($B161,BASE1!$D:$S,5,FALSE))) -> 4/5 | E161: =IF(ISERROR(IF(C$26="Non sélectionné",VLOOKUP($B161,BASE1!$D:$S,3,FALSE),VLOOKUP($B161,BASE1!$D:$S,6,FALSE))=TRUE),"",IF(C$26="Non sélectionné",VLOOKUP($B161,BASE1!$D:$S,3,FALSE),VLOOKUP($B161,BASE1!$D:$S,6,FALSE))) -> 4/5 | F161: =IF(ISERROR(IF(E$26="Non sélectionné",VLOOKUP($B161,BASE1!$D:$S,4,FALSE),VLOOKUP($B161,BASE1!$D:$S,8,FALSE))=TRUE),"",IF(E$26="Non sélectionné",VLOOKUP($B161,BASE1!$D:$S,4,FALSE),VLOOKUP($B161,BASE1!$D:$S,8,FALSE))) -> 3/5 | G161: =IF(ISERROR(VLOOKUP($B161,BASE1!$D:$S,15,FALSE)=TRUE),"",VLOOKUP($B161,BASE1!$D:$S,15,FALSE)) -> 5/5 | H161: =IF(ISERROR(VLOOKUP($B161,BASE1!$D:$S,16,FALSE)=TRUE),"",VLOOKUP($B161,BASE1!$D:$S,16,FALSE)) -> 4/5
A162: 92 | B162: =IF(ISERROR(VLOOKUP(A162,BASE1!B:D,3,FALSE)=TRUE),"",VLOOKUP(A162,BASE1!B:D,3,FALSE)) -> 850 | D162: =IF(ISERROR(IF(B$26="Non sélectionné",VLOOKUP($B162,BASE1!$D:$S,2,FALSE),VLOOKUP($B162,BASE1!$D:$S,5,FALSE))=TRUE),"",IF(B$26="Non sélectionné",VLOOKUP($B162,BASE1!$D:$S,2,FALSE),VLOOKUP($B162,BASE1!$D:$S,5,FALSE))) -> 4/5 | E162: =IF(ISERROR(IF(C$26="Non sélectionné",VLOOKUP($B162,BASE1!$D:$S,3,FALSE),VLOOKUP($B162,BASE1!$D:$S,6,FALSE))=TRUE),"",IF(C$26="Non sélectionné",VLOOKUP($B162,BASE1!$D:$S,3,FALSE),VLOOKUP($B162,BASE1!$D:$S,6,FALSE))) -> 3,5/5 | F162: =IF(ISERROR(IF(E$26="Non sélectionné",VLOOKUP($B162,BASE1!$D:$S,4,FALSE),VLOOKUP($B162,BASE1!$D:$S,8,FALSE))=TRUE),"",IF(E$26="Non sélectionné",VLOOKUP($B162,BASE1!$D:$S,4,FALSE),VLOOKUP($B162,BASE1!$D:$S,8,FALSE))) -> 2/5 | G162: =IF(ISERROR(VLOOKUP($B162,BASE1!$D:$S,15,FALSE)=TRUE),"",VLOOKUP($B162,BASE1!$D:$S,15,FALSE)) -> 5/5 | H162: =IF(ISERROR(VLOOKUP($B162,BASE1!$D:$S,16,FALSE)=TRUE),"",VLOOKUP($B162,BASE1!$D:$S,16,FALSE)) -> 3,5/5
A163: 93 | B163: =IF(ISERROR(VLOOKUP(A163,BASE1!B:D,3,FALSE)=TRUE),"",VLOOKUP(A163,BASE1!B:D,3,FALSE)) -> 428 V | D163: =IF(ISERROR(IF(B$26="Non sélectionné",VLOOKUP($B163,BASE1!$D:$S,2,FALSE),VLOOKUP($B163,BASE1!$D:$S,5,FALSE))=TRUE),"",IF(B$26="Non sélectionné",VLOOKUP($B163,BASE1!$D:$S,2,FALSE),VLOOKUP($B163,BASE1!$D:$S,5,FALSE))) -> 4/5 | E163: =IF(ISERROR(IF(C$26="Non sélectionné",VLOOKUP($B163,BASE1!$D:$S,3,FALSE),VLOOKUP($B163,BASE1!$D:$S,6,FALSE))=TRUE),"",IF(C$26="Non sélectionné",VLOOKUP($B163,BASE1!$D:$S,3,FALSE),VLOOKUP($B163,BASE1!$D:$S,6,FALSE))) -> 3,5/5 | F163: =IF(ISERROR(IF(E$26="Non sélectionné",VLOOKUP($B163,BASE1!$D:$S,4,FALSE),VLOOKUP($B163,BASE1!$D:$S,8,FALSE))=TRUE),"",IF(E$26="Non sélectionné",VLOOKUP($B163,BASE1!$D:$S,4,FALSE),VLOOKUP($B163,BASE1!$D:$S,8,FALSE))) -> 3/5 | G163: =IF(ISERROR(VLOOKUP($B163,BASE1!$D:$S,15,FALSE)=TRUE),"",VLOOKUP($B163,BASE1!$D:$S,15,FALSE)) -> 5/5 | H163: =IF(ISERROR(VLOOKUP($B163,BASE1!$D:$S,16,FALSE)=TRUE),"",VLOOKUP($B163,BASE1!$D:$S,16,FALSE)) -> 4/5
A164: 94 | B164: =IF(ISERROR(VLOOKUP(A164,BASE1!B:D,3,FALSE)=TRUE),"",VLOOKUP(A164,BASE1!B:D,3,FALSE)) -> 428 F | D164: =IF(ISERROR(IF(B$26="Non sélectionné",VLOOKUP($B164,BASE1!$D:$S,2,FALSE),VLOOKUP($B164,BASE1!$D:$S,5,FALSE))=TRUE),"",IF(B$26="Non sélectionné",VLOOKUP($B164,BASE1!$D:$S,2,FALSE),VLOOKUP($B164,BASE1!$D:$S,5,FALSE))) -> 5/5 | E164: =IF(ISERROR(IF(C$26="Non sélectionné",VLOOKUP($B164,BASE1!$D:$S,3,FALSE),VLOOKUP($B164,BASE1!$D:$S,6,FALSE))=TRUE),"",IF(C$26="Non sélectionné",VLOOKUP($B164,BASE1!$D:$S,3,FALSE),VLOOKUP($B164,BASE1!$D:$S,6,FALSE))) -> 4/5 | F164: =IF(ISERROR(IF(E$26="Non sélectionné",VLOOKUP($B164,BASE1!$D:$S,4,FALSE),VLOOKUP($B164,BASE1!$D:$S,8,FALSE))=TRUE),"",IF(E$26="Non sélectionné",VLOOKUP($B164,BASE1!$D:$S,4,FALSE),VLOOKUP($B164,BASE1!$D:$S,8,FALSE))) -> 3/5 | G164: =IF(ISERROR(VLOOKUP($B164,BASE1!$D:$S,15,FALSE)=TRUE),"",VLOOKUP($B164,BASE1!$D:$S,15,FALSE)) -> 5/5 | H164: =IF(ISERROR(VLOOKUP($B164,BASE1!$D:$S,16,FALSE)=TRUE),"",VLOOKUP($B164,BASE1!$D:$S,16,FALSE)) -> 4/5
A165: 95 | B165: =IF(ISERROR(VLOOKUP(A165,BASE1!B:D,3,FALSE)=TRUE),"",VLOOKUP(A165,BASE1!B:D,3,FALSE)) -> 429 F | D165: =IF(ISERROR(IF(B$26="Non sélectionné",VLOOKUP($B165,BASE1!$D:$S,2,FALSE),VLOOKUP($B165,BASE1!$D:$S,5,FALSE))=TRUE),"",IF(B$26="Non sélectionné",VLOOKUP($B165,BASE1!$D:$S,2,FALSE),VLOOKUP($B165,BASE1!$D:$S,5,FALSE))) -> 5/5 | E165: =IF(ISERROR(IF(C$26="Non sélectionné",VLOOKUP($B165,BASE1!$D:$S,3,FALSE),VLOOKUP($B165,BASE1!$D:$S,6,FALSE))=TRUE),"",IF(C$26="Non sélectionné",VLOOKUP($B165,BASE1!$D:$S,3,FALSE),VLOOKUP($B165,BASE1!$D:$S,6,FALSE))) -> 4/5 | F165: =IF(ISERROR(IF(E$26="Non sélectionné",VLOOKUP($B165,BASE1!$D:$S,4,FALSE),VLOOKUP($B165,BASE1!$D:$S,8,FALSE))=TRUE),"",IF(E$26="Non sélectionné",VLOOKUP($B165,BASE1!$D:$S,4,FALSE),VLOOKUP($B165,BASE1!$D:$S,8,FALSE))) -> 3/5 | G165: =IF(ISERROR(VLOOKUP($B165,BASE1!$D:$S,15,FALSE)=TRUE),"",VLOOKUP($B165,BASE1!$D:$S,15,FALSE)) -> 5/5 | H165: =IF(ISERROR(VLOOKUP($B165,BASE1!$D:$S,16,FALSE)=TRUE),"",VLOOKUP($B165,BASE1!$D:$S,16,FALSE)) -> 4/5
A166: 96 | B166: =IF(ISERROR(VLOOKUP(A166,BASE1!B:D,3,FALSE)=TRUE),"",VLOOKUP(A166,BASE1!B:D,3,FALSE)) -> 448 V | D166: =IF(ISERROR(IF(B$26="Non sélectionné",VLOOKUP($B166,BASE1!$D:$S,2,FALSE),VLOOKUP($B166,BASE1!$D:$S,5,FALSE))=TRUE),"",IF(B$26="Non sélectionné",VLOOKUP($B166,BASE1!$D:$S,2,FALSE),VLOOKUP($B166,BASE1!$D:$S,5,FALSE))) -> 5/5 | E166: =IF(ISERROR(IF(C$26="Non sélectionné",VLOOKUP($B166,BASE1!$D:$S,3,FALSE),VLOOKUP($B166,BASE1!$D:$S,6,FALSE))=TRUE),"",IF(C$26="Non sélectionné",VLOOKUP($B166,BASE1!$D:$S,3,FALSE),VLOOKUP($B166,BASE1!$D:$S,6,FALSE))) -> 4,5/5 | F166: =IF(ISERROR(IF(E$26="Non sélectionné",VLOOKUP($B166,BASE1!$D:$S,4,FALSE),VLOOKUP($B166,BASE1!$D:$S,8,FALSE))=TRUE),"",IF(E$26="Non sélectionné",VLOOKUP($B166,BASE1!$D:$S,4,FALSE),VLOOKUP($B166,BASE1!$D:$S,8,FALSE))) -> 4,5/5 | G166: =IF(ISERROR(VLOOKUP($B166,BASE1!$D:$S,15,FALSE)=TRUE),"",VLOOKUP($B166,BASE1!$D:$S,15,FALSE)) -> 3,5/5 | H166: =IF(ISERROR(VLOOKUP($B166,BASE1!$D:$S,16,FALSE)=TRUE),"",VLOOKUP($B166,BASE1!$D:$S,16,FALSE)) -> 2/5
A167: 97 | B167: =IF(ISERROR(VLOOKUP(A167,BASE1!B:D,3,FALSE)=TRUE),"",VLOOKUP(A167,BASE1!B:D,3,FALSE)) -> 169 | D167: =IF(ISERROR(IF(B$26="Non sélectionné",VLOOKUP($B167,BASE1!$D:$S,2,FALSE),VLOOKUP($B167,BASE1!$D:$S,5,FALSE))=TRUE),"",IF(B$26="Non sélectionné",VLOOKUP($B167,BASE1!$D:$S,2,FALSE),VLOOKUP($B167,BASE1!$D:$S,5,FALSE))) -> 5/5 | E167: =IF(ISERROR(IF(C$26="Non sélectionné",VLOOKUP($B167,BASE1!$D:$S,3,FALSE),VLOOKUP($B167,BASE1!$D:$S,6,FALSE))=TRUE),"",IF(C$26="Non sélectionné",VLOOKUP($B167,BASE1!$D:$S,3,FALSE),VLOOKUP($B167,BASE1!$D:$S,6,FALSE))) -> 4/5 INT | F167: =IF(ISERROR(IF(E$26="Non sélectionné",VLOOKUP($B167,BASE1!$D:$S,4,FALSE),VLOOKUP($B167,BASE1!$D:$S,8,FALSE))=TRUE),"",IF(E$26="Non sélectionné",VLOOKUP($B167,BASE1!$D:$S,4,FALSE),VLOOKUP($B167,BASE1!$D:$S,8,FALSE))) -> 3/5 | G167: =IF(ISERROR(VLOOKUP($B167,BASE1!$D:$S,15,FALSE)=TRUE),"",VLOOKUP($B167,BASE1!$D:$S,15,FALSE)) -> 4/5 | H167: =IF(ISERROR(VLOOKUP($B167,BASE1!$D:$S,16,FALSE)=TRUE),"",VLOOKUP($B167,BASE1!$D:$S,16,FALSE)) -> 2,5/5
A168: 98 | B168: =IF(ISERROR(VLOOKUP(A168,BASE1!B:D,3,FALSE)=TRUE),"",VLOOKUP(A168,BASE1!B:D,3,FALSE)) -> 467 | D168: =IF(ISERROR(IF(B$26="Non sélectionné",VLOOKUP($B168,BASE1!$D:$S,2,FALSE),VLOOKUP($B168,BASE1!$D:$S,5,FALSE))=TRUE),"",IF(B$26="Non sélectionné",VLOOKUP($B168,BASE1!$D:$S,2,FALSE),VLOOKUP($B168,BASE1!$D:$S,5,FALSE))) -> 5/5 | E168: =IF(ISERROR(IF(C$26="Non sélectionné",VLOOKUP($B168,BASE1!$D:$S,3,FALSE),VLOOKUP($B168,BASE1!$D:$S,6,FALSE))=TRUE),"",IF(C$26="Non sélectionné",VLOOKUP($B168,BASE1!$D:$S,3,FALSE),VLOOKUP($B168,BASE1!$D:$S,6,FALSE))) -> 4/5 INT | F168: =IF(ISERROR(IF(E$26="Non sélectionné",VLOOKUP($B168,BASE1!$D:$S,4,FALSE),VLOOKUP($B168,BASE1!$D:$S,8,FALSE))=TRUE),"",IF(E$26="Non sélectionné",VLOOKUP($B168,BASE1!$D:$S,4,FALSE),VLOOKUP($B168,BASE1!$D:$S,8,FALSE))) -> 3/5 | G168: =IF(ISERROR(VLOOKUP($B168,BASE1!$D:$S,15,FALSE)=TRUE),"",VLOOKUP($B168,BASE1!$D:$S,15,FALSE)) -> 3/5 | H168: =IF(ISERROR(VLOOKUP($B168,BASE1!$D:$S,16,FALSE)=TRUE),"",VLOOKUP($B168,BASE1!$D:$S,16,FALSE)) -> 3/5
A169: 99 | B169: =IF(ISERROR(VLOOKUP(A169,BASE1!B:D,3,FALSE)=TRUE),"",VLOOKUP(A169,BASE1!B:D,3,FALSE)) -> 468 | D169: =IF(ISERROR(IF(B$26="Non sélectionné",VLOOKUP($B169,BASE1!$D:$S,2,FALSE),VLOOKUP($B169,BASE1!$D:$S,5,FALSE))=TRUE),"",IF(B$26="Non sélectionné",VLOOKUP($B169,BASE1!$D:$S,2,FALSE),VLOOKUP($B169,BASE1!$D:$S,5,FALSE))) -> 5/5 | E169: =IF(ISERROR(IF(C$26="Non sélectionné",VLOOKUP($B169,BASE1!$D:$S,3,FALSE),VLOOKUP($B169,BASE1!$D:$S,6,FALSE))=TRUE),"",IF(C$26="Non sélectionné",VLOOKUP($B169,BASE1!$D:$S,3,FALSE),VLOOKUP($B169,BASE1!$D:$S,6,FALSE))) -> 2/5 | F169: =IF(ISERROR(IF(E$26="Non sélectionné",VLOOKUP($B169,BASE1!$D:$S,4,FALSE),VLOOKUP($B169,BASE1!$D:$S,8,FALSE))=TRUE),"",IF(E$26="Non sélectionné",VLOOKUP($B169,BASE1!$D:$S,4,FALSE),VLOOKUP($B169,BASE1!$D:$S,8,FALSE))) -> 1/5 | G169: =IF(ISERROR(VLOOKUP($B169,BASE1!$D:$S,15,FALSE)=TRUE),"",VLOOKUP($B169,BASE1!$D:$S,15,FALSE)) -> 5/5 | H169: =IF(ISERROR(VLOOKUP($B169,BASE1!$D:$S,16,FALSE)=TRUE),"",VLOOKUP($B169,BASE1!$D:$S,16,FALSE)) -> 4/5
A170: 100 | B170: =IF(ISERROR(VLOOKUP(A170,BASE1!B:D,3,FALSE)=TRUE),"",VLOOKUP(A170,BASE1!B:D,3,FALSE)) -> 469 | D170: =IF(ISERROR(IF(B$26="Non sélectionné",VLOOKUP($B170,BASE1!$D:$S,2,FALSE),VLOOKUP($B170,BASE1!$D:$S,5,FALSE))=TRUE),"",IF(B$26="Non sélectionné",VLOOKUP($B170,BASE1!$D:$S,2,FALSE),VLOOKUP($B170,BASE1!$D:$S,5,FALSE))) -> 4/5 | E170: =IF(ISERROR(IF(C$26="Non sélectionné",VLOOKUP($B170,BASE1!$D:$S,3,FALSE),VLOOKUP($B170,BASE1!$D:$S,6,FALSE))=TRUE),"",IF(C$26="Non sélectionné",VLOOKUP($B170,BASE1!$D:$S,3,FALSE),VLOOKUP($B170,BASE1!$D:$S,6,FALSE))) -> 3/5 | F170: =IF(ISERROR(IF(E$26="Non sélectionné",VLOOKUP($B170,BASE1!$D:$S,4,FALSE),VLOOKUP($B170,BASE1!$D:$S,8,FALSE))=TRUE),"",IF(E$26="Non sélectionné",VLOOKUP($B170,BASE1!$D:$S,4,FALSE),VLOOKUP($B170,BASE1!$D:$S,8,FALSE))) -> 2/5 | G170: =IF(ISERROR(VLOOKUP($B170,BASE1!$D:$S,15,FALSE)=TRUE),"",VLOOKUP($B170,BASE1!$D:$S,15,FALSE)) -> 5/5 | H170: =IF(ISERROR(VLOOKUP($B170,BASE1!$D:$S,16,FALSE)=TRUE),"",VLOOKUP($B170,BASE1!$D:$S,16,FALSE)) -> 4/5
A171: 101 | B171: =IF(ISERROR(VLOOKUP(A171,BASE1!B:D,3,FALSE)=TRUE),"",VLOOKUP(A171,BASE1!B:D,3,FALSE)) -> 100 HC | D171: =IF(ISERROR(IF(B$26="Non sélectionné",VLOOKUP($B171,BASE1!$D:$S,2,FALSE),VLOOKUP($B171,BASE1!$D:$S,5,FALSE))=TRUE),"",IF(B$26="Non sélectionné",VLOOKUP($B171,BASE1!$D:$S,2,FALSE),VLOOKUP($B171,BASE1!$D:$S,5,FALSE))) -> 5/5 | E171: =IF(ISERROR(IF(C$26="Non sélectionné",VLOOKUP($B171,BASE1!$D:$S,3,FALSE),VLOOKUP($B171,BASE1!$D:$S,6,FALSE))=TRUE),"",IF(C$26="Non sélectionné",VLOOKUP($B171,BASE1!$D:$S,3,FALSE),VLOOKUP($B171,BASE1!$D:$S,6,FALSE))) -> 1/5 | F171: =IF(ISERROR(IF(E$26="Non sélectionné",VLOOKUP($B171,BASE1!$D:$S,4,FALSE),VLOOKUP($B171,BASE1!$D:$S,8,FALSE))=TRUE),"",IF(E$26="Non sélectionné",VLOOKUP($B171,BASE1!$D:$S,4,FALSE),VLOOKUP($B171,BASE1!$D:$S,8,FALSE))) -> 0,5/5 | G171: =IF(ISERROR(VLOOKUP($B171,BASE1!$D:$S,15,FALSE)=TRUE),"",VLOOKUP($B171,BASE1!$D:$S,15,FALSE)) -> 5/5 | H171: =IF(ISERROR(VLOOKUP($B171,BASE1!$D:$S,16,FALSE)=TRUE),"",VLOOKUP($B171,BASE1!$D:$S,16,FALSE)) -> 4,5/5
A172: 102 | B172: =IF(ISERROR(VLOOKUP(A172,BASE1!B:D,3,FALSE)=TRUE),"",VLOOKUP(A172,BASE1!B:D,3,FALSE)) -> 100 H | D172: =IF(ISERROR(IF(B$26="Non sélectionné",VLOOKUP($B172,BASE1!$D:$S,2,FALSE),VLOOKUP($B172,BASE1!$D:$S,5,FALSE))=TRUE),"",IF(B$26="Non sélectionné",VLOOKUP($B172,BASE1!$D:$S,2,FALSE),VLOOKUP($B172,BASE1!$D:$S,5,FALSE))) -> 5/5 | E172: =IF(ISERROR(IF(C$26="Non sélectionné",VLOOKUP($B172,BASE1!$D:$S,3,FALSE),VLOOKUP($B172,BASE1!$D:$S,6,FALSE))=TRUE),"",IF(C$26="Non sélectionné",VLOOKUP($B172,BASE1!$D:$S,3,FALSE),VLOOKUP($B172,BASE1!$D:$S,6,FALSE))) -> 1,5/5 | F172: =IF(ISERROR(IF(E$26="Non sélectionné",VLOOKUP($B172,BASE1!$D:$S,4,FALSE),VLOOKUP($B172,BASE1!$D:$S,8,FALSE))=TRUE),"",IF(E$26="Non sélectionné",VLOOKUP($B172,BASE1!$D:$S,4,FALSE),VLOOKUP($B172,BASE1!$D:$S,8,FALSE))) -> 0,5/5 | G172: =IF(ISERROR(VLOOKUP($B172,BASE1!$D:$S,15,FALSE)=TRUE),"",VLOOKUP($B172,BASE1!$D:$S,15,FALSE)) -> 5/5 | H172: =IF(ISERROR(VLOOKUP($B172,BASE1!$D:$S,16,FALSE)=TRUE),"",VLOOKUP($B172,BASE1!$D:$S,16,FALSE)) -> 4,5/5
A173: 103 | B173: =IF(ISERROR(VLOOKUP(A173,BASE1!B:D,3,FALSE)=TRUE),"",VLOOKUP(A173,BASE1!B:D,3,FALSE)) -> 169 + 469 | D173: =IF(ISERROR(IF(B$26="Non sélectionné",VLOOKUP($B173,BASE1!$D:$S,2,FALSE),VLOOKUP($B173,BASE1!$D:$S,5,FALSE))=TRUE),"",IF(B$26="Non sélectionné",VLOOKUP($B173,BASE1!$D:$S,2,FALSE),VLOOKUP($B173,BASE1!$D:$S,5,FALSE))) -> 4/5 | E173: =IF(ISERROR(IF(C$26="Non sélectionné",VLOOKUP($B173,BASE1!$D:$S,3,FALSE),VLOOKUP($B173,BASE1!$D:$S,6,FALSE))=TRUE),"",IF(C$26="Non sélectionné",VLOOKUP($B173,BASE1!$D:$S,3,FALSE),VLOOKUP($B173,BASE1!$D:$S,6,FALSE))) -> 3/5 | F173: =IF(ISERROR(IF(E$26="Non sélectionné",VLOOKUP($B173,BASE1!$D:$S,4,FALSE),VLOOKUP($B173,BASE1!$D:$S,8,FALSE))=TRUE),"",IF(E$26="Non sélectionné",VLOOKUP($B173,BASE1!$D:$S,4,FALSE),VLOOKUP($B173,BASE1!$D:$S,8,FALSE))) -> 2/5 | G173: =IF(ISERROR(VLOOKUP($B173,BASE1!$D:$S,15,FALSE)=TRUE),"",VLOOKUP($B173,BASE1!$D:$S,15,FALSE)) -> 4/5 | H173: =IF(ISERROR(VLOOKUP($B173,BASE1!$D:$S,16,FALSE)=TRUE),"",VLOOKUP($B173,BASE1!$D:$S,16,FALSE)) -> 2/5
A174: 104 | B174: =IF(ISERROR(VLOOKUP(A174,BASE1!B:D,3,FALSE)=TRUE),"",VLOOKUP(A174,BASE1!B:D,3,FALSE)) -> 127 V | D174: =IF(ISERROR(IF(B$26="Non sélectionné",VLOOKUP($B174,BASE1!$D:$S,2,FALSE),VLOOKUP($B174,BASE1!$D:$S,5,FALSE))=TRUE),"",IF(B$26="Non sélectionné",VLOOKUP($B174,BASE1!$D:$S,2,FALSE),VLOOKUP($B174,BASE1!$D:$S,5,FALSE))) -> 3,5/5 | E174: =IF(ISERROR(IF(C$26="Non sélectionné",VLOOKUP($B174,BASE1!$D:$S,3,FALSE),VLOOKUP($B174,BASE1!$D:$S,6,FALSE))=TRUE),"",IF(C$26="Non sélectionné",VLOOKUP($B174,BASE1!$D:$S,3,FALSE),VLOOKUP($B174,BASE1!$D:$S,6,FALSE))) -> 3/5 INT | F174: =IF(ISERROR(IF(E$26="Non sélectionné",VLOOKUP($B174,BASE1!$D:$S,4,FALSE),VLOOKUP($B174,BASE1!$D:$S,8,FALSE))=TRUE),"",IF(E$26="Non sélectionné",VLOOKUP($B174,BASE1!$D:$S,4,FALSE),VLOOKUP($B174,BASE1!$D:$S,8,FALSE))) -> 2,5/5 | G174: =IF(ISERROR(VLOOKUP($B174,BASE1!$D:$S,15,FALSE)=TRUE),"",VLOOKUP($B174,BASE1!$D:$S,15,FALSE)) -> 5/5 | H174: =IF(ISERROR(VLOOKUP($B174,BASE1!$D:$S,16,FALSE)=TRUE),"",VLOOKUP($B174,BASE1!$D:$S,16,FALSE)) -> 5/5
A175: 105 | B175: =IF(ISERROR(VLOOKUP(A175,BASE1!B:D,3,FALSE)=TRUE),"",VLOOKUP(A175,BASE1!B:D,3,FALSE)) -> 342 V | D175: =IF(ISERROR(IF(B$26="Non sélectionné",VLOOKUP($B175,BASE1!$D:$S,2,FALSE),VLOOKUP($B175,BASE1!$D:$S,5,FALSE))=TRUE),"",IF(B$26="Non sélectionné",VLOOKUP($B175,BASE1!$D:$S,2,FALSE),VLOOKUP($B175,BASE1!$D:$S,5,FALSE))) -> 4,5/5 | E175: =IF(ISERROR(IF(C$26="Non sélectionné",VLOOKUP($B175,BASE1!$D:$S,3,FALSE),VLOOKUP($B175,BASE1!$D:$S,6,FALSE))=TRUE),"",IF(C$26="Non sélectionné",VLOOKUP($B175,BASE1!$D:$S,3,FALSE),VLOOKUP($B175,BASE1!$D:$S,6,FALSE))) -> 4/5 INT | F175: =IF(ISERROR(IF(E$26="Non sélectionné",VLOOKUP($B175,BASE1!$D:$S,4,FALSE),VLOOKUP($B175,BASE1!$D:$S,8,FALSE))=TRUE),"",IF(E$26="Non sélectionné",VLOOKUP($B175,BASE1!$D:$S,4,FALSE),VLOOKUP($B175,BASE1!$D:$S,8,FALSE))) -> 4/5 | G175: =IF(ISERROR(VLOOKUP($B175,BASE1!$D:$S,15,FALSE)=TRUE),"",VLOOKUP($B175,BASE1!$D:$S,15,FALSE)) -> 5/5 | H175: =IF(ISERROR(VLOOKUP($B175,BASE1!$D:$S,16,FALSE)=TRUE),"",VLOOKUP($B175,BASE1!$D:$S,16,FALSE)) -> 3,5/5
A176: 106 | B176: =IF(ISERROR(VLOOKUP(A176,BASE1!B:D,3,FALSE)=TRUE),"",VLOOKUP(A176,BASE1!B:D,3,FALSE)) -> 129 V | D176: =IF(ISERROR(IF(B$26="Non sélectionné",VLOOKUP($B176,BASE1!$D:$S,2,FALSE),VLOOKUP($B176,BASE1!$D:$S,5,FALSE))=TRUE),"",IF(B$26="Non sélectionné",VLOOKUP($B176,BASE1!$D:$S,2,FALSE),VLOOKUP($B176,BASE1!$D:$S,5,FALSE))) -> 4/5 | E176: =IF(ISERROR(IF(C$26="Non sélectionné",VLOOKUP($B176,BASE1!$D:$S,3,FALSE),VLOOKUP($B176,BASE1!$D:$S,6,FALSE))=TRUE),"",IF(C$26="Non sélectionné",VLOOKUP($B176,BASE1!$D:$S,3,FALSE),VLOOKUP($B176,BASE1!$D:$S,6,FALSE))) -> 3/5 | F176: =IF(ISERROR(IF(E$26="Non sélectionné",VLOOKUP($B176,BASE1!$D:$S,4,FALSE),VLOOKUP($B176,BASE1!$D:$S,8,FALSE))=TRUE),"",IF(E$26="Non sélectionné",VLOOKUP($B176,BASE1!$D:$S,4,FALSE),VLOOKUP($B176,BASE1!$D:$S,8,FALSE))) -> 3/5 | G176: =IF(ISERROR(VLOOKUP($B176,BASE1!$D:$S,15,FALSE)=TRUE),"",VLOOKUP($B176,BASE1!$D:$S,15,FALSE)) -> 5/5 | H176: =IF(ISERROR(VLOOKUP($B176,BASE1!$D:$S,16,FALSE)=TRUE),"",VLOOKUP($B176,BASE1!$D:$S,16,FALSE)) -> 4/5
A177: 107 | B177: =IF(ISERROR(VLOOKUP(A177,BASE1!B:D,3,FALSE)=TRUE),"",VLOOKUP(A177,BASE1!B:D,3,FALSE)) -> 248 V | D177: =IF(ISERROR(IF(B$26="Non sélectionné",VLOOKUP($B177,BASE1!$D:$S,2,FALSE),VLOOKUP($B177,BASE1!$D:$S,5,FALSE))=TRUE),"",IF(B$26="Non sélectionné",VLOOKUP($B177,BASE1!$D:$S,2,FALSE),VLOOKUP($B177,BASE1!$D:$S,5,FALSE))) -> 5/5 | E177: =IF(ISERROR(IF(C$26="Non sélectionné",VLOOKUP($B177,BASE1!$D:$S,3,FALSE),VLOOKUP($B177,BASE1!$D:$S,6,FALSE))=TRUE),"",IF(C$26="Non sélectionné",VLOOKUP($B177,BASE1!$D:$S,3,FALSE),VLOOKUP($B177,BASE1!$D:$S,6,FALSE))) -> 4,5/5 | F177: =IF(ISERROR(IF(E$26="Non sélectionné",VLOOKUP($B177,BASE1!$D:$S,4,FALSE),VLOOKUP($B177,BASE1!$D:$S,8,FALSE))=TRUE),"",IF(E$26="Non sélectionné",VLOOKUP($B177,BASE1!$D:$S,4,FALSE),VLOOKUP($B177,BASE1!$D:$S,8,FALSE))) -> 5/5 | G177: =IF(ISERROR(VLOOKUP($B177,BASE1!$D:$S,15,FALSE)=TRUE),"",VLOOKUP($B177,BASE1!$D:$S,15,FALSE)) -> 3,5/5 | H177: =IF(ISERROR(VLOOKUP($B177,BASE1!$D:$S,16,FALSE)=TRUE),"",VLOOKUP($B177,BASE1!$D:$S,16,FALSE)) -> 2/5
A178: 108 | B178: =IF(ISERROR(VLOOKUP(A178,BASE1!B:D,3,FALSE)=TRUE),"",VLOOKUP(A178,BASE1!B:D,3,FALSE)) -> 448 V | D178: =IF(ISERROR(IF(B$26="Non sélectionné",VLOOKUP($B178,BASE1!$D:$S,2,FALSE),VLOOKUP($B178,BASE1!$D:$S,5,FALSE))=TRUE),"",IF(B$26="Non sélectionné",VLOOKUP($B178,BASE1!$D:$S,2,FALSE),VLOOKUP($B178,BASE1!$D:$S,5,FALSE))) -> 5/5 | E178: =IF(ISERROR(IF(C$26="Non sélectionné",VLOOKUP($B178,BASE1!$D:$S,3,FALSE),VLOOKUP($B178,BASE1!$D:$S,6,FALSE))=TRUE),"",IF(C$26="Non sélectionné",VLOOKUP($B178,BASE1!$D:$S,3,FALSE),VLOOKUP($B178,BASE1!$D:$S,6,FALSE))) -> 4,5/5 | F178: =IF(ISERROR(IF(E$26="Non sélectionné",VLOOKUP($B178,BASE1!$D:$S,4,FALSE),VLOOKUP($B178,BASE1!$D:$S,8,FALSE))=TRUE),"",IF(E$26="Non sélectionné",VLOOKUP($B178,BASE1!$D:$S,4,FALSE),VLOOKUP($B178,BASE1!$D:$S,8,FALSE))) -> 4,5/5 | G178: =IF(ISERROR(VLOOKUP($B178,BASE1!$D:$S,15,FALSE)=TRUE),"",VLOOKUP($B178,BASE1!$D:$S,15,FALSE)) -> 3,5/5 | H178: =IF(ISERROR(VLOOKUP($B178,BASE1!$D:$S,16,FALSE)=TRUE),"",VLOOKUP($B178,BASE1!$D:$S,16,FALSE)) -> 2/5
A179: 109 | B179: =IF(ISERROR(VLOOKUP(A179,BASE1!B:D,3,FALSE)=TRUE),"",VLOOKUP(A179,BASE1!B:D,3,FALSE)) -> 339 V | D179: =IF(ISERROR(IF(B$26="Non sélectionné",VLOOKUP($B179,BASE1!$D:$S,2,FALSE),VLOOKUP($B179,BASE1!$D:$S,5,FALSE))=TRUE),"",IF(B$26="Non sélectionné",VLOOKUP($B179,BASE1!$D:$S,2,FALSE),VLOOKUP($B179,BASE1!$D:$S,5,FALSE))) -> 5/5 | E179: =IF(ISERROR(IF(C$26="Non sélectionné",VLOOKUP($B179,BASE1!$D:$S,3,FALSE),VLOOKUP($B179,BASE1!$D:$S,6,FALSE))=TRUE),"",IF(C$26="Non sélectionné",VLOOKUP($B179,BASE1!$D:$S,3,FALSE),VLOOKUP($B179,BASE1!$D:$S,6,FALSE))) -> 4/5 INT | F179: =IF(ISERROR(IF(E$26="Non sélectionné",VLOOKUP($B179,BASE1!$D:$S,4,FALSE),VLOOKUP($B179,BASE1!$D:$S,8,FALSE))=TRUE),"",IF(E$26="Non sélectionné",VLOOKUP($B179,BASE1!$D:$S,4,FALSE),VLOOKUP($B179,BASE1!$D:$S,8,FALSE))) -> 4/5 | G179: =IF(ISERROR(VLOOKUP($B179,BASE1!$D:$S,15,FALSE)=TRUE),"",VLOOKUP($B179,BASE1!$D:$S,15,FALSE)) -> 2,5/5 | H179: =IF(ISERROR(VLOOKUP($B179,BASE1!$D:$S,16,FALSE)=TRUE),"",VLOOKUP($B179,BASE1!$D:$S,16,FALSE)) -> 2,5/5
A180: 110 | B180: =IF(ISERROR(VLOOKUP(A180,BASE1!B:D,3,FALSE)=TRUE),"",VLOOKUP(A180,BASE1!B:D,3,FALSE)) -> 127 F | D180: =IF(ISERROR(IF(B$26="Non sélectionné",VLOOKUP($B180,BASE1!$D:$S,2,FALSE),VLOOKUP($B180,BASE1!$D:$S,5,FALSE))=TRUE),"",IF(B$26="Non sélectionné",VLOOKUP($B180,BASE1!$D:$S,2,FALSE),VLOOKUP($B180,BASE1!$D:$S,5,FALSE))) -> 3,5/5 | E180: =IF(ISERROR(IF(C$26="Non sélectionné",VLOOKUP($B180,BASE1!$D:$S,3,FALSE),VLOOKUP($B180,BASE1!$D:$S,6,FALSE))=TRUE),"",IF(C$26="Non sélectionné",VLOOKUP($B180,BASE1!$D:$S,3,FALSE),VLOOKUP($B180,BASE1!$D:$S,6,FALSE))) -> 3,5/5 INT | F180: =IF(ISERROR(IF(E$26="Non sélectionné",VLOOKUP($B180,BASE1!$D:$S,4,FALSE),VLOOKUP($B180,BASE1!$D:$S,8,FALSE))=TRUE),"",IF(E$26="Non sélectionné",VLOOKUP($B180,BASE1!$D:$S,4,FALSE),VLOOKUP($B180,BASE1!$D:$S,8,FALSE))) -> 2,5/5 | G180: =IF(ISERROR(VLOOKUP($B180,BASE1!$D:$S,15,FALSE)=TRUE),"",VLOOKUP($B180,BASE1!$D:$S,15,FALSE)) -> 5/5 | H180: =IF(ISERROR(VLOOKUP($B180,BASE1!$D:$S,16,FALSE)=TRUE),"",VLOOKUP($B180,BASE1!$D:$S,16,FALSE)) -> 5/5
A181: 111 | B181: =IF(ISERROR(VLOOKUP(A181,BASE1!B:D,3,FALSE)=TRUE),"",VLOOKUP(A181,BASE1!B:D,3,FALSE)) -> 129 F | D181: =IF(ISERROR(IF(B$26="Non sélectionné",VLOOKUP($B181,BASE1!$D:$S,2,FALSE),VLOOKUP($B181,BASE1!$D:$S,5,FALSE))=TRUE),"",IF(B$26="Non sélectionné",VLOOKUP($B181,BASE1!$D:$S,2,FALSE),VLOOKUP($B181,BASE1!$D:$S,5,FALSE))) -> 4/5 | E181: =IF(ISERROR(IF(C$26="Non sélectionné",VLOOKUP($B181,BASE1!$D:$S,3,FALSE),VLOOKUP($B181,BASE1!$D:$S,6,FALSE))=TRUE),"",IF(C$26="Non sélectionné",VLOOKUP($B181,BASE1!$D:$S,3,FALSE),VLOOKUP($B181,BASE1!$D:$S,6,FALSE))) -> 3,5/5 | F181: =IF(ISERROR(IF(E$26="Non sélectionné",VLOOKUP($B181,BASE1!$D:$S,4,FALSE),VLOOKUP($B181,BASE1!$D:$S,8,FALSE))=TRUE),"",IF(E$26="Non sélectionné",VLOOKUP($B181,BASE1!$D:$S,4,FALSE),VLOOKUP($B181,BASE1!$D:$S,8,FALSE))) -> 3/5 | G181: =IF(ISERROR(VLOOKUP($B181,BASE1!$D:$S,15,FALSE)=TRUE),"",VLOOKUP($B181,BASE1!$D:$S,15,FALSE)) -> 5/5 | H181: =IF(ISERROR(VLOOKUP($B181,BASE1!$D:$S,16,FALSE)=TRUE),"",VLOOKUP($B181,BASE1!$D:$S,16,FALSE)) -> 4/5
A182: 112 | B182: =IF(ISERROR(VLOOKUP(A182,BASE1!B:D,3,FALSE)=TRUE),"",VLOOKUP(A182,BASE1!B:D,3,FALSE)) -> 342 F | D182: =IF(ISERROR(IF(B$26="Non sélectionné",VLOOKUP($B182,BASE1!$D:$S,2,FALSE),VLOOKUP($B182,BASE1!$D:$S,5,FALSE))=TRUE),"",IF(B$26="Non sélectionné",VLOOKUP($B182,BASE1!$D:$S,2,FALSE),VLOOKUP($B182,BASE1!$D:$S,5,FALSE))) -> 5/5 | E182: =IF(ISERROR(IF(C$26="Non sélectionné",VLOOKUP($B182,BASE1!$D:$S,3,FALSE),VLOOKUP($B182,BASE1!$D:$S,6,FALSE))=TRUE),"",IF(C$26="Non sélectionné",VLOOKUP($B182,BASE1!$D:$S,3,FALSE),VLOOKUP($B182,BASE1!$D:$S,6,FALSE))) -> 4,5/5 INT | F182: =IF(ISERROR(IF(E$26="Non sélectionné",VLOOKUP($B182,BASE1!$D:$S,4,FALSE),VLOOKUP($B182,BASE1!$D:$S,8,FALSE))=TRUE),"",IF(E$26="Non sélectionné",VLOOKUP($B182,BASE1!$D:$S,4,FALSE),VLOOKUP($B182,BASE1!$D:$S,8,FALSE))) -> 4,5/5 | G182: =IF(ISERROR(VLOOKUP($B182,BASE1!$D:$S,15,FALSE)=TRUE),"",VLOOKUP($B182,BASE1!$D:$S,15,FALSE)) -> 4,5/5 | H182: =IF(ISERROR(VLOOKUP($B182,BASE1!$D:$S,16,FALSE)=TRUE),"",VLOOKUP($B182,BASE1!$D:$S,16,FALSE)) -> 3,5/5
A183: 113 | B183: =IF(ISERROR(VLOOKUP(A183,BASE1!B:D,3,FALSE)=TRUE),"",VLOOKUP(A183,BASE1!B:D,3,FALSE)) -> 330 F | D183: =IF(ISERROR(IF(B$26="Non sélectionné",VLOOKUP($B183,BASE1!$D:$S,2,FALSE),VLOOKUP($B183,BASE1!$D:$S,5,FALSE))=TRUE),"",IF(B$26="Non sélectionné",VLOOKUP($B183,BASE1!$D:$S,2,FALSE),VLOOKUP($B183,BASE1!$D:$S,5,FALSE))) -> 4,5/5 | E183: =IF(ISERROR(IF(C$26="Non sélectionné",VLOOKUP($B183,BASE1!$D:$S,3,FALSE),VLOOKUP($B183,BASE1!$D:$S,6,FALSE))=TRUE),"",IF(C$26="Non sélectionné",VLOOKUP($B183,BASE1!$D:$S,3,FALSE),VLOOKUP($B183,BASE1!$D:$S,6,FALSE))) -> 4,5/5 INT | F183: =IF(ISERROR(IF(E$26="Non sélectionné",VLOOKUP($B183,BASE1!$D:$S,4,FALSE),VLOOKUP($B183,BASE1!$D:$S,8,FALSE))=TRUE),"",IF(E$26="Non sélectionné",VLOOKUP($B183,BASE1!$D:$S,4,FALSE),VLOOKUP($B183,BASE1!$D:$S,8,FALSE))) -> 4,5/5 | G183: =IF(ISERROR(VLOOKUP($B183,BASE1!$D:$S,15,FALSE)=TRUE),"",VLOOKUP($B183,BASE1!$D:$S,15,FALSE)) -> 3,5/5 | H183: =IF(ISERROR(VLOOKUP($B183,BASE1!$D:$S,16,FALSE)=TRUE),"",VLOOKUP($B183,BASE1!$D:$S,16,FALSE)) -> 3,5/5
A184: 114 | B184: =IF(ISERROR(VLOOKUP(A184,BASE1!B:D,3,FALSE)=TRUE),"",VLOOKUP(A184,BASE1!B:D,3,FALSE)) -> 361 F | D184: =IF(ISERROR(IF(B$26="Non sélectionné",VLOOKUP($B184,BASE1!$D:$S,2,FALSE),VLOOKUP($B184,BASE1!$D:$S,5,FALSE))=TRUE),"",IF(B$26="Non sélectionné",VLOOKUP($B184,BASE1!$D:$S,2,FALSE),VLOOKUP($B184,BASE1!$D:$S,5,FALSE))) -> 4,5/5 | E184: =IF(ISERROR(IF(C$26="Non sélectionné",VLOOKUP($B184,BASE1!$D:$S,3,FALSE),VLOOKUP($B184,BASE1!$D:$S,6,FALSE))=TRUE),"",IF(C$26="Non sélectionné",VLOOKUP($B184,BASE1!$D:$S,3,FALSE),VLOOKUP($B184,BASE1!$D:$S,6,FALSE))) -> 4/5 | F184: =IF(ISERROR(IF(E$26="Non sélectionné",VLOOKUP($B184,BASE1!$D:$S,4,FALSE),VLOOKUP($B184,BASE1!$D:$S,8,FALSE))=TRUE),"",IF(E$26="Non sélectionné",VLOOKUP($B184,BASE1!$D:$S,4,FALSE),VLOOKUP($B184,BASE1!$D:$S,8,FALSE))) -> 4,5/5 | G184: =IF(ISERROR(VLOOKUP($B184,BASE1!$D:$S,15,FALSE)=TRUE),"",VLOOKUP($B184,BASE1!$D:$S,15,FALSE)) -> 3,5/5 | H184: =IF(ISERROR(VLOOKUP($B184,BASE1!$D:$S,16,FALSE)=TRUE),"",VLOOKUP($B184,BASE1!$D:$S,16,FALSE)) -> 3/5
A185: 115 | B185: =IF(ISERROR(VLOOKUP(A185,BASE1!B:D,3,FALSE)=TRUE),"",VLOOKUP(A185,BASE1!B:D,3,FALSE)) -> 248 F | D185: =IF(ISERROR(IF(B$26="Non sélectionné",VLOOKUP($B185,BASE1!$D:$S,2,FALSE),VLOOKUP($B185,BASE1!$D:$S,5,FALSE))=TRUE),"",IF(B$26="Non sélectionné",VLOOKUP($B185,BASE1!$D:$S,2,FALSE),VLOOKUP($B185,BASE1!$D:$S,5,FALSE))) -> 5/5 | E185: =IF(ISERROR(IF(C$26="Non sélectionné",VLOOKUP($B185,BASE1!$D:$S,3,FALSE),VLOOKUP($B185,BASE1!$D:$S,6,FALSE))=TRUE),"",IF(C$26="Non sélectionné",VLOOKUP($B185,BASE1!$D:$S,3,FALSE),VLOOKUP($B185,BASE1!$D:$S,6,FALSE))) -> 5/5 | F185: =IF(ISERROR(IF(E$26="Non sélectionné",VLOOKUP($B185,BASE1!$D:$S,4,FALSE),VLOOKUP($B185,BASE1!$D:$S,8,FALSE))=TRUE),"",IF(E$26="Non sélectionné",VLOOKUP($B185,BASE1!$D:$S,4,FALSE),VLOOKUP($B185,BASE1!$D:$S,8,FALSE))) -> 5/5 | G185: =IF(ISERROR(VLOOKUP($B185,BASE1!$D:$S,15,FALSE)=TRUE),"",VLOOKUP($B185,BASE1!$D:$S,15,FALSE)) -> 3,5/5 | H185: =IF(ISERROR(VLOOKUP($B185,BASE1!$D:$S,16,FALSE)=TRUE),"",VLOOKUP($B185,BASE1!$D:$S,16,FALSE)) -> 1,5/5
A186: 116 | B186: =IF(ISERROR(VLOOKUP(A186,BASE1!B:D,3,FALSE)=TRUE),"",VLOOKUP(A186,BASE1!B:D,3,FALSE)) -> 363 F | D186: =IF(ISERROR(IF(B$26="Non sélectionné",VLOOKUP($B186,BASE1!$D:$S,2,FALSE),VLOOKUP($B186,BASE1!$D:$S,5,FALSE))=TRUE),"",IF(B$26="Non sélectionné",VLOOKUP($B186,BASE1!$D:$S,2,FALSE),VLOOKUP($B186,BASE1!$D:$S,5,FALSE))) -> 4,5/5 | E186: =IF(ISERROR(IF(C$26="Non sélectionné",VLOOKUP($B186,BASE1!$D:$S,3,FALSE),VLOOKUP($B186,BASE1!$D:$S,6,FALSE))=TRUE),"",IF(C$26="Non sélectionné",VLOOKUP($B186,BASE1!$D:$S,3,FALSE),VLOOKUP($B186,BASE1!$D:$S,6,FALSE))) -> 4/5 | F186: =IF(ISERROR(IF(E$26="Non sélectionné",VLOOKUP($B186,BASE1!$D:$S,4,FALSE),VLOOKUP($B186,BASE1!$D:$S,8,FALSE))=TRUE),"",IF(E$26="Non sélectionné",VLOOKUP($B186,BASE1!$D:$S,4,FALSE),VLOOKUP($B186,BASE1!$D:$S,8,FALSE))) -> 3,5/5 | G186: =IF(ISERROR(VLOOKUP($B186,BASE1!$D:$S,15,FALSE)=TRUE),"",VLOOKUP($B186,BASE1!$D:$S,15,FALSE)) -> 3,5/5 | H186: =IF(ISERROR(VLOOKUP($B186,BASE1!$D:$S,16,FALSE)=TRUE),"",VLOOKUP($B186,BASE1!$D:$S,16,FALSE)) -> 2/5
A187: 117 | B187: =IF(ISERROR(VLOOKUP(A187,BASE1!B:D,3,FALSE)=TRUE),"",VLOOKUP(A187,BASE1!B:D,3,FALSE)) -> 448 F | D187: =IF(ISERROR(IF(B$26="Non sélectionné",VLOOKUP($B187,BASE1!$D:$S,2,FALSE),VLOOKUP($B187,BASE1!$D:$S,5,FALSE))=TRUE),"",IF(B$26="Non sélectionné",VLOOKUP($B187,BASE1!$D:$S,2,FALSE),VLOOKUP($B187,BASE1!$D:$S,5,FALSE))) -> 5/5 | E187: =IF(ISERROR(IF(C$26="Non sélectionné",VLOOKUP($B187,BASE1!$D:$S,3,FALSE),VLOOKUP($B187,BASE1!$D:$S,6,FALSE))=TRUE),"",IF(C$26="Non sélectionné",VLOOKUP($B187,BASE1!$D:$S,3,FALSE),VLOOKUP($B187,BASE1!$D:$S,6,FALSE))) -> 5/5 | F187: =IF(ISERROR(IF(E$26="Non sélectionné",VLOOKUP($B187,BASE1!$D:$S,4,FALSE),VLOOKUP($B187,BASE1!$D:$S,8,FALSE))=TRUE),"",IF(E$26="Non sélectionné",VLOOKUP($B187,BASE1!$D:$S,4,FALSE),VLOOKUP($B187,BASE1!$D:$S,8,FALSE))) -> 4,5/5 | G187: =IF(ISERROR(VLOOKUP($B187,BASE1!$D:$S,15,FALSE)=TRUE),"",VLOOKUP($B187,BASE1!$D:$S,15,FALSE)) -> 3,5/5 | H187: =IF(ISERROR(VLOOKUP($B187,BASE1!$D:$S,16,FALSE)=TRUE),"",VLOOKUP($B187,BASE1!$D:$S,16,FALSE)) -> 2/5
A188: 118 | B188: =IF(ISERROR(VLOOKUP(A188,BASE1!B:D,3,FALSE)=TRUE),"",VLOOKUP(A188,BASE1!B:D,3,FALSE)) -> 434 F | D188: =IF(ISERROR(IF(B$26="Non sélectionné",VLOOKUP($B188,BASE1!$D:$S,2,FALSE),VLOOKUP($B188,BASE1!$D:$S,5,FALSE))=TRUE),"",IF(B$26="Non sélectionné",VLOOKUP($B188,BASE1!$D:$S,2,FALSE),VLOOKUP($B188,BASE1!$D:$S,5,FALSE))) -> 4,5/5 | E188: =IF(ISERROR(IF(C$26="Non sélectionné",VLOOKUP($B188,BASE1!$D:$S,3,FALSE),VLOOKUP($B188,BASE1!$D:$S,6,FALSE))=TRUE),"",IF(C$26="Non sélectionné",VLOOKUP($B188,BASE1!$D:$S,3,FALSE),VLOOKUP($B188,BASE1!$D:$S,6,FALSE))) -> 4/5 INT | F188: =IF(ISERROR(IF(E$26="Non sélectionné",VLOOKUP($B188,BASE1!$D:$S,4,FALSE),VLOOKUP($B188,BASE1!$D:$S,8,FALSE))=TRUE),"",IF(E$26="Non sélectionné",VLOOKUP($B188,BASE1!$D:$S,4,FALSE),VLOOKUP($B188,BASE1!$D:$S,8,FALSE))) -> 4/5 | G188: =IF(ISERROR(VLOOKUP($B188,BASE1!$D:$S,15,FALSE)=TRUE),"",VLOOKUP($B188,BASE1!$D:$S,15,FALSE)) -> 3,5/5 | H188: =IF(ISERROR(VLOOKUP($B188,BASE1!$D:$S,16,FALSE)=TRUE),"",VLOOKUP($B188,BASE1!$D:$S,16,FALSE)) -> 3/5
A189: 119 | B189: =IF(ISERROR(VLOOKUP(A189,BASE1!B:D,3,FALSE)=TRUE),"",VLOOKUP(A189,BASE1!B:D,3,FALSE)) -> 428 F | D189: =IF(ISERROR(IF(B$26="Non sélectionné",VLOOKUP($B189,BASE1!$D:$S,2,FALSE),VLOOKUP($B189,BASE1!$D:$S,5,FALSE))=TRUE),"",IF(B$26="Non sélectionné",VLOOKUP($B189,BASE1!$D:$S,2,FALSE),VLOOKUP($B189,BASE1!$D:$S,5,FALSE))) -> 5/5 | E189: =IF(ISERROR(IF(C$26="Non sélectionné",VLOOKUP($B189,BASE1!$D:$S,3,FALSE),VLOOKUP($B189,BASE1!$D:$S,6,FALSE))=TRUE),"",IF(C$26="Non sélectionné",VLOOKUP($B189,BASE1!$D:$S,3,FALSE),VLOOKUP($B189,BASE1!$D:$S,6,FALSE))) -> 4/5 | F189: =IF(ISERROR(IF(E$26="Non sélectionné",VLOOKUP($B189,BASE1!$D:$S,4,FALSE),VLOOKUP($B189,BASE1!$D:$S,8,FALSE))=TRUE),"",IF(E$26="Non sélectionné",VLOOKUP($B189,BASE1!$D:$S,4,FALSE),VLOOKUP($B189,BASE1!$D:$S,8,FALSE))) -> 3/5 | G189: =IF(ISERROR(VLOOKUP($B189,BASE1!$D:$S,15,FALSE)=TRUE),"",VLOOKUP($B189,BASE1!$D:$S,15,FALSE)) -> 5/5 | H189: =IF(ISERROR(VLOOKUP($B189,BASE1!$D:$S,16,FALSE)=TRUE),"",VLOOKUP($B189,BASE1!$D:$S,16,FALSE)) -> 4/5
A190: 120 | B190: =IF(ISERROR(VLOOKUP(A190,BASE1!B:D,3,FALSE)=TRUE),"",VLOOKUP(A190,BASE1!B:D,3,FALSE)) -> 429 F | D190: =IF(ISERROR(IF(B$26="Non sélectionné",VLOOKUP($B190,BASE1!$D:$S,2,FALSE),VLOOKUP($B190,BASE1!$D:$S,5,FALSE))=TRUE),"",IF(B$26="Non sélectionné",VLOOKUP($B190,BASE1!$D:$S,2,FALSE),VLOOKUP($B190,BASE1!$D:$S,5,FALSE))) -> 5/5 | E190: =IF(ISERROR(IF(C$26="Non sélectionné",VLOOKUP($B190,BASE1!$D:$S,3,FALSE),VLOOKUP($B190,BASE1!$D:$S,6,FALSE))=TRUE),"",IF(C$26="Non sélectionné",VLOOKUP($B190,BASE1!$D:$S,3,FALSE),VLOOKUP($B190,BASE1!$D:$S,6,FALSE))) -> 4/5 | F190: =IF(ISERROR(IF(E$26="Non sélectionné",VLOOKUP($B190,BASE1!$D:$S,4,FALSE),VLOOKUP($B190,BASE1!$D:$S,8,FALSE))=TRUE),"",IF(E$26="Non sélectionné",VLOOKUP($B190,BASE1!$D:$S,4,FALSE),VLOOKUP($B190,BASE1!$D:$S,8,FALSE))) -> 3/5 | G190: =IF(ISERROR(VLOOKUP($B190,BASE1!$D:$S,15,FALSE)=TRUE),"",VLOOKUP($B190,BASE1!$D:$S,15,FALSE)) -> 5/5 | H190: =IF(ISERROR(VLOOKUP($B190,BASE1!$D:$S,16,FALSE)=TRUE),"",VLOOKUP($B190,BASE1!$D:$S,16,FALSE)) -> 4/5
A191: 121 | B191: =IF(ISERROR(VLOOKUP(A191,BASE1!B:D,3,FALSE)=TRUE),"",VLOOKUP(A191,BASE1!B:D,3,FALSE)) -> 285 + 342 | D191: =IF(ISERROR(IF(B$26="Non sélectionné",VLOOKUP($B191,BASE1!$D:$S,2,FALSE),VLOOKUP($B191,BASE1!$D:$S,5,FALSE))=TRUE),"",IF(B$26="Non sélectionné",VLOOKUP($B191,BASE1!$D:$S,2,FALSE),VLOOKUP($B191,BASE1!$D:$S,5,FALSE))) -> 5/5 | E191: =IF(ISERROR(IF(C$26="Non sélectionné",VLOOKUP($B191,BASE1!$D:$S,3,FALSE),VLOOKUP($B191,BASE1!$D:$S,6,FALSE))=TRUE),"",IF(C$26="Non sélectionné",VLOOKUP($B191,BASE1!$D:$S,3,FALSE),VLOOKUP($B191,BASE1!$D:$S,6,FALSE))) -> 4,5/5 INT | F191: =IF(ISERROR(IF(E$26="Non sélectionné",VLOOKUP($B191,BASE1!$D:$S,4,FALSE),VLOOKUP($B191,BASE1!$D:$S,8,FALSE))=TRUE),"",IF(E$26="Non sélectionné",VLOOKUP($B191,BASE1!$D:$S,4,FALSE),VLOOKUP($B191,BASE1!$D:$S,8,FALSE))) -> 4,5/5 | G191: =IF(ISERROR(VLOOKUP($B191,BASE1!$D:$S,15,FALSE)=TRUE),"",VLOOKUP($B191,BASE1!$D:$S,15,FALSE)) -> 3/5 | H191: =IF(ISERROR(VLOOKUP($B191,BASE1!$D:$S,16,FALSE)=TRUE),"",VLOOKUP($B191,BASE1!$D:$S,16,FALSE)) -> 2,5/5
A192: 122 | B192: =IF(ISERROR(VLOOKUP(A192,BASE1!B:D,3,FALSE)=TRUE),"",VLOOKUP(A192,BASE1!B:D,3,FALSE)) -> 285 + 434 | D192: =IF(ISERROR(IF(B$26="Non sélectionné",VLOOKUP($B192,BASE1!$D:$S,2,FALSE),VLOOKUP($B192,BASE1!$D:$S,5,FALSE))=TRUE),"",IF(B$26="Non sélectionné",VLOOKUP($B192,BASE1!$D:$S,2,FALSE),VLOOKUP($B192,BASE1!$D:$S,5,FALSE))) -> 5/5 | E192: =IF(ISERROR(IF(C$26="Non sélectionné",VLOOKUP($B192,BASE1!$D:$S,3,FALSE),VLOOKUP($B192,BASE1!$D:$S,6,FALSE))=TRUE),"",IF(C$26="Non sélectionné",VLOOKUP($B192,BASE1!$D:$S,3,FALSE),VLOOKUP($B192,BASE1!$D:$S,6,FALSE))) -> 4,5/5 INT | F192: =IF(ISERROR(IF(E$26="Non sélectionné",VLOOKUP($B192,BASE1!$D:$S,4,FALSE),VLOOKUP($B192,BASE1!$D:$S,8,FALSE))=TRUE),"",IF(E$26="Non sélectionné",VLOOKUP($B192,BASE1!$D:$S,4,FALSE),VLOOKUP($B192,BASE1!$D:$S,8,FALSE))) -> 4/5 | G192: =IF(ISERROR(VLOOKUP($B192,BASE1!$D:$S,15,FALSE)=TRUE),"",VLOOKUP($B192,BASE1!$D:$S,15,FALSE)) -> 2,5/5 | H192: =IF(ISERROR(VLOOKUP($B192,BASE1!$D:$S,16,FALSE)=TRUE),"",VLOOKUP($B192,BASE1!$D:$S,16,FALSE)) -> 2/5
A193: 123 | B193: =IF(ISERROR(VLOOKUP(A193,BASE1!B:D,3,FALSE)=TRUE),"",VLOOKUP(A193,BASE1!B:D,3,FALSE)) -> 285 + 361 | D193: =IF(ISERROR(IF(B$26="Non sélectionné",VLOOKUP($B193,BASE1!$D:$S,2,FALSE),VLOOKUP($B193,BASE1!$D:$S,5,FALSE))=TRUE),"",IF(B$26="Non sélectionné",VLOOKUP($B193,BASE1!$D:$S,2,FALSE),VLOOKUP($B193,BASE1!$D:$S,5,FALSE))) -> 5/5 | E193: =IF(ISERROR(IF(C$26="Non sélectionné",VLOOKUP($B193,BASE1!$D:$S,3,FALSE),VLOOKUP($B193,BASE1!$D:$S,6,FALSE))=TRUE),"",IF(C$26="Non sélectionné",VLOOKUP($B193,BASE1!$D:$S,3,FALSE),VLOOKUP($B193,BASE1!$D:$S,6,FALSE))) -> 4/5 | F193: =IF(ISERROR(IF(E$26="Non sélectionné",VLOOKUP($B193,BASE1!$D:$S,4,FALSE),VLOOKUP($B193,BASE1!$D:$S,8,FALSE))=TRUE),"",IF(E$26="Non sélectionné",VLOOKUP($B193,BASE1!$D:$S,4,FALSE),VLOOKUP($B193,BASE1!$D:$S,8,FALSE))) -> 4,5/5 | G193: =IF(ISERROR(VLOOKUP($B193,BASE1!$D:$S,15,FALSE)=TRUE),"",VLOOKUP($B193,BASE1!$D:$S,15,FALSE)) -> 2,5/5 | H193: =IF(ISERROR(VLOOKUP($B193,BASE1!$D:$S,16,FALSE)=TRUE),"",VLOOKUP($B193,BASE1!$D:$S,16,FALSE)) -> 1,5/5
A194: 124 | B194: =IF(ISERROR(VLOOKUP(A194,BASE1!B:D,3,FALSE)=TRUE),"",VLOOKUP(A194,BASE1!B:D,3,FALSE)) -> 285 + 248 | D194: =IF(ISERROR(IF(B$26="Non sélectionné",VLOOKUP($B194,BASE1!$D:$S,2,FALSE),VLOOKUP($B194,BASE1!$D:$S,5,FALSE))=TRUE),"",IF(B$26="Non sélectionné",VLOOKUP($B194,BASE1!$D:$S,2,FALSE),VLOOKUP($B194,BASE1!$D:$S,5,FALSE))) -> 5/5 | E194: =IF(ISERROR(IF(C$26="Non sélectionné",VLOOKUP($B194,BASE1!$D:$S,3,FALSE),VLOOKUP($B194,BASE1!$D:$S,6,FALSE))=TRUE),"",IF(C$26="Non sélectionné",VLOOKUP($B194,BASE1!$D:$S,3,FALSE),VLOOKUP($B194,BASE1!$D:$S,6,FALSE))) -> 5/5 | F194: =IF(ISERROR(IF(E$26="Non sélectionné",VLOOKUP($B194,BASE1!$D:$S,4,FALSE),VLOOKUP($B194,BASE1!$D:$S,8,FALSE))=TRUE),"",IF(E$26="Non sélectionné",VLOOKUP($B194,BASE1!$D:$S,4,FALSE),VLOOKUP($B194,BASE1!$D:$S,8,FALSE))) -> 5/5 | G194: =IF(ISERROR(VLOOKUP($B194,BASE1!$D:$S,15,FALSE)=TRUE),"",VLOOKUP($B194,BASE1!$D:$S,15,FALSE)) -> 2,5/5 | H194: =IF(ISERROR(VLOOKUP($B194,BASE1!$D:$S,16,FALSE)=TRUE),"",VLOOKUP($B194,BASE1!$D:$S,16,FALSE)) -> 0,5/5
A195: 125 | B195: =IF(ISERROR(VLOOKUP(A195,BASE1!B:D,3,FALSE)=TRUE),"",VLOOKUP(A195,BASE1!B:D,3,FALSE)) -> 285 + 448 | D195: =IF(ISERROR(IF(B$26="Non sélectionné",VLOOKUP($B195,BASE1!$D:$S,2,FALSE),VLOOKUP($B195,BASE1!$D:$S,5,FALSE))=TRUE),"",IF(B$26="Non sélectionné",VLOOKUP($B195,BASE1!$D:$S,2,FALSE),VLOOKUP($B195,BASE1!$D:$S,5,FALSE))) -> 5/5 | E195: =IF(ISERROR(IF(C$26="Non sélectionné",VLOOKUP($B195,BASE1!$D:$S,3,FALSE),VLOOKUP($B195,BASE1!$D:$S,6,FALSE))=TRUE),"",IF(C$26="Non sélectionné",VLOOKUP($B195,BASE1!$D:$S,3,FALSE),VLOOKUP($B195,BASE1!$D:$S,6,FALSE))) -> 5/5 | F195: =IF(ISERROR(IF(E$26="Non sélectionné",VLOOKUP($B195,BASE1!$D:$S,4,FALSE),VLOOKUP($B195,BASE1!$D:$S,8,FALSE))=TRUE),"",IF(E$26="Non sélectionné",VLOOKUP($B195,BASE1!$D:$S,4,FALSE),VLOOKUP($B195,BASE1!$D:$S,8,FALSE))) -> 4,5/5 | G195: =IF(ISERROR(VLOOKUP($B195,BASE1!$D:$S,15,FALSE)=TRUE),"",VLOOKUP($B195,BASE1!$D:$S,15,FALSE)) -> 2,5/5 | H195: =IF(ISERROR(VLOOKUP($B195,BASE1!$D:$S,16,FALSE)=TRUE),"",VLOOKUP($B195,BASE1!$D:$S,16,FALSE)) -> 0,5/5
A196: 126 | B196: =IF(ISERROR(VLOOKUP(A196,BASE1!B:D,3,FALSE)=TRUE),"",VLOOKUP(A196,BASE1!B:D,3,FALSE)) -> 285 + 330 | D196: =IF(ISERROR(IF(B$26="Non sélectionné",VLOOKUP($B196,BASE1!$D:$S,2,FALSE),VLOOKUP($B196,BASE1!$D:$S,5,FALSE))=TRUE),"",IF(B$26="Non sélectionné",VLOOKUP($B196,BASE1!$D:$S,2,FALSE),VLOOKUP($B196,BASE1!$D:$S,5,FALSE))) -> 5/5 | E196: =IF(ISERROR(IF(C$26="Non sélectionné",VLOOKUP($B196,BASE1!$D:$S,3,FALSE),VLOOKUP($B196,BASE1!$D:$S,6,FALSE))=TRUE),"",IF(C$26="Non sélectionné",VLOOKUP($B196,BASE1!$D:$S,3,FALSE),VLOOKUP($B196,BASE1!$D:$S,6,FALSE))) -> 4,5/5 INT | F196: =IF(ISERROR(IF(E$26="Non sélectionné",VLOOKUP($B196,BASE1!$D:$S,4,FALSE),VLOOKUP($B196,BASE1!$D:$S,8,FALSE))=TRUE),"",IF(E$26="Non sélectionné",VLOOKUP($B196,BASE1!$D:$S,4,FALSE),VLOOKUP($B196,BASE1!$D:$S,8,FALSE))) -> 4,5/5 | G196: =IF(ISERROR(VLOOKUP($B196,BASE1!$D:$S,15,FALSE)=TRUE),"",VLOOKUP($B196,BASE1!$D:$S,15,FALSE)) -> 2,5/5 | H196: =IF(ISERROR(VLOOKUP($B196,BASE1!$D:$S,16,FALSE)=TRUE),"",VLOOKUP($B196,BASE1!$D:$S,16,FALSE)) -> 2/5
A197: 127 | B197: =IF(ISERROR(VLOOKUP(A197,BASE1!B:D,3,FALSE)=TRUE),"",VLOOKUP(A197,BASE1!B:D,3,FALSE)) -> 247 | D197: =IF(ISERROR(IF(B$26="Non sélectionné",VLOOKUP($B197,BASE1!$D:$S,2,FALSE),VLOOKUP($B197,BASE1!$D:$S,5,FALSE))=TRUE),"",IF(B$26="Non sélectionné",VLOOKUP($B197,BASE1!$D:$S,2,FALSE),VLOOKUP($B197,BASE1!$D:$S,5,FALSE))) -> 4,5/5 | E197: =IF(ISERROR(IF(C$26="Non sélectionné",VLOOKUP($B197,BASE1!$D:$S,3,FALSE),VLOOKUP($B197,BASE1!$D:$S,6,FALSE))=TRUE),"",IF(C$26="Non sélectionné",VLOOKUP($B197,BASE1!$D:$S,3,FALSE),VLOOKUP($B197,BASE1!$D:$S,6,FALSE))) -> 4,5/5 | F197: =IF(ISERROR(IF(E$26="Non sélectionné",VLOOKUP($B197,BASE1!$D:$S,4,FALSE),VLOOKUP($B197,BASE1!$D:$S,8,FALSE))=TRUE),"",IF(E$26="Non sélectionné",VLOOKUP($B197,BASE1!$D:$S,4,FALSE),VLOOKUP($B197,BASE1!$D:$S,8,FALSE))) -> 4/5 | G197: =IF(ISERROR(VLOOKUP($B197,BASE1!$D:$S,15,FALSE)=TRUE),"",VLOOKUP($B197,BASE1!$D:$S,15,FALSE)) -> 3,5/5 | H197: =IF(ISERROR(VLOOKUP($B197,BASE1!$D:$S,16,FALSE)=TRUE),"",VLOOKUP($B197,BASE1!$D:$S,16,FALSE)) -> 2/5
A198: 128 | B198: =IF(ISERROR(VLOOKUP(A198,BASE1!B:D,3,FALSE)=TRUE),"",VLOOKUP(A198,BASE1!B:D,3,FALSE)) -> 285 + 247 | D198: =IF(ISERROR(IF(B$26="Non sélectionné",VLOOKUP($B198,BASE1!$D:$S,2,FALSE),VLOOKUP($B198,BASE1!$D:$S,5,FALSE))=TRUE),"",IF(B$26="Non sélectionné",VLOOKUP($B198,BASE1!$D:$S,2,FALSE),VLOOKUP($B198,BASE1!$D:$S,5,FALSE))) -> 5/5 | E198: =IF(ISERROR(IF(C$26="Non sélectionné",VLOOKUP($B198,BASE1!$D:$S,3,FALSE),VLOOKUP($B198,BASE1!$D:$S,6,FALSE))=TRUE),"",IF(C$26="Non sélectionné",VLOOKUP($B198,BASE1!$D:$S,3,FALSE),VLOOKUP($B198,BASE1!$D:$S,6,FALSE))) -> 5/5 | F198: =IF(ISERROR(IF(E$26="Non sélectionné",VLOOKUP($B198,BASE1!$D:$S,4,FALSE),VLOOKUP($B198,BASE1!$D:$S,8,FALSE))=TRUE),"",IF(E$26="Non sélectionné",VLOOKUP($B198,BASE1!$D:$S,4,FALSE),VLOOKUP($B198,BASE1!$D:$S,8,FALSE))) -> 4/5 | G198: =IF(ISERROR(VLOOKUP($B198,BASE1!$D:$S,15,FALSE)=TRUE),"",VLOOKUP($B198,BASE1!$D:$S,15,FALSE)) -> 2,5/5 | H198: =IF(ISERROR(VLOOKUP($B198,BASE1!$D:$S,16,FALSE)=TRUE),"",VLOOKUP($B198,BASE1!$D:$S,16,FALSE)) -> 0,5/5
A199: 129 | B199: =IF(ISERROR(VLOOKUP(A199,BASE1!B:D,3,FALSE)=TRUE),"",VLOOKUP(A199,BASE1!B:D,3,FALSE)) -> 340 P + 361 V | D199: =IF(ISERROR(IF(B$26="Non sélectionné",VLOOKUP($B199,BASE1!$D:$S,2,FALSE),VLOOKUP($B199,BASE1!$D:$S,5,FALSE))=TRUE),"",IF(B$26="Non sélectionné",VLOOKUP($B199,BASE1!$D:$S,2,FALSE),VLOOKUP($B199,BASE1!$D:$S,5,FALSE))) -> 4/5 | E199: =IF(ISERROR(IF(C$26="Non sélectionné",VLOOKUP($B199,BASE1!$D:$S,3,FALSE),VLOOKUP($B199,BASE1!$D:$S,6,FALSE))=TRUE),"",IF(C$26="Non sélectionné",VLOOKUP($B199,BASE1!$D:$S,3,FALSE),VLOOKUP($B199,BASE1!$D:$S,6,FALSE))) -> 4/5 | F199: =IF(ISERROR(IF(E$26="Non sélectionné",VLOOKUP($B199,BASE1!$D:$S,4,FALSE),VLOOKUP($B199,BASE1!$D:$S,8,FALSE))=TRUE),"",IF(E$26="Non sélectionné",VLOOKUP($B199,BASE1!$D:$S,4,FALSE),VLOOKUP($B199,BASE1!$D:$S,8,FALSE))) -> 3,5/5 | G199: =IF(ISERROR(VLOOKUP($B199,BASE1!$D:$S,15,FALSE)=TRUE),"",VLOOKUP($B199,BASE1!$D:$S,15,FALSE)) -> 2,5/5 | H199: =IF(ISERROR(VLOOKUP($B199,BASE1!$D:$S,16,FALSE)=TRUE),"",VLOOKUP($B199,BASE1!$D:$S,16,FALSE)) -> 2,5/5
A200: 130 | B200: =IF(ISERROR(VLOOKUP(A200,BASE1!B:D,3,FALSE)=TRUE),"",VLOOKUP(A200,BASE1!B:D,3,FALSE)) -> 392 | D200: =IF(ISERROR(IF(B$26="Non sélectionné",VLOOKUP($B200,BASE1!$D:$S,2,FALSE),VLOOKUP($B200,BASE1!$D:$S,5,FALSE))=TRUE),"",IF(B$26="Non sélectionné",VLOOKUP($B200,BASE1!$D:$S,2,FALSE),VLOOKUP($B200,BASE1!$D:$S,5,FALSE))) -> 4/5 | E200: =IF(ISERROR(IF(C$26="Non sélectionné",VLOOKUP($B200,BASE1!$D:$S,3,FALSE),VLOOKUP($B200,BASE1!$D:$S,6,FALSE))=TRUE),"",IF(C$26="Non sélectionné",VLOOKUP($B200,BASE1!$D:$S,3,FALSE),VLOOKUP($B200,BASE1!$D:$S,6,FALSE))) -> 3,5/5 | F200: =IF(ISERROR(IF(E$26="Non sélectionné",VLOOKUP($B200,BASE1!$D:$S,4,FALSE),VLOOKUP($B200,BASE1!$D:$S,8,FALSE))=TRUE),"",IF(E$26="Non sélectionné",VLOOKUP($B200,BASE1!$D:$S,4,FALSE),VLOOKUP($B200,BASE1!$D:$S,8,FALSE))) -> 2/5 | G200: =IF(ISERROR(VLOOKUP($B200,BASE1!$D:$S,15,FALSE)=TRUE),"",VLOOKUP($B200,BASE1!$D:$S,15,FALSE)) -> 5/5 | H200: =IF(ISERROR(VLOOKUP($B200,BASE1!$D:$S,16,FALSE)=TRUE),"",VLOOKUP($B200,BASE1!$D:$S,16,FALSE)) -> 4/5
A201: 131 | B201: =IF(ISERROR(VLOOKUP(A201,BASE1!B:D,3,FALSE)=TRUE),"",VLOOKUP(A201,BASE1!B:D,3,FALSE)) -> 402 | D201: =IF(ISERROR(IF(B$26="Non sélectionné",VLOOKUP($B201,BASE1!$D:$S,2,FALSE),VLOOKUP($B201,BASE1!$D:$S,5,FALSE))=TRUE),"",IF(B$26="Non sélectionné",VLOOKUP($B201,BASE1!$D:$S,2,FALSE),VLOOKUP($B201,BASE1!$D:$S,5,FALSE))) -> 3/5 | E201: =IF(ISERROR(IF(C$26="Non sélectionné",VLOOKUP($B201,BASE1!$D:$S,3,FALSE),VLOOKUP($B201,BASE1!$D:$S,6,FALSE))=TRUE),"",IF(C$26="Non sélectionné",VLOOKUP($B201,BASE1!$D:$S,3,FALSE),VLOOKUP($B201,BASE1!$D:$S,6,FALSE))) -> 3/5 | F201: =IF(ISERROR(IF(E$26="Non sélectionné",VLOOKUP($B201,BASE1!$D:$S,4,FALSE),VLOOKUP($B201,BASE1!$D:$S,8,FALSE))=TRUE),"",IF(E$26="Non sélectionné",VLOOKUP($B201,BASE1!$D:$S,4,FALSE),VLOOKUP($B201,BASE1!$D:$S,8,FALSE))) -> 2/5 | G201: =IF(ISERROR(VLOOKUP($B201,BASE1!$D:$S,15,FALSE)=TRUE),"",VLOOKUP($B201,BASE1!$D:$S,15,FALSE)) -> 5/5 | H201: =IF(ISERROR(VLOOKUP($B201,BASE1!$D:$S,16,FALSE)=TRUE),"",VLOOKUP($B201,BASE1!$D:$S,16,FALSE)) -> 5/5
A202: 132 | B202: =IF(ISERROR(VLOOKUP(A202,BASE1!B:D,3,FALSE)=TRUE),"",VLOOKUP(A202,BASE1!B:D,3,FALSE)) -> 339 P | D202: =IF(ISERROR(IF(B$26="Non sélectionné",VLOOKUP($B202,BASE1!$D:$S,2,FALSE),VLOOKUP($B202,BASE1!$D:$S,5,FALSE))=TRUE),"",IF(B$26="Non sélectionné",VLOOKUP($B202,BASE1!$D:$S,2,FALSE),VLOOKUP($B202,BASE1!$D:$S,5,FALSE))) -> 5/5 | E202: =IF(ISERROR(IF(C$26="Non sélectionné",VLOOKUP($B202,BASE1!$D:$S,3,FALSE),VLOOKUP($B202,BASE1!$D:$S,6,FALSE))=TRUE),"",IF(C$26="Non sélectionné",VLOOKUP($B202,BASE1!$D:$S,3,FALSE),VLOOKUP($B202,BASE1!$D:$S,6,FALSE))) -> 4/5 INT | F202: =IF(ISERROR(IF(E$26="Non sélectionné",VLOOKUP($B202,BASE1!$D:$S,4,FALSE),VLOOKUP($B202,BASE1!$D:$S,8,FALSE))=TRUE),"",IF(E$26="Non sélectionné",VLOOKUP($B202,BASE1!$D:$S,4,FALSE),VLOOKUP($B202,BASE1!$D:$S,8,FALSE))) -> 3,5/5 | G202: =IF(ISERROR(VLOOKUP($B202,BASE1!$D:$S,15,FALSE)=TRUE),"",VLOOKUP($B202,BASE1!$D:$S,15,FALSE)) -> 2/5 | H202: =IF(ISERROR(VLOOKUP($B202,BASE1!$D:$S,16,FALSE)=TRUE),"",VLOOKUP($B202,BASE1!$D:$S,16,FALSE)) -> 2,5/5
A203: 133 | B203: =IF(ISERROR(VLOOKUP(A203,BASE1!B:D,3,FALSE)=TRUE),"",VLOOKUP(A203,BASE1!B:D,3,FALSE)) -> 339 F | D203: =IF(ISERROR(IF(B$26="Non sélectionné",VLOOKUP($B203,BASE1!$D:$S,2,FALSE),VLOOKUP($B203,BASE1!$D:$S,5,FALSE))=TRUE),"",IF(B$26="Non sélectionné",VLOOKUP($B203,BASE1!$D:$S,2,FALSE),VLOOKUP($B203,BASE1!$D:$S,5,FALSE))) -> 5/5 | E203: =IF(ISERROR(IF(C$26="Non sélectionné",VLOOKUP($B203,BASE1!$D:$S,3,FALSE),VLOOKUP($B203,BASE1!$D:$S,6,FALSE))=TRUE),"",IF(C$26="Non sélectionné",VLOOKUP($B203,BASE1!$D:$S,3,FALSE),VLOOKUP($B203,BASE1!$D:$S,6,FALSE))) -> 4/5 INT | F203: =IF(ISERROR(IF(E$26="Non sélectionné",VLOOKUP($B203,BASE1!$D:$S,4,FALSE),VLOOKUP($B203,BASE1!$D:$S,8,FALSE))=TRUE),"",IF(E$26="Non sélectionné",VLOOKUP($B203,BASE1!$D:$S,4,FALSE),VLOOKUP($B203,BASE1!$D:$S,8,FALSE))) -> 3,5/5 | G203: =IF(ISERROR(VLOOKUP($B203,BASE1!$D:$S,15,FALSE)=TRUE),"",VLOOKUP($B203,BASE1!$D:$S,15,FALSE)) -> 2/5 | H203: =IF(ISERROR(VLOOKUP($B203,BASE1!$D:$S,16,FALSE)=TRUE),"",VLOOKUP($B203,BASE1!$D:$S,16,FALSE)) -> 2,5/5
A204: 134 | B204: =IF(ISERROR(VLOOKUP(A204,BASE1!B:D,3,FALSE)=TRUE),"",VLOOKUP(A204,BASE1!B:D,3,FALSE)) -> 248 V | D204: =IF(ISERROR(IF(B$26="Non sélectionné",VLOOKUP($B204,BASE1!$D:$S,2,FALSE),VLOOKUP($B204,BASE1!$D:$S,5,FALSE))=TRUE),"",IF(B$26="Non sélectionné",VLOOKUP($B204,BASE1!$D:$S,2,FALSE),VLOOKUP($B204,BASE1!$D:$S,5,FALSE))) -> 5/5 | E204: =IF(ISERROR(IF(C$26="Non sélectionné",VLOOKUP($B204,BASE1!$D:$S,3,FALSE),VLOOKUP($B204,BASE1!$D:$S,6,FALSE))=TRUE),"",IF(C$26="Non sélectionné",VLOOKUP($B204,BASE1!$D:$S,3,FALSE),VLOOKUP($B204,BASE1!$D:$S,6,FALSE))) -> 4,5/5 | F204: =IF(ISERROR(IF(E$26="Non sélectionné",VLOOKUP($B204,BASE1!$D:$S,4,FALSE),VLOOKUP($B204,BASE1!$D:$S,8,FALSE))=TRUE),"",IF(E$26="Non sélectionné",VLOOKUP($B204,BASE1!$D:$S,4,FALSE),VLOOKUP($B204,BASE1!$D:$S,8,FALSE))) -> 5/5 | G204: =IF(ISERROR(VLOOKUP($B204,BASE1!$D:$S,15,FALSE)=TRUE),"",VLOOKUP($B204,BASE1!$D:$S,15,FALSE)) -> 3,5/5 | H204: =IF(ISERROR(VLOOKUP($B204,BASE1!$D:$S,16,FALSE)=TRUE),"",VLOOKUP($B204,BASE1!$D:$S,16,FALSE)) -> 2/5
A205: 135 | B205: =IF(ISERROR(VLOOKUP(A205,BASE1!B:D,3,FALSE)=TRUE),"",VLOOKUP(A205,BASE1!B:D,3,FALSE)) -> 448 V | D205: =IF(ISERROR(IF(B$26="Non sélectionné",VLOOKUP($B205,BASE1!$D:$S,2,FALSE),VLOOKUP($B205,BASE1!$D:$S,5,FALSE))=TRUE),"",IF(B$26="Non sélectionné",VLOOKUP($B205,BASE1!$D:$S,2,FALSE),VLOOKUP($B205,BASE1!$D:$S,5,FALSE))) -> 5/5 | E205: =IF(ISERROR(IF(C$26="Non sélectionné",VLOOKUP($B205,BASE1!$D:$S,3,FALSE),VLOOKUP($B205,BASE1!$D:$S,6,FALSE))=TRUE),"",IF(C$26="Non sélectionné",VLOOKUP($B205,BASE1!$D:$S,3,FALSE),VLOOKUP($B205,BASE1!$D:$S,6,FALSE))) -> 4,5/5 | F205: =IF(ISERROR(IF(E$26="Non sélectionné",VLOOKUP($B205,BASE1!$D:$S,4,FALSE),VLOOKUP($B205,BASE1!$D:$S,8,FALSE))=TRUE),"",IF(E$26="Non sélectionné",VLOOKUP($B205,BASE1!$D:$S,4,FALSE),VLOOKUP($B205,BASE1!$D:$S,8,FALSE))) -> 4,5/5 | G205: =IF(ISERROR(VLOOKUP($B205,BASE1!$D:$S,15,FALSE)=TRUE),"",VLOOKUP($B205,BASE1!$D:$S,15,FALSE)) -> 3,5/5 | H205: =IF(ISERROR(VLOOKUP($B205,BASE1!$D:$S,16,FALSE)=TRUE),"",VLOOKUP($B205,BASE1!$D:$S,16,FALSE)) -> 2/5
A206: 136 | B206: =IF(ISERROR(VLOOKUP(A206,BASE1!B:D,3,FALSE)=TRUE),"",VLOOKUP(A206,BASE1!B:D,3,FALSE)) -> 440 + 248 V | D206: =IF(ISERROR(IF(B$26="Non sélectionné",VLOOKUP($B206,BASE1!$D:$S,2,FALSE),VLOOKUP($B206,BASE1!$D:$S,5,FALSE))=TRUE),"",IF(B$26="Non sélectionné",VLOOKUP($B206,BASE1!$D:$S,2,FALSE),VLOOKUP($B206,BASE1!$D:$S,5,FALSE))) -> 4/5 | E206: =IF(ISERROR(IF(C$26="Non sélectionné",VLOOKUP($B206,BASE1!$D:$S,3,FALSE),VLOOKUP($B206,BASE1!$D:$S,6,FALSE))=TRUE),"",IF(C$26="Non sélectionné",VLOOKUP($B206,BASE1!$D:$S,3,FALSE),VLOOKUP($B206,BASE1!$D:$S,6,FALSE))) -> 4,5/5 | F206: =IF(ISERROR(IF(E$26="Non sélectionné",VLOOKUP($B206,BASE1!$D:$S,4,FALSE),VLOOKUP($B206,BASE1!$D:$S,8,FALSE))=TRUE),"",IF(E$26="Non sélectionné",VLOOKUP($B206,BASE1!$D:$S,4,FALSE),VLOOKUP($B206,BASE1!$D:$S,8,FALSE))) -> 5/5 | G206: =IF(ISERROR(VLOOKUP($B206,BASE1!$D:$S,15,FALSE)=TRUE),"",VLOOKUP($B206,BASE1!$D:$S,15,FALSE)) -> 3/5 | H206: =IF(ISERROR(VLOOKUP($B206,BASE1!$D:$S,16,FALSE)=TRUE),"",VLOOKUP($B206,BASE1!$D:$S,16,FALSE)) -> 0,5/5
A207: 137 | B207: =IF(ISERROR(VLOOKUP(A207,BASE1!B:D,3,FALSE)=TRUE),"",VLOOKUP(A207,BASE1!B:D,3,FALSE)) -> 440 + 448 V | D207: =IF(ISERROR(IF(B$26="Non sélectionné",VLOOKUP($B207,BASE1!$D:$S,2,FALSE),VLOOKUP($B207,BASE1!$D:$S,5,FALSE))=TRUE),"",IF(B$26="Non sélectionné",VLOOKUP($B207,BASE1!$D:$S,2,FALSE),VLOOKUP($B207,BASE1!$D:$S,5,FALSE))) -> 4/5 | E207: =IF(ISERROR(IF(C$26="Non sélectionné",VLOOKUP($B207,BASE1!$D:$S,3,FALSE),VLOOKUP($B207,BASE1!$D:$S,6,FALSE))=TRUE),"",IF(C$26="Non sélectionné",VLOOKUP($B207,BASE1!$D:$S,3,FALSE),VLOOKUP($B207,BASE1!$D:$S,6,FALSE))) -> 4,5/5 | F207: =IF(ISERROR(IF(E$26="Non sélectionné",VLOOKUP($B207,BASE1!$D:$S,4,FALSE),VLOOKUP($B207,BASE1!$D:$S,8,FALSE))=TRUE),"",IF(E$26="Non sélectionné",VLOOKUP($B207,BASE1!$D:$S,4,FALSE),VLOOKUP($B207,BASE1!$D:$S,8,FALSE))) -> 4,5/5 | G207: =IF(ISERROR(VLOOKUP($B207,BASE1!$D:$S,15,FALSE)=TRUE),"",VLOOKUP($B207,BASE1!$D:$S,15,FALSE)) -> 3/5 | H207: =IF(ISERROR(VLOOKUP($B207,BASE1!$D:$S,16,FALSE)=TRUE),"",VLOOKUP($B207,BASE1!$D:$S,16,FALSE)) -> 0,5/5
A208: 138 | B208: =IF(ISERROR(VLOOKUP(A208,BASE1!B:D,3,FALSE)=TRUE),"",VLOOKUP(A208,BASE1!B:D,3,FALSE)) -> 248 F | D208: =IF(ISERROR(IF(B$26="Non sélectionné",VLOOKUP($B208,BASE1!$D:$S,2,FALSE),VLOOKUP($B208,BASE1!$D:$S,5,FALSE))=TRUE),"",IF(B$26="Non sélectionné",VLOOKUP($B208,BASE1!$D:$S,2,FALSE),VLOOKUP($B208,BASE1!$D:$S,5,FALSE))) -> 5/5 | E208: =IF(ISERROR(IF(C$26="Non sélectionné",VLOOKUP($B208,BASE1!$D:$S,3,FALSE),VLOOKUP($B208,BASE1!$D:$S,6,FALSE))=TRUE),"",IF(C$26="Non sélectionné",VLOOKUP($B208,BASE1!$D:$S,3,FALSE),VLOOKUP($B208,BASE1!$D:$S,6,FALSE))) -> 5/5 | F208: =IF(ISERROR(IF(E$26="Non sélectionné",VLOOKUP($B208,BASE1!$D:$S,4,FALSE),VLOOKUP($B208,BASE1!$D:$S,8,FALSE))=TRUE),"",IF(E$26="Non sélectionné",VLOOKUP($B208,BASE1!$D:$S,4,FALSE),VLOOKUP($B208,BASE1!$D:$S,8,FALSE))) -> 5/5 | G208: =IF(ISERROR(VLOOKUP($B208,BASE1!$D:$S,15,FALSE)=TRUE),"",VLOOKUP($B208,BASE1!$D:$S,15,FALSE)) -> 3,5/5 | H208: =IF(ISERROR(VLOOKUP($B208,BASE1!$D:$S,16,FALSE)=TRUE),"",VLOOKUP($B208,BASE1!$D:$S,16,FALSE)) -> 1,5/5
A209: 139 | B209: =IF(ISERROR(VLOOKUP(A209,BASE1!B:D,3,FALSE)=TRUE),"",VLOOKUP(A209,BASE1!B:D,3,FALSE)) -> 448 F | D209: =IF(ISERROR(IF(B$26="Non sélectionné",VLOOKUP($B209,BASE1!$D:$S,2,FALSE),VLOOKUP($B209,BASE1!$D:$S,5,FALSE))=TRUE),"",IF(B$26="Non sélectionné",VLOOKUP($B209,BASE1!$D:$S,2,FALSE),VLOOKUP($B209,BASE1!$D:$S,5,FALSE))) -> 5/5 | E209: =IF(ISERROR(IF(C$26="Non sélectionné",VLOOKUP($B209,BASE1!$D:$S,3,FALSE),VLOOKUP($B209,BASE1!$D:$S,6,FALSE))=TRUE),"",IF(C$26="Non sélectionné",VLOOKUP($B209,BASE1!$D:$S,3,FALSE),VLOOKUP($B209,BASE1!$D:$S,6,FALSE))) -> 5/5 | F209: =IF(ISERROR(IF(E$26="Non sélectionné",VLOOKUP($B209,BASE1!$D:$S,4,FALSE),VLOOKUP($B209,BASE1!$D:$S,8,FALSE))=TRUE),"",IF(E$26="Non sélectionné",VLOOKUP($B209,BASE1!$D:$S,4,FALSE),VLOOKUP($B209,BASE1!$D:$S,8,FALSE))) -> 4,5/5 | G209: =IF(ISERROR(VLOOKUP($B209,BASE1!$D:$S,15,FALSE)=TRUE),"",VLOOKUP($B209,BASE1!$D:$S,15,FALSE)) -> 3,5/5 | H209: =IF(ISERROR(VLOOKUP($B209,BASE1!$D:$S,16,FALSE)=TRUE),"",VLOOKUP($B209,BASE1!$D:$S,16,FALSE)) -> 2/5
A210: 140 | B210: =IF(ISERROR(VLOOKUP(A210,BASE1!B:D,3,FALSE)=TRUE),"",VLOOKUP(A210,BASE1!B:D,3,FALSE)) -> 343 + 248 F | D210: =IF(ISERROR(IF(B$26="Non sélectionné",VLOOKUP($B210,BASE1!$D:$S,2,FALSE),VLOOKUP($B210,BASE1!$D:$S,5,FALSE))=TRUE),"",IF(B$26="Non sélectionné",VLOOKUP($B210,BASE1!$D:$S,2,FALSE),VLOOKUP($B210,BASE1!$D:$S,5,FALSE))) -> 5/5 | E210: =IF(ISERROR(IF(C$26="Non sélectionné",VLOOKUP($B210,BASE1!$D:$S,3,FALSE),VLOOKUP($B210,BASE1!$D:$S,6,FALSE))=TRUE),"",IF(C$26="Non sélectionné",VLOOKUP($B210,BASE1!$D:$S,3,FALSE),VLOOKUP($B210,BASE1!$D:$S,6,FALSE))) -> 5/5 | F210: =IF(ISERROR(IF(E$26="Non sélectionné",VLOOKUP($B210,BASE1!$D:$S,4,FALSE),VLOOKUP($B210,BASE1!$D:$S,8,FALSE))=TRUE),"",IF(E$26="Non sélectionné",VLOOKUP($B210,BASE1!$D:$S,4,FALSE),VLOOKUP($B210,BASE1!$D:$S,8,FALSE))) -> 5/5 | G210: =IF(ISERROR(VLOOKUP($B210,BASE1!$D:$S,15,FALSE)=TRUE),"",VLOOKUP($B210,BASE1!$D:$S,15,FALSE)) -> 2,5/5 | H210: =IF(ISERROR(VLOOKUP($B210,BASE1!$D:$S,16,FALSE)=TRUE),"",VLOOKUP($B210,BASE1!$D:$S,16,FALSE)) -> 0,5/5
A211: 141 | B211: =IF(ISERROR(VLOOKUP(A211,BASE1!B:D,3,FALSE)=TRUE),"",VLOOKUP(A211,BASE1!B:D,3,FALSE)) -> 407 + 448 F | D211: =IF(ISERROR(IF(B$26="Non sélectionné",VLOOKUP($B211,BASE1!$D:$S,2,FALSE),VLOOKUP($B211,BASE1!$D:$S,5,FALSE))=TRUE),"",IF(B$26="Non sélectionné",VLOOKUP($B211,BASE1!$D:$S,2,FALSE),VLOOKUP($B211,BASE1!$D:$S,5,FALSE))) -> 4/5 | E211: =IF(ISERROR(IF(C$26="Non sélectionné",VLOOKUP($B211,BASE1!$D:$S,3,FALSE),VLOOKUP($B211,BASE1!$D:$S,6,FALSE))=TRUE),"",IF(C$26="Non sélectionné",VLOOKUP($B211,BASE1!$D:$S,3,FALSE),VLOOKUP($B211,BASE1!$D:$S,6,FALSE))) -> 5/5 | F211: =IF(ISERROR(IF(E$26="Non sélectionné",VLOOKUP($B211,BASE1!$D:$S,4,FALSE),VLOOKUP($B211,BASE1!$D:$S,8,FALSE))=TRUE),"",IF(E$26="Non sélectionné",VLOOKUP($B211,BASE1!$D:$S,4,FALSE),VLOOKUP($B211,BASE1!$D:$S,8,FALSE))) -> 4,5/5 | G211: =IF(ISERROR(VLOOKUP($B211,BASE1!$D:$S,15,FALSE)=TRUE),"",VLOOKUP($B211,BASE1!$D:$S,15,FALSE)) -> 3/5 | H211: =IF(ISERROR(VLOOKUP($B211,BASE1!$D:$S,16,FALSE)=TRUE),"",VLOOKUP($B211,BASE1!$D:$S,16,FALSE)) -> 1/5
A212: 142 | B212: =IF(ISERROR(VLOOKUP(A212,BASE1!B:D,3,FALSE)=TRUE),"",VLOOKUP(A212,BASE1!B:D,3,FALSE)) -> 247 | D212: =IF(ISERROR(IF(B$26="Non sélectionné",VLOOKUP($B212,BASE1!$D:$S,2,FALSE),VLOOKUP($B212,BASE1!$D:$S,5,FALSE))=TRUE),"",IF(B$26="Non sélectionné",VLOOKUP($B212,BASE1!$D:$S,2,FALSE),VLOOKUP($B212,BASE1!$D:$S,5,FALSE))) -> 4,5/5 | E212: =IF(ISERROR(IF(C$26="Non sélectionné",VLOOKUP($B212,BASE1!$D:$S,3,FALSE),VLOOKUP($B212,BASE1!$D:$S,6,FALSE))=TRUE),"",IF(C$26="Non sélectionné",VLOOKUP($B212,BASE1!$D:$S,3,FALSE),VLOOKUP($B212,BASE1!$D:$S,6,FALSE))) -> 4,5/5 | F212: =IF(ISERROR(IF(E$26="Non sélectionné",VLOOKUP($B212,BASE1!$D:$S,4,FALSE),VLOOKUP($B212,BASE1!$D:$S,8,FALSE))=TRUE),"",IF(E$26="Non sélectionné",VLOOKUP($B212,BASE1!$D:$S,4,FALSE),VLOOKUP($B212,BASE1!$D:$S,8,FALSE))) -> 4/5 | G212: =IF(ISERROR(VLOOKUP($B212,BASE1!$D:$S,15,FALSE)=TRUE),"",VLOOKUP($B212,BASE1!$D:$S,15,FALSE)) -> 3,5/5 | H212: =IF(ISERROR(VLOOKUP($B212,BASE1!$D:$S,16,FALSE)=TRUE),"",VLOOKUP($B212,BASE1!$D:$S,16,FALSE)) -> 2/5
A213: 143 | B213: =IF(ISERROR(VLOOKUP(A213,BASE1!B:D,3,FALSE)=TRUE),"",VLOOKUP(A213,BASE1!B:D,3,FALSE)) -> 551 P + 551 F | D213: =IF(ISERROR(IF(B$26="Non sélectionné",VLOOKUP($B213,BASE1!$D:$S,2,FALSE),VLOOKUP($B213,BASE1!$D:$S,5,FALSE))=TRUE),"",IF(B$26="Non sélectionné",VLOOKUP($B213,BASE1!$D:$S,2,FALSE),VLOOKUP($B213,BASE1!$D:$S,5,FALSE))) -> 5/5 | E213: =IF(ISERROR(IF(C$26="Non sélectionné",VLOOKUP($B213,BASE1!$D:$S,3,FALSE),VLOOKUP($B213,BASE1!$D:$S,6,FALSE))=TRUE),"",IF(C$26="Non sélectionné",VLOOKUP($B213,BASE1!$D:$S,3,FALSE),VLOOKUP($B213,BASE1!$D:$S,6,FALSE))) -> 3,5/5 | F213: =IF(ISERROR(IF(E$26="Non sélectionné",VLOOKUP($B213,BASE1!$D:$S,4,FALSE),VLOOKUP($B213,BASE1!$D:$S,8,FALSE))=TRUE),"",IF(E$26="Non sélectionné",VLOOKUP($B213,BASE1!$D:$S,4,FALSE),VLOOKUP($B213,BASE1!$D:$S,8,FALSE))) -> 3/5 | G213: =IF(ISERROR(VLOOKUP($B213,BASE1!$D:$S,15,FALSE)=TRUE),"",VLOOKUP($B213,BASE1!$D:$S,15,FALSE)) -> 4/5 | H213: =IF(ISERROR(VLOOKUP($B213,BASE1!$D:$S,16,FALSE)=TRUE),"",VLOOKUP($B213,BASE1!$D:$S,16,FALSE)) -> 0,5/5
A214: 144 | B214: =IF(ISERROR(VLOOKUP(A214,BASE1!B:D,3,FALSE)=TRUE),"",VLOOKUP(A214,BASE1!B:D,3,FALSE)) -> 551 F | D214: =IF(ISERROR(IF(B$26="Non sélectionné",VLOOKUP($B214,BASE1!$D:$S,2,FALSE),VLOOKUP($B214,BASE1!$D:$S,5,FALSE))=TRUE),"",IF(B$26="Non sélectionné",VLOOKUP($B214,BASE1!$D:$S,2,FALSE),VLOOKUP($B214,BASE1!$D:$S,5,FALSE))) -> 5/5 | E214: =IF(ISERROR(IF(C$26="Non sélectionné",VLOOKUP($B214,BASE1!$D:$S,3,FALSE),VLOOKUP($B214,BASE1!$D:$S,6,FALSE))=TRUE),"",IF(C$26="Non sélectionné",VLOOKUP($B214,BASE1!$D:$S,3,FALSE),VLOOKUP($B214,BASE1!$D:$S,6,FALSE))) -> 3,5/5 | F214: =IF(ISERROR(IF(E$26="Non sélectionné",VLOOKUP($B214,BASE1!$D:$S,4,FALSE),VLOOKUP($B214,BASE1!$D:$S,8,FALSE))=TRUE),"",IF(E$26="Non sélectionné",VLOOKUP($B214,BASE1!$D:$S,4,FALSE),VLOOKUP($B214,BASE1!$D:$S,8,FALSE))) -> 3/5 | G214: =IF(ISERROR(VLOOKUP($B214,BASE1!$D:$S,15,FALSE)=TRUE),"",VLOOKUP($B214,BASE1!$D:$S,15,FALSE)) -> 4,5/5 | H214: =IF(ISERROR(VLOOKUP($B214,BASE1!$D:$S,16,FALSE)=TRUE),"",VLOOKUP($B214,BASE1!$D:$S,16,FALSE)) -> 1/5
A215: 145 | B215: =IF(ISERROR(VLOOKUP(A215,BASE1!B:D,3,FALSE)=TRUE),"",VLOOKUP(A215,BASE1!B:D,3,FALSE)) -> 473 | D215: =IF(ISERROR(IF(B$26="Non sélectionné",VLOOKUP($B215,BASE1!$D:$S,2,FALSE),VLOOKUP($B215,BASE1!$D:$S,5,FALSE))=TRUE),"",IF(B$26="Non sélectionné",VLOOKUP($B215,BASE1!$D:$S,2,FALSE),VLOOKUP($B215,BASE1!$D:$S,5,FALSE))) -> 2,5/5 | E215: =IF(ISERROR(IF(C$26="Non sélectionné",VLOOKUP($B215,BASE1!$D:$S,3,FALSE),VLOOKUP($B215,BASE1!$D:$S,6,FALSE))=TRUE),"",IF(C$26="Non sélectionné",VLOOKUP($B215,BASE1!$D:$S,3,FALSE),VLOOKUP($B215,BASE1!$D:$S,6,FALSE))) -> 1/5TEMPORAIRE | F215: =IF(ISERROR(IF(E$26="Non sélectionné",VLOOKUP($B215,BASE1!$D:$S,4,FALSE),VLOOKUP($B215,BASE1!$D:$S,8,FALSE))=TRUE),"",IF(E$26="Non sélectionné",VLOOKUP($B215,BASE1!$D:$S,4,FALSE),VLOOKUP($B215,BASE1!$D:$S,8,FALSE))) -> 0,5/5 | G215: =IF(ISERROR(VLOOKUP($B215,BASE1!$D:$S,15,FALSE)=TRUE),"",VLOOKUP($B215,BASE1!$D:$S,15,FALSE)) -> 5/5 | H215: =IF(ISERROR(VLOOKUP($B215,BASE1!$D:$S,16,FALSE)=TRUE),"",VLOOKUP($B215,BASE1!$D:$S,16,FALSE)) -> 5/5
A216: 146 | B216: =IF(ISERROR(VLOOKUP(A216,BASE1!B:D,3,FALSE)=TRUE),"",VLOOKUP(A216,BASE1!B:D,3,FALSE)) -> 466 | D216: =IF(ISERROR(IF(B$26="Non sélectionné",VLOOKUP($B216,BASE1!$D:$S,2,FALSE),VLOOKUP($B216,BASE1!$D:$S,5,FALSE))=TRUE),"",IF(B$26="Non sélectionné",VLOOKUP($B216,BASE1!$D:$S,2,FALSE),VLOOKUP($B216,BASE1!$D:$S,5,FALSE))) -> 3,5/5 | E216: =IF(ISERROR(IF(C$26="Non sélectionné",VLOOKUP($B216,BASE1!$D:$S,3,FALSE),VLOOKUP($B216,BASE1!$D:$S,6,FALSE))=TRUE),"",IF(C$26="Non sélectionné",VLOOKUP($B216,BASE1!$D:$S,3,FALSE),VLOOKUP($B216,BASE1!$D:$S,6,FALSE))) -> 3/5 | F216: =IF(ISERROR(IF(E$26="Non sélectionné",VLOOKUP($B216,BASE1!$D:$S,4,FALSE),VLOOKUP($B216,BASE1!$D:$S,8,FALSE))=TRUE),"",IF(E$26="Non sélectionné",VLOOKUP($B216,BASE1!$D:$S,4,FALSE),VLOOKUP($B216,BASE1!$D:$S,8,FALSE))) -> 1,5/5 | G216: =IF(ISERROR(VLOOKUP($B216,BASE1!$D:$S,15,FALSE)=TRUE),"",VLOOKUP($B216,BASE1!$D:$S,15,FALSE)) -> 5/5 | H216: =IF(ISERROR(VLOOKUP($B216,BASE1!$D:$S,16,FALSE)=TRUE),"",VLOOKUP($B216,BASE1!$D:$S,16,FALSE)) -> 5/5
A217: 147 | B217: =IF(ISERROR(VLOOKUP(A217,BASE1!B:D,3,FALSE)=TRUE),"",VLOOKUP(A217,BASE1!B:D,3,FALSE)) -> 413 AC | D217: =IF(ISERROR(IF(B$26="Non sélectionné",VLOOKUP($B217,BASE1!$D:$S,2,FALSE),VLOOKUP($B217,BASE1!$D:$S,5,FALSE))=TRUE),"",IF(B$26="Non sélectionné",VLOOKUP($B217,BASE1!$D:$S,2,FALSE),VLOOKUP($B217,BASE1!$D:$S,5,FALSE))) -> 4/5 | E217: =IF(ISERROR(IF(C$26="Non sélectionné",VLOOKUP($B217,BASE1!$D:$S,3,FALSE),VLOOKUP($B217,BASE1!$D:$S,6,FALSE))=TRUE),"",IF(C$26="Non sélectionné",VLOOKUP($B217,BASE1!$D:$S,3,FALSE),VLOOKUP($B217,BASE1!$D:$S,6,FALSE))) -> 4/5 INT | F217: =IF(ISERROR(IF(E$26="Non sélectionné",VLOOKUP($B217,BASE1!$D:$S,4,FALSE),VLOOKUP($B217,BASE1!$D:$S,8,FALSE))=TRUE),"",IF(E$26="Non sélectionné",VLOOKUP($B217,BASE1!$D:$S,4,FALSE),VLOOKUP($B217,BASE1!$D:$S,8,FALSE))) -> 2,5/5 | G217: =IF(ISERROR(VLOOKUP($B217,BASE1!$D:$S,15,FALSE)=TRUE),"",VLOOKUP($B217,BASE1!$D:$S,15,FALSE)) -> 5/5 | H217: =IF(ISERROR(VLOOKUP($B217,BASE1!$D:$S,16,FALSE)=TRUE),"",VLOOKUP($B217,BASE1!$D:$S,16,FALSE)) -> 4/5
A218: 148 | B218: =IF(ISERROR(VLOOKUP(A218,BASE1!B:D,3,FALSE)=TRUE),"",VLOOKUP(A218,BASE1!B:D,3,FALSE)) -> 419 AC | D218: =IF(ISERROR(IF(B$26="Non sélectionné",VLOOKUP($B218,BASE1!$D:$S,2,FALSE),VLOOKUP($B218,BASE1!$D:$S,5,FALSE))=TRUE),"",IF(B$26="Non sélectionné",VLOOKUP($B218,BASE1!$D:$S,2,FALSE),VLOOKUP($B218,BASE1!$D:$S,5,FALSE))) -> 4/5 | E218: =IF(ISERROR(IF(C$26="Non sélectionné",VLOOKUP($B218,BASE1!$D:$S,3,FALSE),VLOOKUP($B218,BASE1!$D:$S,6,FALSE))=TRUE),"",IF(C$26="Non sélectionné",VLOOKUP($B218,BASE1!$D:$S,3,FALSE),VLOOKUP($B218,BASE1!$D:$S,6,FALSE))) -> 4/5 INT | F218: =IF(ISERROR(IF(E$26="Non sélectionné",VLOOKUP($B218,BASE1!$D:$S,4,FALSE),VLOOKUP($B218,BASE1!$D:$S,8,FALSE))=TRUE),"",IF(E$26="Non sélectionné",VLOOKUP($B218,BASE1!$D:$S,4,FALSE),VLOOKUP($B218,BASE1!$D:$S,8,FALSE))) -> 3/5 | G218: =IF(ISERROR(VLOOKUP($B218,BASE1!$D:$S,15,FALSE)=TRUE),"",VLOOKUP($B218,BASE1!$D:$S,15,FALSE)) -> 5/5 | H218: =IF(ISERROR(VLOOKUP($B218,BASE1!$D:$S,16,FALSE)=TRUE),"",VLOOKUP($B218,BASE1!$D:$S,16,FALSE)) -> 4/5
A219: 149 | B219: =IF(ISERROR(VLOOKUP(A219,BASE1!B:D,3,FALSE)=TRUE),"",VLOOKUP(A219,BASE1!B:D,3,FALSE)) -> 448 AC | D219: =IF(ISERROR(IF(B$26="Non sélectionné",VLOOKUP($B219,BASE1!$D:$S,2,FALSE),VLOOKUP($B219,BASE1!$D:$S,5,FALSE))=TRUE),"",IF(B$26="Non sélectionné",VLOOKUP($B219,BASE1!$D:$S,2,FALSE),VLOOKUP($B219,BASE1!$D:$S,5,FALSE))) -> 5/5 | E219: =IF(ISERROR(IF(C$26="Non sélectionné",VLOOKUP($B219,BASE1!$D:$S,3,FALSE),VLOOKUP($B219,BASE1!$D:$S,6,FALSE))=TRUE),"",IF(C$26="Non sélectionné",VLOOKUP($B219,BASE1!$D:$S,3,FALSE),VLOOKUP($B219,BASE1!$D:$S,6,FALSE))) -> 5/5 INT | F219: =IF(ISERROR(IF(E$26="Non sélectionné",VLOOKUP($B219,BASE1!$D:$S,4,FALSE),VLOOKUP($B219,BASE1!$D:$S,8,FALSE))=TRUE),"",IF(E$26="Non sélectionné",VLOOKUP($B219,BASE1!$D:$S,4,FALSE),VLOOKUP($B219,BASE1!$D:$S,8,FALSE))) -> 4,5/5 | G219: =IF(ISERROR(VLOOKUP($B219,BASE1!$D:$S,15,FALSE)=TRUE),"",VLOOKUP($B219,BASE1!$D:$S,15,FALSE)) -> 3,5/5 | H219: =IF(ISERROR(VLOOKUP($B219,BASE1!$D:$S,16,FALSE)=TRUE),"",VLOOKUP($B219,BASE1!$D:$S,16,FALSE)) -> 2/5
A220: 150 | B220: =IF(ISERROR(VLOOKUP(A220,BASE1!B:D,3,FALSE)=TRUE),"",VLOOKUP(A220,BASE1!B:D,3,FALSE)) -> 553 | D220: =IF(ISERROR(IF(B$26="Non sélectionné",VLOOKUP($B220,BASE1!$D:$S,2,FALSE),VLOOKUP($B220,BASE1!$D:$S,5,FALSE))=TRUE),"",IF(B$26="Non sélectionné",VLOOKUP($B220,BASE1!$D:$S,2,FALSE),VLOOKUP($B220,BASE1!$D:$S,5,FALSE))) -> 5/5 | E220: =IF(ISERROR(IF(C$26="Non sélectionné",VLOOKUP($B220,BASE1!$D:$S,3,FALSE),VLOOKUP($B220,BASE1!$D:$S,6,FALSE))=TRUE),"",IF(C$26="Non sélectionné",VLOOKUP($B220,BASE1!$D:$S,3,FALSE),VLOOKUP($B220,BASE1!$D:$S,6,FALSE))) -> 3,5/5 | F220: =IF(ISERROR(IF(E$26="Non sélectionné",VLOOKUP($B220,BASE1!$D:$S,4,FALSE),VLOOKUP($B220,BASE1!$D:$S,8,FALSE))=TRUE),"",IF(E$26="Non sélectionné",VLOOKUP($B220,BASE1!$D:$S,4,FALSE),VLOOKUP($B220,BASE1!$D:$S,8,FALSE))) -> 3/5 | G220: =IF(ISERROR(VLOOKUP($B220,BASE1!$D:$S,15,FALSE)=TRUE),"",VLOOKUP($B220,BASE1!$D:$S,15,FALSE)) -> 4,5/5 | H220: =IF(ISERROR(VLOOKUP($B220,BASE1!$D:$S,16,FALSE)=TRUE),"",VLOOKUP($B220,BASE1!$D:$S,16,FALSE)) -> 4/5
A221: 151 | B221: =IF(ISERROR(VLOOKUP(A221,BASE1!B:D,3,FALSE)=TRUE),"",VLOOKUP(A221,BASE1!B:D,3,FALSE)) -> 552 | D221: =IF(ISERROR(IF(B$26="Non sélectionné",VLOOKUP($B221,BASE1!$D:$S,2,FALSE),VLOOKUP($B221,BASE1!$D:$S,5,FALSE))=TRUE),"",IF(B$26="Non sélectionné",VLOOKUP($B221,BASE1!$D:$S,2,FALSE),VLOOKUP($B221,BASE1!$D:$S,5,FALSE))) -> 5/5 | E221: =IF(ISERROR(IF(C$26="Non sélectionné",VLOOKUP($B221,BASE1!$D:$S,3,FALSE),VLOOKUP($B221,BASE1!$D:$S,6,FALSE))=TRUE),"",IF(C$26="Non sélectionné",VLOOKUP($B221,BASE1!$D:$S,3,FALSE),VLOOKUP($B221,BASE1!$D:$S,6,FALSE))) -> 3,5/5 | F221: =IF(ISERROR(IF(E$26="Non sélectionné",VLOOKUP($B221,BASE1!$D:$S,4,FALSE),VLOOKUP($B221,BASE1!$D:$S,8,FALSE))=TRUE),"",IF(E$26="Non sélectionné",VLOOKUP($B221,BASE1!$D:$S,4,FALSE),VLOOKUP($B221,BASE1!$D:$S,8,FALSE))) -> 3/5 | G221: =IF(ISERROR(VLOOKUP($B221,BASE1!$D:$S,15,FALSE)=TRUE),"",VLOOKUP($B221,BASE1!$D:$S,15,FALSE)) -> 4,5/5 | H221: =IF(ISERROR(VLOOKUP($B221,BASE1!$D:$S,16,FALSE)=TRUE),"",VLOOKUP($B221,BASE1!$D:$S,16,FALSE)) -> 4/5
A222: 152 | B222: =IF(ISERROR(VLOOKUP(A222,BASE1!B:D,3,FALSE)=TRUE),"",VLOOKUP(A222,BASE1!B:D,3,FALSE)) -> 462 M + 448 F | D222: =IF(ISERROR(IF(B$26="Non sélectionné",VLOOKUP($B222,BASE1!$D:$S,2,FALSE),VLOOKUP($B222,BASE1!$D:$S,5,FALSE))=TRUE),"",IF(B$26="Non sélectionné",VLOOKUP($B222,BASE1!$D:$S,2,FALSE),VLOOKUP($B222,BASE1!$D:$S,5,FALSE))) -> 3,5/5 | E222: =IF(ISERROR(IF(C$26="Non sélectionné",VLOOKUP($B222,BASE1!$D:$S,3,FALSE),VLOOKUP($B222,BASE1!$D:$S,6,FALSE))=TRUE),"",IF(C$26="Non sélectionné",VLOOKUP($B222,BASE1!$D:$S,3,FALSE),VLOOKUP($B222,BASE1!$D:$S,6,FALSE))) -> 4/5 INT | F222: =IF(ISERROR(IF(E$26="Non sélectionné",VLOOKUP($B222,BASE1!$D:$S,4,FALSE),VLOOKUP($B222,BASE1!$D:$S,8,FALSE))=TRUE),"",IF(E$26="Non sélectionné",VLOOKUP($B222,BASE1!$D:$S,4,FALSE),VLOOKUP($B222,BASE1!$D:$S,8,FALSE))) -> 4,5/5 | G222: =IF(ISERROR(VLOOKUP($B222,BASE1!$D:$S,15,FALSE)=TRUE),"",VLOOKUP($B222,BASE1!$D:$S,15,FALSE)) -> 3/5 | H222: =IF(ISERROR(VLOOKUP($B222,BASE1!$D:$S,16,FALSE)=TRUE),"",VLOOKUP($B222,BASE1!$D:$S,16,FALSE)) -> 1/5
A223: 153 | B223: =IF(ISERROR(VLOOKUP(A223,BASE1!B:D,3,FALSE)=TRUE),"",VLOOKUP(A223,BASE1!B:D,3,FALSE)) -> 462 M + 472 AR | D223: =IF(ISERROR(IF(B$26="Non sélectionné",VLOOKUP($B223,BASE1!$D:$S,2,FALSE),VLOOKUP($B223,BASE1!$D:$S,5,FALSE))=TRUE),"",IF(B$26="Non sélectionné",VLOOKUP($B223,BASE1!$D:$S,2,FALSE),VLOOKUP($B223,BASE1!$D:$S,5,FALSE))) -> 3,5/5 | E223: =IF(ISERROR(IF(C$26="Non sélectionné",VLOOKUP($B223,BASE1!$D:$S,3,FALSE),VLOOKUP($B223,BASE1!$D:$S,6,FALSE))=TRUE),"",IF(C$26="Non sélectionné",VLOOKUP($B223,BASE1!$D:$S,3,FALSE),VLOOKUP($B223,BASE1!$D:$S,6,FALSE))) -> 4/5 INT | F223: =IF(ISERROR(IF(E$26="Non sélectionné",VLOOKUP($B223,BASE1!$D:$S,4,FALSE),VLOOKUP($B223,BASE1!$D:$S,8,FALSE))=TRUE),"",IF(E$26="Non sélectionné",VLOOKUP($B223,BASE1!$D:$S,4,FALSE),VLOOKUP($B223,BASE1!$D:$S,8,FALSE))) -> 3/5 | G223: =IF(ISERROR(VLOOKUP($B223,BASE1!$D:$S,15,FALSE)=TRUE),"",VLOOKUP($B223,BASE1!$D:$S,15,FALSE)) -> 3/5 | H223: =IF(ISERROR(VLOOKUP($B223,BASE1!$D:$S,16,FALSE)=TRUE),"",VLOOKUP($B223,BASE1!$D:$S,16,FALSE)) -> 2,5/5
A224: 154 | B224: =IF(ISERROR(VLOOKUP(A224,BASE1!B:D,3,FALSE)=TRUE),"",VLOOKUP(A224,BASE1!B:D,3,FALSE)) ->  | D224: =IF(ISERROR(IF(B$26="Non sélectionné",VLOOKUP($B224,BASE1!$D:$S,2,FALSE),VLOOKUP($B224,BASE1!$D:$S,5,FALSE))=TRUE),"",IF(B$26="Non sélectionné",VLOOKUP($B224,BASE1!$D:$S,2,FALSE),VLOOKUP($B224,BASE1!$D:$S,5,FALSE))) ->  | E224: =IF(ISERROR(IF(C$26="Non sélectionné",VLOOKUP($B224,BASE1!$D:$S,3,FALSE),VLOOKUP($B224,BASE1!$D:$S,6,FALSE))=TRUE),"",IF(C$26="Non sélectionné",VLOOKUP($B224,BASE1!$D:$S,3,FALSE),VLOOKUP($B224,BASE1!$D:$S,6,FALSE))) ->  | F224: =IF(ISERROR(IF(E$26="Non sélectionné",VLOOKUP($B224,BASE1!$D:$S,4,FALSE),VLOOKUP($B224,BASE1!$D:$S,8,FALSE))=TRUE),"",IF(E$26="Non sélectionné",VLOOKUP($B224,BASE1!$D:$S,4,FALSE),VLOOKUP($B224,BASE1!$D:$S,8,FALSE))) ->  | G224: =IF(ISERROR(VLOOKUP($B224,BASE1!$D:$S,15,FALSE)=TRUE),"",VLOOKUP($B224,BASE1!$D:$S,15,FALSE)) ->  | H224: =IF(ISERROR(VLOOKUP($B224,BASE1!$D:$S,16,FALSE)=TRUE),"",VLOOKUP($B224,BASE1!$D:$S,16,FALSE)) -> 
... 46 more rows

Sheet BASE1
D1: = saisie d'une note / 5 | J1: 1 | T1: =+HLOOKUP(T2,CONFIG.!$B$24:$K$25,2,FALSE) -> NATURE DU SUPPORT | BC1: =+HLOOKUP(BC2,CONFIG.!$B$24:$K$25,2,FALSE) -> EXPOSITION | CL1: =+HLOOKUP(CL2,CONFIG.!$B$24:$K$25,2,FALSE) -> COMPOSITION | DU1: =+HLOOKUP(DU2,CONFIG.!$B$24:$K$25,2,FALSE) -> RESISTANCES | FD1: =+HLOOKUP(FD2,CONFIG.!$B$24:$K$25,2,FALSE) -> TYPE D'APPLICATION | GM1: =+HLOOKUP(GM2,CONFIG.!$B$24:$K$25,2,FALSE) -> BRILLANCE | HV1: =+HLOOKUP(HV2,CONFIG.!$B$24:$K$25,2,FALSE) -> TEINTES, VERNIS, PRIMAIRE … | JE1: =+HLOOKUP(JE2,CONFIG.!$B$24:$K$25,2,FALSE) -> SPECIFICITES TECHNIQUES | KN1: =+HLOOKUP(KN2,CONFIG.!$B$24:$K$25,2,FALSE) -> SECTEURS D'ACTIVITES | LW1: =+HLOOKUP(LW2,CONFIG.!$B$24:$K$25,2,FALSE) -> ASPECTS
D2: = saisie par un X | T2: 2 | U2: =(T2)/1 -> 2 | V2: 2 | W2: 2 | X2: 2 | Y2: 2 | Z2: 2 | AA2: 2 | AB2: 2 | AC2: 2 | AD2: 2 | AE2: 2 | AF2: 2 | AG2: 2 | AH2: 2 | AI2: 2 | AJ2: 2 | AK2: 2 | AL2: 2 | AM2: 2 | AN2: 2 | AO2: 2 | AP2: 2 | AQ2: 2 | AR2: 2 | AS2: =AR2 -> 2 | AT2: 2 | AU2: 2 | AV2: 2 | AW2: =AV2 -> 2 | AX2: 2 | AY2: 2 | AZ2: 2 | BA2: 2 | BB2: 2 | BC2: 3 | BD2: =BC2 -> 3 | BE2: =BD2 -> 3 | BF2: 3 | BG2: 3 | BH2: 3 | BI2: 3 | BJ2: 3 | BK2: 3 | BL2: 3 | BM2: 3 | BN2: 3 | BO2: 3 | BP2: 3 | BQ2: 3 | BR2: 3 | BS2: 3 | BT2: 3 | BU2: 3 | BV2: 3 | BW2: 3 | BX2: 3 | BY2: 3 | BZ2: 3 | CA2: 3 | CB2: 3 | CC2: 3 | CD2: 3 | CE2: 3 | CF2: 3 | CG2: 3 | CH2: 3 | CI2: 3 | CJ2: 3 | CK2: 3 | CL2: 4 | CM2: =CL2 -> 4 | CN2: =CM2 -> 4 | CO2: 4 | CP2: 4 | CQ2: 4 | CR2: 4 | CS2: 4 | CT2: 4 | CU2: 4 | CV2: 4 | CW2: 4 | CX2: 4 | CY2: 4 | CZ2: 4 | DA2: 4 | DB2: 4 | DC2: 4 | DD2: 4 | DE2: 4 | DF2: 4 | DG2: 4 | DH2: 4 | DI2: 4 | DJ2: 4 | DK2: 4 | DL2: 4 | DM2: 4 | DN2: 4 | DO2: 4 | DP2: 4 | DQ2: 4 | DR2: 4 | DS2: 4 | DT2: 4 | DU2: =CL2+1 -> 5 | DV2: =DU2 -> 5 | DW2: =DV2 -> 5 | DX2: 5 | DY2: 5 | DZ2: 5 | EA2: 5 | EB2: 5 | EC2: 5 | ED2: 5 | EE2: 5 | EF2: 5 | EG2: 5 | EH2: 5 | EI2: 5 | EJ2: 5 | EK2: 5 | EL2: 5 | EM2: 5 | EN2: 5 | EO2: 5 | EP2: 5 | EQ2: 5 | ER2: 5 | ES2: 5 | ET2: 5 | EU2: 5 | EV2: 5 | EW2: 5 | EX2: 5 | EY2: 5 | EZ2: 5 | FA2: 5 | FB2: 5 | FC2: 5 | FD2: =DU2+1 -> 6 | FE2: =FD2 -> 6 | FF2: =FE2 -> 6 | FG2: 6 | FH2: 6 | FI2: 6 | FJ2: 6 | FK2: 6 | FL2: 6 | FM2: 6 | FN2: 6 | FO2: 6 | FP2: 6 | FQ2: 6 | FR2: 6 | FS2: 6 | FT2: 6 | FU2: 6 | FV2: 6 | FW2: 6 | FX2: 6 | FY2: 6 | FZ2: 6 | GA2: 6 | GB2: 6 | GC2: 6 | GD2: 6 | GE2: 6 | GF2: 6 | GG2: 6 | GH2: 6 | GI2: 6 | GJ2: 6 | GK2: 6 | GL2: 6 | GM2: =FD2+1 -> 7 | GN2: =GM2 -> 7 | GO2: =GN2 -> 7 | GP2: 7 | GQ2: 7 | GR2: 7 | GS2: 7 | GT2: 7 | GU2: 7 | GV2: 7 | GW2: 7 | GX2: 7 | GY2: 7 | GZ2: 7 | HA2: 7 | HB2: 7 | HC2: 7 | HD2: 7 | HE2: 7 | HF2: 7 | HG2: 7 | HH2: 7 | HI2: 7 | HJ2: 7 | HK2: 7 | HL2: 7 | HM2: 7 | HN2: 7 | HO2: 7 | HP2: 7 | HQ2: 7 | HR2: 7 | HS2: 7 | HT2: 7 | HU2: 7 | HV2: =GM2+1 -> 8 | HW2: =HV2 -> 8 | HX2: =HW2 -> 8 | HY2: 8 | HZ2: 8 | IA2: 8 | IB2: 8 | IC2: 8 | ID2: 8 | IE2: 8 | IF2: 8 | IG2: 8 | IH2: 8 | II2: 8 | IJ2: 8 | IK2: 8 | IL2: 8 | IM2: 8 | IN2: 8 | IO2: 8 | IP2: 8 | IQ2: 8 | IR2: 8 | IS2: 8 | IT2: 8 | IU2: 8 | IV2: 8 | IW2: 8 | IX2: 8 | IY2: 8 | IZ2: 8 | JA2: 8 | JB2: 8 | JC2: 8 | JD2: 8 | JE2: =HV2+1 -> 9 | JF2: =JE2 -> 9 | JG2: =JF2 -> 9 | JH2: 9 | JI2: 9 | JJ2: 9 | JK2: 9 | JL2: 9 | JM2: 9 | JN2: 9 | JO2: 9 | JP2: 9 | JQ2: 9 | JR2: 9 | JS2: 9 | JT2: 9 | JU2: 9 | JV2: 9 | JW2: 9 | JX2: 9 | JY2: 9 | JZ2: 9 | KA2: 9 | KB2: 9 | KC2: 9 | KD2: 9 | KE2: 9 | KF2: 9 | KG2: 9 | KH2: 9 | KI2: 9 | KJ2: 9 | KK2: 9 | KL2: 9 | KM2: 9 | KN2: =JE2+1 -> 10 | KO2: =KN2 -> 10 | KP2: =KO2 -> 10 | KQ2: 10 | KR2: 10 | KS2: 10 | KT2: 10 | KU2: 10 | KV2: 10 | KW2: 10 | KX2: 10 | KY2: 10 | KZ2: 10 | LA2: 10 | LB2: 10 | LC2: 10 | LD2: 10 | LE2: 10 | LF2: 10 | LG2: 10 | LH2: 10 | LI2: 10 | LJ2: 10 | LK2: 10 | LL2: 10 | LM2: 10 | LN2: 10 | LO2: 10 | LP2: 10 | LQ2: 10 | LR2: 10 | LS2: 10 | LT2: 10 | LU2: 10 | LV2: 10 | LW2: =KN2+1 -> 11 | LX2: =LW2 -> 11 | LY2: =LX2 -> 11 | LZ2: 11 | MA2: 11 | MB2: 11 | MC2: 11 | MD2: 11 | ME2: 11 | MF2: 11 | MG2: 11 | MH2: 11 | MI2: 11 | MJ2: 11 | MK2: 11 | ML2: 11 | MM2: 11 | MN2: 11 | MO2: 11 | MP2: 11 | MQ2: 11 | MR2: 11 | MS2: 11 | MT2: 11 | MU2: 11 | MV2: 11 | MW2: 11 | MX2: 11 | MY2: 11 | MZ2: 11 | NA2: 11 | NB2: 11 | NC2: 11 | ND2: 11 | NE2: 11
T3: 2 | U3: =(T3+1)/1 -> 3 | V3: 4 | W3: 5 | X3: 6 | Y3: 7 | Z3: 8 | AA3: 9 | AB3: 10 | AC3: 11 | AD3: 12 | AE3: 13 | AF3: 14 | AG3: 15 | AH3: 16 | AI3: 17 | AJ3: 18 | AK3: 19 | AL3: 20 | AM3: 21 | AN3: 22 | AO3: 23 | AP3: 24 | AQ3: 25 | AR3: 26 | AS3: =AR3+1 -> 27 | AT3: 28 | AU3: 29 | AV3: 30 | AW3: =AV3+1 -> 31 | AX3: 32 | AY3: 33 | AZ3: 34 | BA3: 35 | BB3: 36 | BC3: 2 | BD3: =BC3+1 -> 3 | BE3: =BD3+1 -> 4 | BF3: 5 | BG3: 6 | BH3: 7 | BI3: 8 | BJ3: 9 | BK3: 10 | BL3: 11 | BM3: 12 | BN3: 13 | BO3: 14 | BP3: 15 | BQ3: 16 | BR3: 17 | BS3: 18 | BT3: 19 | BU3: 20 | BV3: 21 | BW3: 22 | BX3: 23 | BY3: 24 | BZ3: 25 | CA3: 26 | CB3: 27 | CC3: 28 | CD3: 29 | CE3: 30 | CF3: 31 | CG3: 32 | CH3: 33 | CI3: 34 | CJ3: 35 | CK3: 36 | CL3: 2 | CM3: =CL3+1 -> 3 | CN3: =CM3+1 -> 4 | CO3: 5 | CP3: 6 | CQ3: 7 | CR3: 8 | CS3: 9 | CT3: 10 | CU3: 11 | CV3: 12 | CW3: 13 | CX3: 14 | CY3: 15 | CZ3: 16 | DA3: 17 | DB3: 18 | DC3: 19 | DD3: 20 | DE3: 21 | DF3: 22 | DG3: 23 | DH3: 24 | DI3: 25 | DJ3: 26 | DK3: 27 | DL3: 28 | DM3: 29 | DN3: 30 | DO3: 31 | DP3: 32 | DQ3: 33 | DR3: 34 | DS3: 35 | DT3: 36 | DU3: 2 | DV3: =DU3+1 -> 3 | DW3: =DV3+1 -> 4 | DX3: 5 | DY3: 6 | DZ3: 7 | EA3: 8 | EB3: 9 | EC3: 10 | ED3: 11 | EE3: 12 | EF3: 13 | EG3: 14 | EH3: 15 | EI3: 16 | EJ3: 17 | EK3: 18 | EL3: 19 | EM3: 20 | EN3: 21 | EO3: 22 | EP3: 23 | EQ3: 24 | ER3: 25 | ES3: 26 | ET3: 27 | EU3: 28 | EV3: 29 | EW3: 30 | EX3: 31 | EY3: 32 | EZ3: 33 | FA3: 34 | FB3: 35 | FC3: 36 | FD3: 2 | FE3: =FD3+1 -> 3 | FF3: =FE3+1 -> 4 | FG3: 5 | FH3: 6 | FI3: 7 | FJ3: 8 | FK3: 9 | FL3: 10 | FM3: 11 | FN3: 12 | FO3: 13 | FP3: 14 | FQ3: 15 | FR3: 16 | FS3: 17 | FT3: 18 | FU3: 19 | FV3: 20 | FW3: 21 | FX3: 22 | FY3: 23 | FZ3: 24 | GA3: 25 | GB3: 26 | GC3: 27 | GD3: 28 | GE3: 29 | GF3: 30 | GG3: 31 | GH3: 32 | GI3: 33 | GJ3: 34 | GK3: 35 | GL3: 36 | GM3: 2 | GN3: =GM3+1 -> 3 | GO3: =GN3+1 -> 4 | GP3: 5 | GQ3: 6 | GR3: 7 | GS3: 8 | GT3: 9 | GU3: 10 | GV3: 11 | GW3: 12 | GX3: 13 | GY3: 14 | GZ3: 15 | HA3: 16 | HB3: 17 | HC3: 18 | HD3: 19 | HE3: 20 | HF3: 21 | HG3: 22 | HH3: 23 | HI3: 24 | HJ3: 25 | HK3: 26 | HL3: 27 | HM3: 28 | HN3: 29 | HO3: 30 | HP3: 31 | HQ3: 32 | HR3: 33 | HS3: 34 | HT3: 35 | HU3: 36 | HV3: 2 | HW3: =HV3+1 -> 3 | HX3: =HW3+1 -> 4 | HY3: 5 | HZ3: 6 | IA3: 7 | IB3: 8 | IC3: 9 | ID3: 10 | IE3: 11 | IF3: 12 | IG3: 13 | IH3: 14 | II3: 15 | IJ3: 16 | IK3: 17 | IL3: 18 | IM3: 19 | IN3: 20 | IO3: 21 | IP3: 22 | IQ3: 23 | IR3: 24 | IS3: 25 | IT3: 26 | IU3: 27 | IV3: 28 | IW3: 29 | IX3: 30 | IY3: 31 | IZ3: 32 | JA3: 33 | JB3: 34 | JC3: 35 | JD3: 36 | JE3: 2 | JF3: =JE3+1 -> 3 | JG3: =JF3+1 -> 4 | JH3: 5 | JI3: 6 | JJ3: 7 | JK3: 8 | JL3: 9 | JM3: 10 | JN3: 11 | JO3: 12 | JP3: 13 | JQ3: 14 | JR3: 15 | JS3: 16 | JT3: 17 | JU3: 18 | JV3: 19 | JW3: 20 | JX3: 21 | JY3: 22 | JZ3: 23 | KA3: 24 | KB3: 25 | KC3: 26 | KD3: 27 | KE3: 28 | KF3: 29 | KG3: 30 | KH3: 31 | KI3: 32 | KJ3: 33 | KK3: 34 | KL3: 35 | KM3: 36 | KN3: 2 | KO3: =KN3+1 -> 3 | KP3: =KO3+1 -> 4 | KQ3: 5 | KR3: 6 | KS3: 7 | KT3: 8 | KU3: 9 | KV3: 10 | KW3: 11 | KX3: 12 | KY3: 13 | KZ3: 14 | LA3: 15 | LB3: 16 | LC3: 17 | LD3: 18 | LE3: 19 | LF3: 20 | LG3: 21 | LH3: 22 | LI3: 23 | LJ3: 24 | LK3: 25 | LL3: 26 | LM3: 27 | LN3: 28 | LO3: 29 | LP3: 30 | LQ3: 31 | LR3: 32 | LS3: 33 | LT3: 34 | LU3: 35 | LV3: 36 | LW3: 2 | LX3: =LW3+1 -> 3 | LY3: =LX3+1 -> 4 | LZ3: 5 | MA3: 6 | MB3: 7 | MC3: 8 | MD3: 9 | ME3: 10 | MF3: 11 | MG3: 12 | MH3: 13 | MI3: 14 | MJ3: 15 | MK3: 16 | ML3: 17 | MM3: 18 | MN3: 19 | MO3: 20 | MP3: 21 | MQ3: 22 | MR3: 23 | MS3: 24 | MT3: 25 | MU3: 26 | MV3: 27 | MW3: 28 | MX3: 29 | MY3: 30 | MZ3: 31 | NA3: 32 | NB3: 33 | NC3: 34 | ND3: 35 | NE3: 36
D4: LISTE PRODUITS et SYSTEMES | E4: =H4 -> NATURE DU SUPPORT | F4: =I4 -> EXPOSITION | G4: =K4 -> RESISTANCES | H4: =CONFIG.!B25 -> NATURE DU SUPPORT | I4: =CONFIG.!C25 -> EXPOSITION | J4: =CONFIG.!D25 -> COMPOSITION | K4: =CONFIG.!E25 -> RESISTANCES | L4: =CONFIG.!F25 -> TYPE D'APPLICATION | M4: =CONFIG.!G25 -> BRILLANCE | N4: =CONFIG.!H25 -> TEINTES, VERNIS, PRIMAIRE … | O4: =CONFIG.!I25 -> SPECIFICITES TECHNIQUES | P4: =CONFIG.!J25 -> SECTEURS D'ACTIVITES | Q4: =CONFIG.!K25 -> ASPECTS | R4: =CONFIG.!G70 -> SIMPLICITE Mise en Œuvre | S4: =CONFIG.!H70 -> Niveau de prix | T4: =VLOOKUP(T3,CONFIG.!$A:$Z,BASE1!T2,FALSE) -> Acier brut et trempé / phosphaté | U4: =VLOOKUP(U3,CONFIG.!$A:$Z,BASE1!U2,FALSE) -> Acier électro zingué. | V4: =VLOOKUP(V3,CONFIG.!$A:$Z,BASE1!V2,FALSE) -> Acier galvanisé à chaud. | W4: =VLOOKUP(W3,CONFIG.!$A:$Z,BASE1!W2,FALSE) -> Acier laminé à froid, tôlerie fine / phosphaté | X4: =VLOOKUP(X3,CONFIG.!$A:$Z,BASE1!X2,FALSE) -> Acier métallisé au zinc / aluminium. | Y4: =VLOOKUP(Y3,CONFIG.!$A:$Z,BASE1!Y2,FALSE) -> Aluminium. | Z4: =VLOOKUP(Z3,CONFIG.!$A:$Z,BASE1!Z2,FALSE) -> Anciens fonds de peintures insensibles aux solvants | AA4: =VLOOKUP(AA3,CONFIG.!$A:$Z,BASE1!AA2,FALSE) -> Anciens fonds de peintures sensibles aux solvants | AB4: =VLOOKUP(AB3,CONFIG.!$A:$Z,BASE1!AB2,FALSE) -> Bétons non poreux. | AC4: =VLOOKUP(AC3,CONFIG.!$A:$Z,BASE1!AC2,FALSE) -> Bétons poreux. | AD4: =VLOOKUP(AD3,CONFIG.!$A:$Z,BASE1!AD2,FALSE) -> Bois à tanin | AE4: =VLOOKUP(AE3,CONFIG.!$A:$Z,BASE1!AE2,FALSE) -> Bois absorbant | AF4: =VLOOKUP(AF3,CONFIG.!$A:$Z,BASE1!AF2,FALSE) -> Bois contreplaqué | AG4: =VLOOKUP(AG3,CONFIG.!$A:$Z,BASE1!AG2,FALSE) -> Bois Médium | AH4: =VLOOKUP(AH3,CONFIG.!$A:$Z,BASE1!AH2,FALSE) -> Bois non absorbant type imputrescible | AI4: =VLOOKUP(AI3,CONFIG.!$A:$Z,BASE1!AI2,FALSE) -> Bois OSB | AJ4: =VLOOKUP(AJ3,CONFIG.!$A:$Z,BASE1!AJ2,FALSE) -> Briques / pierres naturelles | AK4: =VLOOKUP(AK3,CONFIG.!$A:$Z,BASE1!AK2,FALSE) -> Cartons | AL4: =VLOOKUP(AL3,CONFIG.!$A:$Z,BASE1!AL2,FALSE) -> Chaux | AM4: =VLOOKUP(AM3,CONFIG.!$A:$Z,BASE1!AM2,FALSE) -> Ciment / ragréage | AN4: =VLOOKUP(AN3,CONFIG.!$A:$Z,BASE1!AN2,FALSE) -> Enduits minéraux | AO4: =VLOOKUP(AO3,CONFIG.!$A:$Z,BASE1!AO2,FALSE) -> Fermacell | AP4: =VLOOKUP(AP3,CONFIG.!$A:$Z,BASE1!AP2,FALSE) -> Fonte d'aluminium. | AQ4: =VLOOKUP(AQ3,CONFIG.!$A:$Z,BASE1!AQ2,FALSE) -> Fonte. | AR4: =VLOOKUP(AR3,CONFIG.!$A:$Z,BASE1!AR2,FALSE) -> Inox. | AS4: =VLOOKUP(AS3,CONFIG.!$A:$Z,BASE1!AS2,FALSE) -> Laiton et plomb. | AT4: =VLOOKUP(AT3,CONFIG.!$A:$Z,BASE1!AT2,FALSE) -> Les Elastomères, bâches | AU4: =VLOOKUP(AU3,CONFIG.!$A:$Z,BASE1!AU2,FALSE) -> Plastiques Polypropylène | AV4: =VLOOKUP(AV3,CONFIG.!$A:$Z,BASE1!AV2,FALSE) -> Plastiques Thermodurcissables (nature : aminoplaste / polyester / polyuréthanne / polyurée / phénolique / époxydique) | AW4: =VLOOKUP(AW3,CONFIG.!$A:$Z,BASE1!AW2,FALSE) -> Plastiques Thermoplastiques (PS / ABS / SAN / PE / PVC / PA / PMMA) | AX4: =VLOOKUP(AX3,CONFIG.!$A:$Z,BASE1!AX2,FALSE) -> Plâtre et Placoplâtre. | AY4: =VLOOKUP(AY3,CONFIG.!$A:$Z,BASE1!AY2,FALSE) -> Supports taggés / graffités | AZ4: =VLOOKUP(AZ3,CONFIG.!$A:$Z,BASE1!AZ2,FALSE) -> Zamak. | BA4: =VLOOKUP(BA3,CONFIG.!$A:$Z,BASE1!BA2,FALSE) -> Support végétal / animal : (herbe, arbre, mouton …) | BB4: =VLOOKUP(BB3,CONFIG.!$A:$Z,BASE1!BB2,FALSE) -> 0 | BC4: =VLOOKUP(BC3,CONFIG.!$A:$Z,BASE1!BC2,FALSE) -> EXTERIEUR | BD4: =VLOOKUP(BD3,CONFIG.!$A:$Z,BASE1!BD2,FALSE) -> IMMERGEE | BE4: =VLOOKUP(BE3,CONFIG.!$A:$Z,BASE1!BE2,FALSE) -> INTERIEUR | BF4: =VLOOKUP(BF3,CONFIG.!$A:$Z,BASE1!BF2,FALSE) -> PRIMAIRE avant FINITION | BG4: =VLOOKUP(BG3,CONFIG.!$A:$Z,BASE1!BG2,FALSE) -> 0 | BH4: =VLOOKUP(BH3,CONFIG.!$A:$Z,BASE1!BH2,FALSE) -> 0 | BI4: =VLOOKUP(BI3,CONFIG.!$A:$Z,BASE1!BI2,FALSE) -> 0 | BJ4: =VLOOKUP(BJ3,CONFIG.!$A:$Z,BASE1!BJ2,FALSE) -> 0 | BK4: =VLOOKUP(BK3,CONFIG.!$A:$Z,BASE1!BK2,FALSE) -> 0 | BL4: =VLOOKUP(BL3,CONFIG.!$A:$Z,BASE1!BL2,FALSE) -> 0 | BM4: =VLOOKUP(BM3,CONFIG.!$A:$Z,BASE1!BM2,FALSE) -> 0 | BN4: =VLOOKUP(BN3,CONFIG.!$A:$Z,BASE1!BN2,FALSE) -> 0 | BO4: =VLOOKUP(BO3,CONFIG.!$A:$Z,BASE1!BO2,FALSE) -> 0 | BP4: =VLOOKUP(BP3,CONFIG.!$A:$Z,BASE1!BP2,FALSE) -> 0 | BQ4: =VLOOKUP(BQ3,CONFIG.!$A:$Z,BASE1!BQ2,FALSE) -> 0 | BR4: =VLOOKUP(BR3,CONFIG.!$A:$Z,BASE1!BR2,FALSE) -> 0 | BS4: =VLOOKUP(BS3,CONFIG.!$A:$Z,BASE1!BS2,FALSE) -> 0 | BT4: =VLOOKUP(BT3,CONFIG.!$A:$Z,BASE1!BT2,FALSE) -> 0 | BU4: =VLOOKUP(BU3,CONFIG.!$A:$Z,BASE1!BU2,FALSE) -> 0 | BV4: =VLOOKUP(BV3,CONFIG.!$A:$Z,BASE1!BV2,FALSE) -> 0 | BW4: =VLOOKUP(BW3,CONFIG.!$A:$Z,BASE1!BW2,FALSE) -> 0 | BX4: =VLOOKUP(BX3,CONFIG.!$A:$Z,BASE1!BX2,FALSE) -> 0 | BY4: =VLOOKUP(BY3,CONFIG.!$A:$Z,BASE1!BY2,FALSE) -> 0 | BZ4: =VLOOKUP(BZ3,CONFIG.!$A:$Z,BASE1!BZ2,FALSE) -> 0 | CA4: =VLOOKUP(CA3,CONFIG.!$A:$Z,BASE1!CA2,FALSE) -> 0 | CB4: =VLOOKUP(CB3,CONFIG.!$A:$Z,BASE1!CB2,FALSE) -> 0 | CC4: =VLOOKUP(CC3,CONFIG.!$A:$Z,BASE1!CC2,FALSE) -> 0 | CD4: =VLOOKUP(CD3,CONFIG.!$A:$Z,BASE1!CD2,FALSE) -> 0 | CE4: =VLOOKUP(CE3,CONFIG.!$A:$Z,BASE1!CE2,FALSE) -> 0 | CF4: =VLOOKUP(CF3,CONFIG.!$A:$Z,BASE1!CF2,FALSE) -> 0 | CG4: =VLOOKUP(CG3,CONFIG.!$A:$Z,BASE1!CG2,FALSE) -> 0 | CH4: =VLOOKUP(CH3,CONFIG.!$A:$Z,BASE1!CH2,FALSE) -> 0 | CI4: =VLOOKUP(CI3,CONFIG.!$A:$Z,BASE1!CI2,FALSE) -> 0 | CJ4: =VLOOKUP(CJ3,CONFIG.!$A:$Z,BASE1!CJ2,FALSE) -> 0 | CK4: =VLOOKUP(CK3,CONFIG.!$A:$Z,BASE1!CK2,FALSE) -> 0 | CL4: =VLOOKUP(CL3,CONFIG.!$A:$Z,BASE1!CL2,FALSE) -> 100 % Extrait sec (sans solvant / sans eau) | CM4: =VLOOKUP(CM3,CONFIG.!$A:$Z,BASE1!CM2,FALSE) -> A BASE DE MATIERES NATURELLES | CN4: =VLOOKUP(CN3,CONFIG.!$A:$Z,BASE1!CN2,FALSE) -> FAIBLE COV | CO4: =VLOOKUP(CO3,CONFIG.!$A:$Z,BASE1!CO2,FALSE) -> HYDRO | CP4: =VLOOKUP(CP3,CONFIG.!$A:$Z,BASE1!CP2,FALSE) -> SOLVANTE | CQ4: =VLOOKUP(CQ3,CONFIG.!$A:$Z,BASE1!CQ2,FALSE) -> 0 | CR4: =VLOOKUP(CR3,CONFIG.!$A:$Z,BASE1!CR2,FALSE) -> 0 | CS4: =VLOOKUP(CS3,CONFIG.!$A:$Z,BASE1!CS2,FALSE) -> 0 | CT4: =VLOOKUP(CT3,CONFIG.!$A:$Z,BASE1!CT2,FALSE) -> 0 | CU4: =VLOOKUP(CU3,CONFIG.!$A:$Z,BASE1!CU2,FALSE) -> 0 | CV4: =VLOOKUP(CV3,CONFIG.!$A:$Z,BASE1!CV2,FALSE) -> 0 | CW4: =VLOOKUP(CW3,CONFIG.!$A:$Z,BASE1!CW2,FALSE) -> 0 | CX4: =VLOOKUP(CX3,CONFIG.!$A:$Z,BASE1!CX2,FALSE) -> 0 | CY4: =VLOOKUP(CY3,CONFIG.!$A:$Z,BASE1!CY2,FALSE) -> 0 | CZ4: =VLOOKUP(CZ3,CONFIG.!$A:$Z,BASE1!CZ2,FALSE) -> 0 | DA4: =VLOOKUP(DA3,CONFIG.!$A:$Z,BASE1!DA2,FALSE) -> 0 | DB4: =VLOOKUP(DB3,CONFIG.!$A:$Z,BASE1!DB2,FALSE) -> 0 | DC4: =VLOOKUP(DC3,CONFIG.!$A:$Z,BASE1!DC2,FALSE) -> 0 | DD4: =VLOOKUP(DD3,CONFIG.!$A:$Z,BASE1!DD2,FALSE) -> 0 | DE4: =VLOOKUP(DE3,CONFIG.!$A:$Z,BASE1!DE2,FALSE) -> 0 | DF4: =VLOOKUP(DF3,CONFIG.!$A:$Z,BASE1!DF2,FALSE) -> 0 | DG4: =VLOOKUP(DG3,CONFIG.!$A:$Z,BASE1!DG2,FALSE) -> 0 | DH4: =VLOOKUP(DH3,CONFIG.!$A:$Z,BASE1!DH2,FALSE) -> 0 | DI4: =VLOOKUP(DI3,CONFIG.!$A:$Z,BASE1!DI2,FALSE) -> 0 | DJ4: =VLOOKUP(DJ3,CONFIG.!$A:$Z,BASE1!DJ2,FALSE) -> 0 | DK4: =VLOOKUP(DK3,CONFIG.!$A:$Z,BASE1!DK2,FALSE) -> 0 | DL4: =VLOOKUP(DL3,CONFIG.!$A:$Z,BASE1!DL2,FALSE) -> 0 | DM4: =VLOOKUP(DM3,CONFIG.!$A:$Z,BASE1!DM2,FALSE) -> 0 | DN4: =VLOOKUP(DN3,CONFIG.!$A:$Z,BASE1!DN2,FALSE) -> 0 | DO4: =VLOOKUP(DO3,CONFIG.!$A:$Z,BASE1!DO2,FALSE) -> 0 | DP4: =VLOOKUP(DP3,CONFIG.!$A:$Z,BASE1!DP2,FALSE) -> 0 | DQ4: =VLOOKUP(DQ3,CONFIG.!$A:$Z,BASE1!DQ2,FALSE) -> 0 | DR4: =VLOOKUP(DR3,CONFIG.!$A:$Z,BASE1!DR2,FALSE) -> 0 | DS4: =VLOOKUP(DS3,CONFIG.!$A:$Z,BASE1!DS2,FALSE) -> 0 | DT4: =VLOOKUP(DT3,CONFIG.!$A:$Z,BASE1!DT2,FALSE) -> 0 | DU4: =VLOOKUP(DU3,CONFIG.!$A:$Z,BASE1!DU2,FALSE) -> ABRASION | DV4: =VLOOKUP(DV3,CONFIG.!$A:$Z,BASE1!DV2,FALSE) -> CHIMIQUE | DW4: =VLOOKUP(DW3,CONFIG.!$A:$Z,BASE1!DW2,FALSE) -> Température 200 °C | DX4: =VLOOKUP(DX3,CONFIG.!$A:$Z,BASE1!DX2,FALSE) -> Température 250/300 °C | DY4: =VLOOKUP(DY3,CONFIG.!$A:$Z,BASE1!DY2,FALSE) -> Température 550/600 °C | DZ4: =VLOOKUP(DZ3,CONFIG.!$A:$Z,BASE1!DZ2,FALSE) -> ULTRA VIOLET | EA4: =VLOOKUP(EA3,CONFIG.!$A:$Z,BASE1!EA2,FALSE) -> 0 | EB4: =VLOOKUP(EB3,CONFIG.!$A:$Z,BASE1!EB2,FALSE) -> 0 | EC4: =VLOOKUP(EC3,CONFIG.!$A:$Z,BASE1!EC2,FALSE) -> 0 | ED4: =VLOOKUP(ED3,CONFIG.!$A:$Z,BASE1!ED2,FALSE) -> 0 | EE4: =VLOOKUP(EE3,CONFIG.!$A:$Z,BASE1!EE2,FALSE) -> 0 | EF4: =VLOOKUP(EF3,CONFIG.!$A:$Z,BASE1!EF2,FALSE) -> 0 | EG4: =VLOOKUP(EG3,CONFIG.!$A:$Z,BASE1!EG2,FALSE) -> 0 | EH4: =VLOOKUP(EH3,CONFIG.!$A:$Z,BASE1!EH2,FALSE) -> 0 | EI4: =VLOOKUP(EI3,CONFIG.!$A:$Z,BASE1!EI2,FALSE) -> 0 | EJ4: =VLOOKUP(EJ3,CONFIG.!$A:$Z,BASE1!EJ2,FALSE) -> 0 | EK4: =VLOOKUP(EK3,CONFIG.!$A:$Z,BASE1!EK2,FALSE) -> 0 | EL4: =VLOOKUP(EL3,CONFIG.!$A:$Z,BASE1!EL2,FALSE) -> 0 | EM4: =VLOOKUP(EM3,CONFIG.!$A:$Z,BASE1!EM2,FALSE) -> 0 | EN4: =VLOOKUP(EN3,CONFIG.!$A:$Z,BASE1!EN2,FALSE) -> 0 | EO4: =VLOOKUP(EO3,CONFIG.!$A:$Z,BASE1!EO2,FALSE) -> 0 | EP4: =VLOOKUP(EP3,CONFIG.!$A:$Z,BASE1!EP2,FALSE) -> 0 | EQ4: =VLOOKUP(EQ3,CONFIG.!$A:$Z,BASE1!EQ2,FALSE) -> 0 | ER4: =VLOOKUP(ER3,CONFIG.!$A:$Z,BASE1!ER2,FALSE) -> 0 | ES4: =VLOOKUP(ES3,CONFIG.!$A:$Z,BASE1!ES2,FALSE) -> 0 | ET4: =VLOOKUP(ET3,CONFIG.!$A:$Z,BASE1!ET2,FALSE) -> 0 | EU4: =VLOOKUP(EU3,CONFIG.!$A:$Z,BASE1!EU2,FALSE) -> 0 | EV4: =VLOOKUP(EV3,CONFIG.!$A:$Z,BASE1!EV2,FALSE) -> 0 | EW4: =VLOOKUP(EW3,CONFIG.!$A:$Z,BASE1!EW2,FALSE) -> 0 | EX4: =VLOOKUP(EX3,CONFIG.!$A:$Z,BASE1!EX2,FALSE) -> 0 | EY4: =VLOOKUP(EY3,CONFIG.!$A:$Z,BASE1!EY2,FALSE) -> 0 | EZ4: =VLOOKUP(EZ3,CONFIG.!$A:$Z,BASE1!EZ2,FALSE) -> 0 | FA4: =VLOOKUP(FA3,CONFIG.!$A:$Z,BASE1!FA2,FALSE) -> 0 | FB4: =VLOOKUP(FB3,CONFIG.!$A:$Z,BASE1!FB2,FALSE) -> 0 | FC4: =VLOOKUP(FC3,CONFIG.!$A:$Z,BASE1!FC2,FALSE) -> 0 | FD4: =VLOOKUP(FD3,CONFIG.!$A:$Z,BASE1!FD2,FALSE) -> Brosse, rouleau | FE4: =VLOOKUP(FE3,CONFIG.!$A:$Z,BASE1!FE2,FALSE) -> Pulvérisation | FF4: =VLOOKUP(FF3,CONFIG.!$A:$Z,BASE1!FF2,FALSE) -> Pulvérisation électrostatique | FG4: =VLOOKUP(FG3,CONFIG.!$A:$Z,BASE1!FG2,FALSE) -> Trempé | FH4: =VLOOKUP(FH3,CONFIG.!$A:$Z,BASE1!FH2,FALSE) -> 0 | FI4: =VLOOKUP(FI3,CONFIG.!$A:$Z,BASE1!FI2,FALSE) -> 0 | FJ4: =VLOOKUP(FJ3,CONFIG.!$A:$Z,BASE1!FJ2,FALSE) -> 0 | FK4: =VLOOKUP(FK3,CONFIG.!$A:$Z,BASE1!FK2,FALSE) -> 0 | FL4: =VLOOKUP(FL3,CONFIG.!$A:$Z,BASE1!FL2,FALSE) -> 0 | FM4: =VLOOKUP(FM3,CONFIG.!$A:$Z,BASE1!FM2,FALSE) -> 0 | FN4: =VLOOKUP(FN3,CONFIG.!$A:$Z,BASE1!FN2,FALSE) -> 0 | FO4: =VLOOKUP(FO3,CONFIG.!$A:$Z,BASE1!FO2,FALSE) -> 0 | FP4: =VLOOKUP(FP3,CONFIG.!$A:$Z,BASE1!FP2,FALSE) -> 0 | FQ4: =VLOOKUP(FQ3,CONFIG.!$A:$Z,BASE1!FQ2,FALSE) -> 0 | FR4: =VLOOKUP(FR3,CONFIG.!$A:$Z,BASE1!FR2,FALSE) -> 0 | FS4: =VLOOKUP(FS3,CONFIG.!$A:$Z,BASE1!FS2,FALSE) -> 0 | FT4: =VLOOKUP(FT3,CONFIG.!$A:$Z,BASE1!FT2,FALSE) -> 0 | FU4: =VLOOKUP(FU3,CONFIG.!$A:$Z,BASE1!FU2,FALSE) -> 0 | FV4: =VLOOKUP(FV3,CONFIG.!$A:$Z,BASE1!FV2,FALSE) -> 0 | FW4: =VLOOKUP(FW3,CONFIG.!$A:$Z,BASE1!FW2,FALSE) -> 0 | FX4: =VLOOKUP(FX3,CONFIG.!$A:$Z,BASE1!FX2,FALSE) -> 0 | FY4: =VLOOKUP(FY3,CONFIG.!$A:$Z,BASE1!FY2,FALSE) -> 0 | FZ4: =VLOOKUP(FZ3,CONFIG.!$A:$Z,BASE1!FZ2,FALSE) -> 0 | GA4: =VLOOKUP(GA3,CONFIG.!$A:$Z,BASE1!GA2,FALSE) -> 0 | GB4: =VLOOKUP(GB3,CONFIG.!$A:$Z,BASE1!GB2,FALSE) -> 0 | GC4: =VLOOKUP(GC3,CONFIG.!$A:$Z,BASE1!GC2,FALSE) -> 0 | GD4: =VLOOKUP(GD3,CONFIG.!$A:$Z,BASE1!GD2,FALSE) -> 0 | GE4: =VLOOKUP(GE3,CONFIG.!$A:$Z,BASE1!GE2,FALSE) -> 0 | GF4: =VLOOKUP(GF3,CONFIG.!$A:$Z,BASE1!GF2,FALSE) -> 0 | GG4: =VLOOKUP(GG3,CONFIG.!$A:$Z,BASE1!GG2,FALSE) -> 0 | GH4: =VLOOKUP(GH3,CONFIG.!$A:$Z,BASE1!GH2,FALSE) -> 0 | GI4: =VLOOKUP(GI3,CONFIG.!$A:$Z,BASE1!GI2,FALSE) -> 0 | GJ4: =VLOOKUP(GJ3,CONFIG.!$A:$Z,BASE1!GJ2,FALSE) -> 0 | GK4: =VLOOKUP(GK3,CONFIG.!$A:$Z,BASE1!GK2,FALSE) -> 0 | GL4: =VLOOKUP(GL3,CONFIG.!$A:$Z,BASE1!GL2,FALSE) -> 0 | GM4: =VLOOKUP(GM3,CONFIG.!$A:$Z,BASE1!GM2,FALSE) -> Brillant | GN4: =VLOOKUP(GN3,CONFIG.!$A:$Z,BASE1!GN2,FALSE) -> Mat | GO4: =VLOOKUP(GO3,CONFIG.!$A:$Z,BASE1!GO2,FALSE) -> Satiné | GP4: =VLOOKUP(GP3,CONFIG.!$A:$Z,BASE1!GP2,FALSE) -> 0 | GQ4: =VLOOKUP(GQ3,CONFIG.!$A:$Z,BASE1!GQ2,FALSE) -> 0 | GR4: =VLOOKUP(GR3,CONFIG.!$A:$Z,BASE1!GR2,FALSE) -> 0 | GS4: =VLOOKUP(GS3,CONFIG.!$A:$Z,BASE1!GS2,FALSE) -> 0 | GT4: =VLOOKUP(GT3,CONFIG.!$A:$Z,BASE1!GT2,FALSE) -> 0 | GU4: =VLOOKUP(GU3,CONFIG.!$A:$Z,BASE1!GU2,FALSE) -> 0 | GV4: =VLOOKUP(GV3,CONFIG.!$A:$Z,BASE1!GV2,FALSE) -> 0 | GW4: =VLOOKUP(GW3,CONFIG.!$A:$Z,BASE1!GW2,FALSE) -> 0 | GX4: =VLOOKUP(GX3,CONFIG.!$A:$Z,BASE1!GX2,FALSE) -> 0 | GY4: =VLOOKUP(GY3,CONFIG.!$A:$Z,BASE1!GY2,FALSE) -> 0 | GZ4: =VLOOKUP(GZ3,CONFIG.!$A:$Z,BASE1!GZ2,FALSE) -> 0 | HA4: =VLOOKUP(HA3,CONFIG.!$A:$Z,BASE1!HA2,FALSE) -> 0 | HB4: =VLOOKUP(HB3,CONFIG.!$A:$Z,BASE1!HB2,FALSE) -> 0 | HC4: =VLOOKUP(HC3,CONFIG.!$A:$Z,BASE1!HC2,FALSE) -> 0 | HD4: =VLOOKUP(HD3,CONFIG.!$A:$Z,BASE1!HD2,FALSE) -> 0 | HE4: =VLOOKUP(HE3,CONFIG.!$A:$Z,BASE1!HE2,FALSE) -> 0 | HF4: =VLOOKUP(HF3,CONFIG.!$A:$Z,BASE1!HF2,FALSE) -> 0 | HG4: =VLOOKUP(HG3,CONFIG.!$A:$Z,BASE1!HG2,FALSE) -> 0 | HH4: =VLOOKUP(HH3,CONFIG.!$A:$Z,BASE1!HH2,FALSE) -> 0 | HI4: =VLOOKUP(HI3,CONFIG.!$A:$Z,BASE1!HI2,FALSE) -> 0 | HJ4: =VLOOKUP(HJ3,CONFIG.!$A:$Z,BASE1!HJ2,FALSE) -> 0 | HK4: =VLOOKUP(HK3,CONFIG.!$A:$Z,BASE1!HK2,FALSE) -> 0 | HL4: =VLOOKUP(HL3,CONFIG.!$A:$Z,BASE1!HL2,FALSE) -> 0 | HM4: =VLOOKUP(HM3,CONFIG.!$A:$Z,BASE1!HM2,FALSE) -> 0 | HN4: =VLOOKUP(HN3,CONFIG.!$A:$Z,BASE1!HN2,FALSE) -> 0 | HO4: =VLOOKUP(HO3,CONFIG.!$A:$Z,BASE1!HO2,FALSE) -> 0 | HP4: =VLOOKUP(HP3,CONFIG.!$A:$Z,BASE1!HP2,FALSE) -> 0 | HQ4: =VLOOKUP(HQ3,CONFIG.!$A:$Z,BASE1!HQ2,FALSE) -> 0 | HR4: =VLOOKUP(HR3,CONFIG.!$A:$Z,BASE1!HR2,FALSE) -> 0 | HS4: =VLOOKUP(HS3,CONFIG.!$A:$Z,BASE1!HS2,FALSE) -> 0 | HT4: =VLOOKUP(HT3,CONFIG.!$A:$Z,BASE1!HT2,FALSE) -> 0 | HU4: =VLOOKUP(HU3,CONFIG.!$A:$Z,BASE1!HU2,FALSE) -> 0 | HV4: =VLOOKUP(HV3,CONFIG.!$A:$Z,BASE1!HV2,FALSE) -> Couleurs / Teintes | HW4: =VLOOKUP(HW3,CONFIG.!$A:$Z,BASE1!HW2,FALSE) -> Fluo / Photoluminescent | HX4: =VLOOKUP(HX3,CONFIG.!$A:$Z,BASE1!HX2,FALSE) -> Monocouche teinté | HY4: =VLOOKUP(HY3,CONFIG.!$A:$Z,BASE1!HY2,FALSE) -> Primaire uniquement | HZ4: =VLOOKUP(HZ3,CONFIG.!$A:$Z,BASE1!HZ2,FALSE) -> Système plusieurs couches | IA4: =VLOOKUP(IA3,CONFIG.!$A:$Z,BASE1!IA2,FALSE) -> Semi Opacifiant | IB4: =VLOOKUP(IB3,CONFIG.!$A:$Z,BASE1!IB2,FALSE) -> Teintes bois | IC4: =VLOOKUP(IC3,CONFIG.!$A:$Z,BASE1!IC2,FALSE) -> Vernis incolore | ID4: =VLOOKUP(ID3,CONFIG.!$A:$Z,BASE1!ID2,FALSE) -> 0 | IE4: =VLOOKUP(IE3,CONFIG.!$A:$Z,BASE1!IE2,FALSE) -> 0 | IF4: =VLOOKUP(IF3,CONFIG.!$A:$Z,BASE1!IF2,FALSE) -> 0 | IG4: =VLOOKUP(IG3,CONFIG.!$A:$Z,BASE1!IG2,FALSE) -> 0 | IH4: =VLOOKUP(IH3,CONFIG.!$A:$Z,BASE1!IH2,FALSE) -> 0 | II4: =VLOOKUP(II3,CONFIG.!$A:$Z,BASE1!II2,FALSE) -> 0 | IJ4: =VLOOKUP(IJ3,CONFIG.!$A:$Z,BASE1!IJ2,FALSE) -> 0 | IK4: =VLOOKUP(IK3,CONFIG.!$A:$Z,BASE1!IK2,FALSE) -> 0 | IL4: =VLOOKUP(IL3,CONFIG.!$A:$Z,BASE1!IL2,FALSE) -> 0 | IM4: =VLOOKUP(IM3,CONFIG.!$A:$Z,BASE1!IM2,FALSE) -> 0 | IN4: =VLOOKUP(IN3,CONFIG.!$A:$Z,BASE1!IN2,FALSE) -> 0 | IO4: =VLOOKUP(IO3,CONFIG.!$A:$Z,BASE1!IO2,FALSE) -> 0 | IP4: =VLOOKUP(IP3,CONFIG.!$A:$Z,BASE1!IP2,FALSE) -> 0 | IQ4: =VLOOKUP(IQ3,CONFIG.!$A:$Z,BASE1!IQ2,FALSE) -> 0 | IR4: =VLOOKUP(IR3,CONFIG.!$A:$Z,BASE1!IR2,FALSE) -> 0 | IS4: =VLOOKUP(IS3,CONFIG.!$A:$Z,BASE1!IS2,FALSE) -> 0 | IT4: =VLOOKUP(IT3,CONFIG.!$A:$Z,BASE1!IT2,FALSE) -> 0 | IU4: =VLOOKUP(IU3,CONFIG.!$A:$Z,BASE1!IU2,FALSE) -> 0 | IV4: =VLOOKUP(IV3,CONFIG.!$A:$Z,BASE1!IV2,FALSE) -> 0 | IW4: =VLOOKUP(IW3,CONFIG.!$A:$Z,BASE1!IW2,FALSE) -> 0 | IX4: =VLOOKUP(IX3,CONFIG.!$A:$Z,BASE1!IX2,FALSE) -> 0 | IY4: =VLOOKUP(IY3,CONFIG.!$A:$Z,BASE1!IY2,FALSE) -> 0 | IZ4: =VLOOKUP(IZ3,CONFIG.!$A:$Z,BASE1!IZ2,FALSE) -> 0 | JA4: =VLOOKUP(JA3,CONFIG.!$A:$Z,BASE1!JA2,FALSE) -> 0 | JB4: =VLOOKUP(JB3,CONFIG.!$A:$Z,BASE1!JB2,FALSE) -> 0 | JC4: =VLOOKUP(JC3,CONFIG.!$A:$Z,BASE1!JC2,FALSE) -> 0 | JD4: =VLOOKUP(JD3,CONFIG.!$A:$Z,BASE1!JD2,FALSE) -> 0 | JE4: =VLOOKUP(JE3,CONFIG.!$A:$Z,BASE1!JE2,FALSE) -> CDC DGA | JF4: =VLOOKUP(JF3,CONFIG.!$A:$Z,BASE1!JF2,FALSE) -> anticryptogamique | JG4: =VLOOKUP(JG3,CONFIG.!$A:$Z,BASE1!JG2,FALSE) -> BS > 100 H | JH4: =VLOOKUP(JH3,CONFIG.!$A:$Z,BASE1!JH2,FALSE) -> BS > 200 H | JI4: =VLOOKUP(JI3,CONFIG.!$A:$Z,BASE1!JI2,FALSE) -> BS > 400 H | JJ4: =VLOOKUP(JJ3,CONFIG.!$A:$Z,BASE1!JJ2,FALSE) -> BS > 600 H | JK4: =VLOOKUP(JK3,CONFIG.!$A:$Z,BASE1!JK2,FALSE) -> Certifié Ecocert | JL4: =VLOOKUP(JL3,CONFIG.!$A:$Z,BASE1!JL2,FALSE) -> Décontaminable | JM4: =VLOOKUP(JM3,CONFIG.!$A:$Z,BASE1!JM2,FALSE) -> hydrophobe | JN4: =VLOOKUP(JN3,CONFIG.!$A:$Z,BASE1!JN2,FALSE) -> Norme Jouet | JO4: =VLOOKUP(JO3,CONFIG.!$A:$Z,BASE1!JO2,FALSE) -> PV alimentaire | JP4: =VLOOKUP(JP3,CONFIG.!$A:$Z,BASE1!JP2,FALSE) -> PV feu | JQ4: =VLOOKUP(JQ3,CONFIG.!$A:$Z,BASE1!JQ2,FALSE) -> Tenue agents chimiques | JR4: =VLOOKUP(JR3,CONFIG.!$A:$Z,BASE1!JR2,FALSE) -> 0 | JS4: =VLOOKUP(JS3,CONFIG.!$A:$Z,BASE1!JS2,FALSE) -> 0 | JT4: =VLOOKUP(JT3,CONFIG.!$A:$Z,BASE1!JT2,FALSE) -> 0 | JU4: =VLOOKUP(JU3,CONFIG.!$A:$Z,BASE1!JU2,FALSE) -> 0 | JV4: =VLOOKUP(JV3,CONFIG.!$A:$Z,BASE1!JV2,FALSE) -> 0 | JW4: =VLOOKUP(JW3,CONFIG.!$A:$Z,BASE1!JW2,FALSE) -> 0 | JX4: =VLOOKUP(JX3,CONFIG.!$A:$Z,BASE1!JX2,FALSE) -> 0 | JY4: =VLOOKUP(JY3,CONFIG.!$A:$Z,BASE1!JY2,FALSE) -> 0 | JZ4: =VLOOKUP(JZ3,CONFIG.!$A:$Z,BASE1!JZ2,FALSE) -> 0 | KA4: =VLOOKUP(KA3,CONFIG.!$A:$Z,BASE1!KA2,FALSE) -> 0 | KB4: =VLOOKUP(KB3,CONFIG.!$A:$Z,BASE1!KB2,FALSE) -> 0 | KC4: =VLOOKUP(KC3,CONFIG.!$A:$Z,BASE1!KC2,FALSE) -> 0 | KD4: =VLOOKUP(KD3,CONFIG.!$A:$Z,BASE1!KD2,FALSE) -> 0 | KE4: =VLOOKUP(KE3,CONFIG.!$A:$Z,BASE1!KE2,FALSE) -> 0 | KF4: =VLOOKUP(KF3,CONFIG.!$A:$Z,BASE1!KF2,FALSE) -> 0 | KG4: =VLOOKUP(KG3,CONFIG.!$A:$Z,BASE1!KG2,FALSE) -> 0 | KH4: =VLOOKUP(KH3,CONFIG.!$A:$Z,BASE1!KH2,FALSE) -> 0 | KI4: =VLOOKUP(KI3,CONFIG.!$A:$Z,BASE1!KI2,FALSE) -> 0 | KJ4: =VLOOKUP(KJ3,CONFIG.!$A:$Z,BASE1!KJ2,FALSE) -> 0 | KK4: =VLOOKUP(KK3,CONFIG.!$A:$Z,BASE1!KK2,FALSE) -> 0 | KL4: =VLOOKUP(KL3,CONFIG.!$A:$Z,BASE1!KL2,FALSE) -> 0 | KM4: =VLOOKUP(KM3,CONFIG.!$A:$Z,BASE1!KM2,FALSE) -> 0 | KN4: =VLOOKUP(KN3,CONFIG.!$A:$Z,BASE1!KN2,FALSE) -> Agricole. | KO4: =VLOOKUP(KO3,CONFIG.!$A:$Z,BASE1!KO2,FALSE) -> Alimentaire. | KP4: =VLOOKUP(KP3,CONFIG.!$A:$Z,BASE1!KP2,FALSE) -> Anticorrosion. | KQ4: =VLOOKUP(KQ3,CONFIG.!$A:$Z,BASE1!KQ2,FALSE) -> Anti-graffiti. | KR4: =VLOOKUP(KR3,CONFIG.!$A:$Z,BASE1!KR2,FALSE) -> Bardages | KS4: =VLOOKUP(KS3,CONFIG.!$A:$Z,BASE1!KS2,FALSE) -> Bâtiment Extérieur | KT4: =VLOOKUP(KT3,CONFIG.!$A:$Z,BASE1!KT2,FALSE) -> Bâtiment Intérieur | KU4: =VLOOKUP(KU3,CONFIG.!$A:$Z,BASE1!KU2,FALSE) -> Charpentes. | KV4: =VLOOKUP(KV3,CONFIG.!$A:$Z,BASE1!KV2,FALSE) -> Chaudronneries. | KW4: =VLOOKUP(KW3,CONFIG.!$A:$Z,BASE1!KW2,FALSE) -> Constructions modulaires. | KX4: =VLOOKUP(KX3,CONFIG.!$A:$Z,BASE1!KX2,FALSE) -> Conteneurs / Bennes. | KY4: =VLOOKUP(KY3,CONFIG.!$A:$Z,BASE1!KY2,FALSE) -> Décoration | KZ4: =VLOOKUP(KZ3,CONFIG.!$A:$Z,BASE1!KZ2,FALSE) -> Enseignes publicitaires. | LA4: =VLOOKUP(LA3,CONFIG.!$A:$Z,BASE1!LA2,FALSE) -> Equipements industriels. | LB4: =VLOOKUP(LB3,CONFIG.!$A:$Z,BASE1!LB2,FALSE) -> Marine / navale | LC4: =VLOOKUP(LC3,CONFIG.!$A:$Z,BASE1!LC2,FALSE) -> Matériel Médical | LD4: =VLOOKUP(LD3,CONFIG.!$A:$Z,BASE1!LD2,FALSE) -> Matériels roulants | LE4: =VLOOKUP(LE3,CONFIG.!$A:$Z,BASE1!LE2,FALSE) -> Mobilier de bureaux. | LF4: =VLOOKUP(LF3,CONFIG.!$A:$Z,BASE1!LF2,FALSE) -> Monuments historiques | LG4: =VLOOKUP(LG3,CONFIG.!$A:$Z,BASE1!LG2,FALSE) -> Ouvrages d'art | LH4: =VLOOKUP(LH3,CONFIG.!$A:$Z,BASE1!LH2,FALSE) -> Ouvrages en bois | LI4: =VLOOKUP(LI3,CONFIG.!$A:$Z,BASE1!LI2,FALSE) -> Scolaire | LJ4: =VLOOKUP(LJ3,CONFIG.!$A:$Z,BASE1!LJ2,FALSE) -> Sols | LK4: =VLOOKUP(LK3,CONFIG.!$A:$Z,BASE1!LK2,FALSE) -> Toitures | LL4: =VLOOKUP(LL3,CONFIG.!$A:$Z,BASE1!LL2,FALSE) -> Tôleries industrielles. | LM4: =VLOOKUP(LM3,CONFIG.!$A:$Z,BASE1!LM2,FALSE) -> 0 | LN4: =VLOOKUP(LN3,CONFIG.!$A:$Z,BASE1!LN2,FALSE) -> 0 | LO4: =VLOOKUP(LO3,CONFIG.!$A:$Z,BASE1!LO2,FALSE) -> 0 | LP4: =VLOOKUP(LP3,CONFIG.!$A:$Z,BASE1!LP2,FALSE) -> 0 | LQ4: =VLOOKUP(LQ3,CONFIG.!$A:$Z,BASE1!LQ2,FALSE) -> 0 | LR4: =VLOOKUP(LR3,CONFIG.!$A:$Z,BASE1!LR2,FALSE) -> 0 | LS4: =VLOOKUP(LS3,CONFIG.!$A:$Z,BASE1!LS2,FALSE) -> 0 | LT4: =VLOOKUP(LT3,CONFIG.!$A:$Z,BASE1!LT2,FALSE) -> 0 | LU4: =VLOOKUP(LU3,CONFIG.!$A:$Z,BASE1!LU2,FALSE) -> 0 | LV4: =VLOOKUP(LV3,CONFIG.!$A:$Z,BASE1!LV2,FALSE) -> 0 | LW4: =VLOOKUP(LW3,CONFIG.!$A:$Z,BASE1!LW2,FALSE) -> Antidérapant | LX4: =VLOOKUP(LX3,CONFIG.!$A:$Z,BASE1!LX2,FALSE) -> Magnétique | LY4: =VLOOKUP(LY3,CONFIG.!$A:$Z,BASE1!LY2,FALSE) -> Martelé | LZ4: =VLOOKUP(LZ3,CONFIG.!$A:$Z,BASE1!LZ2,FALSE) -> Pelable | MA4: =VLOOKUP(MA3,CONFIG.!$A:$Z,BASE1!MA2,FALSE) -> Soft | MB4: =VLOOKUP(MB3,CONFIG.!$A:$Z,BASE1!MB2,FALSE) -> Structuré | MC4: =VLOOKUP(MC3,CONFIG.!$A:$Z,BASE1!MC2,FALSE) -> Tableau Véléda | MD4: =VLOOKUP(MD3,CONFIG.!$A:$Z,BASE1!MD2,FALSE) -> Temporaire | ME4: =VLOOKUP(ME3,CONFIG.!$A:$Z,BASE1!ME2,FALSE) -> Texturé | MF4: =VLOOKUP(MF3,CONFIG.!$A:$Z,BASE1!MF2,FALSE) -> 0 | MG4: =VLOOKUP(MG3,CONFIG.!$A:$Z,BASE1!MG2,FALSE) -> 0 | MH4: =VLOOKUP(MH3,CONFIG.!$A:$Z,BASE1!MH2,FALSE) -> 0 | MI4: =VLOOKUP(MI3,CONFIG.!$A:$Z,BASE1!MI2,FALSE) -> 0 | MJ4: =VLOOKUP(MJ3,CONFIG.!$A:$Z,BASE1!MJ2,FALSE) -> 0 | MK4: =VLOOKUP(MK3,CONFIG.!$A:$Z,BASE1!MK2,FALSE) -> 0 | ML4: =VLOOKUP(ML3,CONFIG.!$A:$Z,BASE1!ML2,FALSE) -> 0 | MM4: =VLOOKUP(MM3,CONFIG.!$A:$Z,BASE1!MM2,FALSE) -> 0 | MN4: =VLOOKUP(MN3,CONFIG.!$A:$Z,BASE1!MN2,FALSE) -> 0 | MO4: =VLOOKUP(MO3,CONFIG.!$A:$Z,BASE1!MO2,FALSE) -> 0 | MP4: =VLOOKUP(MP3,CONFIG.!$A:$Z,BASE1!MP2,FALSE) -> 0 | MQ4: =VLOOKUP(MQ3,CONFIG.!$A:$Z,BASE1!MQ2,FALSE) -> 0 | MR4: =VLOOKUP(MR3,CONFIG.!$A:$Z,BASE1!MR2,FALSE) -> 0 | MS4: =VLOOKUP(MS3,CONFIG.!$A:$Z,BASE1!MS2,FALSE) -> 0 | MT4: =VLOOKUP(MT3,CONFIG.!$A:$Z,BASE1!MT2,FALSE) -> 0 | MU4: =VLOOKUP(MU3,CONFIG.!$A:$Z,BASE1!MU2,FALSE) -> 0 | MV4: =VLOOKUP(MV3,CONFIG.!$A:$Z,BASE1!MV2,FALSE) -> 0 | MW4: =VLOOKUP(MW3,CONFIG.!$A:$Z,BASE1!MW2,FALSE) -> 0 | MX4: =VLOOKUP(MX3,CONFIG.!$A:$Z,BASE1!MX2,FALSE) -> 0 | MY4: =VLOOKUP(MY3,CONFIG.!$A:$Z,BASE1!MY2,FALSE) -> 0 | MZ4: =VLOOKUP(MZ3,CONFIG.!$A:$Z,BASE1!MZ2,FALSE) -> 0 | NA4: =VLOOKUP(NA3,CONFIG.!$A:$Z,BASE1!NA2,FALSE) -> 0 | NB4: =VLOOKUP(NB3,CONFIG.!$A:$Z,BASE1!NB2,FALSE) -> 0 | NC4: =VLOOKUP(NC3,CONFIG.!$A:$Z,BASE1!NC2,FALSE) -> 0 | ND4: =VLOOKUP(ND3,CONFIG.!$A:$Z,BASE1!ND2,FALSE) -> 0 | NE4: =VLOOKUP(NE3,CONFIG.!$A:$Z,BASE1!NE2,FALSE) -> 0
H5: =IF(CONFIG.!B26="Non sélectionné","",CONFIG.!B26) ->  | I5: =IF(CONFIG.!C26="Non sélectionné","",CONFIG.!C26) ->  | J5: =IF(CONFIG.!D26="Non sélectionné","",CONFIG.!D26) ->  | K5: =IF(CONFIG.!E26="Non sélectionné","",CONFIG.!E26) ->  | L5: =IF(CONFIG.!F26="Non sélectionné","",CONFIG.!F26) ->  | M5: =IF(CONFIG.!G26="Non sélectionné","",CONFIG.!G26) ->  | N5: =IF(CONFIG.!H26="Non sélectionné","",CONFIG.!H26) ->  | O5: =IF(CONFIG.!I26="Non sélectionné","",CONFIG.!I26) ->  | P5: =IF(CONFIG.!J26="Non sélectionné","",CONFIG.!J26) ->  | Q5: =IF(CONFIG.!K26="Non sélectionné","",CONFIG.!K26) -> 
A6: 1 | B6: =B7 -> 1 | C6: =IF(D7="OK",D6,"") -> 131 | D6: 131 | E6: 2,5/5 | F6: 2,5/5 | G6: 2,5/5 | H6: =IF(ISERROR(HLOOKUP(H7,$T$4:$ZZ$1244,$A6+2,FALSE)=TRUE),"",HLOOKUP(H7,$T$4:$ZZ$1244,$A6+2,FALSE)) ->  | I6: =IF(ISERROR(HLOOKUP(I7,$T$4:$ZZ$1244,$A6+2,FALSE)=TRUE),"",HLOOKUP(I7,$T$4:$ZZ$1244,$A6+2,FALSE)) ->  | K6: =IF(ISERROR(HLOOKUP(K7,$T$4:$ZZ$1244,$A6+2,FALSE)=TRUE),"",HLOOKUP(K7,$T$4:$ZZ$1244,$A6+2,FALSE)) ->  | R6: 5/5 | S6: 5/5 | T6: 3/5 | W6: 2,5/5 | AQ6: 3/5 | BC6: Primaire | BE6: 3/5 | BF6: 2,5/5 | CP6: x | DV6: 1/5 | GN6: x | HY6: x | JH6: x | KN6: x | KU6: x | KV6: x | KX6: x
A7: 2 | B7: =IF(D7="OK",1+B5,B5) -> 1 | D7: =IF(ISERROR(IF(CONCATENATE(H7,I7,J7,K7,L7,M7,N7,O7,P7,Q7)=CONCATENATE(H$5,I$5,J$5,K$5,L$5,M$5,N$5,O$5,P$5,Q$5),"OK","NON")=TRUE),"NON",IF(CONCATENATE(H7,I7,J7,K7,L7,M7,N7,O7,P7,Q7)=CONCATENATE(H$5,I$5,J$5,K$5,L$5,M$5,N$5,O$5,P$5,Q$5),"OK","NON")) -> OK | H7: =HLOOKUP(H$5,$T7:$AAG7,1,FALSE) ->  | I7: =HLOOKUP(I$5,$T7:$AAG7,1,FALSE) ->  | T7: =IF(T6="","",VLOOKUP(T$3,CONFIG.!$A:$M,T$2,FALSE)) -> Acier brut et trempé / phosphaté | U7: =IF(U6="","",VLOOKUP(U$3,CONFIG.!$A:$M,U$2,FALSE)) ->  | V7: =IF(V6="","",VLOOKUP(V$3,CONFIG.!$A:$M,V$2,FALSE)) ->  | W7: =IF(W6="","",VLOOKUP(W$3,CONFIG.!$A:$M,W$2,FALSE)) -> Acier laminé à froid, tôlerie fine / phosphaté | X7: =IF(X6="","",VLOOKUP(X$3,CONFIG.!$A:$M,X$2,FALSE)) ->  | Y7: =IF(Y6="","",VLOOKUP(Y$3,CONFIG.!$A:$M,Y$2,FALSE)) ->  | Z7: =IF(Z6="","",VLOOKUP(Z$3,CONFIG.!$A:$M,Z$2,FALSE)) ->  | AA7: =IF(AA6="","",VLOOKUP(AA$3,CONFIG.!$A:$M,AA$2,FALSE)) ->  | AB7: =IF(AB6="","",VLOOKUP(AB$3,CONFIG.!$A:$M,AB$2,FALSE)) ->  | AC7: =IF(AC6="","",VLOOKUP(AC$3,CONFIG.!$A:$M,AC$2,FALSE)) ->  | AD7: =IF(AD6="","",VLOOKUP(AD$3,CONFIG.!$A:$M,AD$2,FALSE)) ->  | AE7: =IF(AE6="","",VLOOKUP(AE$3,CONFIG.!$A:$M,AE$2,FALSE)) ->  | AF7: =IF(AF6="","",VLOOKUP(AF$3,CONFIG.!$A:$M,AF$2,FALSE)) ->  | AG7: =IF(AG6="","",VLOOKUP(AG$3,CONFIG.!$A:$M,AG$2,FALSE)) ->  | AH7: =IF(AH6="","",VLOOKUP(AH$3,CONFIG.!$A:$M,AH$2,FALSE)) ->  | AI7: =IF(AI6="","",VLOOKUP(AI$3,CONFIG.!$A:$M,AI$2,FALSE)) ->  | AJ7: =IF(AJ6="","",VLOOKUP(AJ$3,CONFIG.!$A:$M,AJ$2,FALSE)) ->  | AK7: =IF(AK6="","",VLOOKUP(AK$3,CONFIG.!$A:$M,AK$2,FALSE)) ->  | AL7: =IF(AL6="","",VLOOKUP(AL$3,CONFIG.!$A:$M,AL$2,FALSE)) ->  | AM7: =IF(AM6="","",VLOOKUP(AM$3,CONFIG.!$A:$M,AM$2,FALSE)) ->  | AN7: =IF(AN6="","",VLOOKUP(AN$3,CONFIG.!$A:$M,AN$2,FALSE)) ->  | AO7: =IF(AO6="","",VLOOKUP(AO$3,CONFIG.!$A:$M,AO$2,FALSE)) ->  | AP7: =IF(AP6="","",VLOOKUP(AP$3,CONFIG.!$A:$M,AP$2,FALSE)) ->  | AQ7: =IF(AQ6="","",VLOOKUP(AQ$3,CONFIG.!$A:$M,AQ$2,FALSE)) -> Fonte. | AR7: =IF(AR6="","",VLOOKUP(AR$3,CONFIG.!$A:$M,AR$2,FALSE)) ->  | AS7: =IF(AS6="","",VLOOKUP(AS$3,CONFIG.!$A:$M,AS$2,FALSE)) ->  | AT7: =IF(AT6="","",VLOOKUP(AT$3,CONFIG.!$A:$M,AT$2,FALSE)) ->  | AU7: =IF(AU6="","",VLOOKUP(AU$3,CONFIG.!$A:$M,AU$2,FALSE)) ->  | AV7: =IF(AV6="","",VLOOKUP(AV$3,CONFIG.!$A:$M,AV$2,FALSE)) ->  | AW7: =IF(AW6="","",VLOOKUP(AW$3,CONFIG.!$A:$M,AW$2,FALSE)) ->  | AX7: =IF(AX6="","",VLOOKUP(AX$3,CONFIG.!$A:$M,AX$2,FALSE)) ->  | AY7: =IF(AY6="","",VLOOKUP(AY$3,CONFIG.!$A:$M,AY$2,FALSE)) ->  | AZ7: =IF(AZ6="","",VLOOKUP(AZ$3,CONFIG.!$A:$M,AZ$2,FALSE)) ->  | BA7: =IF(BA6="","",VLOOKUP(BA$3,CONFIG.!$A:$M,BA$2,FALSE)) ->  | BB7: =IF(BB6="","",VLOOKUP(BB$3,CONFIG.!$A:$M,BB$2,FALSE)) ->  | BC7: =IF(BC6="","",VLOOKUP(BC$3,CONFIG.!$A:$M,BC$2,FALSE)) -> EXTERIEUR | BD7: =IF(BD6="","",VLOOKUP(BD$3,CONFIG.!$A:$M,BD$2,FALSE)) ->  | BE7: =IF(BE6="","",VLOOKUP(BE$3,CONFIG.!$A:$M,BE$2,FALSE)) -> INTERIEUR | BF7: =IF(BF6="","",VLOOKUP(BF$3,CONFIG.!$A:$M,BF$2,FALSE)) -> PRIMAIRE avant FINITION | BG7: =IF(BG6="","",VLOOKUP(BG$3,CONFIG.!$A:$M,BG$2,FALSE)) ->  | BH7: =IF(BH6="","",VLOOKUP(BH$3,CONFIG.!$A:$M,BH$2,FALSE)) ->  | BI7: =IF(BI6="","",VLOOKUP(BI$3,CONFIG.!$A:$M,BI$2,FALSE)) ->  | BJ7: =IF(BJ6="","",VLOOKUP(BJ$3,CONFIG.!$A:$M,BJ$2,FALSE)) ->  | BK7: =IF(BK6="","",VLOOKUP(BK$3,CONFIG.!$A:$M,BK$2,FALSE)) ->  | BL7: =IF(BL6="","",VLOOKUP(BL$3,CONFIG.!$A:$M,BL$2,FALSE)) ->  | BM7: =IF(BM6="","",VLOOKUP(BM$3,CONFIG.!$A:$M,BM$2,FALSE)) ->  | BN7: =IF(BN6="","",VLOOKUP(BN$3,CONFIG.!$A:$M,BN$2,FALSE)) ->  | BO7: =IF(BO6="","",VLOOKUP(BO$3,CONFIG.!$A:$M,BO$2,FALSE)) ->  | BP7: =IF(BP6="","",VLOOKUP(BP$3,CONFIG.!$A:$M,BP$2,FALSE)) ->  | BQ7: =IF(BQ6="","",VLOOKUP(BQ$3,CONFIG.!$A:$M,BQ$2,FALSE)) ->  | BR7: =IF(BR6="","",VLOOKUP(BR$3,CONFIG.!$A:$M,BR$2,FALSE)) ->  | BS7: =IF(BS6="","",VLOOKUP(BS$3,CONFIG.!$A:$M,BS$2,FALSE)) ->  | BT7: =IF(BT6="","",VLOOKUP(BT$3,CONFIG.!$A:$M,BT$2,FALSE)) ->  | BU7: =IF(BU6="","",VLOOKUP(BU$3,CONFIG.!$A:$M,BU$2,FALSE)) ->  | BV7: =IF(BV6="","",VLOOKUP(BV$3,CONFIG.!$A:$M,BV$2,FALSE)) ->  | BW7: =IF(BW6="","",VLOOKUP(BW$3,CONFIG.!$A:$M,BW$2,FALSE)) ->  | BX7: =IF(BX6="","",VLOOKUP(BX$3,CONFIG.!$A:$M,BX$2,FALSE)) ->  | BY7: =IF(BY6="","",VLOOKUP(BY$3,CONFIG.!$A:$M,BY$2,FALSE)) ->  | BZ7: =IF(BZ6="","",VLOOKUP(BZ$3,CONFIG.!$A:$M,BZ$2,FALSE)) ->  | CA7: =IF(CA6="","",VLOOKUP(CA$3,CONFIG.!$A:$M,CA$2,FALSE)) ->  | CB7: =IF(CB6="","",VLOOKUP(CB$3,CONFIG.!$A:$M,CB$2,FALSE)) ->  | CC7: =IF(CC6="","",VLOOKUP(CC$3,CONFIG.!$A:$M,CC$2,FALSE)) ->  | CD7: =IF(CD6="","",VLOOKUP(CD$3,CONFIG.!$A:$M,CD$2,FALSE)) ->  | CE7: =IF(CE6="","",VLOOKUP(CE$3,CONFIG.!$A:$M,CE$2,FALSE)) ->  | CF7: =IF(CF6="","",VLOOKUP(CF$3,CONFIG.!$A:$M,CF$2,FALSE)) ->  | CG7: =IF(CG6="","",VLOOKUP(CG$3,CONFIG.!$A:$M,CG$2,FALSE)) ->  | CH7: =IF(CH6="","",VLOOKUP(CH$3,CONFIG.!$A:$M,CH$2,FALSE)) ->  | CI7: =IF(CI6="","",VLOOKUP(CI$3,CONFIG.!$A:$M,CI$2,FALSE)) ->  | CJ7: =IF(CJ6="","",VLOOKUP(CJ$3,CONFIG.!$A:$M,CJ$2,FALSE)) ->  | CK7: =IF(CK6="","",VLOOKUP(CK$3,CONFIG.!$A:$M,CK$2,FALSE)) ->  | CL7: =IF(CL6="","",VLOOKUP(CL$3,CONFIG.!$A:$M,CL$2,FALSE)) ->  | CM7: =IF(CM6="","",VLOOKUP(CM$3,CONFIG.!$A:$M,CM$2,FALSE)) ->  | CN7: =IF(CN6="","",VLOOKUP(CN$3,CONFIG.!$A:$M,CN$2,FALSE)) ->  | CO7: =IF(CO6="","",VLOOKUP(CO$3,CONFIG.!$A:$M,CO$2,FALSE)) ->  | CP7: =IF(CP6="","",VLOOKUP(CP$3,CONFIG.!$A:$M,CP$2,FALSE)) -> SOLVANTE | CQ7: =IF(CQ6="","",VLOOKUP(CQ$3,CONFIG.!$A:$M,CQ$2,FALSE)) ->  | CR7: =IF(CR6="","",VLOOKUP(CR$3,CONFIG.!$A:$M,CR$2,FALSE)) ->  | CS7: =IF(CS6="","",VLOOKUP(CS$3,CONFIG.!$A:$M,CS$2,FALSE)) ->  | CT7: =IF(CT6="","",VLOOKUP(CT$3,CONFIG.!$A:$M,CT$2,FALSE)) ->  | CU7: =IF(CU6="","",VLOOKUP(CU$3,CONFIG.!$A:$M,CU$2,FALSE)) ->  | CV7: =IF(CV6="","",VLOOKUP(CV$3,CONFIG.!$A:$M,CV$2,FALSE)) ->  | CW7: =IF(CW6="","",VLOOKUP(CW$3,CONFIG.!$A:$M,CW$2,FALSE)) ->  | CX7: =IF(CX6="","",VLOOKUP(CX$3,CONFIG.!$A:$M,CX$2,FALSE)) ->  | CY7: =IF(CY6="","",VLOOKUP(CY$3,CONFIG.!$A:$M,CY$2,FALSE)) ->  | CZ7: =IF(CZ6="","",VLOOKUP(CZ$3,CONFIG.!$A:$M,CZ$2,FALSE)) ->  | DA7: =IF(DA6="","",VLOOKUP(DA$3,CONFIG.!$A:$M,DA$2,FALSE)) ->  | DB7: =IF(DB6="","",VLOOKUP(DB$3,CONFIG.!$A:$M,DB$2,FALSE)) ->  | DC7: =IF(DC6="","",VLOOKUP(DC$3,CONFIG.!$A:$M,DC$2,FALSE)) ->  | DD7: =IF(DD6="","",VLOOKUP(DD$3,CONFIG.!$A:$M,DD$2,FALSE)) ->  | DE7: =IF(DE6="","",VLOOKUP(DE$3,CONFIG.!$A:$M,DE$2,FALSE)) ->  | DF7: =IF(DF6="","",VLOOKUP(DF$3,CONFIG.!$A:$M,DF$2,FALSE)) ->  | DG7: =IF(DG6="","",VLOOKUP(DG$3,CONFIG.!$A:$M,DG$2,FALSE)) ->  | DH7: =IF(DH6="","",VLOOKUP(DH$3,CONFIG.!$A:$M,DH$2,FALSE)) ->  | DI7: =IF(DI6="","",VLOOKUP(DI$3,CONFIG.!$A:$M,DI$2,FALSE)) ->  | DJ7: =IF(DJ6="","",VLOOKUP(DJ$3,CONFIG.!$A:$M,DJ$2,FALSE)) ->  | DK7: =IF(DK6="","",VLOOKUP(DK$3,CONFIG.!$A:$M,DK$2,FALSE)) ->  | DL7: =IF(DL6="","",VLOOKUP(DL$3,CONFIG.!$A:$M,DL$2,FALSE)) ->  | DM7: =IF(DM6="","",VLOOKUP(DM$3,CONFIG.!$A:$M,DM$2,FALSE)) ->  | DN7: =IF(DN6="","",VLOOKUP(DN$3,CONFIG.!$A:$M,DN$2,FALSE)) ->  | DO7: =IF(DO6="","",VLOOKUP(DO$3,CONFIG.!$A:$M,DO$2,FALSE)) ->  | DP7: =IF(DP6="","",VLOOKUP(DP$3,CONFIG.!$A:$M,DP$2,FALSE)) ->  | DQ7: =IF(DQ6="","",VLOOKUP(DQ$3,CONFIG.!$A:$M,DQ$2,FALSE)) ->  | DR7: =IF(DR6="","",VLOOKUP(DR$3,CONFIG.!$A:$M,DR$2,FALSE)) ->  | DS7: =IF(DS6="","",VLOOKUP(DS$3,CONFIG.!$A:$M,DS$2,FALSE)) ->  | DT7: =IF(DT6="","",VLOOKUP(DT$3,CONFIG.!$A:$M,DT$2,FALSE)) ->  | DU7: =IF(DU6="","",VLOOKUP(DU$3,CONFIG.!$A:$M,DU$2,FALSE)) ->  | DV7: =IF(DV6="","",VLOOKUP(DV$3,CONFIG.!$A:$M,DV$2,FALSE)) -> CHIMIQUE | DW7: =IF(DW6="","",VLOOKUP(DW$3,CONFIG.!$A:$M,DW$2,FALSE)) ->  | DX7: =IF(DX6="","",VLOOKUP(DX$3,CONFIG.!$A:$M,DX$2,FALSE)) ->  | DY7: =IF(DY6="","",VLOOKUP(DY$3,CONFIG.!$A:$M,DY$2,FALSE)) ->  | DZ7: =IF(DZ6="","",VLOOKUP(DZ$3,CONFIG.!$A:$M,DZ$2,FALSE)) ->  | EA7: =IF(EA6="","",VLOOKUP(EA$3,CONFIG.!$A:$M,EA$2,FALSE)) ->  | EB7: =IF(EB6="","",VLOOKUP(EB$3,CONFIG.!$A:$M,EB$2,FALSE)) ->  | EC7: =IF(EC6="","",VLOOKUP(EC$3,CONFIG.!$A:$M,EC$2,FALSE)) ->  | ED7: =IF(ED6="","",VLOOKUP(ED$3,CONFIG.!$A:$M,ED$2,FALSE)) ->  | EE7: =IF(EE6="","",VLOOKUP(EE$3,CONFIG.!$A:$M,EE$2,FALSE)) ->  | EF7: =IF(EF6="","",VLOOKUP(EF$3,CONFIG.!$A:$M,EF$2,FALSE)) ->  | EG7: =IF(EG6="","",VLOOKUP(EG$3,CONFIG.!$A:$M,EG$2,FALSE)) ->  | EH7: =IF(EH6="","",VLOOKUP(EH$3,CONFIG.!$A:$M,EH$2,FALSE)) ->  | EI7: =IF(EI6="","",VLOOKUP(EI$3,CONFIG.!$A:$M,EI$2,FALSE)) ->  | EJ7: =IF(EJ6="","",VLOOKUP(EJ$3,CONFIG.!$A:$M,EJ$2,FALSE)) ->  | EK7: =IF(EK6="","",VLOOKUP(EK$3,CONFIG.!$A:$M,EK$2,FALSE)) ->  | EL7: =IF(EL6="","",VLOOKUP(EL$3,CONFIG.!$A:$M,EL$2,FALSE)) ->  | EM7: =IF(EM6="","",VLOOKUP(EM$3,CONFIG.!$A:$M,EM$2,FALSE)) ->  | EN7: =IF(EN6="","",VLOOKUP(EN$3,CONFIG.!$A:$M,EN$2,FALSE)) ->  | EO7: =IF(EO6="","",VLOOKUP(EO$3,CONFIG.!$A:$M,EO$2,FALSE)) ->  | EP7: =IF(EP6="","",VLOOKUP(EP$3,CONFIG.!$A:$M,EP$2,FALSE)) ->  | EQ7: =IF(EQ6="","",VLOOKUP(EQ$3,CONFIG.!$A:$M,EQ$2,FALSE)) ->  | ER7: =IF(ER6="","",VLOOKUP(ER$3,CONFIG.!$A:$M,ER$2,FALSE)) ->  | ES7: =IF(ES6="","",VLOOKUP(ES$3,CONFIG.!$A:$M,ES$2,FALSE)) ->  | ET7: =IF(ET6="","",VLOOKUP(ET$3,CONFIG.!$A:$M,ET$2,FALSE)) ->  | EU7: =IF(EU6="","",VLOOKUP(EU$3,CONFIG.!$A:$M,EU$2,FALSE)) ->  | EV7: =IF(EV6="","",VLOOKUP(EV$3,CONFIG.!$A:$M,EV$2,FALSE)) ->  | EW7: =IF(EW6="","",VLOOKUP(EW$3,CONFIG.!$A:$M,EW$2,FALSE)) ->  | EX7: =IF(EX6="","",VLOOKUP(EX$3,CONFIG.!$A:$M,EX$2,FALSE)) ->  | EY7: =IF(EY6="","",VLOOKUP(EY$3,CONFIG.!$A:$M,EY$2,FALSE)) ->  | EZ7: =IF(EZ6="","",VLOOKUP(EZ$3,CONFIG.!$A:$M,EZ$2,FALSE)) ->  | FA7: =IF(FA6="","",VLOOKUP(FA$3,CONFIG.!$A:$M,FA$2,FALSE)) ->  | FB7: =IF(FB6="","",VLOOKUP(FB$3,CONFIG.!$A:$M,FB$2,FALSE)) ->  | FC7: =IF(FC6="","",VLOOKUP(FC$3,CONFIG.!$A:$M,FC$2,FALSE)) ->  | FD7: =IF(FD6="","",VLOOKUP(FD$3,CONFIG.!$A:$M,FD$2,FALSE)) ->  | FE7: =IF(FE6="","",VLOOKUP(FE$3,CONFIG.!$A:$M,FE$2,FALSE)) ->  | FF7: =IF(FF6="","",VLOOKUP(FF$3,CONFIG.!$A:$M,FF$2,FALSE)) ->  | FG7: =IF(FG6="","",VLOOKUP(FG$3,CONFIG.!$A:$M,FG$2,FALSE)) ->  | FH7: =IF(FH6="","",VLOOKUP(FH$3,CONFIG.!$A:$M,FH$2,FALSE)) ->  | FI7: =IF(FI6="","",VLOOKUP(FI$3,CONFIG.!$A:$M,FI$2,FALSE)) ->  | FJ7: =IF(FJ6="","",VLOOKUP(FJ$3,CONFIG.!$A:$M,FJ$2,FALSE)) ->  | FK7: =IF(FK6="","",VLOOKUP(FK$3,CONFIG.!$A:$M,FK$2,FALSE)) ->  | FL7: =IF(FL6="","",VLOOKUP(FL$3,CONFIG.!$A:$M,FL$2,FALSE)) ->  | FM7: =IF(FM6="","",VLOOKUP(FM$3,CONFIG.!$A:$M,FM$2,FALSE)) ->  | FN7: =IF(FN6="","",VLOOKUP(FN$3,CONFIG.!$A:$M,FN$2,FALSE)) ->  | FO7: =IF(FO6="","",VLOOKUP(FO$3,CONFIG.!$A:$M,FO$2,FALSE)) ->  | FP7: =IF(FP6="","",VLOOKUP(FP$3,CONFIG.!$A:$M,FP$2,FALSE)) ->  | FQ7: =IF(FQ6="","",VLOOKUP(FQ$3,CONFIG.!$A:$M,FQ$2,FALSE)) ->  | FR7: =IF(FR6="","",VLOOKUP(FR$3,CONFIG.!$A:$M,FR$2,FALSE)) ->  | FS7: =IF(FS6="","",VLOOKUP(FS$3,CONFIG.!$A:$M,FS$2,FALSE)) ->  | FT7: =IF(FT6="","",VLOOKUP(FT$3,CONFIG.!$A:$M,FT$2,FALSE)) ->  | FU7: =IF(FU6="","",VLOOKUP(FU$3,CONFIG.!$A:$M,FU$2,FALSE)) ->  | FV7: =IF(FV6="","",VLOOKUP(FV$3,CONFIG.!$A:$M,FV$2,FALSE)) ->  | FW7: =IF(FW6="","",VLOOKUP(FW$3,CONFIG.!$A:$M,FW$2,FALSE)) ->  | FX7: =IF(FX6="","",VLOOKUP(FX$3,CONFIG.!$A:$M,FX$2,FALSE)) ->  | FY7: =IF(FY6="","",VLOOKUP(FY$3,CONFIG.!$A:$M,FY$2,FALSE)) ->  | FZ7: =IF(FZ6="","",VLOOKUP(FZ$3,CONFIG.!$A:$M,FZ$2,FALSE)) ->  | GA7: =IF(GA6="","",VLOOKUP(GA$3,CONFIG.!$A:$M,GA$2,FALSE)) ->  | GB7: =IF(GB6="","",VLOOKUP(GB$3,CONFIG.!$A:$M,GB$2,FALSE)) ->  | GC7: =IF(GC6="","",VLOOKUP(GC$3,CONFIG.!$A:$M,GC$2,FALSE)) ->  | GD7: =IF(GD6="","",VLOOKUP(GD$3,CONFIG.!$A:$M,GD$2,FALSE)) ->  | GE7: =IF(GE6="","",VLOOKUP(GE$3,CONFIG.!$A:$M,GE$2,FALSE)) ->  | GF7: =IF(GF6="","",VLOOKUP(GF$3,CONFIG.!$A:$M,GF$2,FALSE)) ->  | GG7: =IF(GG6="","",VLOOKUP(GG$3,CONFIG.!$A:$M,GG$2,FALSE)) ->  | GH7: =IF(GH6="","",VLOOKUP(GH$3,CONFIG.!$A:$M,GH$2,FALSE)) ->  | GI7: =IF(GI6="","",VLOOKUP(GI$3,CONFIG.!$A:$M,GI$2,FALSE)) ->  | GJ7: =IF(GJ6="","",VLOOKUP(GJ$3,CONFIG.!$A:$M,GJ$2,FALSE)) ->  | GK7: =IF(GK6="","",VLOOKUP(GK$3,CONFIG.!$A:$M,GK$2,FALSE)) ->  | GL7: =IF(GL6="","",VLOOKUP(GL$3,CONFIG.!$A:$M,GL$2,FALSE)) ->  | GM7: =IF(GM6="","",VLOOKUP(GM$3,CONFIG.!$A:$M,GM$2,FALSE)) ->  | GN7: =IF(GN6="","",VLOOKUP(GN$3,CONFIG.!$A:$M,GN$2,FALSE)) -> Mat | GO7: =IF(GO6="","",VLOOKUP(GO$3,CONFIG.!$A:$M,GO$2,FALSE)) ->  | GP7: =IF(GP6="","",VLOOKUP(GP$3,CONFIG.!$A:$M,GP$2,FALSE)) ->  | GQ7: =IF(GQ6="","",VLOOKUP(GQ$3,CONFIG.!$A:$M,GQ$2,FALSE)) ->  | GR7: =IF(GR6="","",VLOOKUP(GR$3,CONFIG.!$A:$M,GR$2,FALSE)) ->  | GS7: =IF(GS6="","",VLOOKUP(GS$3,CONFIG.!$A:$M,GS$2,FALSE)) ->  | GT7: =IF(GT6="","",VLOOKUP(GT$3,CONFIG.!$A:$M,GT$2,FALSE)) ->  | GU7: =IF(GU6="","",VLOOKUP(GU$3,CONFIG.!$A:$M,GU$2,FALSE)) ->  | GV7: =IF(GV6="","",VLOOKUP(GV$3,CONFIG.!$A:$M,GV$2,FALSE)) ->  | GW7: =IF(GW6="","",VLOOKUP(GW$3,CONFIG.!$A:$M,GW$2,FALSE)) ->  | GX7: =IF(GX6="","",VLOOKUP(GX$3,CONFIG.!$A:$M,GX$2,FALSE)) ->  | GY7: =IF(GY6="","",VLOOKUP(GY$3,CONFIG.!$A:$M,GY$2,FALSE)) ->  | GZ7: =IF(GZ6="","",VLOOKUP(GZ$3,CONFIG.!$A:$M,GZ$2,FALSE)) ->  | HA7: =IF(HA6="","",VLOOKUP(HA$3,CONFIG.!$A:$M,HA$2,FALSE)) ->  | HB7: =IF(HB6="","",VLOOKUP(HB$3,CONFIG.!$A:$M,HB$2,FALSE)) ->  | HC7: =IF(HC6="","",VLOOKUP(HC$3,CONFIG.!$A:$M,HC$2,FALSE)) ->  | HD7: =IF(HD6="","",VLOOKUP(HD$3,CONFIG.!$A:$M,HD$2,FALSE)) ->  | HE7: =IF(HE6="","",VLOOKUP(HE$3,CONFIG.!$A:$M,HE$2,FALSE)) ->  | HF7: =IF(HF6="","",VLOOKUP(HF$3,CONFIG.!$A:$M,HF$2,FALSE)) ->  | HG7: =IF(HG6="","",VLOOKUP(HG$3,CONFIG.!$A:$M,HG$2,FALSE)) ->  | HH7: =IF(HH6="","",VLOOKUP(HH$3,CONFIG.!$A:$M,HH$2,FALSE)) ->  | HI7: =IF(HI6="","",VLOOKUP(HI$3,CONFIG.!$A:$M,HI$2,FALSE)) ->  | HJ7: =IF(HJ6="","",VLOOKUP(HJ$3,CONFIG.!$A:$M,HJ$2,FALSE)) ->  | HK7: =IF(HK6="","",VLOOKUP(HK$3,CONFIG.!$A:$M,HK$2,FALSE)) ->  | HL7: =IF(HL6="","",VLOOKUP(HL$3,CONFIG.!$A:$M,HL$2,FALSE)) ->  | HM7: =IF(HM6="","",VLOOKUP(HM$3,CONFIG.!$A:$M,HM$2,FALSE)) ->  | HN7: =IF(HN6="","",VLOOKUP(HN$3,CONFIG.!$A:$M,HN$2,FALSE)) ->  | HO7: =IF(HO6="","",VLOOKUP(HO$3,CONFIG.!$A:$M,HO$2,FALSE)) ->  | HP7: =IF(HP6="","",VLOOKUP(HP$3,CONFIG.!$A:$M,HP$2,FALSE)) ->  | HQ7: =IF(HQ6="","",VLOOKUP(HQ$3,CONFIG.!$A:$M,HQ$2,FALSE)) ->  | HR7: =IF(HR6="","",VLOOKUP(HR$3,CONFIG.!$A:$M,HR$2,FALSE)) ->  | HS7: =IF(HS6="","",VLOOKUP(HS$3,CONFIG.!$A:$M,HS$2,FALSE)) ->  | HT7: =IF(HT6="","",VLOOKUP(HT$3,CONFIG.!$A:$M,HT$2,FALSE)) ->  | HU7: =IF(HU6="","",VLOOKUP(HU$3,CONFIG.!$A:$M,HU$2,FALSE)) ->  | HV7: =IF(HV6="","",VLOOKUP(HV$3,CONFIG.!$A:$M,HV$2,FALSE)) ->  | HW7: =IF(HW6="","",VLOOKUP(HW$3,CONFIG.!$A:$M,HW$2,FALSE)) ->  | HX7: =IF(HX6="","",VLOOKUP(HX$3,CONFIG.!$A:$M,HX$2,FALSE)) ->  | HY7: =IF(HY6="","",VLOOKUP(HY$3,CONFIG.!$A:$M,HY$2,FALSE)) -> Primaire uniquement | HZ7: =IF(HZ6="","",VLOOKUP(HZ$3,CONFIG.!$A:$M,HZ$2,FALSE)) ->  | IA7: =IF(IA6="","",VLOOKUP(IA$3,CONFIG.!$A:$M,IA$2,FALSE)) ->  | IB7: =IF(IB6="","",VLOOKUP(IB$3,CONFIG.!$A:$M,IB$2,FALSE)) ->  | IC7: =IF(IC6="","",VLOOKUP(IC$3,CONFIG.!$A:$M,IC$2,FALSE)) ->  | ID7: =IF(ID6="","",VLOOKUP(ID$3,CONFIG.!$A:$M,ID$2,FALSE)) ->  | IE7: =IF(IE6="","",VLOOKUP(IE$3,CONFIG.!$A:$M,IE$2,FALSE)) ->  | IF7: =IF(IF6="","",VLOOKUP(IF$3,CONFIG.!$A:$M,IF$2,FALSE)) ->  | IG7: =IF(IG6="","",VLOOKUP(IG$3,CONFIG.!$A:$M,IG$2,FALSE)) ->  | IH7: =IF(IH6="","",VLOOKUP(IH$3,CONFIG.!$A:$M,IH$2,FALSE)) ->  | II7: =IF(II6="","",VLOOKUP(II$3,CONFIG.!$A:$M,II$2,FALSE)) ->  | IJ7: =IF(IJ6="","",VLOOKUP(IJ$3,CONFIG.!$A:$M,IJ$2,FALSE)) ->  | IK7: =IF(IK6="","",VLOOKUP(IK$3,CONFIG.!$A:$M,IK$2,FALSE)) ->  | IL7: =IF(IL6="","",VLOOKUP(IL$3,CONFIG.!$A:$M,IL$2,FALSE)) ->  | IM7: =IF(IM6="","",VLOOKUP(IM$3,CONFIG.!$A:$M,IM$2,FALSE)) ->  | IN7: =IF(IN6="","",VLOOKUP(IN$3,CONFIG.!$A:$M,IN$2,FALSE)) ->  | IO7: =IF(IO6="","",VLOOKUP(IO$3,CONFIG.!$A:$M,IO$2,FALSE)) ->  | IP7: =IF(IP6="","",VLOOKUP(IP$3,CONFIG.!$A:$M,IP$2,FALSE)) ->  | IQ7: =IF(IQ6="","",VLOOKUP(IQ$3,CONFIG.!$A:$M,IQ$2,FALSE)) ->  | IR7: =IF(IR6="","",VLOOKUP(IR$3,CONFIG.!$A:$M,IR$2,FALSE)) ->  | IS7: =IF(IS6="","",VLOOKUP(IS$3,CONFIG.!$A:$M,IS$2,FALSE)) ->  | IT7: =IF(IT6="","",VLOOKUP(IT$3,CONFIG.!$A:$M,IT$2,FALSE)) ->  | IU7: =IF(IU6="","",VLOOKUP(IU$3,CONFIG.!$A:$M,IU$2,FALSE)) ->  | IV7: =IF(IV6="","",VLOOKUP(IV$3,CONFIG.!$A:$M,IV$2,FALSE)) ->  | IW7: =IF(IW6="","",VLOOKUP(IW$3,CONFIG.!$A:$M,IW$2,FALSE)) ->  | IX7: =IF(IX6="","",VLOOKUP(IX$3,CONFIG.!$A:$M,IX$2,FALSE)) ->  | IY7: =IF(IY6="","",VLOOKUP(IY$3,CONFIG.!$A:$M,IY$2,FALSE)) ->  | IZ7: =IF(IZ6="","",VLOOKUP(IZ$3,CONFIG.!$A:$M,IZ$2,FALSE)) ->  | JA7: =IF(JA6="","",VLOOKUP(JA$3,CONFIG.!$A:$M,JA$2,FALSE)) ->  | JB7: =IF(JB6="","",VLOOKUP(JB$3,CONFIG.!$A:$M,JB$2,FALSE)) ->  | JC7: =IF(JC6="","",VLOOKUP(JC$3,CONFIG.!$A:$M,JC$2,FALSE)) ->  | JD7: =IF(JD6="","",VLOOKUP(JD$3,CONFIG.!$A:$M,JD$2,FALSE)) ->  | JE7: =IF(JE6="","",VLOOKUP(JE$3,CONFIG.!$A:$M,JE$2,FALSE)) ->  | JF7: =IF(JF6="","",VLOOKUP(JF$3,CONFIG.!$A:$M,JF$2,FALSE)) ->  | JG7: =IF(JG6="","",VLOOKUP(JG$3,CONFIG.!$A:$M,JG$2,FALSE)) ->  | JH7: =IF(JH6="","",VLOOKUP(JH$3,CONFIG.!$A:$M,JH$2,FALSE)) -> BS > 200 H | JI7: =IF(JI6="","",VLOOKUP(JI$3,CONFIG.!$A:$M,JI$2,FALSE)) ->  | JJ7: =IF(JJ6="","",VLOOKUP(JJ$3,CONFIG.!$A:$M,JJ$2,FALSE)) ->  | JK7: =IF(JK6="","",VLOOKUP(JK$3,CONFIG.!$A:$M,JK$2,FALSE)) ->  | JL7: =IF(JL6="","",VLOOKUP(JL$3,CONFIG.!$A:$M,JL$2,FALSE)) ->  | JM7: =IF(JM6="","",VLOOKUP(JM$3,CONFIG.!$A:$M,JM$2,FALSE)) ->  | JN7: =IF(JN6="","",VLOOKUP(JN$3,CONFIG.!$A:$M,JN$2,FALSE)) ->  | JO7: =IF(JO6="","",VLOOKUP(JO$3,CONFIG.!$A:$M,JO$2,FALSE)) ->  | JP7: =IF(JP6="","",VLOOKUP(JP$3,CONFIG.!$A:$M,JP$2,FALSE)) ->  | JQ7: =IF(JQ6="","",VLOOKUP(JQ$3,CONFIG.!$A:$M,JQ$2,FALSE)) ->  | JR7: =IF(JR6="","",VLOOKUP(JR$3,CONFIG.!$A:$M,JR$2,FALSE)) ->  | JS7: =IF(JS6="","",VLOOKUP(JS$3,CONFIG.!$A:$M,JS$2,FALSE)) ->  | JT7: =IF(JT6="","",VLOOKUP(JT$3,CONFIG.!$A:$M,JT$2,FALSE)) ->  | JU7: =IF(JU6="","",VLOOKUP(JU$3,CONFIG.!$A:$M,JU$2,FALSE)) ->  | JV7: =IF(JV6="","",VLOOKUP(JV$3,CONFIG.!$A:$M,JV$2,FALSE)) ->  | JW7: =IF(JW6="","",VLOOKUP(JW$3,CONFIG.!$A:$M,JW$2,FALSE)) ->  | JX7: =IF(JX6="","",VLOOKUP(JX$3,CONFIG.!$A:$M,JX$2,FALSE)) ->  | JY7: =IF(JY6="","",VLOOKUP(JY$3,CONFIG.!$A:$M,JY$2,FALSE)) ->  | JZ7: =IF(JZ6="","",VLOOKUP(JZ$3,CONFIG.!$A:$M,JZ$2,FALSE)) ->  | KA7: =IF(KA6="","",VLOOKUP(KA$3,CONFIG.!$A:$M,KA$2,FALSE)) ->  | KB7: =IF(KB6="","",VLOOKUP(KB$3,CONFIG.!$A:$M,KB$2,FALSE)) ->  | KC7: =IF(KC6="","",VLOOKUP(KC$3,CONFIG.!$A:$M,KC$2,FALSE)) ->  | KD7: =IF(KD6="","",VLOOKUP(KD$3,CONFIG.!$A:$M,KD$2,FALSE)) ->  | KE7: =IF(KE6="","",VLOOKUP(KE$3,CONFIG.!$A:$M,KE$2,FALSE)) ->  | KF7: =IF(KF6="","",VLOOKUP(KF$3,CONFIG.!$A:$M,KF$2,FALSE)) ->  | KG7: =IF(KG6="","",VLOOKUP(KG$3,CONFIG.!$A:$M,KG$2,FALSE)) ->  | KH7: =IF(KH6="","",VLOOKUP(KH$3,CONFIG.!$A:$M,KH$2,FALSE)) ->  | KI7: =IF(KI6="","",VLOOKUP(KI$3,CONFIG.!$A:$M,KI$2,FALSE)) ->  | KJ7: =IF(KJ6="","",VLOOKUP(KJ$3,CONFIG.!$A:$M,KJ$2,FALSE)) ->  | KK7: =IF(KK6="","",VLOOKUP(KK$3,CONFIG.!$A:$M,KK$2,FALSE)) ->  | KL7: =IF(KL6="","",VLOOKUP(KL$3,CONFIG.!$A:$M,KL$2,FALSE)) ->  | KM7: =IF(KM6="","",VLOOKUP(KM$3,CONFIG.!$A:$M,KM$2,FALSE)) ->  | KN7: =IF(KN6="","",VLOOKUP(KN$3,CONFIG.!$A:$M,KN$2,FALSE)) -> Agricole. | KO7: =IF(KO6="","",VLOOKUP(KO$3,CONFIG.!$A:$M,KO$2,FALSE)) ->  | KP7: =IF(KP6="","",VLOOKUP(KP$3,CONFIG.!$A:$M,KP$2,FALSE)) ->  | KQ7: =IF(KQ6="","",VLOOKUP(KQ$3,CONFIG.!$A:$M,KQ$2,FALSE)) ->  | KR7: =IF(KR6="","",VLOOKUP(KR$3,CONFIG.!$A:$M,KR$2,FALSE)) ->  | KS7: =IF(KS6="","",VLOOKUP(KS$3,CONFIG.!$A:$M,KS$2,FALSE)) ->  | KT7: =IF(KT6="","",VLOOKUP(KT$3,CONFIG.!$A:$M,KT$2,FALSE)) ->  | KU7: =IF(KU6="","",VLOOKUP(KU$3,CONFIG.!$A:$M,KU$2,FALSE)) -> Charpentes. | KV7: =IF(KV6="","",VLOOKUP(KV$3,CONFIG.!$A:$M,KV$2,FALSE)) -> Chaudronneries. | KW7: =IF(KW6="","",VLOOKUP(KW$3,CONFIG.!$A:$M,KW$2,FALSE)) ->  | KX7: =IF(KX6="","",VLOOKUP(KX$3,CONFIG.!$A:$M,KX$2,FALSE)) -> Conteneurs / Bennes. | KY7: =IF(KY6="","",VLOOKUP(KY$3,CONFIG.!$A:$M,KY$2,FALSE)) ->  | KZ7: =IF(KZ6="","",VLOOKUP(KZ$3,CONFIG.!$A:$M,KZ$2,FALSE)) ->  | LA7: =IF(LA6="","",VLOOKUP(LA$3,CONFIG.!$A:$M,LA$2,FALSE)) ->  | LB7: =IF(LB6="","",VLOOKUP(LB$3,CONFIG.!$A:$M,LB$2,FALSE)) ->  | LC7: =IF(LC6="","",VLOOKUP(LC$3,CONFIG.!$A:$M,LC$2,FALSE)) ->  | LD7: =IF(LD6="","",VLOOKUP(LD$3,CONFIG.!$A:$M,LD$2,FALSE)) ->  | LE7: =IF(LE6="","",VLOOKUP(LE$3,CONFIG.!$A:$M,LE$2,FALSE)) ->  | LF7: =IF(LF6="","",VLOOKUP(LF$3,CONFIG.!$A:$M,LF$2,FALSE)) ->  | LG7: =IF(LG6="","",VLOOKUP(LG$3,CONFIG.!$A:$M,LG$2,FALSE)) ->  | LH7: =IF(LH6="","",VLOOKUP(LH$3,CONFIG.!$A:$M,LH$2,FALSE)) ->  | LI7: =IF(LI6="","",VLOOKUP(LI$3,CONFIG.!$A:$M,LI$2,FALSE)) ->  | LJ7: =IF(LJ6="","",VLOOKUP(LJ$3,CONFIG.!$A:$M,LJ$2,FALSE)) ->  | LK7: =IF(LK6="","",VLOOKUP(LK$3,CONFIG.!$A:$M,LK$2,FALSE)) ->  | LL7: =IF(LL6="","",VLOOKUP(LL$3,CONFIG.!$A:$M,LL$2,FALSE)) ->  | LM7: =IF(LM6="","",VLOOKUP(LM$3,CONFIG.!$A:$M,LM$2,FALSE)) ->  | LN7: =IF(LN6="","",VLOOKUP(LN$3,CONFIG.!$A:$M,LN$2,FALSE)) ->  | LO7: =IF(LO6="","",VLOOKUP(LO$3,CONFIG.!$A:$M,LO$2,FALSE)) ->  | LP7: =IF(LP6="","",VLOOKUP(LP$3,CONFIG.!$A:$M,LP$2,FALSE)) ->  | LQ7: =IF(LQ6="","",VLOOKUP(LQ$3,CONFIG.!$A:$M,LQ$2,FALSE)) ->  | LR7: =IF(LR6="","",VLOOKUP(LR$3,CONFIG.!$A:$M,LR$2,FALSE)) ->  | LS7: =IF(LS6="","",VLOOKUP(LS$3,CONFIG.!$A:$M,LS$2,FALSE)) ->  | LT7: =IF(LT6="","",VLOOKUP(LT$3,CONFIG.!$A:$M,LT$2,FALSE)) ->  | LU7: =IF(LU6="","",VLOOKUP(LU$3,CONFIG.!$A:$M,LU$2,FALSE)) ->  | LV7: =IF(LV6="","",VLOOKUP(LV$3,CONFIG.!$A:$M,LV$2,FALSE)) ->  | LW7: =IF(LW6="","",VLOOKUP(LW$3,CONFIG.!$A:$M,LW$2,FALSE)) ->  | LX7: =IF(LX6="","",VLOOKUP(LX$3,CONFIG.!$A:$M,LX$2,FALSE)) ->  | LY7: =IF(LY6="","",VLOOKUP(LY$3,CONFIG.!$A:$M,LY$2,FALSE)) ->  | LZ7: =IF(LZ6="","",VLOOKUP(LZ$3,CONFIG.!$A:$M,LZ$2,FALSE)) ->  | MA7: =IF(MA6="","",VLOOKUP(MA$3,CONFIG.!$A:$M,MA$2,FALSE)) ->  | MB7: =IF(MB6="","",VLOOKUP(MB$3,CONFIG.!$A:$M,MB$2,FALSE)) ->  | MC7: =IF(MC6="","",VLOOKUP(MC$3,CONFIG.!$A:$M,MC$2,FALSE)) ->  | MD7: =IF(MD6="","",VLOOKUP(MD$3,CONFIG.!$A:$M,MD$2,FALSE)) ->  | ME7: =IF(ME6="","",VLOOKUP(ME$3,CONFIG.!$A:$M,ME$2,FALSE)) ->  | MF7: =IF(MF6="","",VLOOKUP(MF$3,CONFIG.!$A:$M,MF$2,FALSE)) ->  | MG7: =IF(MG6="","",VLOOKUP(MG$3,CONFIG.!$A:$M,MG$2,FALSE)) ->  | MH7: =IF(MH6="","",VLOOKUP(MH$3,CONFIG.!$A:$M,MH$2,FALSE)) ->  | MI7: =IF(MI6="","",VLOOKUP(MI$3,CONFIG.!$A:$M,MI$2,FALSE)) ->  | MJ7: =IF(MJ6="","",VLOOKUP(MJ$3,CONFIG.!$A:$M,MJ$2,FALSE)) ->  | MK7: =IF(MK6="","",VLOOKUP(MK$3,CONFIG.!$A:$M,MK$2,FALSE)) ->  | ML7: =IF(ML6="","",VLOOKUP(ML$3,CONFIG.!$A:$M,ML$2,FALSE)) ->  | MM7: =IF(MM6="","",VLOOKUP(MM$3,CONFIG.!$A:$M,MM$2,FALSE)) ->  | MN7: =IF(MN6="","",VLOOKUP(MN$3,CONFIG.!$A:$M,MN$2,FALSE)) ->  | MO7: =IF(MO6="","",VLOOKUP(MO$3,CONFIG.!$A:$M,MO$2,FALSE)) ->  | MP7: =IF(MP6="","",VLOOKUP(MP$3,CONFIG.!$A:$M,MP$2,FALSE)) ->  | MQ7: =IF(MQ6="","",VLOOKUP(MQ$3,CONFIG.!$A:$M,MQ$2,FALSE)) ->  | MR7: =IF(MR6="","",VLOOKUP(MR$3,CONFIG.!$A:$M,MR$2,FALSE)) ->  | MS7: =IF(MS6="","",VLOOKUP(MS$3,CONFIG.!$A:$M,MS$2,FALSE)) ->  | MT7: =IF(MT6="","",VLOOKUP(MT$3,CONFIG.!$A:$M,MT$2,FALSE)) ->  | MU7: =IF(MU6="","",VLOOKUP(MU$3,CONFIG.!$A:$M,MU$2,FALSE)) ->  | MV7: =IF(MV6="","",VLOOKUP(MV$3,CONFIG.!$A:$M,MV$2,FALSE)) ->  | MW7: =IF(MW6="","",VLOOKUP(MW$3,CONFIG.!$A:$M,MW$2,FALSE)) ->  | MX7: =IF(MX6="","",VLOOKUP(MX$3,CONFIG.!$A:$M,MX$2,FALSE)) ->  | MY7: =IF(MY6="","",VLOOKUP(MY$3,CONFIG.!$A:$M,MY$2,FALSE)) ->  | MZ7: =IF(MZ6="","",VLOOKUP(MZ$3,CONFIG.!$A:$M,MZ$2,FALSE)) ->  | NA7: =IF(NA6="","",VLOOKUP(NA$3,CONFIG.!$A:$M,NA$2,FALSE)) ->  | NB7: =IF(NB6="","",VLOOKUP(NB$3,CONFIG.!$A:$M,NB$2,FALSE)) ->  | NC7: =IF(NC6="","",VLOOKUP(NC$3,CONFIG.!$A:$M,NC$2,FALSE)) ->  | ND7: =IF(ND6="","",VLOOKUP(ND$3,CONFIG.!$A:$M,ND$2,FALSE)) ->  | NE7: =IF(NE6="","",VLOOKUP(NE$3,CONFIG.!$A:$M,NE$2,FALSE)) -> 
A8: 3 | B8: =B9 -> 2 | C8: =IF(D9="OK",D8,"") -> 132 | D8: 132 | E8: 2,5/5 | F8: 2,5/5 | G8: 2,5/5 | H8: =IF(ISERROR(HLOOKUP(H9,$T$4:$ZZ$1244,$A8+2,FALSE)=TRUE),"",HLOOKUP(H9,$T$4:$ZZ$1244,$A8+2,FALSE)) ->  | I8: =IF(ISERROR(HLOOKUP(I9,$T$4:$ZZ$1244,$A8+2,FALSE)=TRUE),"",HLOOKUP(I9,$T$4:$ZZ$1244,$A8+2,FALSE)) ->  | K8: =IF(ISERROR(HLOOKUP(K9,$T$4:$ZZ$1244,$A8+2,FALSE)=TRUE),"",HLOOKUP(K9,$T$4:$ZZ$1244,$A8+2,FALSE)) ->  | R8: 5/5 | S8: 5/5 | T8: 3/5 | W8: 2,5/5 | AQ8: 3/5 | BC8: recouvert | BE8: 3/5 | BF8: 2,5/5 | CP8: x | DV8: 1/5 | FE8: x | FF8: x | FG8: x | GN8: x | HV8: x | HX8: x | HY8: x | JH8: x | KN8: x | KU8: x | KV8: x | KX8: x
A9: 4 | B9: =IF(D9="OK",1+B7,B7) -> 2 | D9: =IF(ISERROR(IF(CONCATENATE(H9,I9,J9,K9,L9,M9,N9,O9,P9,Q9)=CONCATENATE(H$5,I$5,J$5,K$5,L$5,M$5,N$5,O$5,P$5,Q$5),"OK","NON")=TRUE),"NON",IF(CONCATENATE(H9,I9,J9,K9,L9,M9,N9,O9,P9,Q9)=CONCATENATE(H$5,I$5,J$5,K$5,L$5,M$5,N$5,O$5,P$5,Q$5),"OK","NON")) -> OK | H9: =HLOOKUP(H$5,$T9:$AAG9,1,FALSE) ->  | T9: =IF(T8="","",VLOOKUP(T$3,CONFIG.!$A:$M,T$2,FALSE)) -> Acier brut et trempé / phosphaté | U9: =IF(U8="","",VLOOKUP(U$3,CONFIG.!$A:$M,U$2,FALSE)) ->  | V9: =IF(V8="","",VLOOKUP(V$3,CONFIG.!$A:$M,V$2,FALSE)) ->  | W9: =IF(W8="","",VLOOKUP(W$3,CONFIG.!$A:$M,W$2,FALSE)) -> Acier laminé à froid, tôlerie fine / phosphaté | X9: =IF(X8="","",VLOOKUP(X$3,CONFIG.!$A:$M,X$2,FALSE)) ->  | Y9: =IF(Y8="","",VLOOKUP(Y$3,CONFIG.!$A:$M,Y$2,FALSE)) ->  | Z9: =IF(Z8="","",VLOOKUP(Z$3,CONFIG.!$A:$M,Z$2,FALSE)) ->  | AA9: =IF(AA8="","",VLOOKUP(AA$3,CONFIG.!$A:$M,AA$2,FALSE)) ->  | AB9: =IF(AB8="","",VLOOKUP(AB$3,CONFIG.!$A:$M,AB$2,FALSE)) ->  | AC9: =IF(AC8="","",VLOOKUP(AC$3,CONFIG.!$A:$M,AC$2,FALSE)) ->  | AD9: =IF(AD8="","",VLOOKUP(AD$3,CONFIG.!$A:$M,AD$2,FALSE)) ->  | AE9: =IF(AE8="","",VLOOKUP(AE$3,CONFIG.!$A:$M,AE$2,FALSE)) ->  | AF9: =IF(AF8="","",VLOOKUP(AF$3,CONFIG.!$A:$M,AF$2,FALSE)) ->  | AG9: =IF(AG8="","",VLOOKUP(AG$3,CONFIG.!$A:$M,AG$2,FALSE)) ->  | AH9: =IF(AH8="","",VLOOKUP(AH$3,CONFIG.!$A:$M,AH$2,FALSE)) ->  | AI9: =IF(AI8="","",VLOOKUP(AI$3,CONFIG.!$A:$M,AI$2,FALSE)) ->  | AJ9: =IF(AJ8="","",VLOOKUP(AJ$3,CONFIG.!$A:$M,AJ$2,FALSE)) ->  | AK9: =IF(AK8="","",VLOOKUP(AK$3,CONFIG.!$A:$M,AK$2,FALSE)) ->  | AL9: =IF(AL8="","",VLOOKUP(AL$3,CONFIG.!$A:$M,AL$2,FALSE)) ->  | AM9: =IF(AM8="","",VLOOKUP(AM$3,CONFIG.!$A:$M,AM$2,FALSE)) ->  | AN9: =IF(AN8="","",VLOOKUP(AN$3,CONFIG.!$A:$M,AN$2,FALSE)) ->  | AO9: =IF(AO8="","",VLOOKUP(AO$3,CONFIG.!$A:$M,AO$2,FALSE)) ->  | AP9: =IF(AP8="","",VLOOKUP(AP$3,CONFIG.!$A:$M,AP$2,FALSE)) ->  | AQ9: =IF(AQ8="","",VLOOKUP(AQ$3,CONFIG.!$A:$M,AQ$2,FALSE)) -> Fonte. | AR9: =IF(AR8="","",VLOOKUP(AR$3,CONFIG.!$A:$M,AR$2,FALSE)) ->  | AS9: =IF(AS8="","",VLOOKUP(AS$3,CONFIG.!$A:$M,AS$2,FALSE)) ->  | AT9: =IF(AT8="","",VLOOKUP(AT$3,CONFIG.!$A:$M,AT$2,FALSE)) ->  | AU9: =IF(AU8="","",VLOOKUP(AU$3,CONFIG.!$A:$M,AU$2,FALSE)) ->  | AV9: =IF(AV8="","",VLOOKUP(AV$3,CONFIG.!$A:$M,AV$2,FALSE)) ->  | AW9: =IF(AW8="","",VLOOKUP(AW$3,CONFIG.!$A:$M,AW$2,FALSE)) ->  | AX9: =IF(AX8="","",VLOOKUP(AX$3,CONFIG.!$A:$M,AX$2,FALSE)) ->  | AY9: =IF(AY8="","",VLOOKUP(AY$3,CONFIG.!$A:$M,AY$2,FALSE)) ->  | AZ9: =IF(AZ8="","",VLOOKUP(AZ$3,CONFIG.!$A:$M,AZ$2,FALSE)) ->  | BA9: =IF(BA8="","",VLOOKUP(BA$3,CONFIG.!$A:$M,BA$2,FALSE)) ->  | BB9: =IF(BB8="","",VLOOKUP(BB$3,CONFIG.!$A:$M,BB$2,FALSE)) ->  | BC9: =IF(BC8="","",VLOOKUP(BC$3,CONFIG.!$A:$M,BC$2,FALSE)) -> EXTERIEUR | BD9: =IF(BD8="","",VLOOKUP(BD$3,CONFIG.!$A:$M,BD$2,FALSE)) ->  | BE9: =IF(BE8="","",VLOOKUP(BE$3,CONFIG.!$A:$M,BE$2,FALSE)) -> INTERIEUR | BF9: =IF(BF8="","",VLOOKUP(BF$3,CONFIG.!$A:$M,BF$2,FALSE)) -> PRIMAIRE avant FINITION | BG9: =IF(BG8="","",VLOOKUP(BG$3,CONFIG.!$A:$M,BG$2,FALSE)) ->  | BH9: =IF(BH8="","",VLOOKUP(BH$3,CONFIG.!$A:$M,BH$2,FALSE)) ->  | BI9: =IF(BI8="","",VLOOKUP(BI$3,CONFIG.!$A:$M,BI$2,FALSE)) ->  | BJ9: =IF(BJ8="","",VLOOKUP(BJ$3,CONFIG.!$A:$M,BJ$2,FALSE)) ->  | BK9: =IF(BK8="","",VLOOKUP(BK$3,CONFIG.!$A:$M,BK$2,FALSE)) ->  | BL9: =IF(BL8="","",VLOOKUP(BL$3,CONFIG.!$A:$M,BL$2,FALSE)) ->  | BM9: =IF(BM8="","",VLOOKUP(BM$3,CONFIG.!$A:$M,BM$2,FALSE)) ->  | BN9: =IF(BN8="","",VLOOKUP(BN$3,CONFIG.!$A:$M,BN$2,FALSE)) ->  | BO9: =IF(BO8="","",VLOOKUP(BO$3,CONFIG.!$A:$M,BO$2,FALSE)) ->  | BP9: =IF(BP8="","",VLOOKUP(BP$3,CONFIG.!$A:$M,BP$2,FALSE)) ->  | BQ9: =IF(BQ8="","",VLOOKUP(BQ$3,CONFIG.!$A:$M,BQ$2,FALSE)) ->  | BR9: =IF(BR8="","",VLOOKUP(BR$3,CONFIG.!$A:$M,BR$2,FALSE)) ->  | BS9: =IF(BS8="","",VLOOKUP(BS$3,CONFIG.!$A:$M,BS$2,FALSE)) ->  | BT9: =IF(BT8="","",VLOOKUP(BT$3,CONFIG.!$A:$M,BT$2,FALSE)) ->  | BU9: =IF(BU8="","",VLOOKUP(BU$3,CONFIG.!$A:$M,BU$2,FALSE)) ->  | BV9: =IF(BV8="","",VLOOKUP(BV$3,CONFIG.!$A:$M,BV$2,FALSE)) ->  | BW9: =IF(BW8="","",VLOOKUP(BW$3,CONFIG.!$A:$M,BW$2,FALSE)) ->  | BX9: =IF(BX8="","",VLOOKUP(BX$3,CONFIG.!$A:$M,BX$2,FALSE)) ->  | BY9: =IF(BY8="","",VLOOKUP(BY$3,CONFIG.!$A:$M,BY$2,FALSE)) ->  | BZ9: =IF(BZ8="","",VLOOKUP(BZ$3,CONFIG.!$A:$M,BZ$2,FALSE)) ->  | CA9: =IF(CA8="","",VLOOKUP(CA$3,CONFIG.!$A:$M,CA$2,FALSE)) ->  | CB9: =IF(CB8="","",VLOOKUP(CB$3,CONFIG.!$A:$M,CB$2,FALSE)) ->  | CC9: =IF(CC8="","",VLOOKUP(CC$3,CONFIG.!$A:$M,CC$2,FALSE)) ->  | CD9: =IF(CD8="","",VLOOKUP(CD$3,CONFIG.!$A:$M,CD$2,FALSE)) ->  | CE9: =IF(CE8="","",VLOOKUP(CE$3,CONFIG.!$A:$M,CE$2,FALSE)) ->  | CF9: =IF(CF8="","",VLOOKUP(CF$3,CONFIG.!$A:$M,CF$2,FALSE)) ->  | CG9: =IF(CG8="","",VLOOKUP(CG$3,CONFIG.!$A:$M,CG$2,FALSE)) ->  | CH9: =IF(CH8="","",VLOOKUP(CH$3,CONFIG.!$A:$M,CH$2,FALSE)) ->  | CI9: =IF(CI8="","",VLOOKUP(CI$3,CONFIG.!$A:$M,CI$2,FALSE)) ->  | CJ9: =IF(CJ8="","",VLOOKUP(CJ$3,CONFIG.!$A:$M,CJ$2,FALSE)) ->  | CK9: =IF(CK8="","",VLOOKUP(CK$3,CONFIG.!$A:$M,CK$2,FALSE)) ->  | CL9: =IF(CL8="","",VLOOKUP(CL$3,CONFIG.!$A:$M,CL$2,FALSE)) ->  | CM9: =IF(CM8="","",VLOOKUP(CM$3,CONFIG.!$A:$M,CM$2,FALSE)) ->  | CN9: =IF(CN8="","",VLOOKUP(CN$3,CONFIG.!$A:$M,CN$2,FALSE)) ->  | CO9: =IF(CO8="","",VLOOKUP(CO$3,CONFIG.!$A:$M,CO$2,FALSE)) ->  | CP9: =IF(CP8="","",VLOOKUP(CP$3,CONFIG.!$A:$M,CP$2,FALSE)) -> SOLVANTE | CQ9: =IF(CQ8="","",VLOOKUP(CQ$3,CONFIG.!$A:$M,CQ$2,FALSE)) ->  | CR9: =IF(CR8="","",VLOOKUP(CR$3,CONFIG.!$A:$M,CR$2,FALSE)) ->  | CS9: =IF(CS8="","",VLOOKUP(CS$3,CONFIG.!$A:$M,CS$2,FALSE)) ->  | CT9: =IF(CT8="","",VLOOKUP(CT$3,CONFIG.!$A:$M,CT$2,FALSE)) ->  | CU9: =IF(CU8="","",VLOOKUP(CU$3,CONFIG.!$A:$M,CU$2,FALSE)) ->  | CV9: =IF(CV8="","",VLOOKUP(CV$3,CONFIG.!$A:$M,CV$2,FALSE)) ->  | CW9: =IF(CW8="","",VLOOKUP(CW$3,CONFIG.!$A:$M,CW$2,FALSE)) ->  | CX9: =IF(CX8="","",VLOOKUP(CX$3,CONFIG.!$A:$M,CX$2,FALSE)) ->  | CY9: =IF(CY8="","",VLOOKUP(CY$3,CONFIG.!$A:$M,CY$2,FALSE)) ->  | CZ9: =IF(CZ8="","",VLOOKUP(CZ$3,CONFIG.!$A:$M,CZ$2,FALSE)) ->  | DA9: =IF(DA8="","",VLOOKUP(DA$3,CONFIG.!$A:$M,DA$2,FALSE)) ->  | DB9: =IF(DB8="","",VLOOKUP(DB$3,CONFIG.!$A:$M,DB$2,FALSE)) ->  | DC9: =IF(DC8="","",VLOOKUP(DC$3,CONFIG.!$A:$M,DC$2,FALSE)) ->  | DD9: =IF(DD8="","",VLOOKUP(DD$3,CONFIG.!$A:$M,DD$2,FALSE)) ->  | DE9: =IF(DE8="","",VLOOKUP(DE$3,CONFIG.!$A:$M,DE$2,FALSE)) ->  | DF9: =IF(DF8="","",VLOOKUP(DF$3,CONFIG.!$A:$M,DF$2,FALSE)) ->  | DG9: =IF(DG8="","",VLOOKUP(DG$3,CONFIG.!$A:$M,DG$2,FALSE)) ->  | DH9: =IF(DH8="","",VLOOKUP(DH$3,CONFIG.!$A:$M,DH$2,FALSE)) ->  | DI9: =IF(DI8="","",VLOOKUP(DI$3,CONFIG.!$A:$M,DI$2,FALSE)) ->  | DJ9: =IF(DJ8="","",VLOOKUP(DJ$3,CONFIG.!$A:$M,DJ$2,FALSE)) ->  | DK9: =IF(DK8="","",VLOOKUP(DK$3,CONFIG.!$A:$M,DK$2,FALSE)) ->  | DL9: =IF(DL8="","",VLOOKUP(DL$3,CONFIG.!$A:$M,DL$2,FALSE)) ->  | DM9: =IF(DM8="","",VLOOKUP(DM$3,CONFIG.!$A:$M,DM$2,FALSE)) ->  | DN9: =IF(DN8="","",VLOOKUP(DN$3,CONFIG.!$A:$M,DN$2,FALSE)) ->  | DO9: =IF(DO8="","",VLOOKUP(DO$3,CONFIG.!$A:$M,DO$2,FALSE)) ->  | DP9: =IF(DP8="","",VLOOKUP(DP$3,CONFIG.!$A:$M,DP$2,FALSE)) ->  | DQ9: =IF(DQ8="","",VLOOKUP(DQ$3,CONFIG.!$A:$M,DQ$2,FALSE)) ->  | DR9: =IF(DR8="","",VLOOKUP(DR$3,CONFIG.!$A:$M,DR$2,FALSE)) ->  | DS9: =IF(DS8="","",VLOOKUP(DS$3,CONFIG.!$A:$M,DS$2,FALSE)) ->  | DT9: =IF(DT8="","",VLOOKUP(DT$3,CONFIG.!$A:$M,DT$2,FALSE)) ->  | DU9: =IF(DU8="","",VLOOKUP(DU$3,CONFIG.!$A:$M,DU$2,FALSE)) ->  | DV9: =IF(DV8="","",VLOOKUP(DV$3,CONFIG.!$A:$M,DV$2,FALSE)) -> CHIMIQUE | DW9: =IF(DW8="","",VLOOKUP(DW$3,CONFIG.!$A:$M,DW$2,FALSE)) ->  | DX9: =IF(DX8="","",VLOOKUP(DX$3,CONFIG.!$A:$M,DX$2,FALSE)) ->  | DY9: =IF(DY8="","",VLOOKUP(DY$3,CONFIG.!$A:$M,DY$2,FALSE)) ->  | DZ9: =IF(DZ8="","",VLOOKUP(DZ$3,CONFIG.!$A:$M,DZ$2,FALSE)) ->  | EA9: =IF(EA8="","",VLOOKUP(EA$3,CONFIG.!$A:$M,EA$2,FALSE)) ->  | EB9: =IF(EB8="","",VLOOKUP(EB$3,CONFIG.!$A:$M,EB$2,FALSE)) ->  | EC9: =IF(EC8="","",VLOOKUP(EC$3,CONFIG.!$A:$M,EC$2,FALSE)) ->  | ED9: =IF(ED8="","",VLOOKUP(ED$3,CONFIG.!$A:$M,ED$2,FALSE)) ->  | EE9: =IF(EE8="","",VLOOKUP(EE$3,CONFIG.!$A:$M,EE$2,FALSE)) ->  | EF9: =IF(EF8="","",VLOOKUP(EF$3,CONFIG.!$A:$M,EF$2,FALSE)) ->  | EG9: =IF(EG8="","",VLOOKUP(EG$3,CONFIG.!$A:$M,EG$2,FALSE)) ->  | EH9: =IF(EH8="","",VLOOKUP(EH$3,CONFIG.!$A:$M,EH$2,FALSE)) ->  | EI9: =IF(EI8="","",VLOOKUP(EI$3,CONFIG.!$A:$M,EI$2,FALSE)) ->  | EJ9: =IF(EJ8="","",VLOOKUP(EJ$3,CONFIG.!$A:$M,EJ$2,FALSE)) ->  | EK9: =IF(EK8="","",VLOOKUP(EK$3,CONFIG.!$A:$M,EK$2,FALSE)) ->  | EL9: =IF(EL8="","",VLOOKUP(EL$3,CONFIG.!$A:$M,EL$2,FALSE)) ->  | EM9: =IF(EM8="","",VLOOKUP(EM$3,CONFIG.!$A:$M,EM$2,FALSE)) ->  | EN9: =IF(EN8="","",VLOOKUP(EN$3,CONFIG.!$A:$M,EN$2,FALSE)) ->  | EO9: =IF(EO8="","",VLOOKUP(EO$3,CONFIG.!$A:$M,EO$2,FALSE)) ->  | EP9: =IF(EP8="","",VLOOKUP(EP$3,CONFIG.!$A:$M,EP$2,FALSE)) ->  | EQ9: =IF(EQ8="","",VLOOKUP(EQ$3,CONFIG.!$A:$M,EQ$2,FALSE)) ->  | ER9: =IF(ER8="","",VLOOKUP(ER$3,CONFIG.!$A:$M,ER$2,FALSE)) ->  | ES9: =IF(ES8="","",VLOOKUP(ES$3,CONFIG.!$A:$M,ES$2,FALSE)) ->  | ET9: =IF(ET8="","",VLOOKUP(ET$3,CONFIG.!$A:$M,ET$2,FALSE)) ->  | EU9: =IF(EU8="","",VLOOKUP(EU$3,CONFIG.!$A:$M,EU$2,FALSE)) ->  | EV9: =IF(EV8="","",VLOOKUP(EV$3,CONFIG.!$A:$M,EV$2,FALSE)) ->  | EW9: =IF(EW8="","",VLOOKUP(EW$3,CONFIG.!$A:$M,EW$2,FALSE)) ->  | EX9: =IF(EX8="","",VLOOKUP(EX$3,CONFIG.!$A:$M,EX$2,FALSE)) ->  | EY9: =IF(EY8="","",VLOOKUP(EY$3,CONFIG.!$A:$M,EY$2,FALSE)) ->  | EZ9: =IF(EZ8="","",VLOOKUP(EZ$3,CONFIG.!$A:$M,EZ$2,FALSE)) ->  | FA9: =IF(FA8="","",VLOOKUP(FA$3,CONFIG.!$A:$M,FA$2,FALSE)) ->  | FB9: =IF(FB8="","",VLOOKUP(FB$3,CONFIG.!$A:$M,FB$2,FALSE)) ->  | FC9: =IF(FC8="","",VLOOKUP(FC$3,CONFIG.!$A:$M,FC$2,FALSE)) ->  | FD9: =IF(FD8="","",VLOOKUP(FD$3,CONFIG.!$A:$M,FD$2,FALSE)) ->  | FE9: =IF(FE8="","",VLOOKUP(FE$3,CONFIG.!$A:$M,FE$2,FALSE)) -> Pulvérisation | FF9: =IF(FF8="","",VLOOKUP(FF$3,CONFIG.!$A:$M,FF$2,FALSE)) -> Pulvérisation électrostatique | FG9: =IF(FG8="","",VLOOKUP(FG$3,CONFIG.!$A:$M,FG$2,FALSE)) -> Trempé | FH9: =IF(FH8="","",VLOOKUP(FH$3,CONFIG.!$A:$M,FH$2,FALSE)) ->  | FI9: =IF(FI8="","",VLOOKUP(FI$3,CONFIG.!$A:$M,FI$2,FALSE)) ->  | FJ9: =IF(FJ8="","",VLOOKUP(FJ$3,CONFIG.!$A:$M,FJ$2,FALSE)) ->  | FK9: =IF(FK8="","",VLOOKUP(FK$3,CONFIG.!$A:$M,FK$2,FALSE)) ->  | FL9: =IF(FL8="","",VLOOKUP(FL$3,CONFIG.!$A:$M,FL$2,FALSE)) ->  | FM9: =IF(FM8="","",VLOOKUP(FM$3,CONFIG.!$A:$M,FM$2,FALSE)) ->  | FN9: =IF(FN8="","",VLOOKUP(FN$3,CONFIG.!$A:$M,FN$2,FALSE)) ->  | FO9: =IF(FO8="","",VLOOKUP(FO$3,CONFIG.!$A:$M,FO$2,FALSE)) ->  | FP9: =IF(FP8="","",VLOOKUP(FP$3,CONFIG.!$A:$M,FP$2,FALSE)) ->  | FQ9: =IF(FQ8="","",VLOOKUP(FQ$3,CONFIG.!$A:$M,FQ$2,FALSE)) ->  | FR9: =IF(FR8="","",VLOOKUP(FR$3,CONFIG.!$A:$M,FR$2,FALSE)) ->  | FS9: =IF(FS8="","",VLOOKUP(FS$3,CONFIG.!$A:$M,FS$2,FALSE)) ->  | FT9: =IF(FT8="","",VLOOKUP(FT$3,CONFIG.!$A:$M,FT$2,FALSE)) ->  | FU9: =IF(FU8="","",VLOOKUP(FU$3,CONFIG.!$A:$M,FU$2,FALSE)) ->  | FV9: =IF(FV8="","",VLOOKUP(FV$3,CONFIG.!$A:$M,FV$2,FALSE)) ->  | FW9: =IF(FW8="","",VLOOKUP(FW$3,CONFIG.!$A:$M,FW$2,FALSE)) ->  | FX9: =IF(FX8="","",VLOOKUP(FX$3,CONFIG.!$A:$M,FX$2,FALSE)) ->  | FY9: =IF(FY8="","",VLOOKUP(FY$3,CONFIG.!$A:$M,FY$2,FALSE)) ->  | FZ9: =IF(FZ8="","",VLOOKUP(FZ$3,CONFIG.!$A:$M,FZ$2,FALSE)) ->  | GA9: =IF(GA8="","",VLOOKUP(GA$3,CONFIG.!$A:$M,GA$2,FALSE)) ->  | GB9: =IF(GB8="","",VLOOKUP(GB$3,CONFIG.!$A:$M,GB$2,FALSE)) ->  | GC9: =IF(GC8="","",VLOOKUP(GC$3,CONFIG.!$A:$M,GC$2,FALSE)) ->  | GD9: =IF(GD8="","",VLOOKUP(GD$3,CONFIG.!$A:$M,GD$2,FALSE)) ->  | GE9: =IF(GE8="","",VLOOKUP(GE$3,CONFIG.!$A:$M,GE$2,FALSE)) ->  | GF9: =IF(GF8="","",VLOOKUP(GF$3,CONFIG.!$A:$M,GF$2,FALSE)) ->  | GG9: =IF(GG8="","",VLOOKUP(GG$3,CONFIG.!$A:$M,GG$2,FALSE)) ->  | GH9: =IF(GH8="","",VLOOKUP(GH$3,CONFIG.!$A:$M,GH$2,FALSE)) ->  | GI9: =IF(GI8="","",VLOOKUP(GI$3,CONFIG.!$A:$M,GI$2,FALSE)) ->  | GJ9: =IF(GJ8="","",VLOOKUP(GJ$3,CONFIG.!$A:$M,GJ$2,FALSE)) ->  | GK9: =IF(GK8="","",VLOOKUP(GK$3,CONFIG.!$A:$M,GK$2,FALSE)) ->  | GL9: =IF(GL8="","",VLOOKUP(GL$3,CONFIG.!$A:$M,GL$2,FALSE)) ->  | GM9: =IF(GM8="","",VLOOKUP(GM$3,CONFIG.!$A:$M,GM$2,FALSE)) ->  | GN9: =IF(GN8="","",VLOOKUP(GN$3,CONFIG.!$A:$M,GN$2,FALSE)) -> Mat | GO9: =IF(GO8="","",VLOOKUP(GO$3,CONFIG.!$A:$M,GO$2,FALSE)) ->  | GP9: =IF(GP8="","",VLOOKUP(GP$3,CONFIG.!$A:$M,GP$2,FALSE)) ->  | GQ9: =IF(GQ8="","",VLOOKUP(GQ$3,CONFIG.!$A:$M,GQ$2,FALSE)) ->  | GR9: =IF(GR8="","",VLOOKUP(GR$3,CONFIG.!$A:$M,GR$2,FALSE)) ->  | GS9: =IF(GS8="","",VLOOKUP(GS$3,CONFIG.!$A:$M,GS$2,FALSE)) ->  | GT9: =IF(GT8="","",VLOOKUP(GT$3,CONFIG.!$A:$M,GT$2,FALSE)) ->  | GU9: =IF(GU8="","",VLOOKUP(GU$3,CONFIG.!$A:$M,GU$2,FALSE)) ->  | GV9: =IF(GV8="","",VLOOKUP(GV$3,CONFIG.!$A:$M,GV$2,FALSE)) ->  | GW9: =IF(GW8="","",VLOOKUP(GW$3,CONFIG.!$A:$M,GW$2,FALSE)) ->  | GX9: =IF(GX8="","",VLOOKUP(GX$3,CONFIG.!$A:$M,GX$2,FALSE)) ->  | GY9: =IF(GY8="","",VLOOKUP(GY$3,CONFIG.!$A:$M,GY$2,FALSE)) ->  | GZ9: =IF(GZ8="","",VLOOKUP(GZ$3,CONFIG.!$A:$M,GZ$2,FALSE)) ->  | HA9: =IF(HA8="","",VLOOKUP(HA$3,CONFIG.!$A:$M,HA$2,FALSE)) ->  | HB9: =IF(HB8="","",VLOOKUP(HB$3,CONFIG.!$A:$M,HB$2,FALSE)) ->  | HC9: =IF(HC8="","",VLOOKUP(HC$3,CONFIG.!$A:$M,HC$2,FALSE)) ->  | HD9: =IF(HD8="","",VLOOKUP(HD$3,CONFIG.!$A:$M,HD$2,FALSE)) ->  | HE9: =IF(HE8="","",VLOOKUP(HE$3,CONFIG.!$A:$M,HE$2,FALSE)) ->  | HF9: =IF(HF8="","",VLOOKUP(HF$3,CONFIG.!$A:$M,HF$2,FALSE)) ->  | HG9: =IF(HG8="","",VLOOKUP(HG$3,CONFIG.!$A:$M,HG$2,FALSE)) ->  | HH9: =IF(HH8="","",VLOOKUP(HH$3,CONFIG.!$A:$M,HH$2,FALSE)) ->  | HI9: =IF(HI8="","",VLOOKUP(HI$3,CONFIG.!$A:$M,HI$2,FALSE)) ->  | HJ9: =IF(HJ8="","",VLOOKUP(HJ$3,CONFIG.!$A:$M,HJ$2,FALSE)) ->  | HK9: =IF(HK8="","",VLOOKUP(HK$3,CONFIG.!$A:$M,HK$2,FALSE)) ->  | HL9: =IF(HL8="","",VLOOKUP(HL$3,CONFIG.!$A:$M,HL$2,FALSE)) ->  | HM9: =IF(HM8="","",VLOOKUP(HM$3,CONFIG.!$A:$M,HM$2,FALSE)) ->  | HN9: =IF(HN8="","",VLOOKUP(HN$3,CONFIG.!$A:$M,HN$2,FALSE)) ->  | HO9: =IF(HO8="","",VLOOKUP(HO$3,CONFIG.!$A:$M,HO$2,FALSE)) ->  | HP9: =IF(HP8="","",VLOOKUP(HP$3,CONFIG.!$A:$M,HP$2,FALSE)) ->  | HQ9: =IF(HQ8="","",VLOOKUP(HQ$3,CONFIG.!$A:$M,HQ$2,FALSE)) ->  | HR9: =IF(HR8="","",VLOOKUP(HR$3,CONFIG.!$A:$M,HR$2,FALSE)) ->  | HS9: =IF(HS8="","",VLOOKUP(HS$3,CONFIG.!$A:$M,HS$2,FALSE)) ->  | HT9: =IF(HT8="","",VLOOKUP(HT$3,CONFIG.!$A:$M,HT$2,FALSE)) ->  | HU9: =IF(HU8="","",VLOOKUP(HU$3,CONFIG.!$A:$M,HU$2,FALSE)) ->  | HV9: =IF(HV8="","",VLOOKUP(HV$3,CONFIG.!$A:$M,HV$2,FALSE)) -> Couleurs / Teintes | HW9: =IF(HW8="","",VLOOKUP(HW$3,CONFIG.!$A:$M,HW$2,FALSE)) ->  | HX9: =IF(HX8="","",VLOOKUP(HX$3,CONFIG.!$A:$M,HX$2,FALSE)) -> Monocouche teinté | HY9: =IF(HY8="","",VLOOKUP(HY$3,CONFIG.!$A:$M,HY$2,FALSE)) -> Primaire uniquement | HZ9: =IF(HZ8="","",VLOOKUP(HZ$3,CONFIG.!$A:$M,HZ$2,FALSE)) ->  | IA9: =IF(IA8="","",VLOOKUP(IA$3,CONFIG.!$A:$M,IA$2,FALSE)) ->  | IB9: =IF(IB8="","",VLOOKUP(IB$3,CONFIG.!$A:$M,IB$2,FALSE)) ->  | IC9: =IF(IC8="","",VLOOKUP(IC$3,CONFIG.!$A:$M,IC$2,FALSE)) ->  | ID9: =IF(ID8="","",VLOOKUP(ID$3,CONFIG.!$A:$M,ID$2,FALSE)) ->  | IE9: =IF(IE8="","",VLOOKUP(IE$3,CONFIG.!$A:$M,IE$2,FALSE)) ->  | IF9: =IF(IF8="","",VLOOKUP(IF$3,CONFIG.!$A:$M,IF$2,FALSE)) ->  | IG9: =IF(IG8="","",VLOOKUP(IG$3,CONFIG.!$A:$M,IG$2,FALSE)) ->  | IH9: =IF(IH8="","",VLOOKUP(IH$3,CONFIG.!$A:$M,IH$2,FALSE)) ->  | II9: =IF(II8="","",VLOOKUP(II$3,CONFIG.!$A:$M,II$2,FALSE)) ->  | IJ9: =IF(IJ8="","",VLOOKUP(IJ$3,CONFIG.!$A:$M,IJ$2,FALSE)) ->  | IK9: =IF(IK8="","",VLOOKUP(IK$3,CONFIG.!$A:$M,IK$2,FALSE)) ->  | IL9: =IF(IL8="","",VLOOKUP(IL$3,CONFIG.!$A:$M,IL$2,FALSE)) ->  | IM9: =IF(IM8="","",VLOOKUP(IM$3,CONFIG.!$A:$M,IM$2,FALSE)) ->  | IN9: =IF(IN8="","",VLOOKUP(IN$3,CONFIG.!$A:$M,IN$2,FALSE)) ->  | IO9: =IF(IO8="","",VLOOKUP(IO$3,CONFIG.!$A:$M,IO$2,FALSE)) ->  | IP9: =IF(IP8="","",VLOOKUP(IP$3,CONFIG.!$A:$M,IP$2,FALSE)) ->  | IQ9: =IF(IQ8="","",VLOOKUP(IQ$3,CONFIG.!$A:$M,IQ$2,FALSE)) ->  | IR9: =IF(IR8="","",VLOOKUP(IR$3,CONFIG.!$A:$M,IR$2,FALSE)) ->  | IS9: =IF(IS8="","",VLOOKUP(IS$3,CONFIG.!$A:$M,IS$2,FALSE)) ->  | IT9: =IF(IT8="","",VLOOKUP(IT$3,CONFIG.!$A:$M,IT$2,FALSE)) ->  | IU9: =IF(IU8="","",VLOOKUP(IU$3,CONFIG.!$A:$M,IU$2,FALSE)) ->  | IV9: =IF(IV8="","",VLOOKUP(IV$3,CONFIG.!$A:$M,IV$2,FALSE)) ->  | IW9: =IF(IW8="","",VLOOKUP(IW$3,CONFIG.!$A:$M,IW$2,FALSE)) ->  | IX9: =IF(IX8="","",VLOOKUP(IX$3,CONFIG.!$A:$M,IX$2,FALSE)) ->  | IY9: =IF(IY8="","",VLOOKUP(IY$3,CONFIG.!$A:$M,IY$2,FALSE)) ->  | IZ9: =IF(IZ8="","",VLOOKUP(IZ$3,CONFIG.!$A:$M,IZ$2,FALSE)) ->  | JA9: =IF(JA8="","",VLOOKUP(JA$3,CONFIG.!$A:$M,JA$2,FALSE)) ->  | JB9: =IF(JB8="","",VLOOKUP(JB$3,CONFIG.!$A:$M,JB$2,FALSE)) ->  | JC9: =IF(JC8="","",VLOOKUP(JC$3,CONFIG.!$A:$M,JC$2,FALSE)) ->  | JD9: =IF(JD8="","",VLOOKUP(JD$3,CONFIG.!$A:$M,JD$2,FALSE)) ->  | JE9: =IF(JE8="","",VLOOKUP(JE$3,CONFIG.!$A:$M,JE$2,FALSE)) ->  | JF9: =IF(JF8="","",VLOOKUP(JF$3,CONFIG.!$A:$M,JF$2,FALSE)) ->  | JG9: =IF(JG8="","",VLOOKUP(JG$3,CONFIG.!$A:$M,JG$2,FALSE)) ->  | JH9: =IF(JH8="","",VLOOKUP(JH$3,CONFIG.!$A:$M,JH$2,FALSE)) -> BS > 200 H | JI9: =IF(JI8="","",VLOOKUP(JI$3,CONFIG.!$A:$M,JI$2,FALSE)) ->  | JJ9: =IF(JJ8="","",VLOOKUP(JJ$3,CONFIG.!$A:$M,JJ$2,FALSE)) ->  | JK9: =IF(JK8="","",VLOOKUP(JK$3,CONFIG.!$A:$M,JK$2,FALSE)) ->  | JL9: =IF(JL8="","",VLOOKUP(JL$3,CONFIG.!$A:$M,JL$2,FALSE)) ->  | JM9: =IF(JM8="","",VLOOKUP(JM$3,CONFIG.!$A:$M,JM$2,FALSE)) ->  | JN9: =IF(JN8="","",VLOOKUP(JN$3,CONFIG.!$A:$M,JN$2,FALSE)) ->  | JO9: =IF(JO8="","",VLOOKUP(JO$3,CONFIG.!$A:$M,JO$2,FALSE)) ->  | JP9: =IF(JP8="","",VLOOKUP(JP$3,CONFIG.!$A:$M,JP$2,FALSE)) ->  | JQ9: =IF(JQ8="","",VLOOKUP(JQ$3,CONFIG.!$A:$M,JQ$2,FALSE)) ->  | JR9: =IF(JR8="","",VLOOKUP(JR$3,CONFIG.!$A:$M,JR$2,FALSE)) ->  | JS9: =IF(JS8="","",VLOOKUP(JS$3,CONFIG.!$A:$M,JS$2,FALSE)) ->  | JT9: =IF(JT8="","",VLOOKUP(JT$3,CONFIG.!$A:$M,JT$2,FALSE)) ->  | JU9: =IF(JU8="","",VLOOKUP(JU$3,CONFIG.!$A:$M,JU$2,FALSE)) ->  | JV9: =IF(JV8="","",VLOOKUP(JV$3,CONFIG.!$A:$M,JV$2,FALSE)) ->  | JW9: =IF(JW8="","",VLOOKUP(JW$3,CONFIG.!$A:$M,JW$2,FALSE)) ->  | JX9: =IF(JX8="","",VLOOKUP(JX$3,CONFIG.!$A:$M,JX$2,FALSE)) ->  | JY9: =IF(JY8="","",VLOOKUP(JY$3,CONFIG.!$A:$M,JY$2,FALSE)) ->  | JZ9: =IF(JZ8="","",VLOOKUP(JZ$3,CONFIG.!$A:$M,JZ$2,FALSE)) ->  | KA9: =IF(KA8="","",VLOOKUP(KA$3,CONFIG.!$A:$M,KA$2,FALSE)) ->  | KB9: =IF(KB8="","",VLOOKUP(KB$3,CONFIG.!$A:$M,KB$2,FALSE)) ->  | KC9: =IF(KC8="","",VLOOKUP(KC$3,CONFIG.!$A:$M,KC$2,FALSE)) ->  | KD9: =IF(KD8="","",VLOOKUP(KD$3,CONFIG.!$A:$M,KD$2,FALSE)) ->  | KE9: =IF(KE8="","",VLOOKUP(KE$3,CONFIG.!$A:$M,KE$2,FALSE)) ->  | KF9: =IF(KF8="","",VLOOKUP(KF$3,CONFIG.!$A:$M,KF$2,FALSE)) ->  | KG9: =IF(KG8="","",VLOOKUP(KG$3,CONFIG.!$A:$M,KG$2,FALSE)) ->  | KH9: =IF(KH8="","",VLOOKUP(KH$3,CONFIG.!$A:$M,KH$2,FALSE)) ->  | KI9: =IF(KI8="","",VLOOKUP(KI$3,CONFIG.!$A:$M,KI$2,FALSE)) ->  | KJ9: =IF(KJ8="","",VLOOKUP(KJ$3,CONFIG.!$A:$M,KJ$2,FALSE)) ->  | KK9: =IF(KK8="","",VLOOKUP(KK$3,CONFIG.!$A:$M,KK$2,FALSE)) ->  | KL9: =IF(KL8="","",VLOOKUP(KL$3,CONFIG.!$A:$M,KL$2,FALSE)) ->  | KM9: =IF(KM8="","",VLOOKUP(KM$3,CONFIG.!$A:$M,KM$2,FALSE)) ->  | KN9: =IF(KN8="","",VLOOKUP(KN$3,CONFIG.!$A:$M,KN$2,FALSE)) -> Agricole. | KO9: =IF(KO8="","",VLOOKUP(KO$3,CONFIG.!$A:$M,KO$2,FALSE)) ->  | KP9: =IF(KP8="","",VLOOKUP(KP$3,CONFIG.!$A:$M,KP$2,FALSE)) ->  | KQ9: =IF(KQ8="","",VLOOKUP(KQ$3,CONFIG.!$A:$M,KQ$2,FALSE)) ->  | KR9: =IF(KR8="","",VLOOKUP(KR$3,CONFIG.!$A:$M,KR$2,FALSE)) ->  | KS9: =IF(KS8="","",VLOOKUP(KS$3,CONFIG.!$A:$M,KS$2,FALSE)) ->  | KT9: =IF(KT8="","",VLOOKUP(KT$3,CONFIG.!$A:$M,KT$2,FALSE)) ->  | KU9: =IF(KU8="","",VLOOKUP(KU$3,CONFIG.!$A:$M,KU$2,FALSE)) -> Charpentes. | KV9: =IF(KV8="","",VLOOKUP(KV$3,CONFIG.!$A:$M,KV$2,FALSE)) -> Chaudronneries. | KW9: =IF(KW8="","",VLOOKUP(KW$3,CONFIG.!$A:$M,KW$2,FALSE)) ->  | KX9: =IF(KX8="","",VLOOKUP(KX$3,CONFIG.!$A:$M,KX$2,FALSE)) -> Conteneurs / Bennes. | KY9: =IF(KY8="","",VLOOKUP(KY$3,CONFIG.!$A:$M,KY$2,FALSE)) ->  | KZ9: =IF(KZ8="","",VLOOKUP(KZ$3,CONFIG.!$A:$M,KZ$2,FALSE)) ->  | LA9: =IF(LA8="","",VLOOKUP(LA$3,CONFIG.!$A:$M,LA$2,FALSE)) ->  | LB9: =IF(LB8="","",VLOOKUP(LB$3,CONFIG.!$A:$M,LB$2,FALSE)) ->  | LC9: =IF(LC8="","",VLOOKUP(LC$3,CONFIG.!$A:$M,LC$2,FALSE)) ->  | LD9: =IF(LD8="","",VLOOKUP(LD$3,CONFIG.!$A:$M,LD$2,FALSE)) ->  | LE9: =IF(LE8="","",VLOOKUP(LE$3,CONFIG.!$A:$M,LE$2,FALSE)) ->  | LF9: =IF(LF8="","",VLOOKUP(LF$3,CONFIG.!$A:$M,LF$2,FALSE)) ->  | LG9: =IF(LG8="","",VLOOKUP(LG$3,CONFIG.!$A:$M,LG$2,FALSE)) ->  | LH9: =IF(LH8="","",VLOOKUP(LH$3,CONFIG.!$A:$M,LH$2,FALSE)) ->  | LI9: =IF(LI8="","",VLOOKUP(LI$3,CONFIG.!$A:$M,LI$2,FALSE)) ->  | LJ9: =IF(LJ8="","",VLOOKUP(LJ$3,CONFIG.!$A:$M,LJ$2,FALSE)) ->  | LK9: =IF(LK8="","",VLOOKUP(LK$3,CONFIG.!$A:$M,LK$2,FALSE)) ->  | LL9: =IF(LL8="","",VLOOKUP(LL$3,CONFIG.!$A:$M,LL$2,FALSE)) ->  | LM9: =IF(LM8="","",VLOOKUP(LM$3,CONFIG.!$A:$M,LM$2,FALSE)) ->  | LN9: =IF(LN8="","",VLOOKUP(LN$3,CONFIG.!$A:$M,LN$2,FALSE)) ->  | LO9: =IF(LO8="","",VLOOKUP(LO$3,CONFIG.!$A:$M,LO$2,FALSE)) ->  | LP9: =IF(LP8="","",VLOOKUP(LP$3,CONFIG.!$A:$M,LP$2,FALSE)) ->  | LQ9: =IF(LQ8="","",VLOOKUP(LQ$3,CONFIG.!$A:$M,LQ$2,FALSE)) ->  | LR9: =IF(LR8="","",VLOOKUP(LR$3,CONFIG.!$A:$M,LR$2,FALSE)) ->  | LS9: =IF(LS8="","",VLOOKUP(LS$3,CONFIG.!$A:$M,LS$2,FALSE)) ->  | LT9: =IF(LT8="","",VLOOKUP(LT$3,CONFIG.!$A:$M,LT$2,FALSE)) ->  | LU9: =IF(LU8="","",VLOOKUP(LU$3,CONFIG.!$A:$M,LU$2,FALSE)) ->  | LV9: =IF(LV8="","",VLOOKUP(LV$3,CONFIG.!$A:$M,LV$2,FALSE)) ->  | LW9: =IF(LW8="","",VLOOKUP(LW$3,CONFIG.!$A:$M,LW$2,FALSE)) ->  | LX9: =IF(LX8="","",VLOOKUP(LX$3,CONFIG.!$A:$M,LX$2,FALSE)) ->  | LY9: =IF(LY8="","",VLOOKUP(LY$3,CONFIG.!$A:$M,LY$2,FALSE)) ->  | LZ9: =IF(LZ8="","",VLOOKUP(LZ$3,CONFIG.!$A:$M,LZ$2,FALSE)) ->  | MA9: =IF(MA8="","",VLOOKUP(MA$3,CONFIG.!$A:$M,MA$2,FALSE)) ->  | MB9: =IF(MB8="","",VLOOKUP(MB$3,CONFIG.!$A:$M,MB$2,FALSE)) ->  | MC9: =IF(MC8="","",VLOOKUP(MC$3,CONFIG.!$A:$M,MC$2,FALSE)) ->  | MD9: =IF(MD8="","",VLOOKUP(MD$3,CONFIG.!$A:$M,MD$2,FALSE)) ->  | ME9: =IF(ME8="","",VLOOKUP(ME$3,CONFIG.!$A:$M,ME$2,FALSE)) ->  | MF9: =IF(MF8="","",VLOOKUP(MF$3,CONFIG.!$A:$M,MF$2,FALSE)) ->  | MG9: =IF(MG8="","",VLOOKUP(MG$3,CONFIG.!$A:$M,MG$2,FALSE)) ->  | MH9: =IF(MH8="","",VLOOKUP(MH$3,CONFIG.!$A:$M,MH$2,FALSE)) ->  | MI9: =IF(MI8="","",VLOOKUP(MI$3,CONFIG.!$A:$M,MI$2,FALSE)) ->  | MJ9: =IF(MJ8="","",VLOOKUP(MJ$3,CONFIG.!$A:$M,MJ$2,FALSE)) ->  | MK9: =IF(MK8="","",VLOOKUP(MK$3,CONFIG.!$A:$M,MK$2,FALSE)) ->  | ML9: =IF(ML8="","",VLOOKUP(ML$3,CONFIG.!$A:$M,ML$2,FALSE)) ->  | MM9: =IF(MM8="","",VLOOKUP(MM$3,CONFIG.!$A:$M,MM$2,FALSE)) ->  | MN9: =IF(MN8="","",VLOOKUP(MN$3,CONFIG.!$A:$M,MN$2,FALSE)) ->  | MO9: =IF(MO8="","",VLOOKUP(MO$3,CONFIG.!$A:$M,MO$2,FALSE)) ->  | MP9: =IF(MP8="","",VLOOKUP(MP$3,CONFIG.!$A:$M,MP$2,FALSE)) ->  | MQ9: =IF(MQ8="","",VLOOKUP(MQ$3,CONFIG.!$A:$M,MQ$2,FALSE)) ->  | MR9: =IF(MR8="","",VLOOKUP(MR$3,CONFIG.!$A:$M,MR$2,FALSE)) ->  | MS9: =IF(MS8="","",VLOOKUP(MS$3,CONFIG.!$A:$M,MS$2,FALSE)) ->  | MT9: =IF(MT8="","",VLOOKUP(MT$3,CONFIG.!$A:$M,MT$2,FALSE)) ->  | MU9: =IF(MU8="","",VLOOKUP(MU$3,CONFIG.!$A:$M,MU$2,FALSE)) ->  | MV9: =IF(MV8="","",VLOOKUP(MV$3,CONFIG.!$A:$M,MV$2,FALSE)) ->  | MW9: =IF(MW8="","",VLOOKUP(MW$3,CONFIG.!$A:$M,MW$2,FALSE)) ->  | MX9: =IF(MX8="","",VLOOKUP(MX$3,CONFIG.!$A:$M,MX$2,FALSE)) ->  | MY9: =IF(MY8="","",VLOOKUP(MY$3,CONFIG.!$A:$M,MY$2,FALSE)) ->  | MZ9: =IF(MZ8="","",VLOOKUP(MZ$3,CONFIG.!$A:$M,MZ$2,FALSE)) ->  | NA9: =IF(NA8="","",VLOOKUP(NA$3,CONFIG.!$A:$M,NA$2,FALSE)) ->  | NB9: =IF(NB8="","",VLOOKUP(NB$3,CONFIG.!$A:$M,NB$2,FALSE)) ->  | NC9: =IF(NC8="","",VLOOKUP(NC$3,CONFIG.!$A:$M,NC$2,FALSE)) ->  | ND9: =IF(ND8="","",VLOOKUP(ND$3,CONFIG.!$A:$M,ND$2,FALSE)) ->  | NE9: =IF(NE8="","",VLOOKUP(NE$3,CONFIG.!$A:$M,NE$2,FALSE)) -> 
A10: 5 | B10: =B11 -> 3 | C10: =IF(D11="OK",D10,"") -> 135 | D10: 135 | E10: 4/5 | F10: 3/5 | G10: 3/5 | H10: =IF(ISERROR(HLOOKUP(H11,$T$4:$ZZ$1244,$A10+2,FALSE)=TRUE),"",HLOOKUP(H11,$T$4:$ZZ$1244,$A10+2,FALSE)) ->  | I10: =IF(ISERROR(HLOOKUP(I11,$T$4:$ZZ$1244,$A10+2,FALSE)=TRUE),"",HLOOKUP(I11,$T$4:$ZZ$1244,$A10+2,FALSE)) ->  | K10: =IF(ISERROR(HLOOKUP(K11,$T$4:$ZZ$1244,$A10+2,FALSE)=TRUE),"",HLOOKUP(K11,$T$4:$ZZ$1244,$A10+2,FALSE)) ->  | R10: 5/5 | S10: 4,5/5 | T10: 4/5 | U10: 3/5 att dégazage | V10: 3/5 | W10: 3,5/5 | X10: 3/5 att dégazage | Y10: 3,5/5 | Z10: 4/5 | AP10: 2,5/5 | AQ10: 3,5/5 | AR10: 2,5/5 | AS10: 4/5 | AZ10: 4/5 | BC10: recouvert | BE10: 4/5 | BF10: 3,5/5 | CP10: x | DV10: 2/5 | FD10: x | FE10: x | FF10: x | GN10: x | HY10: x | JH10: x | KN10: x | KU10: x | KV10: x | KX10: x
A11: 6 | B11: =IF(D11="OK",1+B9,B9) -> 3 | D11: =IF(ISERROR(IF(CONCATENATE(H11,I11,J11,K11,L11,M11,N11,O11,P11,Q11)=CONCATENATE(H$5,I$5,J$5,K$5,L$5,M$5,N$5,O$5,P$5,Q$5),"OK","NON")=TRUE),"NON",IF(CONCATENATE(H11,I11,J11,K11,L11,M11,N11,O11,P11,Q11)=CONCATENATE(H$5,I$5,J$5,K$5,L$5,M$5,N$5,O$5,P$5,Q$5),"OK","NON")) -> OK | H11: =HLOOKUP(H$5,$T11:$AAG11,1,FALSE) ->  | T11: =IF(T10="","",VLOOKUP(T$3,CONFIG.!$A:$M,T$2,FALSE)) -> Acier brut et trempé / phosphaté | U11: =IF(U10="","",VLOOKUP(U$3,CONFIG.!$A:$M,U$2,FALSE)) -> Acier électro zingué. | V11: =IF(V10="","",VLOOKUP(V$3,CONFIG.!$A:$M,V$2,FALSE)) -> Acier galvanisé à chaud. | W11: =IF(W10="","",VLOOKUP(W$3,CONFIG.!$A:$M,W$2,FALSE)) -> Acier laminé à froid, tôlerie fine / phosphaté | X11: =IF(X10="","",VLOOKUP(X$3,CONFIG.!$A:$M,X$2,FALSE)) -> Acier métallisé au zinc / aluminium. | Y11: =IF(Y10="","",VLOOKUP(Y$3,CONFIG.!$A:$M,Y$2,FALSE)) -> Aluminium. | Z11: =IF(Z10="","",VLOOKUP(Z$3,CONFIG.!$A:$M,Z$2,FALSE)) -> Anciens fonds de peintures insensibles aux solvants | AA11: =IF(AA10="","",VLOOKUP(AA$3,CONFIG.!$A:$M,AA$2,FALSE)) ->  | AB11: =IF(AB10="","",VLOOKUP(AB$3,CONFIG.!$A:$M,AB$2,FALSE)) ->  | AC11: =IF(AC10="","",VLOOKUP(AC$3,CONFIG.!$A:$M,AC$2,FALSE)) ->  | AD11: =IF(AD10="","",VLOOKUP(AD$3,CONFIG.!$A:$M,AD$2,FALSE)) ->  | AE11: =IF(AE10="","",VLOOKUP(AE$3,CONFIG.!$A:$M,AE$2,FALSE)) ->  | AF11: =IF(AF10="","",VLOOKUP(AF$3,CONFIG.!$A:$M,AF$2,FALSE)) ->  | AG11: =IF(AG10="","",VLOOKUP(AG$3,CONFIG.!$A:$M,AG$2,FALSE)) ->  | AH11: =IF(AH10="","",VLOOKUP(AH$3,CONFIG.!$A:$M,AH$2,FALSE)) ->  | AI11: =IF(AI10="","",VLOOKUP(AI$3,CONFIG.!$A:$M,AI$2,FALSE)) ->  | AJ11: =IF(AJ10="","",VLOOKUP(AJ$3,CONFIG.!$A:$M,AJ$2,FALSE)) ->  | AK11: =IF(AK10="","",VLOOKUP(AK$3,CONFIG.!$A:$M,AK$2,FALSE)) ->  | AL11: =IF(AL10="","",VLOOKUP(AL$3,CONFIG.!$A:$M,AL$2,FALSE)) ->  | AM11: =IF(AM10="","",VLOOKUP(AM$3,CONFIG.!$A:$M,AM$2,FALSE)) ->  | AN11: =IF(AN10="","",VLOOKUP(AN$3,CONFIG.!$A:$M,AN$2,FALSE)) ->  | AO11: =IF(AO10="","",VLOOKUP(AO$3,CONFIG.!$A:$M,AO$2,FALSE)) ->  | AP11: =IF(AP10="","",VLOOKUP(AP$3,CONFIG.!$A:$M,AP$2,FALSE)) -> Fonte d'aluminium. | AQ11: =IF(AQ10="","",VLOOKUP(AQ$3,CONFIG.!$A:$M,AQ$2,FALSE)) -> Fonte. | AR11: =IF(AR10="","",VLOOKUP(AR$3,CONFIG.!$A:$M,AR$2,FALSE)) -> Inox. | AS11: =IF(AS10="","",VLOOKUP(AS$3,CONFIG.!$A:$M,AS$2,FALSE)) -> Laiton et plomb. | AT11: =IF(AT10="","",VLOOKUP(AT$3,CONFIG.!$A:$M,AT$2,FALSE)) ->  | AU11: =IF(AU10="","",VLOOKUP(AU$3,CONFIG.!$A:$M,AU$2,FALSE)) ->  | AV11: =IF(AV10="","",VLOOKUP(AV$3,CONFIG.!$A:$M,AV$2,FALSE)) ->  | AW11: =IF(AW10="","",VLOOKUP(AW$3,CONFIG.!$A:$M,AW$2,FALSE)) ->  | AX11: =IF(AX10="","",VLOOKUP(AX$3,CONFIG.!$A:$M,AX$2,FALSE)) ->  | AY11: =IF(AY10="","",VLOOKUP(AY$3,CONFIG.!$A:$M,AY$2,FALSE)) ->  | AZ11: =IF(AZ10="","",VLOOKUP(AZ$3,CONFIG.!$A:$M,AZ$2,FALSE)) -> Zamak. | BA11: =IF(BA10="","",VLOOKUP(BA$3,CONFIG.!$A:$M,BA$2,FALSE)) ->  | BB11: =IF(BB10="","",VLOOKUP(BB$3,CONFIG.!$A:$M,BB$2,FALSE)) ->  | BC11: =IF(BC10="","",VLOOKUP(BC$3,CONFIG.!$A:$M,BC$2,FALSE)) -> EXTERIEUR | BD11: =IF(BD10="","",VLOOKUP(BD$3,CONFIG.!$A:$M,BD$2,FALSE)) ->  | BE11: =IF(BE10="","",VLOOKUP(BE$3,CONFIG.!$A:$M,BE$2,FALSE)) -> INTERIEUR | BF11: =IF(BF10="","",VLOOKUP(BF$3,CONFIG.!$A:$M,BF$2,FALSE)) -> PRIMAIRE avant FINITION | BG11: =IF(BG10="","",VLOOKUP(BG$3,CONFIG.!$A:$M,BG$2,FALSE)) ->  | BH11: =IF(BH10="","",VLOOKUP(BH$3,CONFIG.!$A:$M,BH$2,FALSE)) ->  | BI11: =IF(BI10="","",VLOOKUP(BI$3,CONFIG.!$A:$M,BI$2,FALSE)) ->  | BJ11: =IF(BJ10="","",VLOOKUP(BJ$3,CONFIG.!$A:$M,BJ$2,FALSE)) ->  | BK11: =IF(BK10="","",VLOOKUP(BK$3,CONFIG.!$A:$M,BK$2,FALSE)) ->  | BL11: =IF(BL10="","",VLOOKUP(BL$3,CONFIG.!$A:$M,BL$2,FALSE)) ->  | BM11: =IF(BM10="","",VLOOKUP(BM$3,CONFIG.!$A:$M,BM$2,FALSE)) ->  | BN11: =IF(BN10="","",VLOOKUP(BN$3,CONFIG.!$A:$M,BN$2,FALSE)) ->  | BO11: =IF(BO10="","",VLOOKUP(BO$3,CONFIG.!$A:$M,BO$2,FALSE)) ->  | BP11: =IF(BP10="","",VLOOKUP(BP$3,CONFIG.!$A:$M,BP$2,FALSE)) ->  | BQ11: =IF(BQ10="","",VLOOKUP(BQ$3,CONFIG.!$A:$M,BQ$2,FALSE)) ->  | BR11: =IF(BR10="","",VLOOKUP(BR$3,CONFIG.!$A:$M,BR$2,FALSE)) ->  | BS11: =IF(BS10="","",VLOOKUP(BS$3,CONFIG.!$A:$M,BS$2,FALSE)) ->  | BT11: =IF(BT10="","",VLOOKUP(BT$3,CONFIG.!$A:$M,BT$2,FALSE)) ->  | BU11: =IF(BU10="","",VLOOKUP(BU$3,CONFIG.!$A:$M,BU$2,FALSE)) ->  | BV11: =IF(BV10="","",VLOOKUP(BV$3,CONFIG.!$A:$M,BV$2,FALSE)) ->  | BW11: =IF(BW10="","",VLOOKUP(BW$3,CONFIG.!$A:$M,BW$2,FALSE)) ->  | BX11: =IF(BX10="","",VLOOKUP(BX$3,CONFIG.!$A:$M,BX$2,FALSE)) ->  | BY11: =IF(BY10="","",VLOOKUP(BY$3,CONFIG.!$A:$M,BY$2,FALSE)) ->  | BZ11: =IF(BZ10="","",VLOOKUP(BZ$3,CONFIG.!$A:$M,BZ$2,FALSE)) ->  | CA11: =IF(CA10="","",VLOOKUP(CA$3,CONFIG.!$A:$M,CA$2,FALSE)) ->  | CB11: =IF(CB10="","",VLOOKUP(CB$3,CONFIG.!$A:$M,CB$2,FALSE)) ->  | CC11: =IF(CC10="","",VLOOKUP(CC$3,CONFIG.!$A:$M,CC$2,FALSE)) ->  | CD11: =IF(CD10="","",VLOOKUP(CD$3,CONFIG.!$A:$M,CD$2,FALSE)) ->  | CE11: =IF(CE10="","",VLOOKUP(CE$3,CONFIG.!$A:$M,CE$2,FALSE)) ->  | CF11: =IF(CF10="","",VLOOKUP(CF$3,CONFIG.!$A:$M,CF$2,FALSE)) ->  | CG11: =IF(CG10="","",VLOOKUP(CG$3,CONFIG.!$A:$M,CG$2,FALSE)) ->  | CH11: =IF(CH10="","",VLOOKUP(CH$3,CONFIG.!$A:$M,CH$2,FALSE)) ->  | CI11: =IF(CI10="","",VLOOKUP(CI$3,CONFIG.!$A:$M,CI$2,FALSE)) ->  | CJ11: =IF(CJ10="","",VLOOKUP(CJ$3,CONFIG.!$A:$M,CJ$2,FALSE)) ->  | CK11: =IF(CK10="","",VLOOKUP(CK$3,CONFIG.!$A:$M,CK$2,FALSE)) ->  | CL11: =IF(CL10="","",VLOOKUP(CL$3,CONFIG.!$A:$M,CL$2,FALSE)) ->  | CM11: =IF(CM10="","",VLOOKUP(CM$3,CONFIG.!$A:$M,CM$2,FALSE)) ->  | CN11: =IF(CN10="","",VLOOKUP(CN$3,CONFIG.!$A:$M,CN$2,FALSE)) ->  | CO11: =IF(CO10="","",VLOOKUP(CO$3,CONFIG.!$A:$M,CO$2,FALSE)) ->  | CP11: =IF(CP10="","",VLOOKUP(CP$3,CONFIG.!$A:$M,CP$2,FALSE)) -> SOLVANTE | CQ11: =IF(CQ10="","",VLOOKUP(CQ$3,CONFIG.!$A:$M,CQ$2,FALSE)) ->  | CR11: =IF(CR10="","",VLOOKUP(CR$3,CONFIG.!$A:$M,CR$2,FALSE)) ->  | CS11: =IF(CS10="","",VLOOKUP(CS$3,CONFIG.!$A:$M,CS$2,FALSE)) ->  | CT11: =IF(CT10="","",VLOOKUP(CT$3,CONFIG.!$A:$M,CT$2,FALSE)) ->  | CU11: =IF(CU10="","",VLOOKUP(CU$3,CONFIG.!$A:$M,CU$2,FALSE)) ->  | CV11: =IF(CV10="","",VLOOKUP(CV$3,CONFIG.!$A:$M,CV$2,FALSE)) ->  | CW11: =IF(CW10="","",VLOOKUP(CW$3,CONFIG.!$A:$M,CW$2,FALSE)) ->  | CX11: =IF(CX10="","",VLOOKUP(CX$3,CONFIG.!$A:$M,CX$2,FALSE)) ->  | CY11: =IF(CY10="","",VLOOKUP(CY$3,CONFIG.!$A:$M,CY$2,FALSE)) ->  | CZ11: =IF(CZ10="","",VLOOKUP(CZ$3,CONFIG.!$A:$M,CZ$2,FALSE)) ->  | DA11: =IF(DA10="","",VLOOKUP(DA$3,CONFIG.!$A:$M,DA$2,FALSE)) ->  | DB11: =IF(DB10="","",VLOOKUP(DB$3,CONFIG.!$A:$M,DB$2,FALSE)) ->  | DC11: =IF(DC10="","",VLOOKUP(DC$3,CONFIG.!$A:$M,DC$2,FALSE)) ->  | DD11: =IF(DD10="","",VLOOKUP(DD$3,CONFIG.!$A:$M,DD$2,FALSE)) ->  | DE11: =IF(DE10="","",VLOOKUP(DE$3,CONFIG.!$A:$M,DE$2,FALSE)) ->  | DF11: =IF(DF10="","",VLOOKUP(DF$3,CONFIG.!$A:$M,DF$2,FALSE)) ->  | DG11: =IF(DG10="","",VLOOKUP(DG$3,CONFIG.!$A:$M,DG$2,FALSE)) ->  | DH11: =IF(DH10="","",VLOOKUP(DH$3,CONFIG.!$A:$M,DH$2,FALSE)) ->  | DI11: =IF(DI10="","",VLOOKUP(DI$3,CONFIG.!$A:$M,DI$2,FALSE)) ->  | DJ11: =IF(DJ10="","",VLOOKUP(DJ$3,CONFIG.!$A:$M,DJ$2,FALSE)) ->  | DK11: =IF(DK10="","",VLOOKUP(DK$3,CONFIG.!$A:$M,DK$2,FALSE)) ->  | DL11: =IF(DL10="","",VLOOKUP(DL$3,CONFIG.!$A:$M,DL$2,FALSE)) ->  | DM11: =IF(DM10="","",VLOOKUP(DM$3,CONFIG.!$A:$M,DM$2,FALSE)) ->  | DN11: =IF(DN10="","",VLOOKUP(DN$3,CONFIG.!$A:$M,DN$2,FALSE)) ->  | DO11: =IF(DO10="","",VLOOKUP(DO$3,CONFIG.!$A:$M,DO$2,FALSE)) ->  | DP11: =IF(DP10="","",VLOOKUP(DP$3,CONFIG.!$A:$M,DP$2,FALSE)) ->  | DQ11: =IF(DQ10="","",VLOOKUP(DQ$3,CONFIG.!$A:$M,DQ$2,FALSE)) ->  | DR11: =IF(DR10="","",VLOOKUP(DR$3,CONFIG.!$A:$M,DR$2,FALSE)) ->  | DS11: =IF(DS10="","",VLOOKUP(DS$3,CONFIG.!$A:$M,DS$2,FALSE)) ->  | DT11: =IF(DT10="","",VLOOKUP(DT$3,CONFIG.!$A:$M,DT$2,FALSE)) ->  | DU11: =IF(DU10="","",VLOOKUP(DU$3,CONFIG.!$A:$M,DU$2,FALSE)) ->  | DV11: =IF(DV10="","",VLOOKUP(DV$3,CONFIG.!$A:$M,DV$2,FALSE)) -> CHIMIQUE | DW11: =IF(DW10="","",VLOOKUP(DW$3,CONFIG.!$A:$M,DW$2,FALSE)) ->  | DX11: =IF(DX10="","",VLOOKUP(DX$3,CONFIG.!$A:$M,DX$2,FALSE)) ->  | DY11: =IF(DY10="","",VLOOKUP(DY$3,CONFIG.!$A:$M,DY$2,FALSE)) ->  | DZ11: =IF(DZ10="","",VLOOKUP(DZ$3,CONFIG.!$A:$M,DZ$2,FALSE)) ->  | EA11: =IF(EA10="","",VLOOKUP(EA$3,CONFIG.!$A:$M,EA$2,FALSE)) ->  | EB11: =IF(EB10="","",VLOOKUP(EB$3,CONFIG.!$A:$M,EB$2,FALSE)) ->  | EC11: =IF(EC10="","",VLOOKUP(EC$3,CONFIG.!$A:$M,EC$2,FALSE)) ->  | ED11: =IF(ED10="","",VLOOKUP(ED$3,CONFIG.!$A:$M,ED$2,FALSE)) ->  | EE11: =IF(EE10="","",VLOOKUP(EE$3,CONFIG.!$A:$M,EE$2,FALSE)) ->  | EF11: =IF(EF10="","",VLOOKUP(EF$3,CONFIG.!$A:$M,EF$2,FALSE)) ->  | EG11: =IF(EG10="","",VLOOKUP(EG$3,CONFIG.!$A:$M,EG$2,FALSE)) ->  | EH11: =IF(EH10="","",VLOOKUP(EH$3,CONFIG.!$A:$M,EH$2,FALSE)) ->  | EI11: =IF(EI10="","",VLOOKUP(EI$3,CONFIG.!$A:$M,EI$2,FALSE)) ->  | EJ11: =IF(EJ10="","",VLOOKUP(EJ$3,CONFIG.!$A:$M,EJ$2,FALSE)) ->  | EK11: =IF(EK10="","",VLOOKUP(EK$3,CONFIG.!$A:$M,EK$2,FALSE)) ->  | EL11: =IF(EL10="","",VLOOKUP(EL$3,CONFIG.!$A:$M,EL$2,FALSE)) ->  | EM11: =IF(EM10="","",VLOOKUP(EM$3,CONFIG.!$A:$M,EM$2,FALSE)) ->  | EN11: =IF(EN10="","",VLOOKUP(EN$3,CONFIG.!$A:$M,EN$2,FALSE)) ->  | EO11: =IF(EO10="","",VLOOKUP(EO$3,CONFIG.!$A:$M,EO$2,FALSE)) ->  | EP11: =IF(EP10="","",VLOOKUP(EP$3,CONFIG.!$A:$M,EP$2,FALSE)) ->  | EQ11: =IF(EQ10="","",VLOOKUP(EQ$3,CONFIG.!$A:$M,EQ$2,FALSE)) ->  | ER11: =IF(ER10="","",VLOOKUP(ER$3,CONFIG.!$A:$M,ER$2,FALSE)) ->  | ES11: =IF(ES10="","",VLOOKUP(ES$3,CONFIG.!$A:$M,ES$2,FALSE)) ->  | ET11: =IF(ET10="","",VLOOKUP(ET$3,CONFIG.!$A:$M,ET$2,FALSE)) ->  | EU11: =IF(EU10="","",VLOOKUP(EU$3,CONFIG.!$A:$M,EU$2,FALSE)) ->  | EV11: =IF(EV10="","",VLOOKUP(EV$3,CONFIG.!$A:$M,EV$2,FALSE)) ->  | EW11: =IF(EW10="","",VLOOKUP(EW$3,CONFIG.!$A:$M,EW$2,FALSE)) ->  | EX11: =IF(EX10="","",VLOOKUP(EX$3,CONFIG.!$A:$M,EX$2,FALSE)) ->  | EY11: =IF(EY10="","",VLOOKUP(EY$3,CONFIG.!$A:$M,EY$2,FALSE)) ->  | EZ11: =IF(EZ10="","",VLOOKUP(EZ$3,CONFIG.!$A:$M,EZ$2,FALSE)) ->  | FA11: =IF(FA10="","",VLOOKUP(FA$3,CONFIG.!$A:$M,FA$2,FALSE)) ->  | FB11: =IF(FB10="","",VLOOKUP(FB$3,CONFIG.!$A:$M,FB$2,FALSE)) ->  | FC11: =IF(FC10="","",VLOOKUP(FC$3,CONFIG.!$A:$M,FC$2,FALSE)) ->  | FD11: =IF(FD10="","",VLOOKUP(FD$3,CONFIG.!$A:$M,FD$2,FALSE)) -> Brosse, rouleau | FE11: =IF(FE10="","",VLOOKUP(FE$3,CONFIG.!$A:$M,FE$2,FALSE)) -> Pulvérisation | FF11: =IF(FF10="","",VLOOKUP(FF$3,CONFIG.!$A:$M,FF$2,FALSE)) -> Pulvérisation électrostatique | FG11: =IF(FG10="","",VLOOKUP(FG$3,CONFIG.!$A:$M,FG$2,FALSE)) ->  | FH11: =IF(FH10="","",VLOOKUP(FH$3,CONFIG.!$A:$M,FH$2,FALSE)) ->  | FI11: =IF(FI10="","",VLOOKUP(FI$3,CONFIG.!$A:$M,FI$2,FALSE)) ->  | FJ11: =IF(FJ10="","",VLOOKUP(FJ$3,CONFIG.!$A:$M,FJ$2,FALSE)) ->  | FK11: =IF(FK10="","",VLOOKUP(FK$3,CONFIG.!$A:$M,FK$2,FALSE)) ->  | FL11: =IF(FL10="","",VLOOKUP(FL$3,CONFIG.!$A:$M,FL$2,FALSE)) ->  | FM11: =IF(FM10="","",VLOOKUP(FM$3,CONFIG.!$A:$M,FM$2,FALSE)) ->  | FN11: =IF(FN10="","",VLOOKUP(FN$3,CONFIG.!$A:$M,FN$2,FALSE)) ->  | FO11: =IF(FO10="","",VLOOKUP(FO$3,CONFIG.!$A:$M,FO$2,FALSE)) ->  | FP11: =IF(FP10="","",VLOOKUP(FP$3,CONFIG.!$A:$M,FP$2,FALSE)) ->  | FQ11: =IF(FQ10="","",VLOOKUP(FQ$3,CONFIG.!$A:$M,FQ$2,FALSE)) ->  | FR11: =IF(FR10="","",VLOOKUP(FR$3,CONFIG.!$A:$M,FR$2,FALSE)) ->  | FS11: =IF(FS10="","",VLOOKUP(FS$3,CONFIG.!$A:$M,FS$2,FALSE)) ->  | FT11: =IF(FT10="","",VLOOKUP(FT$3,CONFIG.!$A:$M,FT$2,FALSE)) ->  | FU11: =IF(FU10="","",VLOOKUP(FU$3,CONFIG.!$A:$M,FU$2,FALSE)) ->  | FV11: =IF(FV10="","",VLOOKUP(FV$3,CONFIG.!$A:$M,FV$2,FALSE)) ->  | FW11: =IF(FW10="","",VLOOKUP(FW$3,CONFIG.!$A:$M,FW$2,FALSE)) ->  | FX11: =IF(FX10="","",VLOOKUP(FX$3,CONFIG.!$A:$M,FX$2,FALSE)) ->  | FY11: =IF(FY10="","",VLOOKUP(FY$3,CONFIG.!$A:$M,FY$2,FALSE)) ->  | FZ11: =IF(FZ10="","",VLOOKUP(FZ$3,CONFIG.!$A:$M,FZ$2,FALSE)) ->  | GA11: =IF(GA10="","",VLOOKUP(GA$3,CONFIG.!$A:$M,GA$2,FALSE)) ->  | GB11: =IF(GB10="","",VLOOKUP(GB$3,CONFIG.!$A:$M,GB$2,FALSE)) ->  | GC11: =IF(GC10="","",VLOOKUP(GC$3,CONFIG.!$A:$M,GC$2,FALSE)) ->  | GD11: =IF(GD10="","",VLOOKUP(GD$3,CONFIG.!$A:$M,GD$2,FALSE)) ->  | GE11: =IF(GE10="","",VLOOKUP(GE$3,CONFIG.!$A:$M,GE$2,FALSE)) ->  | GF11: =IF(GF10="","",VLOOKUP(GF$3,CONFIG.!$A:$M,GF$2,FALSE)) ->  | GG11: =IF(GG10="","",VLOOKUP(GG$3,CONFIG.!$A:$M,GG$2,FALSE)) ->  | GH11: =IF(GH10="","",VLOOKUP(GH$3,CONFIG.!$A:$M,GH$2,FALSE)) ->  | GI11: =IF(GI10="","",VLOOKUP(GI$3,CONFIG.!$A:$M,GI$2,FALSE)) ->  | GJ11: =IF(GJ10="","",VLOOKUP(GJ$3,CONFIG.!$A:$M,GJ$2,FALSE)) ->  | GK11: =IF(GK10="","",VLOOKUP(GK$3,CONFIG.!$A:$M,GK$2,FALSE)) ->  | GL11: =IF(GL10="","",VLOOKUP(GL$3,CONFIG.!$A:$M,GL$2,FALSE)) ->  | GM11: =IF(GM10="","",VLOOKUP(GM$3,CONFIG.!$A:$M,GM$2,FALSE)) ->  | GN11: =IF(GN10="","",VLOOKUP(GN$3,CONFIG.!$A:$M,GN$2,FALSE)) -> Mat | GO11: =IF(GO10="","",VLOOKUP(GO$3,CONFIG.!$A:$M,GO$2,FALSE)) ->  | GP11: =IF(GP10="","",VLOOKUP(GP$3,CONFIG.!$A:$M,GP$2,FALSE)) ->  | GQ11: =IF(GQ10="","",VLOOKUP(GQ$3,CONFIG.!$A:$M,GQ$2,FALSE)) ->  | GR11: =IF(GR10="","",VLOOKUP(GR$3,CONFIG.!$A:$M,GR$2,FALSE)) ->  | GS11: =IF(GS10="","",VLOOKUP(GS$3,CONFIG.!$A:$M,GS$2,FALSE)) ->  | GT11: =IF(GT10="","",VLOOKUP(GT$3,CONFIG.!$A:$M,GT$2,FALSE)) ->  | GU11: =IF(GU10="","",VLOOKUP(GU$3,CONFIG.!$A:$M,GU$2,FALSE)) ->  | GV11: =IF(GV10="","",VLOOKUP(GV$3,CONFIG.!$A:$M,GV$2,FALSE)) ->  | GW11: =IF(GW10="","",VLOOKUP(GW$3,CONFIG.!$A:$M,GW$2,FALSE)) ->  | GX11: =IF(GX10="","",VLOOKUP(GX$3,CONFIG.!$A:$M,GX$2,FALSE)) ->  | GY11: =IF(GY10="","",VLOOKUP(GY$3,CONFIG.!$A:$M,GY$2,FALSE)) ->  | GZ11: =IF(GZ10="","",VLOOKUP(GZ$3,CONFIG.!$A:$M,GZ$2,FALSE)) ->  | HA11: =IF(HA10="","",VLOOKUP(HA$3,CONFIG.!$A:$M,HA$2,FALSE)) ->  | HB11: =IF(HB10="","",VLOOKUP(HB$3,CONFIG.!$A:$M,HB$2,FALSE)) ->  | HC11: =IF(HC10="","",VLOOKUP(HC$3,CONFIG.!$A:$M,HC$2,FALSE)) ->  | HD11: =IF(HD10="","",VLOOKUP(HD$3,CONFIG.!$A:$M,HD$2,FALSE)) ->  | HE11: =IF(HE10="","",VLOOKUP(HE$3,CONFIG.!$A:$M,HE$2,FALSE)) ->  | HF11: =IF(HF10="","",VLOOKUP(HF$3,CONFIG.!$A:$M,HF$2,FALSE)) ->  | HG11: =IF(HG10="","",VLOOKUP(HG$3,CONFIG.!$A:$M,HG$2,FALSE)) ->  | HH11: =IF(HH10="","",VLOOKUP(HH$3,CONFIG.!$A:$M,HH$2,FALSE)) ->  | HI11: =IF(HI10="","",VLOOKUP(HI$3,CONFIG.!$A:$M,HI$2,FALSE)) ->  | HJ11: =IF(HJ10="","",VLOOKUP(HJ$3,CONFIG.!$A:$M,HJ$2,FALSE)) ->  | HK11: =IF(HK10="","",VLOOKUP(HK$3,CONFIG.!$A:$M,HK$2,FALSE)) ->  | HL11: =IF(HL10="","",VLOOKUP(HL$3,CONFIG.!$A:$M,HL$2,FALSE)) ->  | HM11: =IF(HM10="","",VLOOKUP(HM$3,CONFIG.!$A:$M,HM$2,FALSE)) ->  | HN11: =IF(HN10="","",VLOOKUP(HN$3,CONFIG.!$A:$M,HN$2,FALSE)) ->  | HO11: =IF(HO10="","",VLOOKUP(HO$3,CONFIG.!$A:$M,HO$2,FALSE)) ->  | HP11: =IF(HP10="","",VLOOKUP(HP$3,CONFIG.!$A:$M,HP$2,FALSE)) ->  | HQ11: =IF(HQ10="","",VLOOKUP(HQ$3,CONFIG.!$A:$M,HQ$2,FALSE)) ->  | HR11: =IF(HR10="","",VLOOKUP(HR$3,CONFIG.!$A:$M,HR$2,FALSE)) ->  | HS11: =IF(HS10="","",VLOOKUP(HS$3,CONFIG.!$A:$M,HS$2,FALSE)) ->  | HT11: =IF(HT10="","",VLOOKUP(HT$3,CONFIG.!$A:$M,HT$2,FALSE)) ->  | HU11: =IF(HU10="","",VLOOKUP(HU$3,CONFIG.!$A:$M,HU$2,FALSE)) ->  | HV11: =IF(HV10="","",VLOOKUP(HV$3,CONFIG.!$A:$M,HV$2,FALSE)) ->  | HW11: =IF(HW10="","",VLOOKUP(HW$3,CONFIG.!$A:$M,HW$2,FALSE)) ->  | HX11: =IF(HX10="","",VLOOKUP(HX$3,CONFIG.!$A:$M,HX$2,FALSE)) ->  | HY11: =IF(HY10="","",VLOOKUP(HY$3,CONFIG.!$A:$M,HY$2,FALSE)) -> Primaire uniquement | HZ11: =IF(HZ10="","",VLOOKUP(HZ$3,CONFIG.!$A:$M,HZ$2,FALSE)) ->  | IA11: =IF(IA10="","",VLOOKUP(IA$3,CONFIG.!$A:$M,IA$2,FALSE)) ->  | IB11: =IF(IB10="","",VLOOKUP(IB$3,CONFIG.!$A:$M,IB$2,FALSE)) ->  | IC11: =IF(IC10="","",VLOOKUP(IC$3,CONFIG.!$A:$M,IC$2,FALSE)) ->  | ID11: =IF(ID10="","",VLOOKUP(ID$3,CONFIG.!$A:$M,ID$2,FALSE)) ->  | IE11: =IF(IE10="","",VLOOKUP(IE$3,CONFIG.!$A:$M,IE$2,FALSE)) ->  | IF11: =IF(IF10="","",VLOOKUP(IF$3,CONFIG.!$A:$M,IF$2,FALSE)) ->  | IG11: =IF(IG10="","",VLOOKUP(IG$3,CONFIG.!$A:$M,IG$2,FALSE)) ->  | IH11: =IF(IH10="","",VLOOKUP(IH$3,CONFIG.!$A:$M,IH$2,FALSE)) ->  | II11: =IF(II10="","",VLOOKUP(II$3,CONFIG.!$A:$M,II$2,FALSE)) ->  | IJ11: =IF(IJ10="","",VLOOKUP(IJ$3,CONFIG.!$A:$M,IJ$2,FALSE)) ->  | IK11: =IF(IK10="","",VLOOKUP(IK$3,CONFIG.!$A:$M,IK$2,FALSE)) ->  | IL11: =IF(IL10="","",VLOOKUP(IL$3,CONFIG.!$A:$M,IL$2,FALSE)) ->  | IM11: =IF(IM10="","",VLOOKUP(IM$3,CONFIG.!$A:$M,IM$2,FALSE)) ->  | IN11: =IF(IN10="","",VLOOKUP(IN$3,CONFIG.!$A:$M,IN$2,FALSE)) ->  | IO11: =IF(IO10="","",VLOOKUP(IO$3,CONFIG.!$A:$M,IO$2,FALSE)) ->  | IP11: =IF(IP10="","",VLOOKUP(IP$3,CONFIG.!$A:$M,IP$2,FALSE)) ->  | IQ11: =IF(IQ10="","",VLOOKUP(IQ$3,CONFIG.!$A:$M,IQ$2,FALSE)) ->  | IR11: =IF(IR10="","",VLOOKUP(IR$3,CONFIG.!$A:$M,IR$2,FALSE)) ->  | IS11: =IF(IS10="","",VLOOKUP(IS$3,CONFIG.!$A:$M,IS$2,FALSE)) ->  | IT11: =IF(IT10="","",VLOOKUP(IT$3,CONFIG.!$A:$M,IT$2,FALSE)) ->  | IU11: =IF(IU10="","",VLOOKUP(IU$3,CONFIG.!$A:$M,IU$2,FALSE)) ->  | IV11: =IF(IV10="","",VLOOKUP(IV$3,CONFIG.!$A:$M,IV$2,FALSE)) ->  | IW11: =IF(IW10="","",VLOOKUP(IW$3,CONFIG.!$A:$M,IW$2,FALSE)) ->  | IX11: =IF(IX10="","",VLOOKUP(IX$3,CONFIG.!$A:$M,IX$2,FALSE)) ->  | IY11: =IF(IY10="","",VLOOKUP(IY$3,CONFIG.!$A:$M,IY$2,FALSE)) ->  | IZ11: =IF(IZ10="","",VLOOKUP(IZ$3,CONFIG.!$A:$M,IZ$2,FALSE)) ->  | JA11: =IF(JA10="","",VLOOKUP(JA$3,CONFIG.!$A:$M,JA$2,FALSE)) ->  | JB11: =IF(JB10="","",VLOOKUP(JB$3,CONFIG.!$A:$M,JB$2,FALSE)) ->  | JC11: =IF(JC10="","",VLOOKUP(JC$3,CONFIG.!$A:$M,JC$2,FALSE)) ->  | JD11: =IF(JD10="","",VLOOKUP(JD$3,CONFIG.!$A:$M,JD$2,FALSE)) ->  | JE11: =IF(JE10="","",VLOOKUP(JE$3,CONFIG.!$A:$M,JE$2,FALSE)) ->  | JF11: =IF(JF10="","",VLOOKUP(JF$3,CONFIG.!$A:$M,JF$2,FALSE)) ->  | JG11: =IF(JG10="","",VLOOKUP(JG$3,CONFIG.!$A:$M,JG$2,FALSE)) ->  | JH11: =IF(JH10="","",VLOOKUP(JH$3,CONFIG.!$A:$M,JH$2,FALSE)) -> BS > 200 H | JI11: =IF(JI10="","",VLOOKUP(JI$3,CONFIG.!$A:$M,JI$2,FALSE)) ->  | JJ11: =IF(JJ10="","",VLOOKUP(JJ$3,CONFIG.!$A:$M,JJ$2,FALSE)) ->  | JK11: =IF(JK10="","",VLOOKUP(JK$3,CONFIG.!$A:$M,JK$2,FALSE)) ->  | JL11: =IF(JL10="","",VLOOKUP(JL$3,CONFIG.!$A:$M,JL$2,FALSE)) ->  | JM11: =IF(JM10="","",VLOOKUP(JM$3,CONFIG.!$A:$M,JM$2,FALSE)) ->  | JN11: =IF(JN10="","",VLOOKUP(JN$3,CONFIG.!$A:$M,JN$2,FALSE)) ->  | JO11: =IF(JO10="","",VLOOKUP(JO$3,CONFIG.!$A:$M,JO$2,FALSE)) ->  | JP11: =IF(JP10="","",VLOOKUP(JP$3,CONFIG.!$A:$M,JP$2,FALSE)) ->  | JQ11: =IF(JQ10="","",VLOOKUP(JQ$3,CONFIG.!$A:$M,JQ$2,FALSE)) ->  | JR11: =IF(JR10="","",VLOOKUP(JR$3,CONFIG.!$A:$M,JR$2,FALSE)) ->  | JS11: =IF(JS10="","",VLOOKUP(JS$3,CONFIG.!$A:$M,JS$2,FALSE)) ->  | JT11: =IF(JT10="","",VLOOKUP(JT$3,CONFIG.!$A:$M,JT$2,FALSE)) ->  | JU11: =IF(JU10="","",VLOOKUP(JU$3,CONFIG.!$A:$M,JU$2,FALSE)) ->  | JV11: =IF(JV10="","",VLOOKUP(JV$3,CONFIG.!$A:$M,JV$2,FALSE)) ->  | JW11: =IF(JW10="","",VLOOKUP(JW$3,CONFIG.!$A:$M,JW$2,FALSE)) ->  | JX11: =IF(JX10="","",VLOOKUP(JX$3,CONFIG.!$A:$M,JX$2,FALSE)) ->  | JY11: =IF(JY10="","",VLOOKUP(JY$3,CONFIG.!$A:$M,JY$2,FALSE)) ->  | JZ11: =IF(JZ10="","",VLOOKUP(JZ$3,CONFIG.!$A:$M,JZ$2,FALSE)) ->  | KA11: =IF(KA10="","",VLOOKUP(KA$3,CONFIG.!$A:$M,KA$2,FALSE)) ->  | KB11: =IF(KB10="","",VLOOKUP(KB$3,CONFIG.!$A:$M,KB$2,FALSE)) ->  | KC11: =IF(KC10="","",VLOOKUP(KC$3,CONFIG.!$A:$M,KC$2,FALSE)) ->  | KD11: =IF(KD10="","",VLOOKUP(KD$3,CONFIG.!$A:$M,KD$2,FALSE)) ->  | KE11: =IF(KE10="","",VLOOKUP(KE$3,CONFIG.!$A:$M,KE$2,FALSE)) ->  | KF11: =IF(KF10="","",VLOOKUP(KF$3,CONFIG.!$A:$M,KF$2,FALSE)) ->  | KG11: =IF(KG10="","",VLOOKUP(KG$3,CONFIG.!$A:$M,KG$2,FALSE)) ->  | KH11: =IF(KH10="","",VLOOKUP(KH$3,CONFIG.!$A:$M,KH$2,FALSE)) ->  | KI11: =IF(KI10="","",VLOOKUP(KI$3,CONFIG.!$A:$M,KI$2,FALSE)) ->  | KJ11: =IF(KJ10="","",VLOOKUP(KJ$3,CONFIG.!$A:$M,KJ$2,FALSE)) ->  | KK11: =IF(KK10="","",VLOOKUP(KK$3,CONFIG.!$A:$M,KK$2,FALSE)) ->  | KL11: =IF(KL10="","",VLOOKUP(KL$3,CONFIG.!$A:$M,KL$2,FALSE)) ->  | KM11: =IF(KM10="","",VLOOKUP(KM$3,CONFIG.!$A:$M,KM$2,FALSE)) ->  | KN11: =IF(KN10="","",VLOOKUP(KN$3,CONFIG.!$A:$M,KN$2,FALSE)) -> Agricole. | KO11: =IF(KO10="","",VLOOKUP(KO$3,CONFIG.!$A:$M,KO$2,FALSE)) ->  | KP11: =IF(KP10="","",VLOOKUP(KP$3,CONFIG.!$A:$M,KP$2,FALSE)) ->  | KQ11: =IF(KQ10="","",VLOOKUP(KQ$3,CONFIG.!$A:$M,KQ$2,FALSE)) ->  | KR11: =IF(KR10="","",VLOOKUP(KR$3,CONFIG.!$A:$M,KR$2,FALSE)) ->  | KS11: =IF(KS10="","",VLOOKUP(KS$3,CONFIG.!$A:$M,KS$2,FALSE)) ->  | KT11: =IF(KT10="","",VLOOKUP(KT$3,CONFIG.!$A:$M,KT$2,FALSE)) ->  | KU11: =IF(KU10="","",VLOOKUP(KU$3,CONFIG.!$A:$M,KU$2,FALSE)) -> Charpentes. | KV11: =IF(KV10="","",VLOOKUP(KV$3,CONFIG.!$A:$M,KV$2,FALSE)) -> Chaudronneries. | KW11: =IF(KW10="","",VLOOKUP(KW$3,CONFIG.!$A:$M,KW$2,FALSE)) ->  | KX11: =IF(KX10="","",VLOOKUP(KX$3,CONFIG.!$A:$M,KX$2,FALSE)) -> Conteneurs / Bennes. | KY11: =IF(KY10="","",VLOOKUP(KY$3,CONFIG.!$A:$M,KY$2,FALSE)) ->  | KZ11: =IF(KZ10="","",VLOOKUP(KZ$3,CONFIG.!$A:$M,KZ$2,FALSE)) ->  | LA11: =IF(LA10="","",VLOOKUP(LA$3,CONFIG.!$A:$M,LA$2,FALSE)) ->  | LB11: =IF(LB10="","",VLOOKUP(LB$3,CONFIG.!$A:$M,LB$2,FALSE)) ->  | LC11: =IF(LC10="","",VLOOKUP(LC$3,CONFIG.!$A:$M,LC$2,FALSE)) ->  | LD11: =IF(LD10="","",VLOOKUP(LD$3,CONFIG.!$A:$M,LD$2,FALSE)) ->  | LE11: =IF(LE10="","",VLOOKUP(LE$3,CONFIG.!$A:$M,LE$2,FALSE)) ->  | LF11: =IF(LF10="","",VLOOKUP(LF$3,CONFIG.!$A:$M,LF$2,FALSE)) ->  | LG11: =IF(LG10="","",VLOOKUP(LG$3,CONFIG.!$A:$M,LG$2,FALSE)) ->  | LH11: =IF(LH10="","",VLOOKUP(LH$3,CONFIG.!$A:$M,LH$2,FALSE)) ->  | LI11: =IF(LI10="","",VLOOKUP(LI$3,CONFIG.!$A:$M,LI$2,FALSE)) ->  | LJ11: =IF(LJ10="","",VLOOKUP(LJ$3,CONFIG.!$A:$M,LJ$2,FALSE)) ->  | LK11: =IF(LK10="","",VLOOKUP(LK$3,CONFIG.!$A:$M,LK$2,FALSE)) ->  | LL11: =IF(LL10="","",VLOOKUP(LL$3,CONFIG.!$A:$M,LL$2,FALSE)) ->  | LM11: =IF(LM10="","",VLOOKUP(LM$3,CONFIG.!$A:$M,LM$2,FALSE)) ->  | LN11: =IF(LN10="","",VLOOKUP(LN$3,CONFIG.!$A:$M,LN$2,FALSE)) ->  | LO11: =IF(LO10="","",VLOOKUP(LO$3,CONFIG.!$A:$M,LO$2,FALSE)) ->  | LP11: =IF(LP10="","",VLOOKUP(LP$3,CONFIG.!$A:$M,LP$2,FALSE)) ->  | LQ11: =IF(LQ10="","",VLOOKUP(LQ$3,CONFIG.!$A:$M,LQ$2,FALSE)) ->  | LR11: =IF(LR10="","",VLOOKUP(LR$3,CONFIG.!$A:$M,LR$2,FALSE)) ->  | LS11: =IF(LS10="","",VLOOKUP(LS$3,CONFIG.!$A:$M,LS$2,FALSE)) ->  | LT11: =IF(LT10="","",VLOOKUP(LT$3,CONFIG.!$A:$M,LT$2,FALSE)) ->  | LU11: =IF(LU10="","",VLOOKUP(LU$3,CONFIG.!$A:$M,LU$2,FALSE)) ->  | LV11: =IF(LV10="","",VLOOKUP(LV$3,CONFIG.!$A:$M,LV$2,FALSE)) ->  | LW11: =IF(LW10="","",VLOOKUP(LW$3,CONFIG.!$A:$M,LW$2,FALSE)) ->  | LX11: =IF(LX10="","",VLOOKUP(LX$3,CONFIG.!$A:$M,LX$2,FALSE)) ->  | LY11: =IF(LY10="","",VLOOKUP(LY$3,CONFIG.!$A:$M,LY$2,FALSE)) ->  | LZ11: =IF(LZ10="","",VLOOKUP(LZ$3,CONFIG.!$A:$M,LZ$2,FALSE)) ->  | MA11: =IF(MA10="","",VLOOKUP(MA$3,CONFIG.!$A:$M,MA$2,FALSE)) ->  | MB11: =IF(MB10="","",VLOOKUP(MB$3,CONFIG.!$A:$M,MB$2,FALSE)) ->  | MC11: =IF(MC10="","",VLOOKUP(MC$3,CONFIG.!$A:$M,MC$2,FALSE)) ->  | MD11: =IF(MD10="","",VLOOKUP(MD$3,CONFIG.!$A:$M,MD$2,FALSE)) ->  | ME11: =IF(ME10="","",VLOOKUP(ME$3,CONFIG.!$A:$M,ME$2,FALSE)) ->  | MF11: =IF(MF10="","",VLOOKUP(MF$3,CONFIG.!$A:$M,MF$2,FALSE)) ->  | MG11: =IF(MG10="","",VLOOKUP(MG$3,CONFIG.!$A:$M,MG$2,FALSE)) ->  | MH11: =IF(MH10="","",VLOOKUP(MH$3,CONFIG.!$A:$M,MH$2,FALSE)) ->  | MI11: =IF(MI10="","",VLOOKUP(MI$3,CONFIG.!$A:$M,MI$2,FALSE)) ->  | MJ11: =IF(MJ10="","",VLOOKUP(MJ$3,CONFIG.!$A:$M,MJ$2,FALSE)) ->  | MK11: =IF(MK10="","",VLOOKUP(MK$3,CONFIG.!$A:$M,MK$2,FALSE)) ->  | ML11: =IF(ML10="","",VLOOKUP(ML$3,CONFIG.!$A:$M,ML$2,FALSE)) ->  | MM11: =IF(MM10="","",VLOOKUP(MM$3,CONFIG.!$A:$M,MM$2,FALSE)) ->  | MN11: =IF(MN10="","",VLOOKUP(MN$3,CONFIG.!$A:$M,MN$2,FALSE)) ->  | MO11: =IF(MO10="","",VLOOKUP(MO$3,CONFIG.!$A:$M,MO$2,FALSE)) ->  | MP11: =IF(MP10="","",VLOOKUP(MP$3,CONFIG.!$A:$M,MP$2,FALSE)) ->  | MQ11: =IF(MQ10="","",VLOOKUP(MQ$3,CONFIG.!$A:$M,MQ$2,FALSE)) ->  | MR11: =IF(MR10="","",VLOOKUP(MR$3,CONFIG.!$A:$M,MR$2,FALSE)) ->  | MS11: =IF(MS10="","",VLOOKUP(MS$3,CONFIG.!$A:$M,MS$2,FALSE)) ->  | MT11: =IF(MT10="","",VLOOKUP(MT$3,CONFIG.!$A:$M,MT$2,FALSE)) ->  | MU11: =IF(MU10="","",VLOOKUP(MU$3,CONFIG.!$A:$M,MU$2,FALSE)) ->  | MV11: =IF(MV10="","",VLOOKUP(MV$3,CONFIG.!$A:$M,MV$2,FALSE)) ->  | MW11: =IF(MW10="","",VLOOKUP(MW$3,CONFIG.!$A:$M,MW$2,FALSE)) ->  | MX11: =IF(MX10="","",VLOOKUP(MX$3,CONFIG.!$A:$M,MX$2,FALSE)) ->  | MY11: =IF(MY10="","",VLOOKUP(MY$3,CONFIG.!$A:$M,MY$2,FALSE)) ->  | MZ11: =IF(MZ10="","",VLOOKUP(MZ$3,CONFIG.!$A:$M,MZ$2,FALSE)) ->  | NA11: =IF(NA10="","",VLOOKUP(NA$3,CONFIG.!$A:$M,NA$2,FALSE)) ->  | NB11: =IF(NB10="","",VLOOKUP(NB$3,CONFIG.!$A:$M,NB$2,FALSE)) ->  | NC11: =IF(NC10="","",VLOOKUP(NC$3,CONFIG.!$A:$M,NC$2,FALSE)) ->  | ND11: =IF(ND10="","",VLOOKUP(ND$3,CONFIG.!$A:$M,ND$2,FALSE)) ->  | NE11: =IF(NE10="","",VLOOKUP(NE$3,CONFIG.!$A:$M,NE$2,FALSE)) -> 
A12: 7 | B12: =B13 -> 4 | C12: =IF(D13="OK",D12,"") -> 137 | D12: 137 | E12: 4/5 | F12: 2/5 | G12: 3/5 | H12: =IF(ISERROR(HLOOKUP(H13,$T$4:$ZZ$1244,$A12+2,FALSE)=TRUE),"",HLOOKUP(H13,$T$4:$ZZ$1244,$A12+2,FALSE)) ->  | I12: =IF(ISERROR(HLOOKUP(I13,$T$4:$ZZ$1244,$A12+2,FALSE)=TRUE),"",HLOOKUP(I13,$T$4:$ZZ$1244,$A12+2,FALSE)) ->  | K12: =IF(ISERROR(HLOOKUP(K13,$T$4:$ZZ$1244,$A12+2,FALSE)=TRUE),"",HLOOKUP(K13,$T$4:$ZZ$1244,$A12+2,FALSE)) ->  | R12: 4/5 | S12: 4/5 | T12: 4/5 | W12: 4/5 | AQ12: 4/5 | BE12: 3/5 | BF12: 3,5/5 | CP12: x | DV12: 3/5 | DX12: 5/5 | FE12: x | FG12: x | GN12: x | HX12: x | HY12: x | JG12: x | KN12: x
A13: 8 | B13: =IF(D13="OK",1+B11,B11) -> 4 | D13: =IF(ISERROR(IF(CONCATENATE(H13,I13,J13,K13,L13,M13,N13,O13,P13,Q13)=CONCATENATE(H$5,I$5,J$5,K$5,L$5,M$5,N$5,O$5,P$5,Q$5),"OK","NON")=TRUE),"NON",IF(CONCATENATE(H13,I13,J13,K13,L13,M13,N13,O13,P13,Q13)=CONCATENATE(H$5,I$5,J$5,K$5,L$5,M$5,N$5,O$5,P$5,Q$5),"OK","NON")) -> OK | H13: =HLOOKUP(H$5,$T13:$AAG13,1,FALSE) ->  | T13: =IF(T12="","",VLOOKUP(T$3,CONFIG.!$A:$M,T$2,FALSE)) -> Acier brut et trempé / phosphaté | U13: =IF(U12="","",VLOOKUP(U$3,CONFIG.!$A:$M,U$2,FALSE)) ->  | V13: =IF(V12="","",VLOOKUP(V$3,CONFIG.!$A:$M,V$2,FALSE)) ->  | W13: =IF(W12="","",VLOOKUP(W$3,CONFIG.!$A:$M,W$2,FALSE)) -> Acier laminé à froid, tôlerie fine / phosphaté | X13: =IF(X12="","",VLOOKUP(X$3,CONFIG.!$A:$M,X$2,FALSE)) ->  | Y13: =IF(Y12="","",VLOOKUP(Y$3,CONFIG.!$A:$M,Y$2,FALSE)) ->  | Z13: =IF(Z12="","",VLOOKUP(Z$3,CONFIG.!$A:$M,Z$2,FALSE)) ->  | AA13: =IF(AA12="","",VLOOKUP(AA$3,CONFIG.!$A:$M,AA$2,FALSE)) ->  | AB13: =IF(AB12="","",VLOOKUP(AB$3,CONFIG.!$A:$M,AB$2,FALSE)) ->  | AC13: =IF(AC12="","",VLOOKUP(AC$3,CONFIG.!$A:$M,AC$2,FALSE)) ->  | AD13: =IF(AD12="","",VLOOKUP(AD$3,CONFIG.!$A:$M,AD$2,FALSE)) ->  | AE13: =IF(AE12="","",VLOOKUP(AE$3,CONFIG.!$A:$M,AE$2,FALSE)) ->  | AF13: =IF(AF12="","",VLOOKUP(AF$3,CONFIG.!$A:$M,AF$2,FALSE)) ->  | AG13: =IF(AG12="","",VLOOKUP(AG$3,CONFIG.!$A:$M,AG$2,FALSE)) ->  | AH13: =IF(AH12="","",VLOOKUP(AH$3,CONFIG.!$A:$M,AH$2,FALSE)) ->  | AI13: =IF(AI12="","",VLOOKUP(AI$3,CONFIG.!$A:$M,AI$2,FALSE)) ->  | AJ13: =IF(AJ12="","",VLOOKUP(AJ$3,CONFIG.!$A:$M,AJ$2,FALSE)) ->  | AK13: =IF(AK12="","",VLOOKUP(AK$3,CONFIG.!$A:$M,AK$2,FALSE)) ->  | AL13: =IF(AL12="","",VLOOKUP(AL$3,CONFIG.!$A:$M,AL$2,FALSE)) ->  | AM13: =IF(AM12="","",VLOOKUP(AM$3,CONFIG.!$A:$M,AM$2,FALSE)) ->  | AN13: =IF(AN12="","",VLOOKUP(AN$3,CONFIG.!$A:$M,AN$2,FALSE)) ->  | AO13: =IF(AO12="","",VLOOKUP(AO$3,CONFIG.!$A:$M,AO$2,FALSE)) ->  | AP13: =IF(AP12="","",VLOOKUP(AP$3,CONFIG.!$A:$M,AP$2,FALSE)) ->  | AQ13: =IF(AQ12="","",VLOOKUP(AQ$3,CONFIG.!$A:$M,AQ$2,FALSE)) -> Fonte. | AR13: =IF(AR12="","",VLOOKUP(AR$3,CONFIG.!$A:$M,AR$2,FALSE)) ->  | AS13: =IF(AS12="","",VLOOKUP(AS$3,CONFIG.!$A:$M,AS$2,FALSE)) ->  | AT13: =IF(AT12="","",VLOOKUP(AT$3,CONFIG.!$A:$M,AT$2,FALSE)) ->  | AU13: =IF(AU12="","",VLOOKUP(AU$3,CONFIG.!$A:$M,AU$2,FALSE)) ->  | AV13: =IF(AV12="","",VLOOKUP(AV$3,CONFIG.!$A:$M,AV$2,FALSE)) ->  | AW13: =IF(AW12="","",VLOOKUP(AW$3,CONFIG.!$A:$M,AW$2,FALSE)) ->  | AX13: =IF(AX12="","",VLOOKUP(AX$3,CONFIG.!$A:$M,AX$2,FALSE)) ->  | AY13: =IF(AY12="","",VLOOKUP(AY$3,CONFIG.!$A:$M,AY$2,FALSE)) ->  | AZ13: =IF(AZ12="","",VLOOKUP(AZ$3,CONFIG.!$A:$M,AZ$2,FALSE)) ->  | BA13: =IF(BA12="","",VLOOKUP(BA$3,CONFIG.!$A:$M,BA$2,FALSE)) ->  | BB13: =IF(BB12="","",VLOOKUP(BB$3,CONFIG.!$A:$M,BB$2,FALSE)) ->  | BC13: =IF(BC12="","",VLOOKUP(BC$3,CONFIG.!$A:$M,BC$2,FALSE)) ->  | BD13: =IF(BD12="","",VLOOKUP(BD$3,CONFIG.!$A:$M,BD$2,FALSE)) ->  | BE13: =IF(BE12="","",VLOOKUP(BE$3,CONFIG.!$A:$M,BE$2,FALSE)) -> INTERIEUR | BF13: =IF(BF12="","",VLOOKUP(BF$3,CONFIG.!$A:$M,BF$2,FALSE)) -> PRIMAIRE avant FINITION | BG13: =IF(BG12="","",VLOOKUP(BG$3,CONFIG.!$A:$M,BG$2,FALSE)) ->  | BH13: =IF(BH12="","",VLOOKUP(BH$3,CONFIG.!$A:$M,BH$2,FALSE)) ->  | BI13: =IF(BI12="","",VLOOKUP(BI$3,CONFIG.!$A:$M,BI$2,FALSE)) ->  | BJ13: =IF(BJ12="","",VLOOKUP(BJ$3,CONFIG.!$A:$M,BJ$2,FALSE)) ->  | BK13: =IF(BK12="","",VLOOKUP(BK$3,CONFIG.!$A:$M,BK$2,FALSE)) ->  | BL13: =IF(BL12="","",VLOOKUP(BL$3,CONFIG.!$A:$M,BL$2,FALSE)) ->  | BM13: =IF(BM12="","",VLOOKUP(BM$3,CONFIG.!$A:$M,BM$2,FALSE)) ->  | BN13: =IF(BN12="","",VLOOKUP(BN$3,CONFIG.!$A:$M,BN$2,FALSE)) ->  | BO13: =IF(BO12="","",VLOOKUP(BO$3,CONFIG.!$A:$M,BO$2,FALSE)) ->  | BP13: =IF(BP12="","",VLOOKUP(BP$3,CONFIG.!$A:$M,BP$2,FALSE)) ->  | BQ13: =IF(BQ12="","",VLOOKUP(BQ$3,CONFIG.!$A:$M,BQ$2,FALSE)) ->  | BR13: =IF(BR12="","",VLOOKUP(BR$3,CONFIG.!$A:$M,BR$2,FALSE)) ->  | BS13: =IF(BS12="","",VLOOKUP(BS$3,CONFIG.!$A:$M,BS$2,FALSE)) ->  | BT13: =IF(BT12="","",VLOOKUP(BT$3,CONFIG.!$A:$M,BT$2,FALSE)) ->  | BU13: =IF(BU12="","",VLOOKUP(BU$3,CONFIG.!$A:$M,BU$2,FALSE)) ->  | BV13: =IF(BV12="","",VLOOKUP(BV$3,CONFIG.!$A:$M,BV$2,FALSE)) ->  | BW13: =IF(BW12="","",VLOOKUP(BW$3,CONFIG.!$A:$M,BW$2,FALSE)) ->  | BX13: =IF(BX12="","",VLOOKUP(BX$3,CONFIG.!$A:$M,BX$2,FALSE)) ->  | BY13: =IF(BY12="","",VLOOKUP(BY$3,CONFIG.!$A:$M,BY$2,FALSE)) ->  | BZ13: =IF(BZ12="","",VLOOKUP(BZ$3,CONFIG.!$A:$M,BZ$2,FALSE)) ->  | CA13: =IF(CA12="","",VLOOKUP(CA$3,CONFIG.!$A:$M,CA$2,FALSE)) ->  | CB13: =IF(CB12="","",VLOOKUP(CB$3,CONFIG.!$A:$M,CB$2,FALSE)) ->  | CC13: =IF(CC12="","",VLOOKUP(CC$3,CONFIG.!$A:$M,CC$2,FALSE)) ->  | CD13: =IF(CD12="","",VLOOKUP(CD$3,CONFIG.!$A:$M,CD$2,FALSE)) ->  | CE13: =IF(CE12="","",VLOOKUP(CE$3,CONFIG.!$A:$M,CE$2,FALSE)) ->  | CF13: =IF(CF12="","",VLOOKUP(CF$3,CONFIG.!$A:$M,CF$2,FALSE)) ->  | CG13: =IF(CG12="","",VLOOKUP(CG$3,CONFIG.!$A:$M,CG$2,FALSE)) ->  | CH13: =IF(CH12="","",VLOOKUP(CH$3,CONFIG.!$A:$M,CH$2,FALSE)) ->  | CI13: =IF(CI12="","",VLOOKUP(CI$3,CONFIG.!$A:$M,CI$2,FALSE)) ->  | CJ13: =IF(CJ12="","",VLOOKUP(CJ$3,CONFIG.!$A:$M,CJ$2,FALSE)) ->  | CK13: =IF(CK12="","",VLOOKUP(CK$3,CONFIG.!$A:$M,CK$2,FALSE)) ->  | CL13: =IF(CL12="","",VLOOKUP(CL$3,CONFIG.!$A:$M,CL$2,FALSE)) ->  | CM13: =IF(CM12="","",VLOOKUP(CM$3,CONFIG.!$A:$M,CM$2,FALSE)) ->  | CN13: =IF(CN12="","",VLOOKUP(CN$3,CONFIG.!$A:$M,CN$2,FALSE)) ->  | CO13: =IF(CO12="","",VLOOKUP(CO$3,CONFIG.!$A:$M,CO$2,FALSE)) ->  | CP13: =IF(CP12="","",VLOOKUP(CP$3,CONFIG.!$A:$M,CP$2,FALSE)) -> SOLVANTE | CQ13: =IF(CQ12="","",VLOOKUP(CQ$3,CONFIG.!$A:$M,CQ$2,FALSE)) ->  | CR13: =IF(CR12="","",VLOOKUP(CR$3,CONFIG.!$A:$M,CR$2,FALSE)) ->  | CS13: =IF(CS12="","",VLOOKUP(CS$3,CONFIG.!$A:$M,CS$2,FALSE)) ->  | CT13: =IF(CT12="","",VLOOKUP(CT$3,CONFIG.!$A:$M,CT$2,FALSE)) ->  | CU13: =IF(CU12="","",VLOOKUP(CU$3,CONFIG.!$A:$M,CU$2,FALSE)) ->  | CV13: =IF(CV12="","",VLOOKUP(CV$3,CONFIG.!$A:$M,CV$2,FALSE)) ->  | CW13: =IF(CW12="","",VLOOKUP(CW$3,CONFIG.!$A:$M,CW$2,FALSE)) ->  | CX13: =IF(CX12="","",VLOOKUP(CX$3,CONFIG.!$A:$M,CX$2,FALSE)) ->  | CY13: =IF(CY12="","",VLOOKUP(CY$3,CONFIG.!$A:$M,CY$2,FALSE)) ->  | CZ13: =IF(CZ12="","",VLOOKUP(CZ$3,CONFIG.!$A:$M,CZ$2,FALSE)) ->  | DA13: =IF(DA12="","",VLOOKUP(DA$3,CONFIG.!$A:$M,DA$2,FALSE)) ->  | DB13: =IF(DB12="","",VLOOKUP(DB$3,CONFIG.!$A:$M,DB$2,FALSE)) ->  | DC13: =IF(DC12="","",VLOOKUP(DC$3,CONFIG.!$A:$M,DC$2,FALSE)) ->  | DD13: =IF(DD12="","",VLOOKUP(DD$3,CONFIG.!$A:$M,DD$2,FALSE)) ->  | DE13: =IF(DE12="","",VLOOKUP(DE$3,CONFIG.!$A:$M,DE$2,FALSE)) ->  | DF13: =IF(DF12="","",VLOOKUP(DF$3,CONFIG.!$A:$M,DF$2,FALSE)) ->  | DG13: =IF(DG12="","",VLOOKUP(DG$3,CONFIG.!$A:$M,DG$2,FALSE)) ->  | DH13: =IF(DH12="","",VLOOKUP(DH$3,CONFIG.!$A:$M,DH$2,FALSE)) ->  | DI13: =IF(DI12="","",VLOOKUP(DI$3,CONFIG.!$A:$M,DI$2,FALSE)) ->  | DJ13: =IF(DJ12="","",VLOOKUP(DJ$3,CONFIG.!$A:$M,DJ$2,FALSE)) ->  | DK13: =IF(DK12="","",VLOOKUP(DK$3,CONFIG.!$A:$M,DK$2,FALSE)) ->  | DL13: =IF(DL12="","",VLOOKUP(DL$3,CONFIG.!$A:$M,DL$2,FALSE)) ->  | DM13: =IF(DM12="","",VLOOKUP(DM$3,CONFIG.!$A:$M,DM$2,FALSE)) ->  | DN13: =IF(DN12="","",VLOOKUP(DN$3,CONFIG.!$A:$M,DN$2,FALSE)) ->  | DO13: =IF(DO12="","",VLOOKUP(DO$3,CONFIG.!$A:$M,DO$2,FALSE)) ->  | DP13: =IF(DP12="","",VLOOKUP(DP$3,CONFIG.!$A:$M,DP$2,FALSE)) ->  | DQ13: =IF(DQ12="","",VLOOKUP(DQ$3,CONFIG.!$A:$M,DQ$2,FALSE)) ->  | DR13: =IF(DR12="","",VLOOKUP(DR$3,CONFIG.!$A:$M,DR$2,FALSE)) ->  | DS13: =IF(DS12="","",VLOOKUP(DS$3,CONFIG.!$A:$M,DS$2,FALSE)) ->  | DT13: =IF(DT12="","",VLOOKUP(DT$3,CONFIG.!$A:$M,DT$2,FALSE)) ->  | DU13: =IF(DU12="","",VLOOKUP(DU$3,CONFIG.!$A:$M,DU$2,FALSE)) ->  | DV13: =IF(DV12="","",VLOOKUP(DV$3,CONFIG.!$A:$M,DV$2,FALSE)) -> CHIMIQUE | DW13: =IF(DW12="","",VLOOKUP(DW$3,CONFIG.!$A:$M,DW$2,FALSE)) ->  | DX13: =IF(DX12="","",VLOOKUP(DX$3,CONFIG.!$A:$M,DX$2,FALSE)) -> Température 250/300 °C | DY13: =IF(DY12="","",VLOOKUP(DY$3,CONFIG.!$A:$M,DY$2,FALSE)) ->  | DZ13: =IF(DZ12="","",VLOOKUP(DZ$3,CONFIG.!$A:$M,DZ$2,FALSE)) ->  | EA13: =IF(EA12="","",VLOOKUP(EA$3,CONFIG.!$A:$M,EA$2,FALSE)) ->  | EB13: =IF(EB12="","",VLOOKUP(EB$3,CONFIG.!$A:$M,EB$2,FALSE)) ->  | EC13: =IF(EC12="","",VLOOKUP(EC$3,CONFIG.!$A:$M,EC$2,FALSE)) ->  | ED13: =IF(ED12="","",VLOOKUP(ED$3,CONFIG.!$A:$M,ED$2,FALSE)) ->  | EE13: =IF(EE12="","",VLOOKUP(EE$3,CONFIG.!$A:$M,EE$2,FALSE)) ->  | EF13: =IF(EF12="","",VLOOKUP(EF$3,CONFIG.!$A:$M,EF$2,FALSE)) ->  | EG13: =IF(EG12="","",VLOOKUP(EG$3,CONFIG.!$A:$M,EG$2,FALSE)) ->  | EH13: =IF(EH12="","",VLOOKUP(EH$3,CONFIG.!$A:$M,EH$2,FALSE)) ->  | EI13: =IF(EI12="","",VLOOKUP(EI$3,CONFIG.!$A:$M,EI$2,FALSE)) ->  | EJ13: =IF(EJ12="","",VLOOKUP(EJ$3,CONFIG.!$A:$M,EJ$2,FALSE)) ->  | EK13: =IF(EK12="","",VLOOKUP(EK$3,CONFIG.!$A:$M,EK$2,FALSE)) ->  | EL13: =IF(EL12="","",VLOOKUP(EL$3,CONFIG.!$A:$M,EL$2,FALSE)) ->  | EM13: =IF(EM12="","",VLOOKUP(EM$3,CONFIG.!$A:$M,EM$2,FALSE)) ->  | EN13: =IF(EN12="","",VLOOKUP(EN$3,CONFIG.!$A:$M,EN$2,FALSE)) ->  | EO13: =IF(EO12="","",VLOOKUP(EO$3,CONFIG.!$A:$M,EO$2,FALSE)) ->  | EP13: =IF(EP12="","",VLOOKUP(EP$3,CONFIG.!$A:$M,EP$2,FALSE)) ->  | EQ13: =IF(EQ12="","",VLOOKUP(EQ$3,CONFIG.!$A:$M,EQ$2,FALSE)) ->  | ER13: =IF(ER12="","",VLOOKUP(ER$3,CONFIG.!$A:$M,ER$2,FALSE)) ->  | ES13: =IF(ES12="","",VLOOKUP(ES$3,CONFIG.!$A:$M,ES$2,FALSE)) ->  | ET13: =IF(ET12="","",VLOOKUP(ET$3,CONFIG.!$A:$M,ET$2,FALSE)) ->  | EU13: =IF(EU12="","",VLOOKUP(EU$3,CONFIG.!$A:$M,EU$2,FALSE)) ->  | EV13: =IF(EV12="","",VLOOKUP(EV$3,CONFIG.!$A:$M,EV$2,FALSE)) ->  | EW13: =IF(EW12="","",VLOOKUP(EW$3,CONFIG.!$A:$M,EW$2,FALSE)) ->  | EX13: =IF(EX12="","",VLOOKUP(EX$3,CONFIG.!$A:$M,EX$2,FALSE)) ->  | EY13: =IF(EY12="","",VLOOKUP(EY$3,CONFIG.!$A:$M,EY$2,FALSE)) ->  | EZ13: =IF(EZ12="","",VLOOKUP(EZ$3,CONFIG.!$A:$M,EZ$2,FALSE)) ->  | FA13: =IF(FA12="","",VLOOKUP(FA$3,CONFIG.!$A:$M,FA$2,FALSE)) ->  | FB13: =IF(FB12="","",VLOOKUP(FB$3,CONFIG.!$A:$M,FB$2,FALSE)) ->  | FC13: =IF(FC12="","",VLOOKUP(FC$3,CONFIG.!$A:$M,FC$2,FALSE)) ->  | FD13: =IF(FD12="","",VLOOKUP(FD$3,CONFIG.!$A:$M,FD$2,FALSE)) ->  | FE13: =IF(FE12="","",VLOOKUP(FE$3,CONFIG.!$A:$M,FE$2,FALSE)) -> Pulvérisation | FF13: =IF(FF12="","",VLOOKUP(FF$3,CONFIG.!$A:$M,FF$2,FALSE)) ->  | FG13: =IF(FG12="","",VLOOKUP(FG$3,CONFIG.!$A:$M,FG$2,FALSE)) -> Trempé | FH13: =IF(FH12="","",VLOOKUP(FH$3,CONFIG.!$A:$M,FH$2,FALSE)) ->  | FI13: =IF(FI12="","",VLOOKUP(FI$3,CONFIG.!$A:$M,FI$2,FALSE)) ->  | FJ13: =IF(FJ12="","",VLOOKUP(FJ$3,CONFIG.!$A:$M,FJ$2,FALSE)) ->  | FK13: =IF(FK12="","",VLOOKUP(FK$3,CONFIG.!$A:$M,FK$2,FALSE)) ->  | FL13: =IF(FL12="","",VLOOKUP(FL$3,CONFIG.!$A:$M,FL$2,FALSE)) ->  | FM13: =IF(FM12="","",VLOOKUP(FM$3,CONFIG.!$A:$M,FM$2,FALSE)) ->  | FN13: =IF(FN12="","",VLOOKUP(FN$3,CONFIG.!$A:$M,FN$2,FALSE)) ->  | FO13: =IF(FO12="","",VLOOKUP(FO$3,CONFIG.!$A:$M,FO$2,FALSE)) ->  | FP13: =IF(FP12="","",VLOOKUP(FP$3,CONFIG.!$A:$M,FP$2,FALSE)) ->  | FQ13: =IF(FQ12="","",VLOOKUP(FQ$3,CONFIG.!$A:$M,FQ$2,FALSE)) ->  | FR13: =IF(FR12="","",VLOOKUP(FR$3,CONFIG.!$A:$M,FR$2,FALSE)) ->  | FS13: =IF(FS12="","",VLOOKUP(FS$3,CONFIG.!$A:$M,FS$2,FALSE)) ->  | FT13: =IF(FT12="","",VLOOKUP(FT$3,CONFIG.!$A:$M,FT$2,FALSE)) ->  | FU13: =IF(FU12="","",VLOOKUP(FU$3,CONFIG.!$A:$M,FU$2,FALSE)) ->  | FV13: =IF(FV12="","",VLOOKUP(FV$3,CONFIG.!$A:$M,FV$2,FALSE)) ->  | FW13: =IF(FW12="","",VLOOKUP(FW$3,CONFIG.!$A:$M,FW$2,FALSE)) ->  | FX13: =IF(FX12="","",VLOOKUP(FX$3,CONFIG.!$A:$M,FX$2,FALSE)) ->  | FY13: =IF(FY12="","",VLOOKUP(FY$3,CONFIG.!$A:$M,FY$2,FALSE)) ->  | FZ13: =IF(FZ12="","",VLOOKUP(FZ$3,CONFIG.!$A:$M,FZ$2,FALSE)) ->  | GA13: =IF(GA12="","",VLOOKUP(GA$3,CONFIG.!$A:$M,GA$2,FALSE)) ->  | GB13: =IF(GB12="","",VLOOKUP(GB$3,CONFIG.!$A:$M,GB$2,FALSE)) ->  | GC13: =IF(GC12="","",VLOOKUP(GC$3,CONFIG.!$A:$M,GC$2,FALSE)) ->  | GD13: =IF(GD12="","",VLOOKUP(GD$3,CONFIG.!$A:$M,GD$2,FALSE)) ->  | GE13: =IF(GE12="","",VLOOKUP(GE$3,CONFIG.!$A:$M,GE$2,FALSE)) ->  | GF13: =IF(GF12="","",VLOOKUP(GF$3,CONFIG.!$A:$M,GF$2,FALSE)) ->  | GG13: =IF(GG12="","",VLOOKUP(GG$3,CONFIG.!$A:$M,GG$2,FALSE)) ->  | GH13: =IF(GH12="","",VLOOKUP(GH$3,CONFIG.!$A:$M,GH$2,FALSE)) ->  | GI13: =IF(GI12="","",VLOOKUP(GI$3,CONFIG.!$A:$M,GI$2,FALSE)) ->  | GJ13: =IF(GJ12="","",VLOOKUP(GJ$3,CONFIG.!$A:$M,GJ$2,FALSE)) ->  | GK13: =IF(GK12="","",VLOOKUP(GK$3,CONFIG.!$A:$M,GK$2,FALSE)) ->  | GL13: =IF(GL12="","",VLOOKUP(GL$3,CONFIG.!$A:$M,GL$2,FALSE)) ->  | GM13: =IF(GM12="","",VLOOKUP(GM$3,CONFIG.!$A:$M,GM$2,FALSE)) ->  | GN13: =IF(GN12="","",VLOOKUP(GN$3,CONFIG.!$A:$M,GN$2,FALSE)) -> Mat | GO13: =IF(GO12="","",VLOOKUP(GO$3,CONFIG.!$A:$M,GO$2,FALSE)) ->  | GP13: =IF(GP12="","",VLOOKUP(GP$3,CONFIG.!$A:$M,GP$2,FALSE)) ->  | GQ13: =IF(GQ12="","",VLOOKUP(GQ$3,CONFIG.!$A:$M,GQ$2,FALSE)) ->  | GR13: =IF(GR12="","",VLOOKUP(GR$3,CONFIG.!$A:$M,GR$2,FALSE)) ->  | GS13: =IF(GS12="","",VLOOKUP(GS$3,CONFIG.!$A:$M,GS$2,FALSE)) ->  | GT13: =IF(GT12="","",VLOOKUP(GT$3,CONFIG.!$A:$M,GT$2,FALSE)) ->  | GU13: =IF(GU12="","",VLOOKUP(GU$3,CONFIG.!$A:$M,GU$2,FALSE)) ->  | GV13: =IF(GV12="","",VLOOKUP(GV$3,CONFIG.!$A:$M,GV$2,FALSE)) ->  | GW13: =IF(GW12="","",VLOOKUP(GW$3,CONFIG.!$A:$M,GW$2,FALSE)) ->  | GX13: =IF(GX12="","",VLOOKUP(GX$3,CONFIG.!$A:$M,GX$2,FALSE)) ->  | GY13: =IF(GY12="","",VLOOKUP(GY$3,CONFIG.!$A:$M,GY$2,FALSE)) ->  | GZ13: =IF(GZ12="","",VLOOKUP(GZ$3,CONFIG.!$A:$M,GZ$2,FALSE)) ->  | HA13: =IF(HA12="","",VLOOKUP(HA$3,CONFIG.!$A:$M,HA$2,FALSE)) ->  | HB13: =IF(HB12="","",VLOOKUP(HB$3,CONFIG.!$A:$M,HB$2,FALSE)) ->  | HC13: =IF(HC12="","",VLOOKUP(HC$3,CONFIG.!$A:$M,HC$2,FALSE)) ->  | HD13: =IF(HD12="","",VLOOKUP(HD$3,CONFIG.!$A:$M,HD$2,FALSE)) ->  | HE13: =IF(HE12="","",VLOOKUP(HE$3,CONFIG.!$A:$M,HE$2,FALSE)) ->  | HF13: =IF(HF12="","",VLOOKUP(HF$3,CONFIG.!$A:$M,HF$2,FALSE)) ->  | HG13: =IF(HG12="","",VLOOKUP(HG$3,CONFIG.!$A:$M,HG$2,FALSE)) ->  | HH13: =IF(HH12="","",VLOOKUP(HH$3,CONFIG.!$A:$M,HH$2,FALSE)) ->  | HI13: =IF(HI12="","",VLOOKUP(HI$3,CONFIG.!$A:$M,HI$2,FALSE)) ->  | HJ13: =IF(HJ12="","",VLOOKUP(HJ$3,CONFIG.!$A:$M,HJ$2,FALSE)) ->  | HK13: =IF(HK12="","",VLOOKUP(HK$3,CONFIG.!$A:$M,HK$2,FALSE)) ->  | HL13: =IF(HL12="","",VLOOKUP(HL$3,CONFIG.!$A:$M,HL$2,FALSE)) ->  | HM13: =IF(HM12="","",VLOOKUP(HM$3,CONFIG.!$A:$M,HM$2,FALSE)) ->  | HN13: =IF(HN12="","",VLOOKUP(HN$3,CONFIG.!$A:$M,HN$2,FALSE)) ->  | HO13: =IF(HO12="","",VLOOKUP(HO$3,CONFIG.!$A:$M,HO$2,FALSE)) ->  | HP13: =IF(HP12="","",VLOOKUP(HP$3,CONFIG.!$A:$M,HP$2,FALSE)) ->  | HQ13: =IF(HQ12="","",VLOOKUP(HQ$3,CONFIG.!$A:$M,HQ$2,FALSE)) ->  | HR13: =IF(HR12="","",VLOOKUP(HR$3,CONFIG.!$A:$M,HR$2,FALSE)) ->  | HS13: =IF(HS12="","",VLOOKUP(HS$3,CONFIG.!$A:$M,HS$2,FALSE)) ->  | HT13: =IF(HT12="","",VLOOKUP(HT$3,CONFIG.!$A:$M,HT$2,FALSE)) ->  | HU13: =IF(HU12="","",VLOOKUP(HU$3,CONFIG.!$A:$M,HU$2,FALSE)) ->  | HV13: =IF(HV12="","",VLOOKUP(HV$3,CONFIG.!$A:$M,HV$2,FALSE)) ->  | HW13: =IF(HW12="","",VLOOKUP(HW$3,CONFIG.!$A:$M,HW$2,FALSE)) ->  | HX13: =IF(HX12="","",VLOOKUP(HX$3,CONFIG.!$A:$M,HX$2,FALSE)) -> Monocouche teinté | HY13: =IF(HY12="","",VLOOKUP(HY$3,CONFIG.!$A:$M,HY$2,FALSE)) -> Primaire uniquement | HZ13: =IF(HZ12="","",VLOOKUP(HZ$3,CONFIG.!$A:$M,HZ$2,FALSE)) ->  | IA13: =IF(IA12="","",VLOOKUP(IA$3,CONFIG.!$A:$M,IA$2,FALSE)) ->  | IB13: =IF(IB12="","",VLOOKUP(IB$3,CONFIG.!$A:$M,IB$2,FALSE)) ->  | IC13: =IF(IC12="","",VLOOKUP(IC$3,CONFIG.!$A:$M,IC$2,FALSE)) ->  | ID13: =IF(ID12="","",VLOOKUP(ID$3,CONFIG.!$A:$M,ID$2,FALSE)) ->  | IE13: =IF(IE12="","",VLOOKUP(IE$3,CONFIG.!$A:$M,IE$2,FALSE)) ->  | IF13: =IF(IF12="","",VLOOKUP(IF$3,CONFIG.!$A:$M,IF$2,FALSE)) ->  | IG13: =IF(IG12="","",VLOOKUP(IG$3,CONFIG.!$A:$M,IG$2,FALSE)) ->  | IH13: =IF(IH12="","",VLOOKUP(IH$3,CONFIG.!$A:$M,IH$2,FALSE)) ->  | II13: =IF(II12="","",VLOOKUP(II$3,CONFIG.!$A:$M,II$2,FALSE)) ->  | IJ13: =IF(IJ12="","",VLOOKUP(IJ$3,CONFIG.!$A:$M,IJ$2,FALSE)) ->  | IK13: =IF(IK12="","",VLOOKUP(IK$3,CONFIG.!$A:$M,IK$2,FALSE)) ->  | IL13: =IF(IL12="","",VLOOKUP(IL$3,CONFIG.!$A:$M,IL$2,FALSE)) ->  | IM13: =IF(IM12="","",VLOOKUP(IM$3,CONFIG.!$A:$M,IM$2,FALSE)) ->  | IN13: =IF(IN12="","",VLOOKUP(IN$3,CONFIG.!$A:$M,IN$2,FALSE)) ->  | IO13: =IF(IO12="","",VLOOKUP(IO$3,CONFIG.!$A:$M,IO$2,FALSE)) ->  | IP13: =IF(IP12="","",VLOOKUP(IP$3,CONFIG.!$A:$M,IP$2,FALSE)) ->  | IQ13: =IF(IQ12="","",VLOOKUP(IQ$3,CONFIG.!$A:$M,IQ$2,FALSE)) ->  | IR13: =IF(IR12="","",VLOOKUP(IR$3,CONFIG.!$A:$M,IR$2,FALSE)) ->  | IS13: =IF(IS12="","",VLOOKUP(IS$3,CONFIG.!$A:$M,IS$2,FALSE)) ->  | IT13: =IF(IT12="","",VLOOKUP(IT$3,CONFIG.!$A:$M,IT$2,FALSE)) ->  | IU13: =IF(IU12="","",VLOOKUP(IU$3,CONFIG.!$A:$M,IU$2,FALSE)) ->  | IV13: =IF(IV12="","",VLOOKUP(IV$3,CONFIG.!$A:$M,IV$2,FALSE)) ->  | IW13: =IF(IW12="","",VLOOKUP(IW$3,CONFIG.!$A:$M,IW$2,FALSE)) ->  | IX13: =IF(IX12="","",VLOOKUP(IX$3,CONFIG.!$A:$M,IX$2,FALSE)) ->  | IY13: =IF(IY12="","",VLOOKUP(IY$3,CONFIG.!$A:$M,IY$2,FALSE)) ->  | IZ13: =IF(IZ12="","",VLOOKUP(IZ$3,CONFIG.!$A:$M,IZ$2,FALSE)) ->  | JA13: =IF(JA12="","",VLOOKUP(JA$3,CONFIG.!$A:$M,JA$2,FALSE)) ->  | JB13: =IF(JB12="","",VLOOKUP(JB$3,CONFIG.!$A:$M,JB$2,FALSE)) ->  | JC13: =IF(JC12="","",VLOOKUP(JC$3,CONFIG.!$A:$M,JC$2,FALSE)) ->  | JD13: =IF(JD12="","",VLOOKUP(JD$3,CONFIG.!$A:$M,JD$2,FALSE)) ->  | JE13: =IF(JE12="","",VLOOKUP(JE$3,CONFIG.!$A:$M,JE$2,FALSE)) ->  | JF13: =IF(JF12="","",VLOOKUP(JF$3,CONFIG.!$A:$M,JF$2,FALSE)) ->  | JG13: =IF(JG12="","",VLOOKUP(JG$3,CONFIG.!$A:$M,JG$2,FALSE)) -> BS > 100 H | JH13: =IF(JH12="","",VLOOKUP(JH$3,CONFIG.!$A:$M,JH$2,FALSE)) ->  | JI13: =IF(JI12="","",VLOOKUP(JI$3,CONFIG.!$A:$M,JI$2,FALSE)) ->  | JJ13: =IF(JJ12="","",VLOOKUP(JJ$3,CONFIG.!$A:$M,JJ$2,FALSE)) ->  | JK13: =IF(JK12="","",VLOOKUP(JK$3,CONFIG.!$A:$M,JK$2,FALSE)) ->  | JL13: =IF(JL12="","",VLOOKUP(JL$3,CONFIG.!$A:$M,JL$2,FALSE)) ->  | JM13: =IF(JM12="","",VLOOKUP(JM$3,CONFIG.!$A:$M,JM$2,FALSE)) ->  | JN13: =IF(JN12="","",VLOOKUP(JN$3,CONFIG.!$A:$M,JN$2,FALSE)) ->  | JO13: =IF(JO12="","",VLOOKUP(JO$3,CONFIG.!$A:$M,JO$2,FALSE)) ->  | JP13: =IF(JP12="","",VLOOKUP(JP$3,CONFIG.!$A:$M,JP$2,FALSE)) ->  | JQ13: =IF(JQ12="","",VLOOKUP(JQ$3,CONFIG.!$A:$M,JQ$2,FALSE)) ->  | JR13: =IF(JR12="","",VLOOKUP(JR$3,CONFIG.!$A:$M,JR$2,FALSE)) ->  | JS13: =IF(JS12="","",VLOOKUP(JS$3,CONFIG.!$A:$M,JS$2,FALSE)) ->  | JT13: =IF(JT12="","",VLOOKUP(JT$3,CONFIG.!$A:$M,JT$2,FALSE)) ->  | JU13: =IF(JU12="","",VLOOKUP(JU$3,CONFIG.!$A:$M,JU$2,FALSE)) ->  | JV13: =IF(JV12="","",VLOOKUP(JV$3,CONFIG.!$A:$M,JV$2,FALSE)) ->  | JW13: =IF(JW12="","",VLOOKUP(JW$3,CONFIG.!$A:$M,JW$2,FALSE)) ->  | JX13: =IF(JX12="","",VLOOKUP(JX$3,CONFIG.!$A:$M,JX$2,FALSE)) ->  | JY13: =IF(JY12="","",VLOOKUP(JY$3,CONFIG.!$A:$M,JY$2,FALSE)) ->  | JZ13: =IF(JZ12="","",VLOOKUP(JZ$3,CONFIG.!$A:$M,JZ$2,FALSE)) ->  | KA13: =IF(KA12="","",VLOOKUP(KA$3,CONFIG.!$A:$M,KA$2,FALSE)) ->  | KB13: =IF(KB12="","",VLOOKUP(KB$3,CONFIG.!$A:$M,KB$2,FALSE)) ->  | KC13: =IF(KC12="","",VLOOKUP(KC$3,CONFIG.!$A:$M,KC$2,FALSE)) ->  | KD13: =IF(KD12="","",VLOOKUP(KD$3,CONFIG.!$A:$M,KD$2,FALSE)) ->  | KE13: =IF(KE12="","",VLOOKUP(KE$3,CONFIG.!$A:$M,KE$2,FALSE)) ->  | KF13: =IF(KF12="","",VLOOKUP(KF$3,CONFIG.!$A:$M,KF$2,FALSE)) ->  | KG13: =IF(KG12="","",VLOOKUP(KG$3,CONFIG.!$A:$M,KG$2,FALSE)) ->  | KH13: =IF(KH12="","",VLOOKUP(KH$3,CONFIG.!$A:$M,KH$2,FALSE)) ->  | KI13: =IF(KI12="","",VLOOKUP(KI$3,CONFIG.!$A:$M,KI$2,FALSE)) ->  | KJ13: =IF(KJ12="","",VLOOKUP(KJ$3,CONFIG.!$A:$M,KJ$2,FALSE)) ->  | KK13: =IF(KK12="","",VLOOKUP(KK$3,CONFIG.!$A:$M,KK$2,FALSE)) ->  | KL13: =IF(KL12="","",VLOOKUP(KL$3,CONFIG.!$A:$M,KL$2,FALSE)) ->  | KM13: =IF(KM12="","",VLOOKUP(KM$3,CONFIG.!$A:$M,KM$2,FALSE)) ->  | KN13: =IF(KN12="","",VLOOKUP(KN$3,CONFIG.!$A:$M,KN$2,FALSE)) -> Agricole. | KO13: =IF(KO12="","",VLOOKUP(KO$3,CONFIG.!$A:$M,KO$2,FALSE)) ->  | KP13: =IF(KP12="","",VLOOKUP(KP$3,CONFIG.!$A:$M,KP$2,FALSE)) ->  | KQ13: =IF(KQ12="","",VLOOKUP(KQ$3,CONFIG.!$A:$M,KQ$2,FALSE)) ->  | KR13: =IF(KR12="","",VLOOKUP(KR$3,CONFIG.!$A:$M,KR$2,FALSE)) ->  | KS13: =IF(KS12="","",VLOOKUP(KS$3,CONFIG.!$A:$M,KS$2,FALSE)) ->  | KT13: =IF(KT12="","",VLOOKUP(KT$3,CONFIG.!$A:$M,KT$2,FALSE)) ->  | KU13: =IF(KU12="","",VLOOKUP(KU$3,CONFIG.!$A:$M,KU$2,FALSE)) ->  | KV13: =IF(KV12="","",VLOOKUP(KV$3,CONFIG.!$A:$M,KV$2,FALSE)) ->  | KW13: =IF(KW12="","",VLOOKUP(KW$3,CONFIG.!$A:$M,KW$2,FALSE)) ->  | KX13: =IF(KX12="","",VLOOKUP(KX$3,CONFIG.!$A:$M,KX$2,FALSE)) ->  | KY13: =IF(KY12="","",VLOOKUP(KY$3,CONFIG.!$A:$M,KY$2,FALSE)) ->  | KZ13: =IF(KZ12="","",VLOOKUP(KZ$3,CONFIG.!$A:$M,KZ$2,FALSE)) ->  | LA13: =IF(LA12="","",VLOOKUP(LA$3,CONFIG.!$A:$M,LA$2,FALSE)) ->  | LB13: =IF(LB12="","",VLOOKUP(LB$3,CONFIG.!$A:$M,LB$2,FALSE)) ->  | LC13: =IF(LC12="","",VLOOKUP(LC$3,CONFIG.!$A:$M,LC$2,FALSE)) ->  | LD13: =IF(LD12="","",VLOOKUP(LD$3,CONFIG.!$A:$M,LD$2,FALSE)) ->  | LE13: =IF(LE12="","",VLOOKUP(LE$3,CONFIG.!$A:$M,LE$2,FALSE)) ->  | LF13: =IF(LF12="","",VLOOKUP(LF$3,CONFIG.!$A:$M,LF$2,FALSE)) ->  | LG13: =IF(LG12="","",VLOOKUP(LG$3,CONFIG.!$A:$M,LG$2,FALSE)) ->  | LH13: =IF(LH12="","",VLOOKUP(LH$3,CONFIG.!$A:$M,LH$2,FALSE)) ->  | LI13: =IF(LI12="","",VLOOKUP(LI$3,CONFIG.!$A:$M,LI$2,FALSE)) ->  | LJ13: =IF(LJ12="","",VLOOKUP(LJ$3,CONFIG.!$A:$M,LJ$2,FALSE)) ->  | LK13: =IF(LK12="","",VLOOKUP(LK$3,CONFIG.!$A:$M,LK$2,FALSE)) ->  | LL13: =IF(LL12="","",VLOOKUP(LL$3,CONFIG.!$A:$M,LL$2,FALSE)) ->  | LM13: =IF(LM12="","",VLOOKUP(LM$3,CONFIG.!$A:$M,LM$2,FALSE)) ->  | LN13: =IF(LN12="","",VLOOKUP(LN$3,CONFIG.!$A:$M,LN$2,FALSE)) ->  | LO13: =IF(LO12="","",VLOOKUP(LO$3,CONFIG.!$A:$M,LO$2,FALSE)) ->  | LP13: =IF(LP12="","",VLOOKUP(LP$3,CONFIG.!$A:$M,LP$2,FALSE)) ->  | LQ13: =IF(LQ12="","",VLOOKUP(LQ$3,CONFIG.!$A:$M,LQ$2,FALSE)) ->  | LR13: =IF(LR12="","",VLOOKUP(LR$3,CONFIG.!$A:$M,LR$2,FALSE)) ->  | LS13: =IF(LS12="","",VLOOKUP(LS$3,CONFIG.!$A:$M,LS$2,FALSE)) ->  | LT13: =IF(LT12="","",VLOOKUP(LT$3,CONFIG.!$A:$M,LT$2,FALSE)) ->  | LU13: =IF(LU12="","",VLOOKUP(LU$3,CONFIG.!$A:$M,LU$2,FALSE)) ->  | LV13: =IF(LV12="","",VLOOKUP(LV$3,CONFIG.!$A:$M,LV$2,FALSE)) ->  | LW13: =IF(LW12="","",VLOOKUP(LW$3,CONFIG.!$A:$M,LW$2,FALSE)) ->  | LX13: =IF(LX12="","",VLOOKUP(LX$3,CONFIG.!$A:$M,LX$2,FALSE)) ->  | LY13: =IF(LY12="","",VLOOKUP(LY$3,CONFIG.!$A:$M,LY$2,FALSE)) ->  | LZ13: =IF(LZ12="","",VLOOKUP(LZ$3,CONFIG.!$A:$M,LZ$2,FALSE)) ->  | MA13: =IF(MA12="","",VLOOKUP(MA$3,CONFIG.!$A:$M,MA$2,FALSE)) ->  | MB13: =IF(MB12="","",VLOOKUP(MB$3,CONFIG.!$A:$M,MB$2,FALSE)) ->  | MC13: =IF(MC12="","",VLOOKUP(MC$3,CONFIG.!$A:$M,MC$2,FALSE)) ->  | MD13: =IF(MD12="","",VLOOKUP(MD$3,CONFIG.!$A:$M,MD$2,FALSE)) ->  | ME13: =IF(ME12="","",VLOOKUP(ME$3,CONFIG.!$A:$M,ME$2,FALSE)) ->  | MF13: =IF(MF12="","",VLOOKUP(MF$3,CONFIG.!$A:$M,MF$2,FALSE)) ->  | MG13: =IF(MG12="","",VLOOKUP(MG$3,CONFIG.!$A:$M,MG$2,FALSE)) ->  | MH13: =IF(MH12="","",VLOOKUP(MH$3,CONFIG.!$A:$M,MH$2,FALSE)) ->  | MI13: =IF(MI12="","",VLOOKUP(MI$3,CONFIG.!$A:$M,MI$2,FALSE)) ->  | MJ13: =IF(MJ12="","",VLOOKUP(MJ$3,CONFIG.!$A:$M,MJ$2,FALSE)) ->  | MK13: =IF(MK12="","",VLOOKUP(MK$3,CONFIG.!$A:$M,MK$2,FALSE)) ->  | ML13: =IF(ML12="","",VLOOKUP(ML$3,CONFIG.!$A:$M,ML$2,FALSE)) ->  | MM13: =IF(MM12="","",VLOOKUP(MM$3,CONFIG.!$A:$M,MM$2,FALSE)) ->  | MN13: =IF(MN12="","",VLOOKUP(MN$3,CONFIG.!$A:$M,MN$2,FALSE)) ->  | MO13: =IF(MO12="","",VLOOKUP(MO$3,CONFIG.!$A:$M,MO$2,FALSE)) ->  | MP13: =IF(MP12="","",VLOOKUP(MP$3,CONFIG.!$A:$M,MP$2,FALSE)) ->  | MQ13: =IF(MQ12="","",VLOOKUP(MQ$3,CONFIG.!$A:$M,MQ$2,FALSE)) ->  | MR13: =IF(MR12="","",VLOOKUP(MR$3,CONFIG.!$A:$M,MR$2,FALSE)) ->  | MS13: =IF(MS12="","",VLOOKUP(MS$3,CONFIG.!$A:$M,MS$2,FALSE)) ->  | MT13: =IF(MT12="","",VLOOKUP(MT$3,CONFIG.!$A:$M,MT$2,FALSE)) ->  | MU13: =IF(MU12="","",VLOOKUP(MU$3,CONFIG.!$A:$M,MU$2,FALSE)) ->  | MV13: =IF(MV12="","",VLOOKUP(MV$3,CONFIG.!$A:$M,MV$2,FALSE)) ->  | MW13: =IF(MW12="","",VLOOKUP(MW$3,CONFIG.!$A:$M,MW$2,FALSE)) ->  | MX13: =IF(MX12="","",VLOOKUP(MX$3,CONFIG.!$A:$M,MX$2,FALSE)) ->  | MY13: =IF(MY12="","",VLOOKUP(MY$3,CONFIG.!$A:$M,MY$2,FALSE)) ->  | MZ13: =IF(MZ12="","",VLOOKUP(MZ$3,CONFIG.!$A:$M,MZ$2,FALSE)) ->  | NA13: =IF(NA12="","",VLOOKUP(NA$3,CONFIG.!$A:$M,NA$2,FALSE)) ->  | NB13: =IF(NB12="","",VLOOKUP(NB$3,CONFIG.!$A:$M,NB$2,FALSE)) ->  | NC13: =IF(NC12="","",VLOOKUP(NC$3,CONFIG.!$A:$M,NC$2,FALSE)) ->  | ND13: =IF(ND12="","",VLOOKUP(ND$3,CONFIG.!$A:$M,ND$2,FALSE)) ->  | NE13: =IF(NE12="","",VLOOKUP(NE$3,CONFIG.!$A:$M,NE$2,FALSE)) -> 
A14: 9 | B14: =B15 -> 5 | C14: =IF(D15="OK",D14,"") -> 146 | D14: 146 | E14: 2,5/5 | F14: 2,5/5 | G14: 2,5/5 | H14: =IF(ISERROR(HLOOKUP(H15,$T$4:$ZZ$1244,$A14+2,FALSE)=TRUE),"",HLOOKUP(H15,$T$4:$ZZ$1244,$A14+2,FALSE)) ->  | I14: =IF(ISERROR(HLOOKUP(I15,$T$4:$ZZ$1244,$A14+2,FALSE)=TRUE),"",HLOOKUP(I15,$T$4:$ZZ$1244,$A14+2,FALSE)) ->  | K14: =IF(ISERROR(HLOOKUP(K15,$T$4:$ZZ$1244,$A14+2,FALSE)=TRUE),"",HLOOKUP(K15,$T$4:$ZZ$1244,$A14+2,FALSE)) ->  | R14: 5/5 | S14: 5/5 | T14: 3/5 | W14: 2,5/5 | AQ14: 3,5/5 | BC14: 2,5/5 | BE14: 3,5/5 | CP14: x | DU14: 2/5 | DV14: 1/5 | DZ14: 3/5 | FE14: x | FF14: x | FG14: x | GM14: x | GO14: x | HV14: x | HW14: x | HX14: x | JH14: x | KN14: x | KU14: x | KV14: x | KX14: x
